Workbook

Sheet Single School Forecast (hidden)
B3: Color Key | R3: SY 2017-18 | S3: SY 2018-19 | T3: SY 2019-20 | U3: SY 2020-21 | V3: SY 2021-22 | W3: SY 2022-23 | X3: SY 2023-24 | Y3: SY 2024-25 | Z3: SY 2025-26 | AA3: SY 2026 - 27 | AB3: SY 2027 - 28
C4: = User Input | O4: BEA Rate | R4: =+R75/R43 ->  | S4: =+S75/S43 ->  | T4: =+T75/T43 ->  | U4: =+IFERROR(U75/U43,0) -> 0 | V4: 0 | W4: 11454.83868 | X4: 11605.67951 | Y4: 0 | Z4: 0 | AA4: 0 | AB4: =+IFERROR(AB75/AB43,0) -> 0
C5: = Calculated Field | O5: SpEd 3121 | R5: =+R87/R63 ->  | S5: =+S87/S63 ->  | T5: =+T87/T63 ->  | U5: =+IFERROR(U87/U63,0) -> 0 | V5: 0 | W5: 748.8785111 | X5: 743.2384758 | Y5: 0 | Z5: 0 | AA5: 0 | AB5: =+IFERROR(AB87/AB63,0) -> 0
B6: FTE | C6: =Full time equivalent students | O6: SpEd 4121 | R6: =+R91/R62 ->  | S6: =+S89/S62 ->  | T6: =+T89/T62 ->  | U6: =+IFERROR(U89/U62,0) -> 0 | V6: 0 | W6: 10350.30762 | X6: 11882.31743 | Y6: 0 | Z6: 0 | AA6: 0 | AB6: =+IFERROR(AB89/AB62,0) -> 0
B7: Reference Data | D7: 2016 | E7: 2017 | F7: 2018 | G7: 2019 | H7: 2020 | O7: LAP | R7: =+(R209+R192+R174+R158+R148)/R54 ->  | S7: =+(S209+S192+S174+S158+S148)/S54 ->  | T7: =+(T209+T192+T174+T158+T148)/T54 ->  | U7: =+IFERROR((U209+U192+U174+U158+U148)/U54,0) -> 0 | V7: 538.0079245 | W7: 571.6703339 | X7: 568.7162297 | Y7: 590.8902136 | Z7: 0 | AA7: 0 | AB7: =+IFERROR((AB209+AB192+AB174+AB158+AB148)/AB54,0) -> 0
D8: SY 2016-17 | E8: SY 2017-18 | F8: SY 2018-19 | G8: SY 2019-20 | H8: SY 2020-21 | O8: LAP HiPov | R8: =+(R212+R195+R177+R161+R151)/R55 ->  | S8: =+(S212+S195+S177+S161+S151)/S55 ->  | T8: =+(T212+T195+T177+T161+T151)/T55 ->  | U8: =+IFERROR((U212+U195+U177+U161+U151)/U55,0) -> 0 | V8: 0 | W8: 0 | X8: 0 | Y8: 0 | Z8: 0 | AA8: 0 | AB8: =+IFERROR((AB212+AB195+AB177+AB161+AB151)/AB55,0) -> 0
C9: State Revenue Inflation (IPD) | E9: 0.017 | F9: 0.016 | G9: 0.018 | H9: 0.019 | O9: LAP Total | R9: =+R93/R54 ->  | S9: =+S93/S54 ->  | T9: =+T93/T54 ->  | U9: =+IFERROR(U93/U54,0) -> 0 | V9: 622.7249824 | W9: 661.4401752 | X9: 664.2250762 | Y9: 686.7667914 | Z9: 0 | AA9: 0 | AB9: =+IFERROR(AB93/AB54,0) -> 0
C10: CPI Seattle/Tacoma/Bremerton | D10: 0.022 | O10: TBIP | R10: =+R98/SUM(R51:R53) ->  | S10: =+S98/SUM(S51:S53) -> 135.8227106 | T10: =+T98/SUM(T51:T53) ->  | U10: =+IFERROR(U98/SUM(U51:U53),0) -> 0 | V10: 0 | W10: 0 | X10: 1303.905821 | Y10: 0 | Z10: 0 | AA10: 0 | AB10: =+IFERROR(AB98/SUM(AB51:AB53),0) -> 0
B11: Analysis Levers, by Year | O11: HiCap | R11: =+R103/R56 ->  | S11: =+S103/S56 ->  | T11: =+T103/T56 ->  | U11: =+IFERROR(U103/U56,0) -> 0 | V11: 560.7771583 | W11: 595.641017 | X11: 598.1488799 | Y11: 0 | Z11: 0 | AA11: 0 | AB11: =+IFERROR(AB103/AB56,0) -> 0
B12: Note the difference in years from the reference data above | C12: Grant Year | D12: 2021 | E12: 2022 | F12: 2023 | G12: 2024 | H12: 2025 | O12: Transportation | R12: =+R108/(R43*0.95) ->  | S12: =+S108/(S43*0.95) ->  | T12: =+T108/(T43*0.95) ->  | U12: =+IFERROR(U108/(U43*0.95),0) -> 0 | V12: 0 | W12: 0 | X12: 0 | Y12: 0 | Z12: 0 | AA12: 0 | AB12: =+IFERROR(AB108/(AB43*0.95),0) -> 0
C13: School Year | D13: SY 2021-22 | E13: SY 2022-23 | F13: SY 2023-24 | G13: SY 2024-25 | H13: SY 2025-26 | O13: BEA Rate | S13: =+(S4-R4)/R4 ->  | T13: =+(T4-S4)/S4 ->  | U13: =+IFERROR((U4-T4)/T4,0) -> 0 | V13: 0 | W13: 0 | X13: 0.01316830688 | Y13: -1 | Z13: 0 | AA13: 0 | AB13: 0
C14: % Revenue Growth | D14: 0 | E14: 0 | F14: 0 | G14: 0 | H14: 0 | O14: SpEd 3121 | S14: =+(S5-R5)/R5 ->  | U14: 0 | V14: 0 | W14: 0 | X14: -0.007531308846 | Y14: -1 | Z14: 0 | AA14: 0 | AB14: 0
C15: % Salaries and Benefits Expense Growth | D15: 0 | E15: 0 | F15: 0 | G15: 0 | H15: 0 | O15: SpEd 4121 | U15: 0 | V15: 0 | W15: 0 | X15: 0.1480158715 | Y15: -1 | Z15: 0 | AA15: 0 | AB15: 0
C16: % Operating Expenses Growth | D16: 0 | E16: 0 | F16: 0 | G16: 0 | H16: 0 | O16: LAP | U16: 0 | V16: 0 | W16: 0.06256861272 | X16: -0.005167496132 | Y16: 0.03898953951 | Z16: -1 | AA16: 0 | AB16: 0
B17: Analysis Levers, All Years | O17: LAP HiPov | U17: 0 | V17: 0 | W17: 0 | X17: 0 | Y17: 0 | Z17: 0 | AA17: 0 | AB17: 0
C18: Include professional Learning time? | D18: Yes | O18: LAP Total | U18: 0 | V18: 0 | W18: 0.06217061134 | X18: 0.004210359607 | Y18: 0.03393686262 | Z18: -1 | AA18: 0 | AB18: 0
C19: Include Oversight Fee? | O19: TBIP | U19: 0 | V19: 0 | W19: 0 | X19: 0 | Y19: -1 | Z19: 0 | AA19: 0 | AB19: 0
C20: Include SS RN ? | D20: Yes | O20: HiCap | U20: 0 | V20: 0 | W20: 0.06217061134 | X20: 0.004210359607 | Y20: -1 | Z20: 0 | AA20: 0 | AB20: 0
O21: Transportation | S21: =+(S12-R12)/R12 ->  | U21: 0 | V21: 0 | W21: 0 | X21: 0 | Y21: 0 | Z21: 0 | AA21: 0 | AB21: 0
O23: IPD Inflation (Reference)> | W23: 0.055 | X23: 0.037 | Y23: 0.039 | Z23: 0.021 | AA23: 0.021 | AB23: 0.021 | AC23: <Actual IPD in March 2022 was 2.8%, The 5.5% calculated rebase value in the budget is 5.5%
O24: Choose your revenue inflation rate> | U24: 0 | V24: 0 | W24: 0 | X24: 0 | Y24: =+Y23 -> 0.039 | Z24: =+Z23 -> 0.021 | AA24: =+AA23 -> 0.021 | AB24: =+AB23 -> 0.021 | AC24: < Applies to salaries
M25: =INDEX('Master Charter List - SB 6362'!$F$7:$F$385,MATCH('Single School Forecast'!$O$25,'Master Charter List - SB 6362'!$D$7:$D$385,0)) -> Pullman School District | N25: =VLOOKUP(O25,'Master Charter List - SB 6362'!D7:E385,2,FALSE) -> Pullman Community Montessori | O25: Pullman Community Montessori | W25: <Pick the school district you plan to locate in | Y25: =+Y73 ->  | Z25: =+Y25-Y26 -> 
O26: Input Charter School or Home District ^ | Y26: 2514346.988
R27: Budget | S27: Projected | T27: Projected | U27: Projected | V27: Projected | W27: Projected | X27: Projected | Y27: Projected | Z27: Projected | AA27: Projected | AB27: Projected
O28: Grant Year | R28: 2017 | S28: 2018 | T28: 2019 | U28: 2020 | V28: 2021 | W28: 2022 | X28: 2023 | Y28: 2024 | Z28: 2025 | AA28: 2026 | AB28: 2027
O29: Enrollment/ Descriptive | Q29: 2016-17 | R29: SY 2017-18 | S29: SY 2018-19 | T29: SY 2019-20 | U29: 2020-21 | V29: SY 2021-22 | W29: SY 2022-23 | X29: SY 2023-24 | Y29: SY 2024-25 | Z29: SY 2025-26 | AA29: SY 2026-27 | AB29: SY 2027-28 | AC29: Notes
K30: Enroll K-6 | L30: Enroll K-8 | M30: Enroll K-3 | N30: Elem | O30: K | W30: 30 | X30: =+'Enrollment and Demographics'!E3 -> 18 | Y30: =+'Enrollment and Demographics'!#REF! ->  | Z30: =+'Enrollment and Demographics'!#REF! ->  | AA30: =+'Enrollment and Demographics'!#REF! ->  | AB30: =+'Enrollment and Demographics'!#REF! -> 
K31: Enroll K-6 | L31: Enroll K-8 | M31: Enroll K-3 | N31: Elem | O31: 1 | W31: 22 | X31: =+'Enrollment and Demographics'!E4 -> 30.5 | Y31: =+'Enrollment and Demographics'!#REF! ->  | Z31: =+'Enrollment and Demographics'!#REF! ->  | AA31: =+'Enrollment and Demographics'!#REF! ->  | AB31: =+'Enrollment and Demographics'!#REF! -> 
K32: Enroll K-6 | L32: Enroll K-8 | M32: Enroll K-3 | N32: Elem | O32: 2 | W32: 13 | X32: =+'Enrollment and Demographics'!E5 -> 20.7 | Y32: =+'Enrollment and Demographics'!#REF! ->  | Z32: =+'Enrollment and Demographics'!#REF! ->  | AA32: =+'Enrollment and Demographics'!#REF! ->  | AB32: =+'Enrollment and Demographics'!#REF! -> 
K33: Enroll K-6 | L33: Enroll K-8 | M33: Enroll K-3 | N33: Elem | O33: 3 | W33: 11 | X33: =+'Enrollment and Demographics'!E6 -> 9.7 | Y33: =+'Enrollment and Demographics'!#REF! ->  | Z33: =+'Enrollment and Demographics'!#REF! ->  | AA33: =+'Enrollment and Demographics'!#REF! ->  | AB33: =+'Enrollment and Demographics'!#REF! -> 
K34: Enroll K-6 | L34: Enroll K-8 | M34: Enroll 4 | N34: Elem | O34: 4 | W34: 5 | X34: =+'Enrollment and Demographics'!E7 -> 8.7 | Y34: =+'Enrollment and Demographics'!#REF! ->  | Z34: =+'Enrollment and Demographics'!#REF! ->  | AA34: =+'Enrollment and Demographics'!#REF! ->  | AB34: =+'Enrollment and Demographics'!#REF! -> 
K35: Enroll K-6 | L35: Enroll K-8 | M35: Enroll 5-6 | N35: Elem | O35: 5 | W35: 13 | X35: =+'Enrollment and Demographics'!E8 -> 5.7 | Y35: =+'Enrollment and Demographics'!#REF! ->  | Z35: =+'Enrollment and Demographics'!#REF! ->  | AA35: =+'Enrollment and Demographics'!#REF! ->  | AB35: =+'Enrollment and Demographics'!#REF! -> 
K36: Enroll K-6 | L36: Enroll K-8 | M36: Enroll 5-6 | N36: Elem | O36: 6 | W36: 6 | X36: =+'Enrollment and Demographics'!E9 -> 6.9 | Y36: =+'Enrollment and Demographics'!#REF! ->  | Z36: =+'Enrollment and Demographics'!#REF! ->  | AA36: =+'Enrollment and Demographics'!#REF! ->  | AB36: =+'Enrollment and Demographics'!#REF! -> 
K37: Enroll 7-8 | L37: Enroll K-8 | M37: Enroll 7-8 | N37: Middle | O37: 7 | X37: =+'Enrollment and Demographics'!E10 -> 6.2 | Y37: =+'Enrollment and Demographics'!#REF! ->  | Z37: =+'Enrollment and Demographics'!#REF! ->  | AA37: =+'Enrollment and Demographics'!#REF! ->  | AB37: =+'Enrollment and Demographics'!#REF! -> 
K38: Enroll 7-8 | L38: Enroll K-8 | M38: Enroll 7-8 | N38: Middle | O38: 8 | X38: =+'Enrollment and Demographics'!E11 -> 0 | Y38: =+'Enrollment and Demographics'!#REF! ->  | Z38: =+'Enrollment and Demographics'!#REF! ->  | AA38: =+'Enrollment and Demographics'!#REF! ->  | AB38: =+'Enrollment and Demographics'!#REF! -> 
M39: Enroll 9-12 | N39: High | O39: 9 | X39: =+'Enrollment and Demographics'!E12 -> 0 | Y39: =+'Enrollment and Demographics'!#REF! ->  | Z39: =+'Enrollment and Demographics'!#REF! ->  | AA39: =+'Enrollment and Demographics'!#REF! ->  | AB39: =+'Enrollment and Demographics'!#REF! -> 
M40: Enroll 9-12 | N40: High | O40: 10 | X40: =+'Enrollment and Demographics'!E13 -> 0 | Y40: =+'Enrollment and Demographics'!#REF! ->  | Z40: =+'Enrollment and Demographics'!#REF! ->  | AA40: =+'Enrollment and Demographics'!#REF! ->  | AB40: =+'Enrollment and Demographics'!#REF! -> 
M41: Enroll 9-12 | N41: High | O41: 11 | X41: =+'Enrollment and Demographics'!E14 -> 0 | Y41: =+'Enrollment and Demographics'!#REF! ->  | Z41: =+'Enrollment and Demographics'!#REF! ->  | AA41: =+'Enrollment and Demographics'!#REF! ->  | AB41: =+'Enrollment and Demographics'!#REF! -> 
M42: Enroll 9-12 | N42: High | O42: 12 | V42: 99.8 | X42: =+'Enrollment and Demographics'!E15 -> 0 | Y42: =+'Enrollment and Demographics'!#REF! ->  | Z42: =+'Enrollment and Demographics'!#REF! ->  | AA42: =+'Enrollment and Demographics'!#REF! ->  | AB42: =+'Enrollment and Demographics'!#REF! -> 
M43: Total Enrollment | O43: Total Enrollment | Q43: =IFERROR(INDEX('Variable Inputs - SB 6362'!G$12:G$4816,MATCH($N55,'Variable Inputs - SB 6362'!$C$12:$C$4816,0)),0) -> 0 | R43: =SUM(R30:R42) -> 0 | S43: 0 | T43: =SUM(T30:T42) -> 0 | U43: =SUM(U30:U42) -> 0 | V43: 99.8 | W43: 100 | X43: 106.4 | AB43: =SUM(AB30:AB42) -> 
O44: Enrollment Growth | S44: =IFERROR((S43-R43)/R43,0) -> 0 | T44: =(T43-S43)/S43 ->  | W44: 0.002004008016 | X44: 0.064
O45: % K-3 HighPov | R45: 0 | S45: 0 | T45: 0 | U45: 0 | V45: 0 | W45: 0 | X45: 0 | Y45: 0 | Z45: 0 | AA45: 1 | AB45: 1
M46: Enroll K-3 HighPov | O46: K-3 HighPov | R46: =IF(R45<0.5,0,R45*SUM(R30:R33)) -> 0 | S46: =IF(S45<0.5,0,S45*SUM(S30:S33)) -> 0 | T46: 0 | U46: 0 | V46: 0 | W46: 0 | X46: 0 | Y46: 0 | Z46: 0 | AB46: =IF(AB45<0.5,0,AB45*SUM(AB30:AB33)) -> 
M47: =$M$25&" - "&"% LAP from Cedars" -> Pullman School District - % LAP from Cedars | N47: =$N$25&" - "&"% LAP from Cedars" -> Pullman Community Montessori - % LAP from Cedars | O47: % FRPL | R47: =IF(R43=0,0,IFERROR(INDEX('Variable Inputs - SB 6362'!H$12:H$4816,MATCH($N47,'Variable Inputs - SB 6362'!$C$12:$C$4816,0)),INDEX('Variable Inputs - SB 6362'!H$12:H$4816,MATCH($M47,'Variable Inputs - SB 6362'!$C$12:$C$4816,0)))) -> 0 | S47: =IF(S43=0,0,IFERROR(INDEX('Variable Inputs - SB 6362'!I$12:I$4816,MATCH($N47,'Variable Inputs - SB 6362'!$C$12:$C$4816,0)),INDEX('Variable Inputs - SB 6362'!I$12:I$4816,MATCH($M47,'Variable Inputs - SB 6362'!$C$12:$C$4816,0)))) -> 0 | T47: =IF(T43=0,0,IFERROR(INDEX('Variable Inputs - SB 6362'!J$12:J$4816,MATCH($N47,'Variable Inputs - SB 6362'!$C$12:$C$4816,0)),INDEX('Variable Inputs - SB 6362'!J$12:J$4816,MATCH($M47,'Variable Inputs - SB 6362'!$C$12:$C$4816,0)))) -> 0 | U47: =IF(U43=0,0,IFERROR(INDEX('Variable Inputs - SB 6362'!K$12:K$4816,MATCH($N47,'Variable Inputs - SB 6362'!$C$12:$C$4816,0)),INDEX('Variable Inputs - SB 6362'!K$12:K$4816,MATCH($M47,'Variable Inputs - SB 6362'!$C$12:$C$4816,0)))) -> 0 | V47: =IF(V43=0,0,IFERROR(INDEX('Variable Inputs - SB 6362'!L$12:L$4816,MATCH($N47,'Variable Inputs - SB 6362'!$C$12:$C$4816,0)),INDEX('Variable Inputs - SB 6362'!L$12:L$4816,MATCH($M47,'Variable Inputs - SB 6362'!$C$12:$C$4816,0)))) -> 0.2762 | W47: =IF(W43=0,0,IFERROR(INDEX('Variable Inputs - SB 6362'!M$12:M$4816,MATCH($N47,'Variable Inputs - SB 6362'!$C$12:$C$4816,0)),INDEX('Variable Inputs - SB 6362'!M$12:M$4816,MATCH($M47,'Variable Inputs - SB 6362'!$C$12:$C$4816,0)))) -> 0.2278 | X47: =IF(X43=0,0,IFERROR(INDEX('Variable Inputs - SB 6362'!N$12:N$4816,MATCH($N47,'Variable Inputs - SB 6362'!$C$12:$C$4816,0)),INDEX('Variable Inputs - SB 6362'!N$12:N$4816,MATCH($M47,'Variable Inputs - SB 6362'!$C$12:$C$4816,0)))) -> 0.2165 | Y47: =+'Enrollment and Demographics'!E22 -> 0.4981203008 | Z47: =+'Enrollment and Demographics'!#REF! ->  | AA47: =+'Enrollment and Demographics'!#REF! ->  | AB47: =+'Enrollment and Demographics'!#REF! ->  | AC47: <<% FRPL 50 and greater triggers the additional LAP funding for High Poverty Schools
O48: TBIP K-6 % | R48: 0.05 | S48: =+IFERROR(S51/SUM(S30:S36)," ") ->  | T48: =+IFERROR(T51/SUM(T30:T36)," ") ->  | W48: 0 | X48: =+'Enrollment and Demographics'!E24 -> 0.008849557522 | Y48: =+'Enrollment and Demographics'!#REF! ->  | Z48: =+'Enrollment and Demographics'!#REF! ->  | AA48: =+'Enrollment and Demographics'!#REF! ->  | AB48: =+'Enrollment and Demographics'!#REF! -> 
O49: TBIP 7-12 % | R49: 0.05 | S49: =+IFERROR(S52/SUM(S37:S42)," ") ->  | T49: =+IFERROR(T52/SUM(T37:T42)," ") ->  | V49: 0 | X49: =+'Enrollment and Demographics'!E25 -> 0 | Y49: =+'Enrollment and Demographics'!#REF! ->  | Z49: =+'Enrollment and Demographics'!#REF! ->  | AA49: =+'Enrollment and Demographics'!#REF! ->  | AB49: =+'Enrollment and Demographics'!#REF! -> 
O50: TBIP Exited % | R50: 0.02 | S50: =+IFERROR(S53/S43," ") ->  | T50: =+IFERROR(T53/T43," ") ->  | V50: 0 | W50: 0 | X50: =+'Enrollment and Demographics'!E26 -> 0 | Y50: =+'Enrollment and Demographics'!#REF! ->  | Z50: =+'Enrollment and Demographics'!#REF! ->  | AA50: =+'Enrollment and Demographics'!#REF! ->  | AB50: =+'Enrollment and Demographics'!#REF! -> 
N51: TBIP (K-6) Staff Units | O51: TBIP (K-6) FTE | R51: =+R48*SUM(R30:R36) -> 0 | S51: 35 | X51: =+X48*SUM(X30:X36) -> 0.8867256637 | Y51: =+Y48*SUM(Y30:Y36) ->  | AB51: =+AB48*SUM(AB30:AB36) ->  | AC51: << Enter values here is you plan to apply for these funds in iGrants
N52: TBIP (7-12) Staff Units | O52: TBIP(7-12) FTE | R52: =+R48*SUM(R37:R42) -> 0 | S52: 15 | X52: =+X49*SUM(X37:X42) -> 0 | Y52: =+Y49*SUM(Y37:Y42) ->  | AB52: =+AB49*SUM(AB37:AB42) ->  | AC52: << Enter values here is you plan to apply for these funds in iGrants
N53: TBIP Exited Staff Units | O53: TBIP Exited FTE | R53: =+R50*R43 -> 0 | S53: 5 | X53: =+X50*X43 -> 0 | Y53: =+Y50*Y43 ->  | AB53: =+AB50*AB43 ->  | AC53: << Enter values here is you plan to apply for these funds in iGrants
L54: =$M$25&" - "&"% LAP from Cedars" -> Pullman School District - % LAP from Cedars | M54: =$N$25&" - "&"% LAP from Cedars" -> Pullman Community Montessori - % LAP from Cedars | N54: LAP Staff Units | O54: LAP FTE | R54: =IF(R47*Q43=0,R47*R43,R47*Q43) -> 0 | S54: =+IF(S47*R43=0,S47*S43,S47*R43) -> 0 | T54: =+IF(T47*S43=0,T47*T43,T47*S43) -> 0 | U54: 0 | V54: 27.56476 | W54: 22.73444 | X54: 21.65 | Y54: 53 | AC54: <<These do not reflect the actual number of students in the program, just the number of students that will produce funding,
M55: =N25&" - "&"LAP High Pov Eligible" -> Pullman Community Montessori - LAP High Pov Eligible | N55: =N25&" - "&O55 -> Pullman Community Montessori - LAP Hi Pov FTE | O55: LAP Hi Pov FTE | Q55: =IFERROR(INDEX('Variable Inputs - SB 6362'!G$12:G$4816,MATCH($M55,'Variable Inputs - SB 6362'!$C$12:$C$4816,0)),"No Value") -> 0 | R55: =IFERROR(IF(Q55="Yes",INDEX('Variable Inputs - SB 6362'!G$12:G$4816,MATCH($N55,'Variable Inputs - SB 6362'!$C$12:$C$4816,0)),IF(AND(Q55="No Value",R47>=0.5),R43,0)),0) -> 0 | S55: =+IF(AVERAGE(R47:S47)>0.5,R43,0) -> 0 | T55: 0 | U55: =+IF(AVERAGE(S47:U47)>0.5,T43,0) -> 0 | V55: =+IF(AVERAGE(T47:V47)>0.5,U43,0) -> 0 | W55: =+IF(AVERAGE(U47:W47)>0.5,V43,0) -> 0 | X55: 0 | Y55: 0 | AC55: <<Students eligible for LAP Hi POV will show up here, if the previous year's % FRPL is greater than 50, then previous year's total enrollment will fill in
M56: HiCap students % | N56: HiCap Staff Units | O56: HiCap FTE | R56: =R43*INDEX('Standard Inputs - SB 6362'!F$12:F$1048576,MATCH('Single School Forecast'!$M$56,'Standard Inputs - SB 6362'!$D$12:$D$1048576,0)) -> 0 | S56: =S43*INDEX('Standard Inputs - SB 6362'!G$12:G$1048576,MATCH('Single School Forecast'!$M$56,'Standard Inputs - SB 6362'!$D$12:$D$1048576,0)) -> 0 | T56: =T43*INDEX('Standard Inputs - SB 6362'!H$12:H$1048576,MATCH('Single School Forecast'!$M$56,'Standard Inputs - SB 6362'!$D$12:$D$1048576,0)) -> 0 | U56: =U43*INDEX('Standard Inputs - SB 6362'!I$12:I$1048576,MATCH('Single School Forecast'!$M$56,'Standard Inputs - SB 6362'!$D$12:$D$1048576,0)) -> 0 | V56: =V43*INDEX('Standard Inputs - SB 6362'!J$12:J$1048576,MATCH('Single School Forecast'!$M$56,'Standard Inputs - SB 6362'!$D$12:$D$1048576,0)) -> 4.99 | W56: =W43*INDEX('Standard Inputs - SB 6362'!K$12:K$1048576,MATCH('Single School Forecast'!$M$56,'Standard Inputs - SB 6362'!$D$12:$D$1048576,0)) -> 5 | X56: =X43*INDEX('Standard Inputs - SB 6362'!L$12:L$1048576,MATCH('Single School Forecast'!$M$56,'Standard Inputs - SB 6362'!$D$12:$D$1048576,0)) -> 5.32 | Y56: =Y43*INDEX('Standard Inputs - SB 6362'!M$12:M$1048576,MATCH('Single School Forecast'!$M$56,'Standard Inputs - SB 6362'!$D$12:$D$1048576,0)) ->  | Z56: =Z43*INDEX('Standard Inputs - SB 6362'!N$12:N$1048576,MATCH('Single School Forecast'!$M$56,'Standard Inputs - SB 6362'!$D$12:$D$1048576,0)) ->  | AA56: =AA43*INDEX('Standard Inputs - SB 6362'!O$12:O$1048576,MATCH('Single School Forecast'!$M$56,'Standard Inputs - SB 6362'!$D$12:$D$1048576,0)) ->  | AB56: =AB43*INDEX('Standard Inputs - SB 6362'!P$12:P$1048576,MATCH('Single School Forecast'!$M$56,'Standard Inputs - SB 6362'!$D$12:$D$1048576,0)) ->  | AC56: <<These do not reflect the actual number of students in the program, just the number of students that will produce funding
O57: Highly Capable Program? | R57: No | S57: No | T57: No | U57: Yes | V57: Yes | W57: Yes | X57: Yes | Y57: Yes | Z57: Yes | AA57: Yes | AB57: Yes | AC57: <<You should choose Yes if you plan to apply for the money in iGrants
O58: % SpEd (of total enrollment) | R58: 0.16 | S58: 0.15 | T58: 0.135 | W58: 0.135 | X58: =+'Enrollment and Demographics'!E28 -> 0.15 | Y58: =+'Enrollment and Demographics'!#REF! ->  | Z58: =+'Enrollment and Demographics'!#REF! ->  | AA58: =+'Enrollment and Demographics'!#REF! ->  | AB58: =+'Enrollment and Demographics'!#REF! -> 
O59: SpEd Tier 1 >= 80% FTE | W59: =+W58*W43 -> 13.5 | X59: =+X58*X43 -> 15.96 | Y59: =+Y58*Y43 -> 
O60: SpEd Tier 2 < 80% FTE
O61: Total Check | U61: =+IF(SUM(U59:U60)=U62," ","!Tier 1 & 2 <> 4121 SpEd FTE!") ->  | V61: =+IF(SUM(V59:V60)=V62," ","!Tier 1 & 2 <> 4121 SpEd FTE!") ->  | W61: =+IF(SUM(W59:W60)=W62," ","!Tier 1 & 2 <> 4121 SpEd FTE!") ->  | AB61: =+IF(SUM(AB59:AB60)=AB62," ","!Tier 1 & 2 <> 4121 SpEd FTE!") ->  | AC61: << Cell 59 + 60 must equal 62
O62: 4121 Funded SpEd FTE | R62: =IF(R58>0.135,R43*0.135,R58*R43) -> 0 | S62: 0 | T62: 0 | U62: =ROUND(IF(U58>0.135,U43*0.135,U58*U43),2) -> 0 | V62: =ROUND(IF(V58>0.135,V43*0.135,V58*V43),2) -> 0 | W62: 13.5 | X62: =ROUND(IF(X58>0.15,X43*0.15,X58*X43),2) -> 15.96 | Y62: =ROUND(IF(Y58>0.15,Y43*0.15,Y58*Y43),2) ->  | AB62: =ROUND(IF(AB58>0.15,AB43*0.15,AB58*AB43),2) ->  | AC62: <<This value informs Account 4121 SpEd
O63: Actual SpEd Count | R63: =R58*R43 -> 0 | S63: 0 | T63: 0 | U63: 0 | V63: 0 | W63: 13.5 | X63: 15.96 | AB63: =AB58*AB43 ->  | AC63: <<This value informs Account 3121 SpEd
O64: K-3 Ratio Student to Teacher Ratio | U64: 17 | V64: 17 | W64: 17 | X64: 17 | Y64: 17 | Z64: 17 | AA64: 17 | AB64: 17 | AC64: << Cannot be lower than 17, Links to Standard Inputs Tab
F65: LAP Staff Units | G65: TBIP Staff Units | H65: HiCap Staff Units | I65: LAP High Pov Staff Units | J65: SS RN CIS | K65: SS RN CAS | L65: School CIS Staff Units | M65: School CAS Staff Units | N65: Central Admin CAS Staff Units | O65: Funded CIS/ CAS Units | T65: =+SUMIF($P$218:$P$326,$F65,T$218:T$326)+SUMIF($P$218:$P$326,$G65,T$218:T$326)+SUMIF($P$218:$P$326,$H65,T$218:T$326)+SUMIF($P$218:$P$326,$I65,T$218:T$326)+SUMIF($P$218:$P$326,$J65,T$218:T$326)+SUMIF($P$218:$P$326,$K65,T$218:T$326)+SUMIF($P$218:$P$326,$L65,T$218:T$326)+SUMIF($P$218:$P$326,$M65,T$218:T$326)+SUMIF($P$218:$P$326,$N65,T$218:T$326) ->  | U65: 0 | V65: 10.61962385 | W65: 7.727953501 | X65: 8.259391767
N66: CIS/ CAS SEBB Multiplier | O66: SEBB Funded CIS/ CAS Units | T66: =+T$65*INDEX('Standard Inputs - SB 6362'!H$12:H$1048576,MATCH($N66,'Standard Inputs - SB 6362'!$D$12:$D$1048576,0)) ->  | U66: =+U$65*INDEX('Standard Inputs - SB 6362'!I$12:I$1048576,MATCH($N66,'Standard Inputs - SB 6362'!$D$12:$D$1048576,0)) -> 0 | V66: =+V$65*INDEX('Standard Inputs - SB 6362'!J$12:J$1048576,MATCH($N66,'Standard Inputs - SB 6362'!$D$12:$D$1048576,0)) -> 10.83201633 | W66: =+W$65*INDEX('Standard Inputs - SB 6362'!K$12:K$1048576,MATCH($N66,'Standard Inputs - SB 6362'!$D$12:$D$1048576,0)) -> 7.882512571 | X66: =+X$65*INDEX('Standard Inputs - SB 6362'!L$12:L$1048576,MATCH($N66,'Standard Inputs - SB 6362'!$D$12:$D$1048576,0)) -> 8.424579603 | Y66: =+Y$65*INDEX('Standard Inputs - SB 6362'!M$12:M$1048576,MATCH($N66,'Standard Inputs - SB 6362'!$D$12:$D$1048576,0)) ->  | Z66: =+Z$65*INDEX('Standard Inputs - SB 6362'!N$12:N$1048576,MATCH($N66,'Standard Inputs - SB 6362'!$D$12:$D$1048576,0)) ->  | AA66: =+AA$65*INDEX('Standard Inputs - SB 6362'!O$12:O$1048576,MATCH($N66,'Standard Inputs - SB 6362'!$D$12:$D$1048576,0)) ->  | AB66: =+AB$65*INDEX('Standard Inputs - SB 6362'!Q$12:Q$1048576,MATCH($N66,'Standard Inputs - SB 6362'!$D$12:$D$1048576,0)) -> 
K67: SS RN CLS | L67: School CLS Staff Units | M67: District CLS Staff Units | N67: Central Admin CLS Staff Units | O67: Funded CLS Units | T67: =+SUMIF($P$218:$P$326,$K67,T$218:T$326)+SUMIF($P$218:$P$326,$L67,T$218:T$326)+SUMIF($P$218:$P$326,$M67,T$218:T$326)+SUMIF($P$218:$P$326,$N67,T$218:T$326) ->  | U67: 0 | V67: 3.463172323 | W67: 2.471242946 | X67: 2.588075709
N68: CLS SEBB Multiplier | O68: SEBB Funded CLS Units | T68: =+T$67*INDEX('Standard Inputs - SB 6362'!H$12:H$1048576,MATCH($N68,'Standard Inputs - SB 6362'!$D$12:$D$1048576,0)) ->  | U68: =+U$67*INDEX('Standard Inputs - SB 6362'!I$12:I$1048576,MATCH($N68,'Standard Inputs - SB 6362'!$D$12:$D$1048576,0)) -> 0 | V68: =+V$67*INDEX('Standard Inputs - SB 6362'!J$12:J$1048576,MATCH($N68,'Standard Inputs - SB 6362'!$D$12:$D$1048576,0)) -> 4.952336422 | W68: =+W$67*INDEX('Standard Inputs - SB 6362'!K$12:K$1048576,MATCH($N68,'Standard Inputs - SB 6362'!$D$12:$D$1048576,0)) -> 3.533877412 | X68: =+X$67*INDEX('Standard Inputs - SB 6362'!L$12:L$1048576,MATCH($N68,'Standard Inputs - SB 6362'!$D$12:$D$1048576,0)) -> 3.700948264 | Y68: =+Y$67*INDEX('Standard Inputs - SB 6362'!M$12:M$1048576,MATCH($N68,'Standard Inputs - SB 6362'!$D$12:$D$1048576,0)) ->  | Z68: =+Z$67*INDEX('Standard Inputs - SB 6362'!N$12:N$1048576,MATCH($N68,'Standard Inputs - SB 6362'!$D$12:$D$1048576,0)) ->  | AA68: =+AA$67*INDEX('Standard Inputs - SB 6362'!O$12:O$1048576,MATCH($N68,'Standard Inputs - SB 6362'!$D$12:$D$1048576,0)) ->  | AB68: =+AB$67*INDEX('Standard Inputs - SB 6362'!Q$12:Q$1048576,MATCH($N68,'Standard Inputs - SB 6362'!$D$12:$D$1048576,0)) -> 
R70: Budget | S70: Projected | T70: Projected | U70: Projected | V70: Projected | W70: Projected | X70: Projected | Y70: Projected | Z70: Projected | AA70: Projected | AB70: Projected
O71: Grant Year | R71: 2017 | S71: 2018 | T71: 2019 | U71: 2020 | V71: 2021 | W71: 2022 | X71: 2023 | Y71: 2024 | Z71: 2025 | AA71: 2026 | AB71: 2026
O72: School Year | R72: SY 2017-18 | S72: SY 2018-19 | T72: SY 2019-20 | U72: SY 2020-21 | V72: SY 2021-22 | W72: SY 2022-23 | X72: SY 2023-24 | Y72: SY 2024-25 | Z72: SY 2025-26 | AA72: SY 2026-27 | AB72: SY 2026-27
O73: Total Revenue | R73: =R75+R87+R88-R74 ->  | W73: 1313338.558 | X73: 1455067.004 | AB73: =AB75+AB87+AB88-AB74 -> 
O74: Oversight Fee | R74: =IF($D$19="Yes",(R75+R88+R87+R110)*0.04,0) -> 0 | S74: 0 | T74: 0 | U74: 0 | V74: 0 | W74: 0 | X74: 0 | Y74: 0 | Z74: 0 | AA74: 0 | AB74: =IF($D$19="Yes",(AB75+AB88+AB87+AB110)*0.04,0) -> 0
O75: State Revenue - General Purpose | R75: =R76+R80+R85+R86-R87 ->  | W75: 1145483.868 | X75: =X76+X80+X85+X86-X87 -> 1234844.3 | AB75: =AB76+AB80+AB85+AB86-AB87 ->  | AC75: < This is less Account 3121 SpEd
O76: Salaries | R76: =SUM(R77:R79) -> 0 | S76: 0 | U76: 0 | V76: 909778.3748 | W76: 693341.7494 | X76: =SUM(X77:X79) -> 765959.8539 | AA76: =SUM(AA77:AA79) -> 
O77: CIS Salaries | P77: CIS Salaries | R77: =SUMIF($P$137:$P$215,$P77,R$137:R$215) -> 0 | S77: 0 | U77: 0 | V77: 675510.7835 | W77: =SUMIF($P$137:$P$215,$P77,W$137:W$215) -> 518332.456 | X77: =SUMIF($P$137:$P$215,$P77,X$137:X$215) -> 574994.456
O78: CAS Salaries | P78: CAS Salaries | R78: 0 | S78: 0 | U78: 0 | V78: 63003.33041 | W78: 46077.13521 | X78: 50942.7378
O79: CLS Salaries | P79: CLS Salaries | R79: 0 | S79: 0 | U79: 0 | V79: 171264.2609 | W79: 128932.1582 | X79: 140022.6601
O80: Benefits | R80: =SUM(R81:R84) -> 0 | S80: 0 | U80: 0 | V80: 376881.0475 | W80: 297226.5649 | X80: =SUM(X81:X84) -> 300680.9828 | AB80: =SUM(AB81:AB84) -> 
O81: Certificated SEBB Benefits | P81: Certificated SEBB | T81: =SUMIF($P$137:$P$215,$P81,T$137:T$215) ->  | U81: 0 | V81: 123396.2725 | W81: 94862.65913 | X81: =SUMIF($P$137:$P$215,$P81,X$137:X$215) -> 108776.316
O82: Classified SEBB Benefits | P82: Classified SEBB | U82: 0 | V82: 57526.33988 | W82: 43509.0987 | X82: 48852.51708
O83: Certificated Insurance and Benefits | P83: Certificated Insurance and Benefits | R83: =SUMIF($P$137:$P$215,$P83,R$137:R$215) -> 0 | S83: 0 | U83: 0 | V83: 162990.0649 | W83: 129513.0323 | X83: 112337.9755
O84: Classified Insurance and Benefits | P84: Classified Insurance and Benefits | R84: 0 | S84: 0 | U84: 0 | V84: 32968.37022 | W84: 29341.77476 | X84: 30714.1743
O85: MSOC | P85: MSOC | R85: 0 | S85: 0 | T85: =SUMIF($P$137:$P$215,$P85,T$137:T$215) -> 0 | U85: =SUMIF($P$137:$P$215,$P85,U$137:U$215) -> 0 | V85: =SUMIF($P$137:$P$215,$P85,V$137:V$215)*(1+#REF!) ->  | W85: =SUMIF($P$137:$P$215,$P85,W$137:W$215)*(1+W$24) -> 150418.05 | X85: 164574.616
O86: Other Entitlements | P86: Other Entitlements | R86: 0 | S86: 0 | T86: =SUMIF($P$137:$P$215,$P86,T$137:T$215) ->  | U86: =SUMIF($P$137:$P$215,$P86,U$137:U$215) -> 0 | V86: =SUMIF($P$137:$P$215,$P86,V$137:V$215) -> 19124.17474 | W86: 14607.36362 | X86: 15490.93335
I87: SpEd BEA Rate | J87: District Exp. -State Recovery Rate | K87: =$N$25&" - "&"SpEd Recovery Rate" -> Pullman Community Montessori - SpEd Recovery Rate | L87: =IFERROR(INDEX('Variable Inputs - SB 6362'!H$12:H$4816,MATCH($K87,'Variable Inputs - SB 6362'!$C$12:$C$4816,0)),INDEX('Standard Inputs - SB 6362'!F$12:F$1048576,MATCH($J87,'Standard Inputs - SB 6362'!$D$12:$D$1048576,0))) -> 0.1 | M87: =$N$25&" - "&"% SpEd for 3121" -> Pullman Community Montessori - % SpEd for 3121 | N87: =$M$25&" - "&"% SpEd for 3121" -> Pullman School District - % SpEd for 3121 | O87: Account 3121 SpEd | R87: =IFERROR((R$63*INDEX(R$129:R$133,MATCH($I87,$P$129:$P$133,0)))/(1+$L87)*INDEX('Variable Inputs - SB 6362'!H$12:H$4815,MATCH($M87,'Variable Inputs - SB 6362'!$C$12:$C$4815,0)),(R$63*INDEX(R$129:R$133,MATCH($I87,$P$129:$P$133,0)))/(1+$L87)*INDEX('Variable Inputs - SB 6362'!H$12:H$4815,MATCH($N87,'Variable Inputs - SB 6362'!$C$12:$C$4815,0))) ->  | S87: =IFERROR((S$63*INDEX(S$129:S$133,MATCH($I87,$P$129:$P$133,0)))/(1+$L87)*INDEX('Variable Inputs - SB 6362'!I$12:I$4815,MATCH($M87,'Variable Inputs - SB 6362'!$C$12:$C$4815,0)),(S$63*INDEX(S$129:S$133,MATCH($I87,$P$129:$P$133,0)))/(1+$L87)*INDEX('Variable Inputs - SB 6362'!I$12:I$4815,MATCH($N87,'Variable Inputs - SB 6362'!$C$12:$C$4815,0))) ->  | T87: =IFERROR((T$63*INDEX(T$129:T$133,MATCH($I87,$P$129:$P$133,0)))/(1+$L87)*INDEX('Variable Inputs - SB 6362'!J$12:J$4815,MATCH($M87,'Variable Inputs - SB 6362'!$C$12:$C$4815,0)),(T$63*INDEX(T$129:T$133,MATCH($I87,$P$129:$P$133,0)))/(1+$L87)*INDEX('Variable Inputs - SB 6362'!J$12:J$4815,MATCH($N87,'Variable Inputs - SB 6362'!$C$12:$C$4815,0))) ->  | U87: =IFERROR((U$63*INDEX(U$129:U$133,MATCH($I87,$P$129:$P$133,0)))/(1+$L87)*INDEX('Variable Inputs - SB 6362'!K$12:K$4815,MATCH($M87,'Variable Inputs - SB 6362'!$C$12:$C$4815,0)),(U$63*INDEX(U$129:U$133,MATCH($I87,$P$129:$P$133,0)))/(1+$L87)*INDEX('Variable Inputs - SB 6362'!K$12:K$4815,MATCH($N87,'Variable Inputs - SB 6362'!$C$12:$C$4815,0))) ->  | V87: =IFERROR((V$63*INDEX(V$129:V$133,MATCH($I87,$P$129:$P$133,0)))/(1+$L87)*INDEX('Variable Inputs - SB 6362'!L$12:L$4815,MATCH($M87,'Variable Inputs - SB 6362'!$C$12:$C$4815,0)),(V$63*INDEX(V$129:V$133,MATCH($I87,$P$129:$P$133,0)))/(1+$L87)*INDEX('Variable Inputs - SB 6362'!L$12:L$4815,MATCH($N87,'Variable Inputs - SB 6362'!$C$12:$C$4815,0))) -> 0 | W87: =IFERROR((W$63*INDEX(W$129:W$133,MATCH($I87,$P$129:$P$133,0)))/(1+$L87)*INDEX('Variable Inputs - SB 6362'!M$12:M$4815,MATCH($M87,'Variable Inputs - SB 6362'!$C$12:$C$4815,0)),(W$63*INDEX(W$129:W$133,MATCH($I87,$P$129:$P$133,0)))/(1+$L87)*INDEX('Variable Inputs - SB 6362'!M$12:M$4815,MATCH($N87,'Variable Inputs - SB 6362'!$C$12:$C$4815,0))) -> 10109.8599 | X87: =IFERROR((X$63*INDEX(X$129:X$133,MATCH($I87,$P$129:$P$133,0)))/(1+_xlfn.XLOOKUP($O$25,'State Recovery'!$C:$C,'State Recovery'!D:D))*INDEX('Variable Inputs - SB 6362'!N$12:N$4815,MATCH($M87,'Variable Inputs - SB 6362'!$C$12:$C$4815,0)),(X$63*INDEX(X$129:X$133,MATCH($I87,$P$129:$P$133,0)))/(1+_xlfn.XLOOKUP($O$25,'State Recovery'!$C:$C,'State Recovery'!D:D))*INDEX('Variable Inputs - SB 6362'!N$12:N$4815,MATCH($N87,'Variable Inputs - SB 6362'!$C$12:$C$4815,0))) -> 11862.08607 | Y87: =IFERROR((Y$63*INDEX(Y$129:Y$133,MATCH($I87,$P$129:$P$133,0)))/(1+_xlfn.XLOOKUP($O$25,'State Recovery'!$C:$C,'State Recovery'!E:E))*INDEX('Variable Inputs - SB 6362'!O$12:O$4815,MATCH($M87,'Variable Inputs - SB 6362'!$C$12:$C$4815,0)),(Y$63*INDEX(Y$129:Y$133,MATCH($I87,$P$129:$P$133,0)))/(1+_xlfn.XLOOKUP($O$25,'State Recovery'!$C:$C,'State Recovery'!E:E))*INDEX('Variable Inputs - SB 6362'!O$12:O$4815,MATCH($N87,'Variable Inputs - SB 6362'!$C$12:$C$4815,0))) ->  | Z87: =IFERROR((Z$63*INDEX(Z$129:Z$133,MATCH($I87,$P$129:$P$133,0)))/(1+_xlfn.XLOOKUP($O$25,'State Recovery'!$C:$C,'State Recovery'!F:F))*INDEX('Variable Inputs - SB 6362'!P$12:P$4815,MATCH($M87,'Variable Inputs - SB 6362'!$C$12:$C$4815,0)),(Z$63*INDEX(Z$129:Z$133,MATCH($I87,$P$129:$P$133,0)))/(1+_xlfn.XLOOKUP($O$25,'State Recovery'!$C:$C,'State Recovery'!F:F))*INDEX('Variable Inputs - SB 6362'!P$12:P$4815,MATCH($N87,'Variable Inputs - SB 6362'!$C$12:$C$4815,0))) ->  | AA87: =IFERROR((AA$63*INDEX(AA$129:AA$133,MATCH($I87,$P$129:$P$133,0)))/(1+_xlfn.XLOOKUP($O$25,'State Recovery'!$C:$C,'State Recovery'!G:G))*INDEX('Variable Inputs - SB 6362'!Q$12:Q$4815,MATCH($M87,'Variable Inputs - SB 6362'!$C$12:$C$4815,0)),(AA$63*INDEX(AA$129:AA$133,MATCH($I87,$P$129:$P$133,0)))/(1+_xlfn.XLOOKUP($O$25,'State Recovery'!$C:$C,'State Recovery'!G:G))*INDEX('Variable Inputs - SB 6362'!Q$12:Q$4815,MATCH($N87,'Variable Inputs - SB 6362'!$C$12:$C$4815,0))) ->  | AB87: =IFERROR((AB$63*INDEX(AB$129:AB$133,MATCH($I87,$P$129:$P$133,0)))/(1+_xlfn.XLOOKUP($O$25,'State Recovery'!$C:$C,'State Recovery'!H:H))*INDEX('Variable Inputs - SB 6362'!R$12:R$4815,MATCH($M87,'Variable Inputs - SB 6362'!$C$12:$C$4815,0)),(AB$63*INDEX(AB$129:AB$133,MATCH($I87,$P$129:$P$133,0)))/(1+_xlfn.XLOOKUP($O$25,'State Recovery'!$C:$C,'State Recovery'!H:H))*INDEX('Variable Inputs - SB 6362'!R$12:R$4815,MATCH($N87,'Variable Inputs - SB 6362'!$C$12:$C$4815,0))) ->  | AC87: < If there is no value for the charter school than the formula pulls the corresponding school district's value
O88: State Revenue - Special Purpose | R88: =R91+R92+R108+R109 -> 0 | S88: =S89+S92+S108+S109 ->  | T88: =T89+T92+T108+T109 ->  | W88: 157744.83 | X88: =X89+X92+X108+X109 -> 208360.6179
L89: SpEd BEA Rate | M89: K-12 SpEd Allocation | N89: Fed Funds Int Rate Per Student | O89: Special Education - Account 4121 | R89: =R$62*((INDEX(R$129:R$133,MATCH($L89,$P$129:$P$133,0))*INDEX('Standard Inputs - SB 6362'!F$12:F$1048576,MATCH($M89,'Standard Inputs - SB 6362'!$D$12:$D$1048576,0)))-INDEX('Standard Inputs - SB 6362'!F$12:F$1048576,MATCH($N89,'Standard Inputs - SB 6362'!$D$12:$D$1048576,0))) ->  | S89: =S$62*((INDEX(S$129:S$133,MATCH($L89,$P$129:$P$133,0))*INDEX('Standard Inputs - SB 6362'!G$12:G$1048576,MATCH($M89,'Standard Inputs - SB 6362'!$D$12:$D$1048576,0)))-INDEX('Standard Inputs - SB 6362'!G$12:G$1048576,MATCH($N89,'Standard Inputs - SB 6362'!$D$12:$D$1048576,0))) ->  | T89: =T$62*((INDEX(T$129:T$133,MATCH($L89,$P$129:$P$133,0))*INDEX('Standard Inputs - SB 6362'!H$12:H$1048576,MATCH($M89,'Standard Inputs - SB 6362'!$D$12:$D$1048576,0)))-INDEX('Standard Inputs - SB 6362'!H$12:H$1048576,MATCH($N89,'Standard Inputs - SB 6362'!$D$12:$D$1048576,0))) ->  | U89: =+SUM(U90:U91) ->  | V89: 0 | W89: 139729.1529 | X89: 189641.7862
L90: SpEd BEA Rate | M90: K-12 SpEd Allocation - Tier 1 | N90: Fed Funds Int Rate Per Student | O90: SpEd Tier 1 | U90: =U$59*((INDEX(U$129:U$133,MATCH($L90,$P$129:$P$133,0))*INDEX('Standard Inputs - SB 6362'!I$12:I$1048576,MATCH($M90,'Standard Inputs - SB 6362'!$D$12:$D$1048576,0)))-INDEX('Standard Inputs - SB 6362'!I$12:I$1048576,MATCH($N90,'Standard Inputs - SB 6362'!$D$12:$D$1048576,0))) ->  | V90: =V$59*((INDEX(V$129:V$133,MATCH($L90,$P$129:$P$133,0))*INDEX('Standard Inputs - SB 6362'!J$12:J$1048576,MATCH($M90,'Standard Inputs - SB 6362'!$D$12:$D$1048576,0)))-INDEX('Standard Inputs - SB 6362'!J$12:J$1048576,MATCH($N90,'Standard Inputs - SB 6362'!$D$12:$D$1048576,0))) -> 0 | W90: =W$59*((INDEX(W$129:W$133,MATCH($L90,$P$129:$P$133,0))*INDEX('Standard Inputs - SB 6362'!K$12:K$1048576,MATCH($M90,'Standard Inputs - SB 6362'!$D$12:$D$1048576,0)))-INDEX('Standard Inputs - SB 6362'!K$12:K$1048576,MATCH($N90,'Standard Inputs - SB 6362'!$D$12:$D$1048576,0))) -> 139729.1529 | X90: =ROUND(IF(X58<=0.15, X59, X59/X63*X43*0.15),2)*((INDEX(X$129:X$133,MATCH($L90,$P$129:$P$133,0))*INDEX('Standard Inputs - SB 6362'!L$12:L$1048576,MATCH($M90,'Standard Inputs - SB 6362'!$D$12:$D$1048576,0)))-INDEX('Standard Inputs - SB 6362'!L$12:L$1048576,MATCH($N90,'Standard Inputs - SB 6362'!$D$12:$D$1048576,0))) -> 189641.7862 | Y90: =ROUND(IF(Y58<=0.15, Y59, Y59/Y63*Y43*0.15),2)*((INDEX(Y$129:Y$133,MATCH($L90,$P$129:$P$133,0))*INDEX('Standard Inputs - SB 6362'!M$12:M$1048576,MATCH($M90,'Standard Inputs - SB 6362'!$D$12:$D$1048576,0)))-INDEX('Standard Inputs - SB 6362'!M$12:M$1048576,MATCH($N90,'Standard Inputs - SB 6362'!$D$12:$D$1048576,0))) ->  | Z90: =ROUND(IF(Z58<=0.15, Z59, Z59/Z63*Z43*0.15),2)*((INDEX(Z$129:Z$133,MATCH($L90,$P$129:$P$133,0))*INDEX('Standard Inputs - SB 6362'!N$12:N$1048576,MATCH($M90,'Standard Inputs - SB 6362'!$D$12:$D$1048576,0)))-INDEX('Standard Inputs - SB 6362'!N$12:N$1048576,MATCH($N90,'Standard Inputs - SB 6362'!$D$12:$D$1048576,0))) ->  | AA90: =ROUND(IF(AA58<=0.15, AA59, AA59/AA63*AA43*0.15),2)*((INDEX(AA$129:AA$133,MATCH($L90,$P$129:$P$133,0))*INDEX('Standard Inputs - SB 6362'!O$12:O$1048576,MATCH($M90,'Standard Inputs - SB 6362'!$D$12:$D$1048576,0)))-INDEX('Standard Inputs - SB 6362'!O$12:O$1048576,MATCH($N90,'Standard Inputs - SB 6362'!$D$12:$D$1048576,0))) ->  | AB90: =ROUND(IF(AB58<=0.15, AB59, AB59/AB63*AB43*0.15),2)*((INDEX(AB$129:AB$133,MATCH($L90,$P$129:$P$133,0))*INDEX('Standard Inputs - SB 6362'!P$12:P$1048576,MATCH($M90,'Standard Inputs - SB 6362'!$D$12:$D$1048576,0)))-INDEX('Standard Inputs - SB 6362'!P$12:P$1048576,MATCH($N90,'Standard Inputs - SB 6362'!$D$12:$D$1048576,0))) -> 
L91: SpEd BEA Rate | M91: K-12 SpEd Allocation - Tier 2 | N91: Fed Funds Int Rate Per Student | O91: Sped Tier 2 | U91: =U$60*((INDEX(U$129:U$133,MATCH($L91,$P$129:$P$133,0))*INDEX('Standard Inputs - SB 6362'!I$12:I$1048576,MATCH($M91,'Standard Inputs - SB 6362'!$D$12:$D$1048576,0)))-INDEX('Standard Inputs - SB 6362'!I$12:I$1048576,MATCH($N91,'Standard Inputs - SB 6362'!$D$12:$D$1048576,0))) ->  | V91: =V$60*((INDEX(V$129:V$133,MATCH($L91,$P$129:$P$133,0))*INDEX('Standard Inputs - SB 6362'!J$12:J$1048576,MATCH($M91,'Standard Inputs - SB 6362'!$D$12:$D$1048576,0)))-INDEX('Standard Inputs - SB 6362'!J$12:J$1048576,MATCH($N91,'Standard Inputs - SB 6362'!$D$12:$D$1048576,0))) -> 0 | W91: =W$60*((INDEX(W$129:W$133,MATCH($L91,$P$129:$P$133,0))*INDEX('Standard Inputs - SB 6362'!K$12:K$1048576,MATCH($M91,'Standard Inputs - SB 6362'!$D$12:$D$1048576,0)))-INDEX('Standard Inputs - SB 6362'!K$12:K$1048576,MATCH($N91,'Standard Inputs - SB 6362'!$D$12:$D$1048576,0))) -> 0 | X91: =ROUND(IF(X58<=0.15, X60, X60/X63*X43*0.15),2)*((INDEX(X$129:X$133,MATCH($L91,$P$129:$P$133,0))*INDEX('Standard Inputs - SB 6362'!L$12:L$1048576,MATCH($M91,'Standard Inputs - SB 6362'!$D$12:$D$1048576,0)))-INDEX('Standard Inputs - SB 6362'!L$12:L$1048576,MATCH($N91,'Standard Inputs - SB 6362'!$D$12:$D$1048576,0))) -> 0 | Y91: =ROUND(IF(Y58<=0.15, Y60, Y60/Y63*Y43*0.15),2)*((INDEX(Y$129:Y$133,MATCH($L91,$P$129:$P$133,0))*INDEX('Standard Inputs - SB 6362'!M$12:M$1048576,MATCH($M91,'Standard Inputs - SB 6362'!$D$12:$D$1048576,0)))-INDEX('Standard Inputs - SB 6362'!M$12:M$1048576,MATCH($N91,'Standard Inputs - SB 6362'!$D$12:$D$1048576,0))) ->  | Z91: =ROUND(IF(Z58<=0.15, Z60, Z60/Z63*Z43*0.15),2)*((INDEX(Z$129:Z$133,MATCH($L91,$P$129:$P$133,0))*INDEX('Standard Inputs - SB 6362'!N$12:N$1048576,MATCH($M91,'Standard Inputs - SB 6362'!$D$12:$D$1048576,0)))-INDEX('Standard Inputs - SB 6362'!N$12:N$1048576,MATCH($N91,'Standard Inputs - SB 6362'!$D$12:$D$1048576,0))) ->  | AA91: =ROUND(IF(AA58<=0.15, AA60, AA60/AA63*AA43*0.15),2)*((INDEX(AA$129:AA$133,MATCH($L91,$P$129:$P$133,0))*INDEX('Standard Inputs - SB 6362'!O$12:O$1048576,MATCH($M91,'Standard Inputs - SB 6362'!$D$12:$D$1048576,0)))-INDEX('Standard Inputs - SB 6362'!O$12:O$1048576,MATCH($N91,'Standard Inputs - SB 6362'!$D$12:$D$1048576,0))) ->  | AB91: =ROUND(IF(AB58<=0.15, AB60, AB60/AB63*AB43*0.15),2)*((INDEX(AB$129:AB$133,MATCH($L91,$P$129:$P$133,0))*INDEX('Standard Inputs - SB 6362'!P$12:P$1048576,MATCH($M91,'Standard Inputs - SB 6362'!$D$12:$D$1048576,0)))-INDEX('Standard Inputs - SB 6362'!P$12:P$1048576,MATCH($N91,'Standard Inputs - SB 6362'!$D$12:$D$1048576,0))) -> 
O92: Categorical Programs | R92: =R93+R98+R103 -> 0 | S92: =S93+S98+S103 -> 7470.249081 | T92: 0 | U92: 0 | V92: =(V93+V98+V103) -> 19963.54271 | W92: 18015.67706 | X92: 18718.8317 | AB92: =(AB93+AB98+AB103) -> 
O93: LAP TOTAL | R93: =SUM(R94:R97) -> 0 | S93: =SUM(S94:S97) -> 0 | T93: 0 | U93: 0 | V93: 17165.26469 | W93: 15037.47198 | X93: 14380.4729 | Y93: 36398.63994 | AB93: =SUM(AB94:AB97) -> 
O94: LAP Salaries | P94: LAP Salaries | Q94: LAP High Pov Salaries | R94: =SUMIF($P$137:$P$215,$P94,R$137:R$215)+SUMIF($P$137:$P$215,$Q94,R$137:R$215) -> 0 | S94: 0 | T94: 0 | U94: 0 | V94: 12148.81569 | W94: 10570.93139 | X94: 10439.17116 | Y94: 26552.14035 | Z94: =SUMIF($P$137:$P$215,$P94,Z$137:Z$215)+SUMIF($P$137:$P$215,$Q94,Z$137:Z$215)*(1+Z24) ->  | AA94: =SUMIF($P$137:$P$215,$P94,AA$137:AA$215)+SUMIF($P$137:$P$215,$Q94,AA$137:AA$215)*(1+AA24) ->  | AB94: =SUMIF($P$137:$P$215,$P94,AB$137:AB$215)+SUMIF($P$137:$P$215,$Q94,AB$137:AB$215)*(1+AB24) -> 
O95: LAP Professional Learning Time | R95: =+R124 -> 0 | S95: =+S124 -> 0 | T95: 0 | U95: 0 | V95: 247.1676553 | W95: 215.541291 | X95: 204.1379921 | Y95: 519.2271045 | AB95: =+AB124 -> 
O96: LAP SEBB Benefits | P96: LAP SEBB | T96: =SUMIF($P$137:$P$215,$P96,T$137:T$215) -> 0 | U96: 0 | V96: 2088.037715 | W96: 1825.325781 | X96: 1863.628536 | Y96: 4562.23152
O97: LAP Insurance and Benefits | P97: LAP Insurance and Benefits | R97: =SUMIF($P$137:$P$215,$P97,R$137:R$215) -> 0 | S97: =SUMIF($P$137:$P$215,$P97,S$137:S$215) -> 0 | T97: 0 | U97: 0 | V97: 2681.243623 | W97: 2425.67352 | X97: 1873.535208 | Y97: 4765.040973
O98: TBIP TOTAL | R98: =SUM(R99:R102) -> 0 | S98: =SUM(S99:S102) -> 7470.249081 | T98: 0 | U98: 0 | V98: 0 | W98: 0 | X98: 1156.206755 | AB98: =SUM(AB99:AB102) -> 
O99: TBIP Salaries | P99: TBIP Salaries | R99: =SUMIF($P$137:$P$215,$P99,R$137:R$215) -> 0 | S99: -197.0495755 | T99: 0 | U99: 0 | V99: 0 | W99: 0 | X99: 834.5011765
O100: TBIP Professional Learning Time | R100: =+R125 -> 0 | S100: =+S125 -> 0 | T100: 0 | U100: 0 | V100: 0 | W100: 0 | X100: 16.66259911 | AB100: =+AB125 -> 
O101: TBIP SEBB Benefits | P101: TBIP SEBB | T101: =SUMIF($P$137:$P$215,$P101,T$137:T$215) -> 0 | U101: 0 | V101: 0 | W101: 0 | X101: 152.1171775
O102: TBIP Insurance and Benefits | P102: TBIP Insurance and Benefits | R102: =SUMIF($P$137:$P$215,$P102,R$137:R$215) -> 0 | S102: =SUMIF($P$137:$P$215,$P102,S$137:S$215) -> 7667.298656 | T102: 0 | U102: 0 | V102: 0 | W102: 0 | X102: 152.9258017
O103: HiCap TOTAL | R103: =SUM(R104:R107) -> 0 | S103: =SUM(S104:S107) -> 0 | T103: 0 | U103: 0 | V103: 2798.27802 | W103: 2978.205085 | X103: 3182.152041 | AB103: =SUM(AB104:AB107) -> 
O104: HiCap Salaries | P104: HiCAP Salaries | R104: =SUMIF($P$137:$P$215,$P104,R$137:R$215) -> 0 | S104: =SUMIF($P$143:$P$215,$P104,S$143:S$215) -> 0 | T104: 0 | U104: 0 | V104: 1980.497507 | W104: 2093.596693 | X104: 2310.009557 | Z104: =SUMIF($P$143:$P$215,$P104,Z$143:Z$215)*(1+Z24) ->  | AA104: =SUMIF($P$143:$P$215,$P104,AA$143:AA$215)*(1+AA24) ->  | AB104: =SUMIF($P$143:$P$215,$P104,AB$143:AB$215)*(1+AB24) -> 
O105: HiCap Professional Learning Time | R105: =+R126 -> 0 | S105: =+S126 -> 0 | T105: 0 | U105: 0 | V105: 40.29322178 | W105: 42.68843658 | X105: 45.17223688 | AB105: =+AB126 -> 
O106: HiCap SEBB Benefits | P106: HiCap SEBB | T106: =SUMIF($P$137:$P$215,$P106,T$137:T$215) -> 0 | U106: 0 | V106: 340.3914911 | W106: 361.5098688 | X106: 412.3890355
O107: HiCap Insurance and Benefits | P107: HiCap Insurance and Benefits | R107: =SUMIF($P$137:$P$215,$P107,R$137:R$215) -> 0 | S107: =SUMIF($P$137:$P$215,$P107,S$137:S$215) -> 0 | T107: 0 | U107: 0 | V107: 437.0957998 | W107: 480.4100865 | X107: 414.5812122
O108: Transportation | R108: =+(R110*(R43*0.95)) -> 0 | S108: 0 | T108: 0 | U108: 0 | V108: 0 | W108: 0 | X108: 0 | AB108: =+(AB110*(AB43*0.95)) ->  | AC108: <95% ridership baked into this formula
O109: State Meal Program with Inflation | R109: =R111 -> 0 | S109: =S111 -> 0 | T109: 0 | U109: 0 | V109: =IF(ISBLANK(#REF!),V111,V111*(1+#REF!)) ->  | W109: =IF(ISBLANK(W$24),W111,W111*(1+W$24)) -> 0 | X109: 0 | Y109: 0 | Z109: 0 | AA109: 0 | AB109: =IF(ISBLANK(AB$24),AB111,AB111*(1+AB$24)) -> 0
O110: Transportation | AC110: <Per pupil Value translated to a total above
O111: State Meal Program
O117: SCHOOL SPECIFIC SALARIES | Q117: SY 2016-17 | R117: SY 2017-18 | S117: SY 2018-19 | T117: SY 2019-20 | U117: SY 2020-21 | V117: SY 2021-22 | W117: SY 2022-23 | X117: SY 2023-24 | Y117: SY 2024-25 | Z117: SY 2025-26 | AA117: SY 2026-27 | AB117: SY 2027-28
M118: =$M$25&" - "&O118 -> Pullman School District - CIS Salary | N118: =$N$25&" - "&$O118 -> Pullman Community Montessori - CIS Salary | O118: CIS Salary | Q118: =IFERROR(INDEX('Variable Inputs - SB 6362'!G$12:G$4815,MATCH($N118,'Variable Inputs - SB 6362'!$C$12:$C$4815,0)),INDEX('Variable Inputs - SB 6362'!G$12:G$4815,MATCH('Single School Forecast'!$M118,'Variable Inputs - SB 6362'!$C$12:$C$4815,0))) -> 0 | R118: =IFERROR(INDEX('Variable Inputs - SB 6362'!H$12:H$4815,MATCH($N118,'Variable Inputs - SB 6362'!$C$12:$C$4815,0)),INDEX('Variable Inputs - SB 6362'!H$12:H$4815,MATCH('Single School Forecast'!$M118,'Variable Inputs - SB 6362'!$C$12:$C$4815,0))) -> 0 | S118: =IFERROR(INDEX('Variable Inputs - SB 6362'!I$12:I$4815,MATCH($N118,'Variable Inputs - SB 6362'!$C$12:$C$4815,0)),INDEX('Variable Inputs - SB 6362'!I$12:I$4815,MATCH('Single School Forecast'!$M118,'Variable Inputs - SB 6362'!$C$12:$C$4815,0))) -> 0 | T118: =IFERROR(INDEX('Variable Inputs - SB 6362'!J$12:J$4815,MATCH($N118,'Variable Inputs - SB 6362'!$C$12:$C$4815,0)),INDEX('Variable Inputs - SB 6362'!J$12:J$4815,MATCH('Single School Forecast'!$M118,'Variable Inputs - SB 6362'!$C$12:$C$4815,0))) -> 0 | U118: =IFERROR(INDEX('Variable Inputs - SB 6362'!K$12:K$4815,MATCH($N118,'Variable Inputs - SB 6362'!$C$12:$C$4815,0)),INDEX('Variable Inputs - SB 6362'!K$12:K$4815,MATCH('Single School Forecast'!$M118,'Variable Inputs - SB 6362'!$C$12:$C$4815,0))) -> 0 | V118: =+IFERROR(VLOOKUP($N118,'Variable Inputs - SB 6362'!$C$13:$Q$2627,10,FALSE),VLOOKUP('Single School Forecast'!$M118,'Variable Inputs - SB 6362'!$C$13:$Q$2627,10,FALSE))*(1+'Single School Forecast'!V$24) -> 68937 | W118: =+IFERROR(VLOOKUP($N118,'Variable Inputs - SB 6362'!$C$13:$Q$2627,11,FALSE),VLOOKUP('Single School Forecast'!$M118,'Variable Inputs - SB 6362'!$C$13:$Q$2627,11,FALSE))*(1+'Single School Forecast'!W$24) -> 72728 | X118: =+IFERROR(VLOOKUP($N118,'Variable Inputs - SB 6362'!$C$13:$Q$2627,12,FALSE),VLOOKUP('Single School Forecast'!$M118,'Variable Inputs - SB 6362'!$C$13:$Q$2627,12,FALSE))*(1+'Single School Forecast'!X$24) -> 75419 | Y118: =+IFERROR(VLOOKUP($N118,'Variable Inputs - SB 6362'!$C$13:$Q$2627,13,FALSE),VLOOKUP('Single School Forecast'!$M118,'Variable Inputs - SB 6362'!$C$13:$Q$2627,13,FALSE))*(1+'Single School Forecast'!Y$24) -> 78360.341 | Z118: =+IFERROR(VLOOKUP($N118,'Variable Inputs - SB 6362'!$C$13:$Q$2627,14,FALSE),VLOOKUP('Single School Forecast'!$M118,'Variable Inputs - SB 6362'!$C$13:$Q$2627,14,FALSE))*(1+'Single School Forecast'!Z$24)*(1+Z24) -> 78619.85778 | AA118: =+IFERROR(VLOOKUP($N118,'Variable Inputs - SB 6362'!$C$13:$Q$2627,15,FALSE),VLOOKUP('Single School Forecast'!$M118,'Variable Inputs - SB 6362'!$C$13:$Q$2627,15,FALSE))*(1+'Single School Forecast'!AA$24)*(1+AA24)*(1+AA24) -> 80270.87479 | AB118: =+IFERROR(VLOOKUP($N118,'Variable Inputs - SB 6362'!$C$13:$Q$2627,15,FALSE),VLOOKUP('Single School Forecast'!$M118,'Variable Inputs - SB 6362'!$C$13:$Q$2627,15,FALSE))*(1+'Single School Forecast'!AB$24)*(1+AB24)*(1+AB24) -> 80270.87479 | AC118: <Inclusive of Regionalization Factor
M119: =$M$25&" - "&O119 -> Pullman School District - CAS Salary | N119: =$N$25&" - "&$O119 -> Pullman Community Montessori - CAS Salary | O119: CAS Salary | Q119: =IFERROR(INDEX('Variable Inputs - SB 6362'!G$12:G$4815,MATCH($N119,'Variable Inputs - SB 6362'!$C$12:$C$4815,0)),INDEX('Variable Inputs - SB 6362'!G$12:G$4815,MATCH('Single School Forecast'!$M119,'Variable Inputs - SB 6362'!$C$12:$C$4815,0))) -> 0 | R119: =IFERROR(INDEX('Variable Inputs - SB 6362'!H$12:H$4815,MATCH($N119,'Variable Inputs - SB 6362'!$C$12:$C$4815,0)),INDEX('Variable Inputs - SB 6362'!H$12:H$4815,MATCH('Single School Forecast'!$M119,'Variable Inputs - SB 6362'!$C$12:$C$4815,0))) -> 0 | S119: =IFERROR(INDEX('Variable Inputs - SB 6362'!I$12:I$4815,MATCH($N119,'Variable Inputs - SB 6362'!$C$12:$C$4815,0)),INDEX('Variable Inputs - SB 6362'!I$12:I$4815,MATCH('Single School Forecast'!$M119,'Variable Inputs - SB 6362'!$C$12:$C$4815,0))) -> 0 | T119: =IFERROR(INDEX('Variable Inputs - SB 6362'!J$12:J$4815,MATCH($N119,'Variable Inputs - SB 6362'!$C$12:$C$4815,0)),INDEX('Variable Inputs - SB 6362'!J$12:J$4815,MATCH('Single School Forecast'!$M119,'Variable Inputs - SB 6362'!$C$12:$C$4815,0))) -> 0 | U119: =IFERROR(INDEX('Variable Inputs - SB 6362'!K$12:K$4815,MATCH($N119,'Variable Inputs - SB 6362'!$C$12:$C$4815,0)),INDEX('Variable Inputs - SB 6362'!K$12:K$4815,MATCH('Single School Forecast'!$M119,'Variable Inputs - SB 6362'!$C$12:$C$4815,0))) -> 0 | V119: =+IFERROR(VLOOKUP($N119,'Variable Inputs - SB 6362'!$C$13:$Q$2627,10,FALSE),VLOOKUP('Single School Forecast'!$M119,'Variable Inputs - SB 6362'!$C$13:$Q$2627,10,FALSE))*(1+'Single School Forecast'!V$24) -> 102327 | W119: =+IFERROR(VLOOKUP($N119,'Variable Inputs - SB 6362'!$C$13:$Q$2627,11,FALSE),VLOOKUP('Single School Forecast'!$M119,'Variable Inputs - SB 6362'!$C$13:$Q$2627,11,FALSE))*(1+'Single School Forecast'!W$24) -> 107955 | X119: =+IFERROR(VLOOKUP($N119,'Variable Inputs - SB 6362'!$C$13:$Q$2627,12,FALSE),VLOOKUP('Single School Forecast'!$M119,'Variable Inputs - SB 6362'!$C$13:$Q$2627,12,FALSE))*(1+'Single School Forecast'!X$24) -> 111950 | Y119: =+IFERROR(VLOOKUP($N119,'Variable Inputs - SB 6362'!$C$13:$Q$2627,13,FALSE),VLOOKUP('Single School Forecast'!$M119,'Variable Inputs - SB 6362'!$C$13:$Q$2627,13,FALSE))*(1+'Single School Forecast'!Y$24) -> 116316.05 | Z119: =+IFERROR(VLOOKUP($N119,'Variable Inputs - SB 6362'!$C$13:$Q$2627,14,FALSE),VLOOKUP('Single School Forecast'!$M119,'Variable Inputs - SB 6362'!$C$13:$Q$2627,14,FALSE))*(1+'Single School Forecast'!Z$24)*(1+Z25) ->  | AA119: =+IFERROR(VLOOKUP($N119,'Variable Inputs - SB 6362'!$C$13:$Q$2627,15,FALSE),VLOOKUP('Single School Forecast'!$M119,'Variable Inputs - SB 6362'!$C$13:$Q$2627,15,FALSE))*(1+'Single School Forecast'!AA$24)*(1+AA25)*(1+AA25) -> 114300.95 | AB119: =+IFERROR(VLOOKUP($N119,'Variable Inputs - SB 6362'!$C$13:$Q$2627,15,FALSE),VLOOKUP('Single School Forecast'!$M119,'Variable Inputs - SB 6362'!$C$13:$Q$2627,15,FALSE))*(1+'Single School Forecast'!AB$24)*(1+AB25)*(1+AB25) -> 114300.95 | AC119: <Inclusive of Regionalization Factor
M120: =$M$25&" - "&O120 -> Pullman School District - CLS Salary | N120: =$N$25&" - "&$O120 -> Pullman Community Montessori - CLS Salary | O120: CLS Salary | Q120: =IFERROR(INDEX('Variable Inputs - SB 6362'!G$12:G$4815,MATCH($N120,'Variable Inputs - SB 6362'!$C$12:$C$4815,0)),INDEX('Variable Inputs - SB 6362'!G$12:G$4815,MATCH('Single School Forecast'!$M120,'Variable Inputs - SB 6362'!$C$12:$C$4815,0))) -> 0 | R120: =IFERROR(INDEX('Variable Inputs - SB 6362'!H$12:H$4815,MATCH($N120,'Variable Inputs - SB 6362'!$C$12:$C$4815,0)),INDEX('Variable Inputs - SB 6362'!H$12:H$4815,MATCH('Single School Forecast'!$M120,'Variable Inputs - SB 6362'!$C$12:$C$4815,0))) -> 0 | S120: =IFERROR(INDEX('Variable Inputs - SB 6362'!I$12:I$4815,MATCH($N120,'Variable Inputs - SB 6362'!$C$12:$C$4815,0)),INDEX('Variable Inputs - SB 6362'!I$12:I$4815,MATCH('Single School Forecast'!$M120,'Variable Inputs - SB 6362'!$C$12:$C$4815,0))) -> 0 | T120: =IFERROR(INDEX('Variable Inputs - SB 6362'!J$12:J$4815,MATCH($N120,'Variable Inputs - SB 6362'!$C$12:$C$4815,0)),INDEX('Variable Inputs - SB 6362'!J$12:J$4815,MATCH('Single School Forecast'!$M120,'Variable Inputs - SB 6362'!$C$12:$C$4815,0))) -> 0 | U120: =IFERROR(INDEX('Variable Inputs - SB 6362'!K$12:K$4815,MATCH($N120,'Variable Inputs - SB 6362'!$C$12:$C$4815,0)),INDEX('Variable Inputs - SB 6362'!K$12:K$4815,MATCH('Single School Forecast'!$M120,'Variable Inputs - SB 6362'!$C$12:$C$4815,0))) -> 0 | V120: =+IFERROR(VLOOKUP($N120,'Variable Inputs - SB 6362'!$C$13:$Q$2627,10,FALSE),VLOOKUP('Single School Forecast'!$M120,'Variable Inputs - SB 6362'!$C$13:$Q$2627,10,FALSE))*(1+'Single School Forecast'!V$24) -> 49453 | W120: =+IFERROR(VLOOKUP($N120,'Variable Inputs - SB 6362'!$C$13:$Q$2627,11,FALSE),VLOOKUP('Single School Forecast'!$M120,'Variable Inputs - SB 6362'!$C$13:$Q$2627,11,FALSE))*(1+'Single School Forecast'!W$24) -> 52173 | X120: =+IFERROR(VLOOKUP($N120,'Variable Inputs - SB 6362'!$C$13:$Q$2627,12,FALSE),VLOOKUP('Single School Forecast'!$M120,'Variable Inputs - SB 6362'!$C$13:$Q$2627,12,FALSE))*(1+'Single School Forecast'!X$24) -> 54103 | Y120: =+IFERROR(VLOOKUP($N120,'Variable Inputs - SB 6362'!$C$13:$Q$2627,13,FALSE),VLOOKUP('Single School Forecast'!$M120,'Variable Inputs - SB 6362'!$C$13:$Q$2627,13,FALSE))*(1+'Single School Forecast'!Y$24) -> 56213.017 | Z120: =+IFERROR(VLOOKUP($N120,'Variable Inputs - SB 6362'!$C$13:$Q$2627,14,FALSE),VLOOKUP('Single School Forecast'!$M120,'Variable Inputs - SB 6362'!$C$13:$Q$2627,14,FALSE))*(1+'Single School Forecast'!Z$24)*(1+Z26) -> 55239.163 | AA120: =+IFERROR(VLOOKUP($N120,'Variable Inputs - SB 6362'!$C$13:$Q$2627,15,FALSE),VLOOKUP('Single School Forecast'!$M120,'Variable Inputs - SB 6362'!$C$13:$Q$2627,15,FALSE))*(1+'Single School Forecast'!AA$24)*(1+AA26)*(1+AA26) -> 55239.163 | AB120: =+IFERROR(VLOOKUP($N120,'Variable Inputs - SB 6362'!$C$13:$Q$2627,15,FALSE),VLOOKUP('Single School Forecast'!$M120,'Variable Inputs - SB 6362'!$C$13:$Q$2627,15,FALSE))*(1+'Single School Forecast'!AB$24)*(1+AB26)*(1+AB26) -> 55239.163 | AC120: <Inclusive of Regionalization Factor
M121: =$M$25&" - "&O121 -> Pullman School District - Staff Mix Factor | N121: =$N$25&" - "&$O121 -> Pullman Community Montessori - Staff Mix Factor | O121: Staff Mix Factor | Q121: =IFERROR(INDEX('Variable Inputs - SB 6362'!G$12:G$4815,MATCH($N121,'Variable Inputs - SB 6362'!$C$12:$C$4815,0)),INDEX('Variable Inputs - SB 6362'!G$12:G$4815,MATCH('Single School Forecast'!$M121,'Variable Inputs - SB 6362'!$C$12:$C$4815,0))) -> 0 | R121: =IFERROR(INDEX('Variable Inputs - SB 6362'!H$12:H$4815,MATCH($N121,'Variable Inputs - SB 6362'!$C$12:$C$4815,0)),INDEX('Variable Inputs - SB 6362'!H$12:H$4815,MATCH('Single School Forecast'!$M121,'Variable Inputs - SB 6362'!$C$12:$C$4815,0))) -> 0 | S121: =IFERROR(INDEX('Variable Inputs - SB 6362'!I$12:I$4815,MATCH($N121,'Variable Inputs - SB 6362'!$C$12:$C$4815,0)),INDEX('Variable Inputs - SB 6362'!I$12:I$4815,MATCH('Single School Forecast'!$M121,'Variable Inputs - SB 6362'!$C$12:$C$4815,0))) -> 0 | T121: =IFERROR(INDEX('Variable Inputs - SB 6362'!J$12:J$4815,MATCH($N121,'Variable Inputs - SB 6362'!$C$12:$C$4815,0)),INDEX('Variable Inputs - SB 6362'!J$12:J$4815,MATCH('Single School Forecast'!$M121,'Variable Inputs - SB 6362'!$C$12:$C$4815,0))) -> 0 | U121: =IFERROR(INDEX('Variable Inputs - SB 6362'!K$12:K$4815,MATCH($N121,'Variable Inputs - SB 6362'!$C$12:$C$4815,0)),INDEX('Variable Inputs - SB 6362'!K$12:K$4815,MATCH('Single School Forecast'!$M121,'Variable Inputs - SB 6362'!$C$12:$C$4815,0))) -> 0 | V121: =IFERROR(INDEX('Variable Inputs - SB 6362'!L$12:L$4815,MATCH($N121,'Variable Inputs - SB 6362'!$C$12:$C$4815,0)),INDEX('Variable Inputs - SB 6362'!L$12:L$4815,MATCH('Single School Forecast'!$M121,'Variable Inputs - SB 6362'!$C$12:$C$4815,0))) -> 0 | W121: 0 | X121: 0 | Y121: 0 | Z121: 0 | AA121: 0 | AB121: 0
O123: PROFESSIONAL LEARNING TIME -CATEOGRICALS | R123: SY 2017-18 | S123: SY 2018-19 | T123: SY 2019-20 | U123: SY 2020-21 | V123: SY 2021-22 | W123: SY 2022-23 | X123: SY 2023-24 | Y123: SY 2024-25 | Z123: SY 2025-26 | AA123: SY 2026-27 | AB123: SY 2027-28
N124: CIS/CAS Benefits Increase | O124: LAP | R124: 0 | S124: =+IF($D$18="No",0,((S$304+S$309)*S$118/180*1)+((S$304+S$309)*S$118/180*1)*'Standard Inputs - SB 6362'!G$111) -> 0 | T124: =+IF($D$18="No",0,((T$304+T$309)*T$118/180*3)+((T$304+T$309)*T$118/180*3)*INDEX('Standard Inputs - SB 6362'!H$12:H$1048576,MATCH($N140,'Standard Inputs - SB 6362'!$D$12:$D$1048576,0))) -> 0 | U124: =+IF($D$18="No",0,((U$304+U$309)*U$118/180*3)+((U$304+U$309)*U$118/180*3)*INDEX('Standard Inputs - SB 6362'!I$12:I$1048576,MATCH($N140,'Standard Inputs - SB 6362'!$D$12:$D$1048576,0))) -> 0 | V124: =+IF($D$18="No",0,((V$304+V$309)*V$118/180*3)+((V$304+V$309)*V$118/180*3)*INDEX('Standard Inputs - SB 6362'!J$12:J$1048576,MATCH($N140,'Standard Inputs - SB 6362'!$D$12:$D$1048576,0))) -> 247.1676553 | W124: =+IF($D$18="No",0,((W$304+W$309)*W$118/180*3)+((W$304+W$309)*W$118/180*3)*INDEX('Standard Inputs - SB 6362'!K$12:K$1048576,MATCH($N140,'Standard Inputs - SB 6362'!$D$12:$D$1048576,0))) -> 215.541291 | X124: =+IF($D$18="No",0,((X$304+X$309)*X$118/180*3)+((X$304+X$309)*X$118/180*3)*INDEX('Standard Inputs - SB 6362'!L$12:L$1048576,MATCH($N140,'Standard Inputs - SB 6362'!$D$12:$D$1048576,0))) -> 204.1379921 | Y124: =+IF($D$18="No",0,((Y$304+Y$309)*Y$118/180*3)+((Y$304+Y$309)*Y$118/180*3)*INDEX('Standard Inputs - SB 6362'!M$12:M$1048576,MATCH($N140,'Standard Inputs - SB 6362'!$D$12:$D$1048576,0))) -> 519.2271045 | Z124: =+IF($D$18="No",0,((Z$304+Z$309)*Z$118/180*3)+((Z$304+Z$309)*Z$118/180*3)*INDEX('Standard Inputs - SB 6362'!N$12:N$1048576,MATCH($N140,'Standard Inputs - SB 6362'!$D$12:$D$1048576,0))) ->  | AA124: =+IF($D$18="No",0,((AA$304+AA$309)*AA$118/180*3)+((AA$304+AA$309)*AA$118/180*3)*INDEX('Standard Inputs - SB 6362'!O$12:O$1048576,MATCH($N140,'Standard Inputs - SB 6362'!$D$12:$D$1048576,0))) ->  | AB124: =+IF($D$18="No",0,((AB$304+AB$309)*AB$118/180*3)+((AB$304+AB$309)*AB$118/180*3)*INDEX('Standard Inputs - SB 6362'!P$12:P$1048576,MATCH($N140,'Standard Inputs - SB 6362'!$D$12:$D$1048576,0))) ->  | AC124: <For LAP and Hi Pov LAP, includes salaries and benefits/ payroll tax
N125: CIS/CAS Benefits Increase | O125: TBIP | R125: 0 | S125: =+IF($D$18="No",0,((S$305+S$306+S$307)*S$118/180*1)+((S$305+S$306+S$307)*S$118/180*1)*'Standard Inputs - SB 6362'!G$111) -> 0 | T125: =+IF($D$18="No",0,((T$305+T$306+T$307)*T$118/180*3)+((T$305+T$306+T$307)*T$118/180*3)*INDEX('Standard Inputs - SB 6362'!H$12:H$1048576,MATCH($N140,'Standard Inputs - SB 6362'!$D$12:$D$1048576,0))) -> 0 | U125: =+IF($D$18="No",0,((U$305+U$306+U$307)*U$118/180*3)+((U$305+U$306+U$307)*U$118/180*3)*INDEX('Standard Inputs - SB 6362'!I$12:I$1048576,MATCH($N140,'Standard Inputs - SB 6362'!$D$12:$D$1048576,0))) -> 0 | V125: =+IF($D$18="No",0,((V$305+V$306+V$307)*V$118/180*3)+((V$305+V$306+V$307)*V$118/180*3)*INDEX('Standard Inputs - SB 6362'!J$12:J$1048576,MATCH($N140,'Standard Inputs - SB 6362'!$D$12:$D$1048576,0))) -> 0 | W125: =+IF($D$18="No",0,((W$305+W$306+W$307)*W$118/180*3)+((W$305+W$306+W$307)*W$118/180*3)*INDEX('Standard Inputs - SB 6362'!K$12:K$1048576,MATCH($N140,'Standard Inputs - SB 6362'!$D$12:$D$1048576,0))) -> 0 | X125: =+IF($D$18="No",0,((X$305+X$306+X$307)*X$118/180*3)+((X$305+X$306+X$307)*X$118/180*3)*INDEX('Standard Inputs - SB 6362'!L$12:L$1048576,MATCH($N140,'Standard Inputs - SB 6362'!$D$12:$D$1048576,0))) -> 16.66259911 | Y125: =+IF($D$18="No",0,((Y$305+Y$306+Y$307)*Y$118/180*3)+((Y$305+Y$306+Y$307)*Y$118/180*3)*INDEX('Standard Inputs - SB 6362'!M$12:M$1048576,MATCH($N140,'Standard Inputs - SB 6362'!$D$12:$D$1048576,0))) ->  | Z125: =+IF($D$18="No",0,((Z$305+Z$306+Z$307)*Z$118/180*3)+((Z$305+Z$306+Z$307)*Z$118/180*3)*INDEX('Standard Inputs - SB 6362'!N$12:N$1048576,MATCH($N140,'Standard Inputs - SB 6362'!$D$12:$D$1048576,0))) ->  | AA125: =+IF($D$18="No",0,((AA$305+AA$306+AA$307)*AA$118/180*3)+((AA$305+AA$306+AA$307)*AA$118/180*3)*INDEX('Standard Inputs - SB 6362'!O$12:O$1048576,MATCH($N140,'Standard Inputs - SB 6362'!$D$12:$D$1048576,0))) ->  | AB125: =+IF($D$18="No",0,((AB$305+AB$306+AB$307)*AB$118/180*3)+((AB$305+AB$306+AB$307)*AB$118/180*3)*INDEX('Standard Inputs - SB 6362'!P$12:P$1048576,MATCH($N140,'Standard Inputs - SB 6362'!$D$12:$D$1048576,0))) ->  | AC125: <For TBIP K-6, 7-12, and Exited, includes salaries and benefits/ payroll tax
N126: CIS/CAS Benefits Increase | O126: HiCap | R126: 0 | S126: =+IF($D$18="No",0,(S$308*S$118/180*1)+(S$308*S$118/180*1)*'Standard Inputs - SB 6362'!G$111) -> 0 | T126: =+IF($D$18="No",0,(T$308*T$118/180*3)+(T$308*T$118/180*3)*INDEX('Standard Inputs - SB 6362'!H$12:H$1048576,MATCH($N140,'Standard Inputs - SB 6362'!$D$12:$D$1048576,0))) -> 0 | U126: =+IF($D$18="No",0,(U$308*U$118/180*3)+(U$308*U$118/180*3)*INDEX('Standard Inputs - SB 6362'!I$12:I$1048576,MATCH($N140,'Standard Inputs - SB 6362'!$D$12:$D$1048576,0))) -> 0 | V126: =+IF($D$18="No",0,(V$308*V$118/180*3)+(V$308*V$118/180*3)*INDEX('Standard Inputs - SB 6362'!J$12:J$1048576,MATCH($N140,'Standard Inputs - SB 6362'!$D$12:$D$1048576,0))) -> 40.29322178 | W126: =+IF($D$18="No",0,(W$308*W$118/180*3)+(W$308*W$118/180*3)*INDEX('Standard Inputs - SB 6362'!K$12:K$1048576,MATCH($N140,'Standard Inputs - SB 6362'!$D$12:$D$1048576,0))) -> 42.68843658 | X126: =+IF($D$18="No",0,(X$308*X$118/180*3)+(X$308*X$118/180*3)*INDEX('Standard Inputs - SB 6362'!L$12:L$1048576,MATCH($N140,'Standard Inputs - SB 6362'!$D$12:$D$1048576,0))) -> 45.17223688 | Y126: =+IF($D$18="No",0,(Y$308*Y$118/180*3)+(Y$308*Y$118/180*3)*INDEX('Standard Inputs - SB 6362'!M$12:M$1048576,MATCH($N140,'Standard Inputs - SB 6362'!$D$12:$D$1048576,0))) ->  | Z126: =+IF($D$18="No",0,(Z$308*Z$118/180*3)+(Z$308*Z$118/180*3)*INDEX('Standard Inputs - SB 6362'!N$12:N$1048576,MATCH($N140,'Standard Inputs - SB 6362'!$D$12:$D$1048576,0))) ->  | AA126: =+IF($D$18="No",0,(AA$308*AA$118/180*3)+(AA$308*AA$118/180*3)*INDEX('Standard Inputs - SB 6362'!O$12:O$1048576,MATCH($N140,'Standard Inputs - SB 6362'!$D$12:$D$1048576,0))) ->  | AB126: =+IF($D$18="No",0,(AB$308*AB$118/180*3)+(AB$308*AB$118/180*3)*INDEX('Standard Inputs - SB 6362'!P$12:P$1048576,MATCH($N140,'Standard Inputs - SB 6362'!$D$12:$D$1048576,0))) ->  | AC126: <Includes salary and benefits/ payroll tax
O128: BEA SPED RATE | R128: SY 2017-18 | S128: SY 2018-19 | T128: SY 2019-20 | U128: SY 2020-21 | V128: SY 2021-22 | W128: SY 2022-23 | X128: SY 2023-24 | Y128: SY 2024-25 | Z128: SY 2025-26 | AA128: SY 2026-27 | AB128: SY 2027-28
O129: SpEd BEA Rate | P129: SpEd BEA Rate | R129: =SUM(R130:R134) ->  | V129: 8126.600554 | W129: 10297.07953 | X129: 10628.3102 | AA129: =SUM(AA130:AA134) ->  | AB129: =SUM(AB130:AB134) ->  | AF129: 23-24 | AG129: 10526
L130: CIS SpEd Salary | M130: CAS SpEd Salary | N130: CLS SpEd Salary | O130: Total SpEd Salary | R130: =SUMIF($P$137:$P$215,$L130,R$137:R$215)+SUMIF($P$137:$P$215,$M130,R$137:R$215)+SUMIF($P$137:$P$215,$N130,R$137:R$215) -> 0 | S130: 0 | T130: 0 | U130: 0 | V130: 4606.914633 | W130: 6132.412293 | X130: =SUMIF($P$137:$P$215,$L130,X$137:X$215)+SUMIF($P$137:$P$215,$M130,X$137:X$215)+SUMIF($P$137:$P$215,$N130,X$137:X$215) -> 6503.475741 | Y130: 0 | AB130: 0
N131: SpEd Insurance and Benefits | O131: Total SpEd Payroll Insurance and Benefits | R131: =SUMIF($P$137:$P$215,$N131,R$137:R$215) -> 0 | S131: 0 | T131: 0 | U131: 0 | V131: 1900.273149 | W131: 2592.962262 | X131: 2505.354743 | Y131: 0 | AB131: 0
K132: CIS K-12 Average SpEd | L132: Teacher % | M132: Substitutes Days | N132: Substitutes Rate | O132: Substitutes BEA SpEd | R132: =SUMIF($P$218:$P$326,$K132,R$218:R$326)*INDEX('Standard Inputs - SB 6362'!F$12:F$1048576,MATCH($L132,'Standard Inputs - SB 6362'!$D$12:$D$1048576,0))*INDEX('Standard Inputs - SB 6362'!F$12:F$1048576,MATCH($M132,'Standard Inputs - SB 6362'!$D$12:$D$1048576,0))*INDEX('Standard Inputs - SB 6362'!F$12:F$1048576,MATCH($N132,'Standard Inputs - SB 6362'!$D$12:$D$1048576,0)) -> 0 | S132: =SUMIF($P$218:$P$326,$K132,S$218:S$326)*INDEX('Standard Inputs - SB 6362'!G$12:G$1048576,MATCH($L132,'Standard Inputs - SB 6362'!$D$12:$D$1048576,0))*INDEX('Standard Inputs - SB 6362'!G$12:G$1048576,MATCH($M132,'Standard Inputs - SB 6362'!$D$12:$D$1048576,0))*INDEX('Standard Inputs - SB 6362'!G$12:G$1048576,MATCH($N132,'Standard Inputs - SB 6362'!$D$12:$D$1048576,0)) -> 0 | T132: =SUMIF($P$218:$P$326,$K132,T$218:T$326)*INDEX('Standard Inputs - SB 6362'!H$12:H$1048576,MATCH($L132,'Standard Inputs - SB 6362'!$D$12:$D$1048576,0))*INDEX('Standard Inputs - SB 6362'!H$12:H$1048576,MATCH($M132,'Standard Inputs - SB 6362'!$D$12:$D$1048576,0))*INDEX('Standard Inputs - SB 6362'!H$12:H$1048576,MATCH($N132,'Standard Inputs - SB 6362'!$D$12:$D$1048576,0)) -> 0 | U132: =SUMIF($P$218:$P$326,$K132,U$218:U$326)*INDEX('Standard Inputs - SB 6362'!I$12:I$1048576,MATCH($L132,'Standard Inputs - SB 6362'!$D$12:$D$1048576,0))*INDEX('Standard Inputs - SB 6362'!I$12:I$1048576,MATCH($M132,'Standard Inputs - SB 6362'!$D$12:$D$1048576,0))*INDEX('Standard Inputs - SB 6362'!I$12:I$1048576,MATCH($N132,'Standard Inputs - SB 6362'!$D$12:$D$1048576,0)) -> 0 | V132: =SUMIF($P$218:$P$326,$K132,V$218:V$326)*INDEX('Standard Inputs - SB 6362'!J$12:J$1048576,MATCH($L132,'Standard Inputs - SB 6362'!$D$12:$D$1048576,0))*INDEX('Standard Inputs - SB 6362'!J$12:J$1048576,MATCH($M132,'Standard Inputs - SB 6362'!$D$12:$D$1048576,0))*INDEX('Standard Inputs - SB 6362'!J$12:J$1048576,MATCH($N132,'Standard Inputs - SB 6362'!$D$12:$D$1048576,0)) -> 27.05959506 | W132: =SUMIF($P$218:$P$326,$K132,W$218:W$326)*INDEX('Standard Inputs - SB 6362'!K$12:K$1048576,MATCH($L132,'Standard Inputs - SB 6362'!$D$12:$D$1048576,0))*INDEX('Standard Inputs - SB 6362'!K$12:K$1048576,MATCH($M132,'Standard Inputs - SB 6362'!$D$12:$D$1048576,0))*INDEX('Standard Inputs - SB 6362'!K$12:K$1048576,MATCH($N132,'Standard Inputs - SB 6362'!$D$12:$D$1048576,0)) -> 36.27976536 | X132: =SUMIF($P$218:$P$326,$K132,X$218:X$326)*INDEX('Standard Inputs - SB 6362'!L$12:L$1048576,MATCH($L132,'Standard Inputs - SB 6362'!$D$12:$D$1048576,0))*INDEX('Standard Inputs - SB 6362'!L$12:L$1048576,MATCH($M132,'Standard Inputs - SB 6362'!$D$12:$D$1048576,0))*INDEX('Standard Inputs - SB 6362'!L$12:L$1048576,MATCH($N132,'Standard Inputs - SB 6362'!$D$12:$D$1048576,0)) -> 37.2948381 | Y132: =SUMIF($P$218:$P$326,$K132,Y$218:Y$326)*INDEX('Standard Inputs - SB 6362'!M$12:M$1048576,MATCH($L132,'Standard Inputs - SB 6362'!$D$12:$D$1048576,0))*INDEX('Standard Inputs - SB 6362'!M$12:M$1048576,MATCH($M132,'Standard Inputs - SB 6362'!$D$12:$D$1048576,0))*INDEX('Standard Inputs - SB 6362'!M$12:M$1048576,MATCH($N132,'Standard Inputs - SB 6362'!$D$12:$D$1048576,0)) -> 0 | Z132: =SUMIF($P$218:$P$326,$K132,Z$218:Z$326)*INDEX('Standard Inputs - SB 6362'!N$12:N$1048576,MATCH($L132,'Standard Inputs - SB 6362'!$D$12:$D$1048576,0))*INDEX('Standard Inputs - SB 6362'!N$12:N$1048576,MATCH($M132,'Standard Inputs - SB 6362'!$D$12:$D$1048576,0))*INDEX('Standard Inputs - SB 6362'!N$12:N$1048576,MATCH($N132,'Standard Inputs - SB 6362'!$D$12:$D$1048576,0)) -> 0 | AA132: =SUMIF($P$218:$P$326,$K132,AA$218:AA$326)*INDEX('Standard Inputs - SB 6362'!O$12:O$1048576,MATCH($L132,'Standard Inputs - SB 6362'!$D$12:$D$1048576,0))*INDEX('Standard Inputs - SB 6362'!O$12:O$1048576,MATCH($M132,'Standard Inputs - SB 6362'!$D$12:$D$1048576,0))*INDEX('Standard Inputs - SB 6362'!O$12:O$1048576,MATCH($N132,'Standard Inputs - SB 6362'!$D$12:$D$1048576,0)) -> 0 | AB132: =SUMIF($P$218:$P$326,$K132,AB$218:AB$326)*INDEX('Standard Inputs - SB 6362'!P$12:P$1048576,MATCH($L132,'Standard Inputs - SB 6362'!$D$12:$D$1048576,0))*INDEX('Standard Inputs - SB 6362'!P$12:P$1048576,MATCH($M132,'Standard Inputs - SB 6362'!$D$12:$D$1048576,0))*INDEX('Standard Inputs - SB 6362'!P$12:P$1048576,MATCH($N132,'Standard Inputs - SB 6362'!$D$12:$D$1048576,0)) -> 0
K133: Total Enrollment | L133: Total BEA MSOC per student FTE | M133: Enroll 9-12 | N133: Total 9-12 MSOC per student FTE | O133: MSOC SpEd | R133: =((SUMIF($M$30:$M$56,$K133,R$30:R$56)*INDEX('Standard Inputs - SB 6362'!F$12:F$1048576,MATCH($L133,'Standard Inputs - SB 6362'!$D$12:$D$1048576,0)))+(SUMIF($M$30:$M$56,$M133,R$30:R$56)*INDEX('Standard Inputs - SB 6362'!F$12:F$1048576,MATCH($N133,'Standard Inputs - SB 6362'!$D$12:$D$1048576,0))))/SUMIF($M$30:$M$56,$K133,R$30:R$56) ->  | S133: =((SUMIF($M$30:$M$56,$K133,S$30:S$56)*INDEX('Standard Inputs - SB 6362'!G$12:G$1048576,MATCH($L133,'Standard Inputs - SB 6362'!$D$12:$D$1048576,0)))+(SUMIF($M$30:$M$56,$M133,S$30:S$56)*INDEX('Standard Inputs - SB 6362'!G$12:G$1048576,MATCH($N133,'Standard Inputs - SB 6362'!$D$12:$D$1048576,0))))/SUMIF($M$30:$M$56,$K133,S$30:S$56) ->  | T133: =((SUMIF($M$30:$M$56,$K133,T$30:T$56)*INDEX('Standard Inputs - SB 6362'!H$12:H$1048576,MATCH($L133,'Standard Inputs - SB 6362'!$D$12:$D$1048576,0)))+(SUMIF($M$30:$M$56,$M133,T$30:T$56)*INDEX('Standard Inputs - SB 6362'!H$12:H$1048576,MATCH($N133,'Standard Inputs - SB 6362'!$D$12:$D$1048576,0))))/SUMIF($M$30:$M$56,$K133,T$30:T$56) ->  | U133: =((SUMIF($M$30:$M$56,$K133,U$30:U$56)*INDEX('Standard Inputs - SB 6362'!I$12:I$1048576,MATCH($L133,'Standard Inputs - SB 6362'!$D$12:$D$1048576,0)))+(SUMIF($M$30:$M$56,$M133,U$30:U$56)*INDEX('Standard Inputs - SB 6362'!I$12:I$1048576,MATCH($N133,'Standard Inputs - SB 6362'!$D$12:$D$1048576,0))))/SUMIF($M$30:$M$56,$K133,U$30:U$56) ->  | V133: =((SUMIF($M$30:$M$56,$K133,V$30:V$56)*INDEX('Standard Inputs - SB 6362'!J$12:J$1048576,MATCH($L133,'Standard Inputs - SB 6362'!$D$12:$D$1048576,0)))+(SUMIF($M$30:$M$56,$M133,V$30:V$56)*INDEX('Standard Inputs - SB 6362'!J$12:J$1048576,MATCH($N133,'Standard Inputs - SB 6362'!$D$12:$D$1048576,0))))/SUMIF($M$30:$M$56,$K133,V$30:V$56) -> 1524.22 | W133: =((SUMIF($M$30:$M$56,$K133,W$30:W$56)*INDEX('Standard Inputs - SB 6362'!K$12:K$1048576,MATCH($L133,'Standard Inputs - SB 6362'!$D$12:$D$1048576,0)))+(SUMIF($M$30:$M$56,$M133,W$30:W$56)*INDEX('Standard Inputs - SB 6362'!K$12:K$1048576,MATCH($N133,'Standard Inputs - SB 6362'!$D$12:$D$1048576,0))))/SUMIF($M$30:$M$56,$K133,W$30:W$56) -> 1438.84 | X133: =((SUMIF($M$30:$M$56,$K133,X$30:X$56)*INDEX('Standard Inputs - SB 6362'!L$12:L$1048576,MATCH($L133,'Standard Inputs - SB 6362'!$D$12:$D$1048576,0)))+(SUMIF($M$30:$M$56,$M133,X$30:X$56)*INDEX('Standard Inputs - SB 6362'!L$12:L$1048576,MATCH($N133,'Standard Inputs - SB 6362'!$D$12:$D$1048576,0))))/SUMIF($M$30:$M$56,$K133,X$30:X$56) -> 1483.44 | Y133: =((SUMIF($M$30:$M$56,$K133,Y$30:Y$56)*INDEX('Standard Inputs - SB 6362'!M$12:M$1048576,MATCH($L133,'Standard Inputs - SB 6362'!$D$12:$D$1048576,0)))+(SUMIF($M$30:$M$56,$M133,Y$30:Y$56)*INDEX('Standard Inputs - SB 6362'!M$12:M$1048576,MATCH($N133,'Standard Inputs - SB 6362'!$D$12:$D$1048576,0))))/SUMIF($M$30:$M$56,$K133,Y$30:Y$56) ->  | Z133: =((SUMIF($M$30:$M$56,$K133,Z$30:Z$56)*INDEX('Standard Inputs - SB 6362'!N$12:N$1048576,MATCH($L133,'Standard Inputs - SB 6362'!$D$12:$D$1048576,0)))+(SUMIF($M$30:$M$56,$M133,Z$30:Z$56)*INDEX('Standard Inputs - SB 6362'!N$12:N$1048576,MATCH($N133,'Standard Inputs - SB 6362'!$D$12:$D$1048576,0))))/SUMIF($M$30:$M$56,$K133,Z$30:Z$56) ->  | AA133: =((SUMIF($M$30:$M$56,$K133,AA$30:AA$56)*INDEX('Standard Inputs - SB 6362'!O$12:O$1048576,MATCH($L133,'Standard Inputs - SB 6362'!$D$12:$D$1048576,0)))+(SUMIF($M$30:$M$56,$M133,AA$30:AA$56)*INDEX('Standard Inputs - SB 6362'!O$12:O$1048576,MATCH($N133,'Standard Inputs - SB 6362'!$D$12:$D$1048576,0))))/SUMIF($M$30:$M$56,$K133,AA$30:AA$56) ->  | AB133: =((SUMIF($M$30:$M$56,$K133,AB$30:AB$56)*INDEX('Standard Inputs - SB 6362'!P$12:P$1048576,MATCH($L133,'Standard Inputs - SB 6362'!$D$12:$D$1048576,0)))+(SUMIF($M$30:$M$56,$M133,AB$30:AB$56)*INDEX('Standard Inputs - SB 6362'!P$12:P$1048576,MATCH($N133,'Standard Inputs - SB 6362'!$D$12:$D$1048576,0))))/SUMIF($M$30:$M$56,$K133,AB$30:AB$56) -> 
N134: CIS/CAS Benefits Increase | O134: Professional Learning Time | R134: 0 | S134: =+IF($D$18="No",0,(S$222*S$118/180*1)+(S$222*S$118/180*1)*'Standard Inputs - SB 6362'!G$111) -> 0 | T134: =+IF($D$18="No",0,(T$222*T$118/180*2)+(T$222*T$118/180*2)*'Standard Inputs - SB 6362'!H$111) -> 0 | U134: =+IF($D$18="No",0,(U$222*U$118/180*3)+(U$222*U$118/180*3)*INDEX('Standard Inputs - SB 6362'!I$12:I$1048576,MATCH($N140,'Standard Inputs - SB 6362'!$D$12:$D$1048576,0))) -> 0 | V134: =+IF($D$18="No",0,(V$222*V$118/180*3)+(V$222*V$118/180*3)*INDEX('Standard Inputs - SB 6362'!J$12:J$1048576,MATCH($N140,'Standard Inputs - SB 6362'!$D$12:$D$1048576,0))) -> 68.13317769 | W134: =+IF($D$18="No",0,(W$222*W$118/180*3)+(W$222*W$118/180*3)*INDEX('Standard Inputs - SB 6362'!K$12:K$1048576,MATCH($N140,'Standard Inputs - SB 6362'!$D$12:$D$1048576,0))) -> 96.58520759 | X134: =+IF($D$18="No",0,(X$222*X$118/180*3)+(X$222*X$118/180*3)*INDEX('Standard Inputs - SB 6362'!L$12:L$1048576,MATCH($N140,'Standard Inputs - SB 6362'!$D$12:$D$1048576,0))) -> 98.74488166 | Y134: =+IF($D$18="No",0,(Y$222*Y$118/180*3)+(Y$222*Y$118/180*3)*INDEX('Standard Inputs - SB 6362'!M$12:M$1048576,MATCH($N140,'Standard Inputs - SB 6362'!$D$12:$D$1048576,0))) -> 0 | Z134: =+IF($D$18="No",0,(Z$222*Z$118/180*3)+(Z$222*Z$118/180*3)*INDEX('Standard Inputs - SB 6362'!N$12:N$1048576,MATCH($N140,'Standard Inputs - SB 6362'!$D$12:$D$1048576,0))) -> 0 | AA134: =+IF($D$18="No",0,(AA$222*AA$118/180*3)+(AA$222*AA$118/180*3)*INDEX('Standard Inputs - SB 6362'!O$12:O$1048576,MATCH($N140,'Standard Inputs - SB 6362'!$D$12:$D$1048576,0))) -> 0 | AB134: =+IF($D$18="No",0,(AB$222*AB$118/180*3)+(AB$222*AB$118/180*3)*INDEX('Standard Inputs - SB 6362'!P$12:P$1048576,MATCH($N140,'Standard Inputs - SB 6362'!$D$12:$D$1048576,0))) -> 0
O136: OTHER | R136: SY 2017-18 | S136: SY 2018-19 | T136: SY 2019-20 | U136: SY 2020-21 | V136: SY 2021-22 | W136: SY 2022-23 | X136: SY 2023-24 | Y136: SY 2024-25 | Z136: SY 2025-26 | AA136: SY 2026-27 | AB136: SY 2027-28
M137: Total Enrollment | N137: Total BEA MSOC per student FTE | O137: MSOC BEA | P137: MSOC | R137: =SUMIF($M$30:$M$56,$M137,R$30:R$56)*INDEX('Standard Inputs - SB 6362'!F$12:F$1048576,MATCH($N137,'Standard Inputs - SB 6362'!$D$12:$D$1048576,0)) -> 0 | S137: =SUMIF($M$30:$M$56,$M137,S$30:S$56)*INDEX('Standard Inputs - SB 6362'!G$12:G$1048576,MATCH($N137,'Standard Inputs - SB 6362'!$D$12:$D$1048576,0)) -> 0 | T137: =SUMIF($M$30:$M$56,$M137,T$30:T$56)*INDEX('Standard Inputs - SB 6362'!H$12:H$1048576,MATCH($N137,'Standard Inputs - SB 6362'!$D$12:$D$1048576,0)) -> 0 | U137: =SUMIF($M$30:$M$56,$M137,U$30:U$56)*INDEX('Standard Inputs - SB 6362'!I$12:I$1048576,MATCH($N137,'Standard Inputs - SB 6362'!$D$12:$D$1048576,0)) -> 0 | V137: =SUMIF($M$30:$M$56,$M137,V$30:V$56)*INDEX('Standard Inputs - SB 6362'!J$12:J$1048576,MATCH($N137,'Standard Inputs - SB 6362'!$D$12:$D$1048576,0)) -> 133744.974 | W137: =SUMIF($M$30:$M$56,$M137,W$30:W$56)*INDEX('Standard Inputs - SB 6362'!K$12:K$1048576,MATCH($N137,'Standard Inputs - SB 6362'!$D$12:$D$1048576,0)) -> 143884 | X137: =SUMIF($M$30:$M$56,$M137,X$30:X$56)*INDEX('Standard Inputs - SB 6362'!L$12:L$1048576,MATCH($N137,'Standard Inputs - SB 6362'!$D$12:$D$1048576,0)) -> 157838.016 | Y137: =SUMIF($M$30:$M$56,$M137,Y$30:Y$56)*INDEX('Standard Inputs - SB 6362'!M$12:M$1048576,MATCH($N137,'Standard Inputs - SB 6362'!$D$12:$D$1048576,0)) ->  | Z137: =SUMIF($M$30:$M$56,$M137,Z$30:Z$56)*INDEX('Standard Inputs - SB 6362'!N$12:N$1048576,MATCH($N137,'Standard Inputs - SB 6362'!$D$12:$D$1048576,0)) ->  | AA137: =SUMIF($M$30:$M$56,$M137,AA$30:AA$56)*INDEX('Standard Inputs - SB 6362'!O$12:O$1048576,MATCH($N137,'Standard Inputs - SB 6362'!$D$12:$D$1048576,0)) ->  | AB137: =SUMIF($M$30:$M$56,$M137,AB$30:AB$56)*INDEX('Standard Inputs - SB 6362'!P$12:P$1048576,MATCH($N137,'Standard Inputs - SB 6362'!$D$12:$D$1048576,0)) -> 
M138: Enroll 9-12 | N138: Total 9-12 MSOC per student FTE | O138: MSOC 9-12 | P138: MSOC | R138: =SUMIF($M$30:$M$56,$M138,R$30:R$56)*INDEX('Standard Inputs - SB 6362'!F$12:F$1048576,MATCH($N138,'Standard Inputs - SB 6362'!$D$12:$D$1048576,0)) -> 0 | S138: =SUMIF($M$30:$M$56,$M138,S$30:S$56)*INDEX('Standard Inputs - SB 6362'!G$12:G$1048576,MATCH($N138,'Standard Inputs - SB 6362'!$D$12:$D$1048576,0)) -> 0 | T138: =SUMIF($M$30:$M$56,$M138,T$30:T$56)*INDEX('Standard Inputs - SB 6362'!H$12:H$1048576,MATCH($N138,'Standard Inputs - SB 6362'!$D$12:$D$1048576,0)) -> 0 | U138: =SUMIF($M$30:$M$56,$M138,U$30:U$56)*INDEX('Standard Inputs - SB 6362'!I$12:I$1048576,MATCH($N138,'Standard Inputs - SB 6362'!$D$12:$D$1048576,0)) -> 0 | V138: =SUMIF($M$30:$M$56,$M138,V$30:V$56)*INDEX('Standard Inputs - SB 6362'!J$12:J$1048576,MATCH($N138,'Standard Inputs - SB 6362'!$D$12:$D$1048576,0)) -> 18372.182 | W138: =SUMIF($M$30:$M$56,$M138,W$30:W$56)*INDEX('Standard Inputs - SB 6362'!K$12:K$1048576,MATCH($N138,'Standard Inputs - SB 6362'!$D$12:$D$1048576,0)) -> 0 | X138: =SUMIF($M$30:$M$56,$M138,X$30:X$56)*INDEX('Standard Inputs - SB 6362'!L$12:L$1048576,MATCH($N138,'Standard Inputs - SB 6362'!$D$12:$D$1048576,0)) -> 0 | Y138: =SUMIF($M$30:$M$56,$M138,Y$30:Y$56)*INDEX('Standard Inputs - SB 6362'!M$12:M$1048576,MATCH($N138,'Standard Inputs - SB 6362'!$D$12:$D$1048576,0)) ->  | Z138: =SUMIF($M$30:$M$56,$M138,Z$30:Z$56)*INDEX('Standard Inputs - SB 6362'!N$12:N$1048576,MATCH($N138,'Standard Inputs - SB 6362'!$D$12:$D$1048576,0)) ->  | AA138: =SUMIF($M$30:$M$56,$M138,AA$30:AA$56)*INDEX('Standard Inputs - SB 6362'!O$12:O$1048576,MATCH($N138,'Standard Inputs - SB 6362'!$D$12:$D$1048576,0)) ->  | AB138: =SUMIF($M$30:$M$56,$M138,AB$30:AB$56)*INDEX('Standard Inputs - SB 6362'!P$12:P$1048576,MATCH($N138,'Standard Inputs - SB 6362'!$D$12:$D$1048576,0)) -> 
J139: Small High School CAS | K139: Small High School CIS | L139: Non-High K-6 Cert. Instructional | M139: Non-High K-8 Cert. Instructional | N139: Total Small School MSOC | O139: MSOC SS RN | P139: MSOC | R139: =(SUMIF($O$218:$O$326,$J139,R$218:R$326)+SUMIF($O$218:$O$326,$K139,R$218:R$326)+SUMIF($O$218:$O$326,$L139,R$218:R$326)+SUMIF($O$218:$O$326,$M139,R$218:R$326))*INDEX('Standard Inputs - SB 6362'!F$12:F$1048576,MATCH($N139,'Standard Inputs - SB 6362'!$D$12:$D$1048576,0)) -> 0 | S139: =(SUMIF($O$218:$O$326,$J139,S$218:S$326)+SUMIF($O$218:$O$326,$K139,S$218:S$326)+SUMIF($O$218:$O$326,$L139,S$218:S$326)+SUMIF($O$218:$O$326,$M139,S$218:S$326))*INDEX('Standard Inputs - SB 6362'!G$12:G$1048576,MATCH($N139,'Standard Inputs - SB 6362'!$D$12:$D$1048576,0)) -> 0 | T139: =(SUMIF($O$218:$O$326,$J139,T$218:T$326)+SUMIF($O$218:$O$326,$K139,T$218:T$326)+SUMIF($O$218:$O$326,$L139,T$218:T$326)+SUMIF($O$218:$O$326,$M139,T$218:T$326))*INDEX('Standard Inputs - SB 6362'!H$12:H$1048576,MATCH($N139,'Standard Inputs - SB 6362'!$D$12:$D$1048576,0)) -> 0 | U139: =(SUMIF($O$218:$O$326,$J139,U$218:U$326)+SUMIF($O$218:$O$326,$K139,U$218:U$326)+SUMIF($O$218:$O$326,$L139,U$218:U$326)+SUMIF($O$218:$O$326,$M139,U$218:U$326))*INDEX('Standard Inputs - SB 6362'!I$12:I$1048576,MATCH($N139,'Standard Inputs - SB 6362'!$D$12:$D$1048576,0)) -> 0 | V139: =(SUMIF($O$218:$O$326,$J139,V$218:V$326)+SUMIF($O$218:$O$326,$K139,V$218:V$326)+SUMIF($O$218:$O$326,$L139,V$218:V$326)+SUMIF($O$218:$O$326,$M139,V$218:V$326))*INDEX('Standard Inputs - SB 6362'!J$12:J$1048576,MATCH($N139,'Standard Inputs - SB 6362'!$D$12:$D$1048576,0)) -> 63972.42543 | W139: =(SUMIF($O$218:$O$326,$J139,W$218:W$326)+SUMIF($O$218:$O$326,$K139,W$218:W$326)+SUMIF($O$218:$O$326,$L139,W$218:W$326)+SUMIF($O$218:$O$326,$M139,W$218:W$326))*INDEX('Standard Inputs - SB 6362'!K$12:K$1048576,MATCH($N139,'Standard Inputs - SB 6362'!$D$12:$D$1048576,0)) -> 6534.05 | X139: =(SUMIF($O$218:$O$326,$J139,X$218:X$326)+SUMIF($O$218:$O$326,$K139,X$218:X$326)+SUMIF($O$218:$O$326,$L139,X$218:X$326)+SUMIF($O$218:$O$326,$M139,X$218:X$326))*INDEX('Standard Inputs - SB 6362'!L$12:L$1048576,MATCH($N139,'Standard Inputs - SB 6362'!$D$12:$D$1048576,0)) -> 6736.6 | Y139: =(SUMIF($O$218:$O$326,$J139,Y$218:Y$326)+SUMIF($O$218:$O$326,$K139,Y$218:Y$326)+SUMIF($O$218:$O$326,$L139,Y$218:Y$326)+SUMIF($O$218:$O$326,$M139,Y$218:Y$326))*INDEX('Standard Inputs - SB 6362'!M$12:M$1048576,MATCH($N139,'Standard Inputs - SB 6362'!$D$12:$D$1048576,0)) ->  | Z139: =(SUMIF($O$218:$O$326,$J139,Z$218:Z$326)+SUMIF($O$218:$O$326,$K139,Z$218:Z$326)+SUMIF($O$218:$O$326,$L139,Z$218:Z$326)+SUMIF($O$218:$O$326,$M139,Z$218:Z$326))*INDEX('Standard Inputs - SB 6362'!N$12:N$1048576,MATCH($N139,'Standard Inputs - SB 6362'!$D$12:$D$1048576,0)) ->  | AA139: =(SUMIF($O$218:$O$326,$J139,AA$218:AA$326)+SUMIF($O$218:$O$326,$K139,AA$218:AA$326)+SUMIF($O$218:$O$326,$L139,AA$218:AA$326)+SUMIF($O$218:$O$326,$M139,AA$218:AA$326))*INDEX('Standard Inputs - SB 6362'!O$12:O$1048576,MATCH($N139,'Standard Inputs - SB 6362'!$D$12:$D$1048576,0)) ->  | AB139: =(SUMIF($O$218:$O$326,$J139,AB$218:AB$326)+SUMIF($O$218:$O$326,$K139,AB$218:AB$326)+SUMIF($O$218:$O$326,$L139,AB$218:AB$326)+SUMIF($O$218:$O$326,$M139,AB$218:AB$326))*INDEX('Standard Inputs - SB 6362'!P$12:P$1048576,MATCH($N139,'Standard Inputs - SB 6362'!$D$12:$D$1048576,0)) -> 
N140: CIS/CAS Benefits Increase | O140: Professional Learning Time | P140: Other Entitlements | R140: =IF($D$18="No",0,(((R230+R238+R303)*((Q118*Q121)/180))+(((R230+R238+R303)*((R118*R121)/180))-((R230+R238+R303)*((Q118*Q121)/180)))+((R230+R238+R303)*((Q118*Q121*'Standard Inputs - SB 6362'!E110)/180))+(((R230+R238+R303)*((R118*R121*'Standard Inputs - SB 6362'!E111)/180))-(R230+R238+R303)*((Q118*Q121*'Standard Inputs - SB 6362'!E110)/180)))*0) -> 0 | S140: =IF($D$18="No",0,((S$230+S$238+S$294+S$295+S$296)*S$118/180*1)+((S$230+S$238+S$294+S$295+S$296)*S$118/180*1)*'Standard Inputs - SB 6362'!G$111) -> 0 | T140: =IF($D$18="No",0,((T$230+T$238+T$294+T$295+T$296+T290+T292)*T$118/180*3)+((T$230+T$238+T$294+T$295+T$296+T290+T292)*T$118/180*3)*INDEX('Standard Inputs - SB 6362'!H$12:H$1048576,MATCH($N140,'Standard Inputs - SB 6362'!$D$12:$D$1048576,0))) ->  | U140: =IF($D$18="No",0,((U$230+U$238+U$294+U$295+U$296+U290+U292)*U$118/180*3)+((U$230+U$238+U$294+U$295+U$296+U290+U292)*U$118/180*3)*INDEX('Standard Inputs - SB 6362'!I$12:I$1048576,MATCH($N140,'Standard Inputs - SB 6362'!$D$12:$D$1048576,0))) -> 0 | V140: =IF($D$18="No",0,((V$230+V$238+V$294+V$295+V$296+V290+V292)*V$118/180*3)+((V$230+V$238+V$294+V$295+V$296+V290+V292)*V$118/180*3)*INDEX('Standard Inputs - SB 6362'!J$12:J$1048576,MATCH($N140,'Standard Inputs - SB 6362'!$D$12:$D$1048576,0))) -> 13742.96589 | W140: =IF($D$18="No",0,((W$230+W$238+W$294+W$295+W$296+W290+W292)*W$118/180*3)+((W$230+W$238+W$294+W$295+W$296+W290+W292)*W$118/180*3)*INDEX('Standard Inputs - SB 6362'!K$12:K$1048576,MATCH($N140,'Standard Inputs - SB 6362'!$D$12:$D$1048576,0))) -> 10568.79878 | X140: =IF($D$18="No",0,((X$230+X$238+X$294+X$295+X$296+X290+X292)*X$118/180*3)+((X$230+X$238+X$294+X$295+X$296+X290+X292)*X$118/180*3)*INDEX('Standard Inputs - SB 6362'!L$12:L$1048576,MATCH($N140,'Standard Inputs - SB 6362'!$D$12:$D$1048576,0))) -> 11244.01659 | Y140: =IF($D$18="No",0,((Y$230+Y$238+Y$294+Y$295+Y$296+Y290+Y292)*Y$118/180*3)+((Y$230+Y$238+Y$294+Y$295+Y$296+Y290+Y292)*Y$118/180*3)*INDEX('Standard Inputs - SB 6362'!M$12:M$1048576,MATCH($N140,'Standard Inputs - SB 6362'!$D$12:$D$1048576,0))) ->  | Z140: =IF($D$18="No",0,((Z$230+Z$238+Z$294+Z$295+Z$296+Z290+Z292)*Z$118/180*3)+((Z$230+Z$238+Z$294+Z$295+Z$296+Z290+Z292)*Z$118/180*3)*INDEX('Standard Inputs - SB 6362'!N$12:N$1048576,MATCH($N140,'Standard Inputs - SB 6362'!$D$12:$D$1048576,0))) ->  | AA140: =IF($D$18="No",0,((AA$230+AA$238+AA$294+AA$295+AA$296+AA290+AA292)*AA$118/180*3)+((AA$230+AA$238+AA$294+AA$295+AA$296+AA290+AA292)*AA$118/180*3)*INDEX('Standard Inputs - SB 6362'!O$12:O$1048576,MATCH($N140,'Standard Inputs - SB 6362'!$D$12:$D$1048576,0))) ->  | AB140: =IF($D$18="No",0,((AB$230+AB$238+AB$294+AB$295+AB$296+AB290+AB292)*AB$118/180*3)+((AB$230+AB$238+AB$294+AB$295+AB$296+AB290+AB292)*AB$118/180*3)*INDEX('Standard Inputs - SB 6362'!P$12:P$1048576,MATCH($N140,'Standard Inputs - SB 6362'!$D$12:$D$1048576,0))) ->  | AC140: <For General Entitlement only, includes Salary and Benefits/ Payroll Tax
I141: Small High School CIS | J141: Non-High K-6 Cert. Instructional | K141: Non-High K-8 Cert. Instructional | L141: Teacher % | M141: Substitutes Days | N141: Substitutes Rate | O141: SS RN Substitutes | P141: Other Entitlements | R141: =(SUMIF($O$218:$O$326,$I141,R$218:R$326)+SUMIF($O$218:$O$326,$J141,R$218:R$326)+SUMIF($O$218:$O$326,$K141,R$218:R$326))*INDEX('Standard Inputs - SB 6362'!F$12:F$1048576,MATCH($L141,'Standard Inputs - SB 6362'!$D$12:$D$1048576,0))*INDEX('Standard Inputs - SB 6362'!F$12:F$1048576,MATCH($M141,'Standard Inputs - SB 6362'!$D$12:$D$1048576,0))*INDEX('Standard Inputs - SB 6362'!F$12:F$1048576,MATCH($N141,'Standard Inputs - SB 6362'!$D$12:$D$1048576,0)) -> 0 | S141: =(SUMIF($O$218:$O$326,$I141,S$218:S$326)+SUMIF($O$218:$O$326,$J141,S$218:S$326)+SUMIF($O$218:$O$326,$K141,S$218:S$326))*INDEX('Standard Inputs - SB 6362'!G$12:G$1048576,MATCH($L141,'Standard Inputs - SB 6362'!$D$12:$D$1048576,0))*INDEX('Standard Inputs - SB 6362'!G$12:G$1048576,MATCH($M141,'Standard Inputs - SB 6362'!$D$12:$D$1048576,0))*INDEX('Standard Inputs - SB 6362'!G$12:G$1048576,MATCH($N141,'Standard Inputs - SB 6362'!$D$12:$D$1048576,0)) -> 0 | T141: =(SUMIF($O$218:$O$326,$I141,T$218:T$326)+SUMIF($O$218:$O$326,$J141,T$218:T$326)+SUMIF($O$218:$O$326,$K141,T$218:T$326))*INDEX('Standard Inputs - SB 6362'!H$12:H$1048576,MATCH($L141,'Standard Inputs - SB 6362'!$D$12:$D$1048576,0))*INDEX('Standard Inputs - SB 6362'!H$12:H$1048576,MATCH($M141,'Standard Inputs - SB 6362'!$D$12:$D$1048576,0))*INDEX('Standard Inputs - SB 6362'!H$12:H$1048576,MATCH($N141,'Standard Inputs - SB 6362'!$D$12:$D$1048576,0)) -> 0 | U141: =(SUMIF($O$218:$O$326,$I141,U$218:U$326)+SUMIF($O$218:$O$326,$J141,U$218:U$326)+SUMIF($O$218:$O$326,$K141,U$218:U$326)+U290+U292)*INDEX('Standard Inputs - SB 6362'!I$12:I$1048576,MATCH($L141,'Standard Inputs - SB 6362'!$D$12:$D$1048576,0))*INDEX('Standard Inputs - SB 6362'!I$12:I$1048576,MATCH($M141,'Standard Inputs - SB 6362'!$D$12:$D$1048576,0))*INDEX('Standard Inputs - SB 6362'!I$12:I$1048576,MATCH($N141,'Standard Inputs - SB 6362'!$D$12:$D$1048576,0)) -> 0 | V141: =(SUMIF($O$218:$O$326,$I141,V$218:V$326)+SUMIF($O$218:$O$326,$J141,V$218:V$326)+SUMIF($O$218:$O$326,$K141,V$218:V$326)+V290+V292)*INDEX('Standard Inputs - SB 6362'!J$12:J$1048576,MATCH($L141,'Standard Inputs - SB 6362'!$D$12:$D$1048576,0))*INDEX('Standard Inputs - SB 6362'!J$12:J$1048576,MATCH($M141,'Standard Inputs - SB 6362'!$D$12:$D$1048576,0))*INDEX('Standard Inputs - SB 6362'!J$12:J$1048576,MATCH($N141,'Standard Inputs - SB 6362'!$D$12:$D$1048576,0)) -> 2757.675487 | W141: =(SUMIF($O$218:$O$326,$I141,W$218:W$326)+SUMIF($O$218:$O$326,$J141,W$218:W$326)+SUMIF($O$218:$O$326,$K141,W$218:W$326)+W290+W292)*INDEX('Standard Inputs - SB 6362'!K$12:K$1048576,MATCH($L141,'Standard Inputs - SB 6362'!$D$12:$D$1048576,0))*INDEX('Standard Inputs - SB 6362'!K$12:K$1048576,MATCH($M141,'Standard Inputs - SB 6362'!$D$12:$D$1048576,0))*INDEX('Standard Inputs - SB 6362'!K$12:K$1048576,MATCH($N141,'Standard Inputs - SB 6362'!$D$12:$D$1048576,0)) -> 278.51124 | X141: =(SUMIF($O$218:$O$326,$I141,X$218:X$326)+SUMIF($O$218:$O$326,$J141,X$218:X$326)+SUMIF($O$218:$O$326,$K141,X$218:X$326)+X290+X292)*INDEX('Standard Inputs - SB 6362'!L$12:L$1048576,MATCH($L141,'Standard Inputs - SB 6362'!$D$12:$D$1048576,0))*INDEX('Standard Inputs - SB 6362'!L$12:L$1048576,MATCH($M141,'Standard Inputs - SB 6362'!$D$12:$D$1048576,0))*INDEX('Standard Inputs - SB 6362'!L$12:L$1048576,MATCH($N141,'Standard Inputs - SB 6362'!$D$12:$D$1048576,0)) -> 278.51124 | Y141: =(SUMIF($O$218:$O$326,$I141,Y$218:Y$326)+SUMIF($O$218:$O$326,$J141,Y$218:Y$326)+SUMIF($O$218:$O$326,$K141,Y$218:Y$326)+Y290+Y292)*INDEX('Standard Inputs - SB 6362'!M$12:M$1048576,MATCH($L141,'Standard Inputs - SB 6362'!$D$12:$D$1048576,0))*INDEX('Standard Inputs - SB 6362'!M$12:M$1048576,MATCH($M141,'Standard Inputs - SB 6362'!$D$12:$D$1048576,0))*INDEX('Standard Inputs - SB 6362'!M$12:M$1048576,MATCH($N141,'Standard Inputs - SB 6362'!$D$12:$D$1048576,0)) ->  | Z141: =(SUMIF($O$218:$O$326,$I141,Z$218:Z$326)+SUMIF($O$218:$O$326,$J141,Z$218:Z$326)+SUMIF($O$218:$O$326,$K141,Z$218:Z$326)+Z290+Z292)*INDEX('Standard Inputs - SB 6362'!N$12:N$1048576,MATCH($L141,'Standard Inputs - SB 6362'!$D$12:$D$1048576,0))*INDEX('Standard Inputs - SB 6362'!N$12:N$1048576,MATCH($M141,'Standard Inputs - SB 6362'!$D$12:$D$1048576,0))*INDEX('Standard Inputs - SB 6362'!N$12:N$1048576,MATCH($N141,'Standard Inputs - SB 6362'!$D$12:$D$1048576,0)) ->  | AA141: =(SUMIF($O$218:$O$326,$I141,AA$218:AA$326)+SUMIF($O$218:$O$326,$J141,AA$218:AA$326)+SUMIF($O$218:$O$326,$K141,AA$218:AA$326)+AA290+AA292)*INDEX('Standard Inputs - SB 6362'!O$12:O$1048576,MATCH($L141,'Standard Inputs - SB 6362'!$D$12:$D$1048576,0))*INDEX('Standard Inputs - SB 6362'!O$12:O$1048576,MATCH($M141,'Standard Inputs - SB 6362'!$D$12:$D$1048576,0))*INDEX('Standard Inputs - SB 6362'!O$12:O$1048576,MATCH($N141,'Standard Inputs - SB 6362'!$D$12:$D$1048576,0)) ->  | AB141: =(SUMIF($O$218:$O$326,$I141,AB$218:AB$326)+SUMIF($O$218:$O$326,$J141,AB$218:AB$326)+SUMIF($O$218:$O$326,$K141,AB$218:AB$326)+AB290+AB292)*INDEX('Standard Inputs - SB 6362'!P$12:P$1048576,MATCH($L141,'Standard Inputs - SB 6362'!$D$12:$D$1048576,0))*INDEX('Standard Inputs - SB 6362'!P$12:P$1048576,MATCH($M141,'Standard Inputs - SB 6362'!$D$12:$D$1048576,0))*INDEX('Standard Inputs - SB 6362'!P$12:P$1048576,MATCH($N141,'Standard Inputs - SB 6362'!$D$12:$D$1048576,0)) -> 
L142: Teacher Staff Units | M142: Substitutes Days | N142: Substitutes Rate | O142: Substitute Dollars | P142: Other Entitlements | R142: =SUMIF($P$218:$P$326,$L$142,R$218:R$326)*INDEX('Standard Inputs - SB 6362'!F$12:F$1048576,MATCH($M142,'Standard Inputs - SB 6362'!$D$12:$D$1048576,0))*INDEX('Standard Inputs - SB 6362'!F$12:F$1048576,MATCH($N142,'Standard Inputs - SB 6362'!$D$12:$D$1048576,0)) -> 0 | S142: =SUMIF($P$218:$P$326,$L$142,S$218:S$326)*INDEX('Standard Inputs - SB 6362'!G$12:G$1048576,MATCH($M142,'Standard Inputs - SB 6362'!$D$12:$D$1048576,0))*INDEX('Standard Inputs - SB 6362'!G$12:G$1048576,MATCH($N142,'Standard Inputs - SB 6362'!$D$12:$D$1048576,0)) -> 0 | T142: =SUMIF($P$218:$P$326,$L$142,T$218:T$326)*INDEX('Standard Inputs - SB 6362'!H$12:H$1048576,MATCH($M142,'Standard Inputs - SB 6362'!$D$12:$D$1048576,0))*INDEX('Standard Inputs - SB 6362'!H$12:H$1048576,MATCH($N142,'Standard Inputs - SB 6362'!$D$12:$D$1048576,0)) ->  | U142: =SUMIF($P$218:$P$326,$L$142,U$218:U$326)*INDEX('Standard Inputs - SB 6362'!I$12:I$1048576,MATCH($M142,'Standard Inputs - SB 6362'!$D$12:$D$1048576,0))*INDEX('Standard Inputs - SB 6362'!I$12:I$1048576,MATCH($N142,'Standard Inputs - SB 6362'!$D$12:$D$1048576,0)) -> 0 | V142: =SUMIF($P$218:$P$326,$L$142,V$218:V$326)*INDEX('Standard Inputs - SB 6362'!J$12:J$1048576,MATCH($M142,'Standard Inputs - SB 6362'!$D$12:$D$1048576,0))*INDEX('Standard Inputs - SB 6362'!J$12:J$1048576,MATCH($N142,'Standard Inputs - SB 6362'!$D$12:$D$1048576,0)) -> 2623.53336 | W142: =SUMIF($P$218:$P$326,$L$142,W$218:W$326)*INDEX('Standard Inputs - SB 6362'!K$12:K$1048576,MATCH($M142,'Standard Inputs - SB 6362'!$D$12:$D$1048576,0))*INDEX('Standard Inputs - SB 6362'!K$12:K$1048576,MATCH($N142,'Standard Inputs - SB 6362'!$D$12:$D$1048576,0)) -> 3760.0536 | X142: =SUMIF($P$218:$P$326,$L$142,X$218:X$326)*INDEX('Standard Inputs - SB 6362'!L$12:L$1048576,MATCH($M142,'Standard Inputs - SB 6362'!$D$12:$D$1048576,0))*INDEX('Standard Inputs - SB 6362'!L$12:L$1048576,MATCH($N142,'Standard Inputs - SB 6362'!$D$12:$D$1048576,0)) -> 3968.40552 | Y142: =SUMIF($P$218:$P$326,$L$142,Y$218:Y$326)*INDEX('Standard Inputs - SB 6362'!M$12:M$1048576,MATCH($M142,'Standard Inputs - SB 6362'!$D$12:$D$1048576,0))*INDEX('Standard Inputs - SB 6362'!M$12:M$1048576,MATCH($N142,'Standard Inputs - SB 6362'!$D$12:$D$1048576,0)) ->  | Z142: =SUMIF($P$218:$P$326,$L$142,Z$218:Z$326)*INDEX('Standard Inputs - SB 6362'!N$12:N$1048576,MATCH($M142,'Standard Inputs - SB 6362'!$D$12:$D$1048576,0))*INDEX('Standard Inputs - SB 6362'!N$12:N$1048576,MATCH($N142,'Standard Inputs - SB 6362'!$D$12:$D$1048576,0)) ->  | AA142: =SUMIF($P$218:$P$326,$L$142,AA$218:AA$326)*INDEX('Standard Inputs - SB 6362'!O$12:O$1048576,MATCH($M142,'Standard Inputs - SB 6362'!$D$12:$D$1048576,0))*INDEX('Standard Inputs - SB 6362'!O$12:O$1048576,MATCH($N142,'Standard Inputs - SB 6362'!$D$12:$D$1048576,0)) ->  | AB142: =SUMIF($P$218:$P$326,$L$142,AB$218:AB$326)*INDEX('Standard Inputs - SB 6362'!P$12:P$1048576,MATCH($M142,'Standard Inputs - SB 6362'!$D$12:$D$1048576,0))*INDEX('Standard Inputs - SB 6362'!P$12:P$1048576,MATCH($N142,'Standard Inputs - SB 6362'!$D$12:$D$1048576,0)) -> 
M143: TBIP Salaries | N143: TBIP Insurance and Benefits | O143: TBIP withholding % | P143: TBIP Salaries | R143: =-(SUMIF($P$146:$P$215,$M143,R$146:R$215)+SUMIF($P$146:$P$215,$N143,R$146:R$215)+SUMIF($P$146:$P$215,#REF!,R$146:R$215))*INDEX('Standard Inputs - SB 6362'!F$12:F$1048576,MATCH($O143,'Standard Inputs - SB 6362'!$D$12:$D$1048576,0)) -> 0 | S143: =-(SUMIF($P$146:$P$215,$M143,S$146:S$215)+SUMIF($P$146:$P$215,$N143,S$146:S$215)+SUMIF($P$146:$P$215,#REF!,S$146:S$215))*INDEX('Standard Inputs - SB 6362'!G$12:G$1048576,MATCH($O143,'Standard Inputs - SB 6362'!$D$12:$D$1048576,0)) -> -197.0495755 | T143: =-(SUMIF($P$146:$P$215,$M143,T$146:T$215)+SUMIF($P$146:$P$215,$N143,T$146:T$215)+SUMIF($P$146:$P$215,#REF!,T$146:T$215))*INDEX('Standard Inputs - SB 6362'!H$12:H$1048576,MATCH($O143,'Standard Inputs - SB 6362'!$D$12:$D$1048576,0)) -> 0 | U143: =-(SUMIF($P$146:$P$215,$M143,U$146:U$215)+SUMIF($P$146:$P$215,$N143,U$146:U$215)+SUMIF($P$146:$P$215,#REF!,U$146:U$215))*INDEX('Standard Inputs - SB 6362'!I$12:I$1048576,MATCH($O143,'Standard Inputs - SB 6362'!$D$12:$D$1048576,0)) -> 0 | V143: =-(SUMIF($P$146:$P$215,$M143,V$146:V$215)+SUMIF($P$146:$P$215,$N143,V$146:V$215)+SUMIF($P$146:$P$215,#REF!,V$146:V$215))*INDEX('Standard Inputs - SB 6362'!J$12:J$1048576,MATCH($O143,'Standard Inputs - SB 6362'!$D$12:$D$1048576,0)) -> 0 | W143: =-(SUMIF($P$146:$P$215,$M143,W$146:W$215)+SUMIF($P$146:$P$215,$N143,W$146:W$215)+SUMIF($P$146:$P$215,#REF!,W$146:W$215))*INDEX('Standard Inputs - SB 6362'!K$12:K$1048576,MATCH($O143,'Standard Inputs - SB 6362'!$D$12:$D$1048576,0)) -> 0 | X143: =-(SUMIF($P$146:$P$215,$M143,X$146:X$215)+SUMIF($P$146:$P$215,$N143,X$146:X$215)+SUMIF($P$146:$P$215,#REF!,X$146:X$215))*INDEX('Standard Inputs - SB 6362'!L$12:L$1048576,MATCH($O143,'Standard Inputs - SB 6362'!$D$12:$D$1048576,0)) -> -17.58775788 | Y143: =-(SUMIF($P$146:$P$215,$M143,Y$146:Y$215)+SUMIF($P$146:$P$215,$N143,Y$146:Y$215)+SUMIF($P$146:$P$215,#REF!,Y$146:Y$215))*INDEX('Standard Inputs - SB 6362'!M$12:M$1048576,MATCH($O143,'Standard Inputs - SB 6362'!$D$12:$D$1048576,0)) ->  | Z143: =-(SUMIF($P$146:$P$215,$M143,Z$146:Z$215)+SUMIF($P$146:$P$215,$N143,Z$146:Z$215)+SUMIF($P$146:$P$215,#REF!,Z$146:Z$215))*INDEX('Standard Inputs - SB 6362'!N$12:N$1048576,MATCH($O143,'Standard Inputs - SB 6362'!$D$12:$D$1048576,0)) ->  | AA143: =-(SUMIF($P$146:$P$215,$M143,AA$146:AA$215)+SUMIF($P$146:$P$215,$N143,AA$146:AA$215)+SUMIF($P$146:$P$215,#REF!,AA$146:AA$215))*INDEX('Standard Inputs - SB 6362'!O$12:O$1048576,MATCH($O143,'Standard Inputs - SB 6362'!$D$12:$D$1048576,0)) ->  | AB143: =-(SUMIF($P$146:$P$215,$M143,AB$146:AB$215)+SUMIF($P$146:$P$215,$N143,AB$146:AB$215)+SUMIF($P$146:$P$215,#REF!,AB$146:AB$215))*INDEX('Standard Inputs - SB 6362'!P$12:P$1048576,MATCH($O143,'Standard Inputs - SB 6362'!$D$12:$D$1048576,0)) -> 
O145: PAYROLL TAX AND BENEFITS INCREASE | R145: SY 2017-18 | S145: SY 2018-19 | T145: SY 2019-20 | U145: SY 2020-21 | V145: SY 2021-22 | W145: SY 2022-23 | X145: SY 2023-24 | Y145: SY 2024-25 | Z145: SY 2025-26 | AA145: SY 2026-27 | AB145: SY 2027-28
L146: CIS Salaries | M146: CAS Salaries | N146: CIS/CAS Benefits Increase | O146: Certificated Payroll Tax and Benefits Increase | P146: Certificated insurance and Benefits | R146: =(SUMIF($P$184:$P$198,$L146,R$184:R$198)+SUMIF($P$184:$P$198,$M146,R$184:R$198))*INDEX('Standard Inputs - SB 6362'!F$12:F$1048576,MATCH($N146,'Standard Inputs - SB 6362'!$D$12:$D$1048576,0)) -> 0 | S146: =(SUMIF($P$184:$P$198,$L146,S$184:S$198)+SUMIF($P$184:$P$198,$M146,S$184:S$198))*INDEX('Standard Inputs - SB 6362'!G$12:G$1048576,MATCH($N146,'Standard Inputs - SB 6362'!$D$12:$D$1048576,0)) -> 0 | T146: =(SUMIF($P$184:$P$198,$L146,T$184:T$198)+SUMIF($P$184:$P$198,$M146,T$184:T$198))*INDEX('Standard Inputs - SB 6362'!H$12:H$1048576,MATCH($N146,'Standard Inputs - SB 6362'!$D$12:$D$1048576,0)) ->  | U146: =(SUMIF($P$184:$P$198,$L146,U$184:U$198)+SUMIF($P$184:$P$198,$M146,U$184:U$198))*INDEX('Standard Inputs - SB 6362'!I$12:I$1048576,MATCH($N146,'Standard Inputs - SB 6362'!$D$12:$D$1048576,0)) -> 0 | V146: =(SUMIF($P$184:$P$198,$L146,V$184:V$198)+SUMIF($P$184:$P$198,$M146,V$184:V$198))*INDEX('Standard Inputs - SB 6362'!J$12:J$1048576,MATCH($N146,'Standard Inputs - SB 6362'!$D$12:$D$1048576,0)) -> 162990.0649 | W146: =(SUMIF($P$184:$P$198,$L146,W$184:W$198)+SUMIF($P$184:$P$198,$M146,W$184:W$198))*INDEX('Standard Inputs - SB 6362'!K$12:K$1048576,MATCH($N146,'Standard Inputs - SB 6362'!$D$12:$D$1048576,0)) -> 6572.559493 | X146: =(SUMIF($P$184:$P$198,$L146,X$184:X$198)+SUMIF($P$184:$P$198,$M146,X$184:X$198))*INDEX('Standard Inputs - SB 6362'!L$12:L$1048576,MATCH($N146,'Standard Inputs - SB 6362'!$D$12:$D$1048576,0)) -> 3870.500368 | Y146: =(SUMIF($P$184:$P$198,$L146,Y$184:Y$198)+SUMIF($P$184:$P$198,$M146,Y$184:Y$198))*INDEX('Standard Inputs - SB 6362'!M$12:M$1048576,MATCH($N146,'Standard Inputs - SB 6362'!$D$12:$D$1048576,0)) ->  | Z146: =(SUMIF($P$184:$P$198,$L146,Z$184:Z$198)+SUMIF($P$184:$P$198,$M146,Z$184:Z$198))*INDEX('Standard Inputs - SB 6362'!N$12:N$1048576,MATCH($N146,'Standard Inputs - SB 6362'!$D$12:$D$1048576,0)) ->  | AA146: =(SUMIF($P$184:$P$198,$L146,AA$184:AA$198)+SUMIF($P$184:$P$198,$M146,AA$184:AA$198))*INDEX('Standard Inputs - SB 6362'!O$12:O$1048576,MATCH($N146,'Standard Inputs - SB 6362'!$D$12:$D$1048576,0)) ->  | AB146: =(SUMIF($P$184:$P$198,$L146,AB$184:AB$198)+SUMIF($P$184:$P$198,$M146,AB$184:AB$198))*INDEX('Standard Inputs - SB 6362'!P$12:P$1048576,MATCH($N146,'Standard Inputs - SB 6362'!$D$12:$D$1048576,0)) -> 
M147: CLS Salaries | N147: CLS Benefits Increase | O147: Classified Payroll Tax and Benefits Increase | P147: Classified Insurance and Benefits | R147: =(SUMIF($P$184:$P$198,$M147,R$184:R$198))*INDEX('Standard Inputs - SB 6362'!F$12:F$1048576,MATCH($N147,'Standard Inputs - SB 6362'!$D$12:$D$1048576,0)) -> 0 | S147: =(SUMIF($P$184:$P$198,$M147,S$184:S$198))*INDEX('Standard Inputs - SB 6362'!G$12:G$1048576,MATCH($N147,'Standard Inputs - SB 6362'!$D$12:$D$1048576,0)) -> 0 | T147: =(SUMIF($P$184:$P$198,$M147,T$184:T$198))*INDEX('Standard Inputs - SB 6362'!H$12:H$1048576,MATCH($N147,'Standard Inputs - SB 6362'!$D$12:$D$1048576,0)) ->  | U147: =(SUMIF($P$184:$P$198,$M147,U$184:U$198))*INDEX('Standard Inputs - SB 6362'!I$12:I$1048576,MATCH($N147,'Standard Inputs - SB 6362'!$D$12:$D$1048576,0)) -> 0 | V147: =(SUMIF($P$184:$P$198,$M147,V$184:V$198))*INDEX('Standard Inputs - SB 6362'!J$12:J$1048576,MATCH($N147,'Standard Inputs - SB 6362'!$D$12:$D$1048576,0)) -> 32968.37022 | W147: =(SUMIF($P$184:$P$198,$M147,W$184:W$198))*INDEX('Standard Inputs - SB 6362'!K$12:K$1048576,MATCH($N147,'Standard Inputs - SB 6362'!$D$12:$D$1048576,0)) -> 1306.71419 | X147: =(SUMIF($P$184:$P$198,$M147,X$184:X$198))*INDEX('Standard Inputs - SB 6362'!L$12:L$1048576,MATCH($N147,'Standard Inputs - SB 6362'!$D$12:$D$1048576,0)) -> 927.0694235 | Y147: =(SUMIF($P$184:$P$198,$M147,Y$184:Y$198))*INDEX('Standard Inputs - SB 6362'!M$12:M$1048576,MATCH($N147,'Standard Inputs - SB 6362'!$D$12:$D$1048576,0)) ->  | Z147: =(SUMIF($P$184:$P$198,$M147,Z$184:Z$198))*INDEX('Standard Inputs - SB 6362'!N$12:N$1048576,MATCH($N147,'Standard Inputs - SB 6362'!$D$12:$D$1048576,0)) ->  | AA147: =(SUMIF($P$184:$P$198,$M147,AA$184:AA$198))*INDEX('Standard Inputs - SB 6362'!O$12:O$1048576,MATCH($N147,'Standard Inputs - SB 6362'!$D$12:$D$1048576,0)) ->  | AB147: =(SUMIF($P$184:$P$198,$M147,AB$184:AB$198))*INDEX('Standard Inputs - SB 6362'!P$12:P$1048576,MATCH($N147,'Standard Inputs - SB 6362'!$D$12:$D$1048576,0)) -> 
M148: LAP Salaries | N148: CIS/CAS Benefits Increase | O148: LAP Payroll tax and Benefits Increase | P148: LAP Insurance and Benefits | R148: =(SUMIF($P$184:$P$198,$M148,R$184:R$198))*INDEX('Standard Inputs - SB 6362'!F$12:F$1048576,MATCH($N148,'Standard Inputs - SB 6362'!$D$12:$D$1048576,0)) -> 0 | S148: =(SUMIF($P$184:$P$198,$M148,S$184:S$198))*INDEX('Standard Inputs - SB 6362'!G$12:G$1048576,MATCH($N148,'Standard Inputs - SB 6362'!$D$12:$D$1048576,0)) -> 0 | T148: =(SUMIF($P$184:$P$198,$M148,T$184:T$198))*INDEX('Standard Inputs - SB 6362'!H$12:H$1048576,MATCH($N148,'Standard Inputs - SB 6362'!$D$12:$D$1048576,0)) -> 0 | U148: =(SUMIF($P$184:$P$198,$M148,U$184:U$198))*INDEX('Standard Inputs - SB 6362'!I$12:I$1048576,MATCH($N148,'Standard Inputs - SB 6362'!$D$12:$D$1048576,0)) -> 0 | V148: =(SUMIF($P$184:$P$198,$M148,V$184:V$198))*INDEX('Standard Inputs - SB 6362'!J$12:J$1048576,MATCH($N148,'Standard Inputs - SB 6362'!$D$12:$D$1048576,0)) -> 2681.243623 | W148: =(SUMIF($P$184:$P$198,$M148,W$184:W$198))*INDEX('Standard Inputs - SB 6362'!K$12:K$1048576,MATCH($N148,'Standard Inputs - SB 6362'!$D$12:$D$1048576,0)) -> 123.0973099 | X148: =(SUMIF($P$184:$P$198,$M148,X$184:X$198))*INDEX('Standard Inputs - SB 6362'!L$12:L$1048576,MATCH($N148,'Standard Inputs - SB 6362'!$D$12:$D$1048576,0)) -> 64.55018767 | Y148: =(SUMIF($P$184:$P$198,$M148,Y$184:Y$198))*INDEX('Standard Inputs - SB 6362'!M$12:M$1048576,MATCH($N148,'Standard Inputs - SB 6362'!$D$12:$D$1048576,0)) -> 172.7218007 | Z148: =(SUMIF($P$184:$P$198,$M148,Z$184:Z$198))*INDEX('Standard Inputs - SB 6362'!N$12:N$1048576,MATCH($N148,'Standard Inputs - SB 6362'!$D$12:$D$1048576,0)) ->  | AA148: =(SUMIF($P$184:$P$198,$M148,AA$184:AA$198))*INDEX('Standard Inputs - SB 6362'!O$12:O$1048576,MATCH($N148,'Standard Inputs - SB 6362'!$D$12:$D$1048576,0)) ->  | AB148: =(SUMIF($P$184:$P$198,$M148,AB$184:AB$198))*INDEX('Standard Inputs - SB 6362'!P$12:P$1048576,MATCH($N148,'Standard Inputs - SB 6362'!$D$12:$D$1048576,0)) -> 
M149: TBIP Salaries | N149: CIS/CAS Benefits Increase | O149: TBIP Payroll tax and Benefits Increase | P149: TBIP Insurance and Benefits | R149: =(SUMIF($P$184:$P$198,$M149,R$184:R$198))*INDEX('Standard Inputs - SB 6362'!F$12:F$1048576,MATCH($N149,'Standard Inputs - SB 6362'!$D$12:$D$1048576,0)) -> 0 | S149: =(SUMIF($P$184:$P$198,$M149,S$184:S$198))*INDEX('Standard Inputs - SB 6362'!G$12:G$1048576,MATCH($N149,'Standard Inputs - SB 6362'!$D$12:$D$1048576,0)) -> 0 | T149: =(SUMIF($P$184:$P$198,$M149,T$184:T$198))*INDEX('Standard Inputs - SB 6362'!H$12:H$1048576,MATCH($N149,'Standard Inputs - SB 6362'!$D$12:$D$1048576,0)) -> 0 | U149: =(SUMIF($P$184:$P$198,$M149,U$184:U$198))*INDEX('Standard Inputs - SB 6362'!I$12:I$1048576,MATCH($N149,'Standard Inputs - SB 6362'!$D$12:$D$1048576,0)) -> 0 | V149: =(SUMIF($P$184:$P$198,$M149,V$184:V$198))*INDEX('Standard Inputs - SB 6362'!J$12:J$1048576,MATCH($N149,'Standard Inputs - SB 6362'!$D$12:$D$1048576,0)) -> 0 | W149: =(SUMIF($P$184:$P$198,$M149,W$184:W$198))*INDEX('Standard Inputs - SB 6362'!K$12:K$1048576,MATCH($N149,'Standard Inputs - SB 6362'!$D$12:$D$1048576,0)) -> 0 | X149: =(SUMIF($P$184:$P$198,$M149,X$184:X$198))*INDEX('Standard Inputs - SB 6362'!L$12:L$1048576,MATCH($N149,'Standard Inputs - SB 6362'!$D$12:$D$1048576,0)) -> 5.268857055 | Y149: =(SUMIF($P$184:$P$198,$M149,Y$184:Y$198))*INDEX('Standard Inputs - SB 6362'!M$12:M$1048576,MATCH($N149,'Standard Inputs - SB 6362'!$D$12:$D$1048576,0)) ->  | Z149: =(SUMIF($P$184:$P$198,$M149,Z$184:Z$198))*INDEX('Standard Inputs - SB 6362'!N$12:N$1048576,MATCH($N149,'Standard Inputs - SB 6362'!$D$12:$D$1048576,0)) ->  | AA149: =(SUMIF($P$184:$P$198,$M149,AA$184:AA$198))*INDEX('Standard Inputs - SB 6362'!O$12:O$1048576,MATCH($N149,'Standard Inputs - SB 6362'!$D$12:$D$1048576,0)) ->  | AB149: =(SUMIF($P$184:$P$198,$M149,AB$184:AB$198))*INDEX('Standard Inputs - SB 6362'!P$12:P$1048576,MATCH($N149,'Standard Inputs - SB 6362'!$D$12:$D$1048576,0)) -> 
M150: HiCap Salaries | N150: CIS/CAS Benefits Increase | O150: HiCap Payroll tax and Benefits Increase | P150: HiCap Insurance and Benefits | R150: =(SUMIF($P$184:$P$198,$M150,R$184:R$198))*INDEX('Standard Inputs - SB 6362'!F$12:F$1048576,MATCH($N150,'Standard Inputs - SB 6362'!$D$12:$D$1048576,0)) -> 0 | S150: =(SUMIF($P$184:$P$198,$M150,S$184:S$198))*INDEX('Standard Inputs - SB 6362'!G$12:G$1048576,MATCH($N150,'Standard Inputs - SB 6362'!$D$12:$D$1048576,0)) -> 0 | T150: =(SUMIF($P$184:$P$198,$M150,T$184:T$198))*INDEX('Standard Inputs - SB 6362'!H$12:H$1048576,MATCH($N150,'Standard Inputs - SB 6362'!$D$12:$D$1048576,0)) -> 0 | U150: =(SUMIF($P$184:$P$198,$M150,U$184:U$198))*INDEX('Standard Inputs - SB 6362'!I$12:I$1048576,MATCH($N150,'Standard Inputs - SB 6362'!$D$12:$D$1048576,0)) -> 0 | V150: =(SUMIF($P$184:$P$198,$M150,V$184:V$198))*INDEX('Standard Inputs - SB 6362'!J$12:J$1048576,MATCH($N150,'Standard Inputs - SB 6362'!$D$12:$D$1048576,0)) -> 437.0957998 | W150: =(SUMIF($P$184:$P$198,$M150,W$184:W$198))*INDEX('Standard Inputs - SB 6362'!K$12:K$1048576,MATCH($N150,'Standard Inputs - SB 6362'!$D$12:$D$1048576,0)) -> 24.37969859 | X150: =(SUMIF($P$184:$P$198,$M150,X$184:X$198))*INDEX('Standard Inputs - SB 6362'!L$12:L$1048576,MATCH($N150,'Standard Inputs - SB 6362'!$D$12:$D$1048576,0)) -> 14.28384956 | Y150: =(SUMIF($P$184:$P$198,$M150,Y$184:Y$198))*INDEX('Standard Inputs - SB 6362'!M$12:M$1048576,MATCH($N150,'Standard Inputs - SB 6362'!$D$12:$D$1048576,0)) ->  | Z150: =(SUMIF($P$184:$P$198,$M150,Z$184:Z$198))*INDEX('Standard Inputs - SB 6362'!N$12:N$1048576,MATCH($N150,'Standard Inputs - SB 6362'!$D$12:$D$1048576,0)) ->  | AA150: =(SUMIF($P$184:$P$198,$M150,AA$184:AA$198))*INDEX('Standard Inputs - SB 6362'!O$12:O$1048576,MATCH($N150,'Standard Inputs - SB 6362'!$D$12:$D$1048576,0)) ->  | AB150: =(SUMIF($P$184:$P$198,$M150,AB$184:AB$198))*INDEX('Standard Inputs - SB 6362'!P$12:P$1048576,MATCH($N150,'Standard Inputs - SB 6362'!$D$12:$D$1048576,0)) -> 
M151: LAP High Pov Salaries | N151: CIS/CAS Benefits Increase | O151: LAP High Poverty Payroll tax and Benefits Increase | P151: LAP Insurance and Benefits | R151: =(SUMIF($P$184:$P$198,$M151,R$184:R$198))*INDEX('Standard Inputs - SB 6362'!F$12:F$1048576,MATCH($N151,'Standard Inputs - SB 6362'!$D$12:$D$1048576,0)) -> 0 | S151: =(SUMIF($P$184:$P$198,$M151,S$184:S$198))*INDEX('Standard Inputs - SB 6362'!G$12:G$1048576,MATCH($N151,'Standard Inputs - SB 6362'!$D$12:$D$1048576,0)) -> 0 | T151: =(SUMIF($P$184:$P$198,$M151,T$184:T$198))*INDEX('Standard Inputs - SB 6362'!H$12:H$1048576,MATCH($N151,'Standard Inputs - SB 6362'!$D$12:$D$1048576,0)) -> 0 | U151: =(SUMIF($P$184:$P$198,$M151,U$184:U$198))*INDEX('Standard Inputs - SB 6362'!I$12:I$1048576,MATCH($N151,'Standard Inputs - SB 6362'!$D$12:$D$1048576,0)) -> 0 | V151: =(SUMIF($P$184:$P$198,$M151,V$184:V$198))*INDEX('Standard Inputs - SB 6362'!J$12:J$1048576,MATCH($N151,'Standard Inputs - SB 6362'!$D$12:$D$1048576,0)) -> 0 | W151: =(SUMIF($P$184:$P$198,$M151,W$184:W$198))*INDEX('Standard Inputs - SB 6362'!K$12:K$1048576,MATCH($N151,'Standard Inputs - SB 6362'!$D$12:$D$1048576,0)) -> 0 | X151: =(SUMIF($P$184:$P$198,$M151,X$184:X$198))*INDEX('Standard Inputs - SB 6362'!L$12:L$1048576,MATCH($N151,'Standard Inputs - SB 6362'!$D$12:$D$1048576,0)) -> 0 | Y151: =(SUMIF($P$184:$P$198,$M151,Y$184:Y$198))*INDEX('Standard Inputs - SB 6362'!M$12:M$1048576,MATCH($N151,'Standard Inputs - SB 6362'!$D$12:$D$1048576,0)) -> 0 | Z151: =(SUMIF($P$184:$P$198,$M151,Z$184:Z$198))*INDEX('Standard Inputs - SB 6362'!N$12:N$1048576,MATCH($N151,'Standard Inputs - SB 6362'!$D$12:$D$1048576,0)) ->  | AA151: =(SUMIF($P$184:$P$198,$M151,AA$184:AA$198))*INDEX('Standard Inputs - SB 6362'!O$12:O$1048576,MATCH($N151,'Standard Inputs - SB 6362'!$D$12:$D$1048576,0)) ->  | AB151: =(SUMIF($P$184:$P$198,$M151,AB$184:AB$198))*INDEX('Standard Inputs - SB 6362'!P$12:P$1048576,MATCH($N151,'Standard Inputs - SB 6362'!$D$12:$D$1048576,0)) -> 
L152: CIS SpEd Salary | M152: CAS SpEd Salary | N152: CIS/CAS Benefits Increase | O152: Certificated Payroll tax and Benefits SpEd Increase | P152: SpEd Insurance and Benefits | R152: =(SUMIF($P$184:$P$198,$L152,R$184:R$198)+SUMIF($P$184:$P$198,$M152,R$184:R$198))*INDEX('Standard Inputs - SB 6362'!F$12:F$1048576,MATCH($N152,'Standard Inputs - SB 6362'!$D$12:$D$1048576,0)) -> 0 | S152: =(SUMIF($P$184:$P$198,$L152,S$184:S$198)+SUMIF($P$184:$P$198,$M152,S$184:S$198))*INDEX('Standard Inputs - SB 6362'!G$12:G$1048576,MATCH($N152,'Standard Inputs - SB 6362'!$D$12:$D$1048576,0)) -> 0 | T152: =(SUMIF($P$184:$P$198,$L152,T$184:T$198)+SUMIF($P$184:$P$198,$M152,T$184:T$198))*INDEX('Standard Inputs - SB 6362'!H$12:H$1048576,MATCH($N152,'Standard Inputs - SB 6362'!$D$12:$D$1048576,0)) -> 0 | U152: =(SUMIF($P$184:$P$198,$L152,U$184:U$198)+SUMIF($P$184:$P$198,$M152,U$184:U$198))*INDEX('Standard Inputs - SB 6362'!I$12:I$1048576,MATCH($N152,'Standard Inputs - SB 6362'!$D$12:$D$1048576,0)) -> 0 | V152: =(SUMIF($P$184:$P$198,$L152,V$184:V$198)+SUMIF($P$184:$P$198,$M152,V$184:V$198))*INDEX('Standard Inputs - SB 6362'!J$12:J$1048576,MATCH($N152,'Standard Inputs - SB 6362'!$D$12:$D$1048576,0)) -> 830.1119211 | W152: =(SUMIF($P$184:$P$198,$L152,W$184:W$198)+SUMIF($P$184:$P$198,$M152,W$184:W$198))*INDEX('Standard Inputs - SB 6362'!K$12:K$1048576,MATCH($N152,'Standard Inputs - SB 6362'!$D$12:$D$1048576,0)) -> 60.49663826 | X152: =(SUMIF($P$184:$P$198,$L152,X$184:X$198)+SUMIF($P$184:$P$198,$M152,X$184:X$198))*INDEX('Standard Inputs - SB 6362'!L$12:L$1048576,MATCH($N152,'Standard Inputs - SB 6362'!$D$12:$D$1048576,0)) -> 34.18428187 | Y152: =(SUMIF($P$184:$P$198,$L152,Y$184:Y$198)+SUMIF($P$184:$P$198,$M152,Y$184:Y$198))*INDEX('Standard Inputs - SB 6362'!M$12:M$1048576,MATCH($N152,'Standard Inputs - SB 6362'!$D$12:$D$1048576,0)) -> 0 | Z152: =(SUMIF($P$184:$P$198,$L152,Z$184:Z$198)+SUMIF($P$184:$P$198,$M152,Z$184:Z$198))*INDEX('Standard Inputs - SB 6362'!N$12:N$1048576,MATCH($N152,'Standard Inputs - SB 6362'!$D$12:$D$1048576,0)) ->  | AA152: =(SUMIF($P$184:$P$198,$L152,AA$184:AA$198)+SUMIF($P$184:$P$198,$M152,AA$184:AA$198))*INDEX('Standard Inputs - SB 6362'!O$12:O$1048576,MATCH($N152,'Standard Inputs - SB 6362'!$D$12:$D$1048576,0)) ->  | AB152: =(SUMIF($P$184:$P$198,$L152,AB$184:AB$198)+SUMIF($P$184:$P$198,$M152,AB$184:AB$198))*INDEX('Standard Inputs - SB 6362'!P$12:P$1048576,MATCH($N152,'Standard Inputs - SB 6362'!$D$12:$D$1048576,0)) -> 0
M153: CLS SpEd Salary | N153: CLS Benefits Increase | O153: Classified Payroll tax and Benefits SpEd Increase | P153: SpEd Insurance and Benefits | R153: =(SUMIF($P$184:$P$198,$M153,R$184:R$198))*INDEX('Standard Inputs - SB 6362'!F$12:F$1048576,MATCH($N153,'Standard Inputs - SB 6362'!$D$12:$D$1048576,0)) -> 0 | S153: =(SUMIF($P$184:$P$198,$M153,S$184:S$198))*INDEX('Standard Inputs - SB 6362'!G$12:G$1048576,MATCH($N153,'Standard Inputs - SB 6362'!$D$12:$D$1048576,0)) -> 0 | T153: =(SUMIF($P$184:$P$198,$M153,T$184:T$198))*INDEX('Standard Inputs - SB 6362'!H$12:H$1048576,MATCH($N153,'Standard Inputs - SB 6362'!$D$12:$D$1048576,0)) -> 0 | U153: =(SUMIF($P$184:$P$198,$M153,U$184:U$198))*INDEX('Standard Inputs - SB 6362'!I$12:I$1048576,MATCH($N153,'Standard Inputs - SB 6362'!$D$12:$D$1048576,0)) -> 0 | V153: =(SUMIF($P$184:$P$198,$M153,V$184:V$198))*INDEX('Standard Inputs - SB 6362'!J$12:J$1048576,MATCH($N153,'Standard Inputs - SB 6362'!$D$12:$D$1048576,0)) -> 162.7869127 | W153: =(SUMIF($P$184:$P$198,$M153,W$184:W$198))*INDEX('Standard Inputs - SB 6362'!K$12:K$1048576,MATCH($N153,'Standard Inputs - SB 6362'!$D$12:$D$1048576,0)) -> 9.499951642 | X153: =(SUMIF($P$184:$P$198,$M153,X$184:X$198))*INDEX('Standard Inputs - SB 6362'!L$12:L$1048576,MATCH($N153,'Standard Inputs - SB 6362'!$D$12:$D$1048576,0)) -> 6.456647354 | Y153: =(SUMIF($P$184:$P$198,$M153,Y$184:Y$198))*INDEX('Standard Inputs - SB 6362'!M$12:M$1048576,MATCH($N153,'Standard Inputs - SB 6362'!$D$12:$D$1048576,0)) -> 0 | Z153: =(SUMIF($P$184:$P$198,$M153,Z$184:Z$198))*INDEX('Standard Inputs - SB 6362'!N$12:N$1048576,MATCH($N153,'Standard Inputs - SB 6362'!$D$12:$D$1048576,0)) -> 0 | AA153: =(SUMIF($P$184:$P$198,$M153,AA$184:AA$198))*INDEX('Standard Inputs - SB 6362'!O$12:O$1048576,MATCH($N153,'Standard Inputs - SB 6362'!$D$12:$D$1048576,0)) -> 0 | AB153: =(SUMIF($P$184:$P$198,$M153,AB$184:AB$198))*INDEX('Standard Inputs - SB 6362'!P$12:P$1048576,MATCH($N153,'Standard Inputs - SB 6362'!$D$12:$D$1048576,0)) -> 0
O155: PAYROLL TAX AND BENEFITS | R155: SY 2017-18 | S155: SY 2018-19 | T155: SY 2019-20 | U155: SY 2020-21 | V155: SY 2021-22 | W155: SY 2022-23 | X155: SY 2023-24 | Y155: SY 2024-25 | Z155: SY 2025-26 | AA155: SY 2026-27 | AB155: SY 2027-28
L156: CIS Salaries | M156: CAS Salaries | N156: CIS/CAS Benefits | O156: Certificated Payroll Tax and Benefits | P156: Certificated insurance and Benefits | R156: =(SUMIF($P$201:$P$215,$L156,R$201:R$215)+SUMIF($P$201:$P$215,$M156,R$201:R$215))*INDEX('Standard Inputs - SB 6362'!F$12:F$1048576,MATCH($N156,'Standard Inputs - SB 6362'!$D$12:$D$1048576,0)) -> 0 | S156: =(SUMIF($P$201:$P$215,$L156,S$201:S$215)+SUMIF($P$201:$P$215,$M156,S$201:S$215))*INDEX('Standard Inputs - SB 6362'!G$12:G$1048576,MATCH($N156,'Standard Inputs - SB 6362'!$D$12:$D$1048576,0)) -> 0 | T156: =(SUMIF($P$201:$P$215,$L156,T$201:T$215)+SUMIF($P$201:$P$215,$M156,T$201:T$215))*INDEX('Standard Inputs - SB 6362'!H$12:H$1048576,MATCH($N156,'Standard Inputs - SB 6362'!$D$12:$D$1048576,0)) ->  | U156: =(SUMIF($P$201:$P$215,$L156,U$201:U$215)+SUMIF($P$201:$P$215,$M156,U$201:U$215))*INDEX('Standard Inputs - SB 6362'!I$12:I$1048576,MATCH($N156,'Standard Inputs - SB 6362'!$D$12:$D$1048576,0)) -> 0 | V156: =(SUMIF($P$201:$P$215,$L156,V$201:V$215)+SUMIF($P$201:$P$215,$M156,V$201:V$215))*INDEX('Standard Inputs - SB 6362'!J$12:J$1048576,MATCH($N156,'Standard Inputs - SB 6362'!$D$12:$D$1048576,0)) -> 0 | W156: =(SUMIF($P$201:$P$215,$L156,W$201:W$215)+SUMIF($P$201:$P$215,$M156,W$201:W$215))*INDEX('Standard Inputs - SB 6362'!K$12:K$1048576,MATCH($N156,'Standard Inputs - SB 6362'!$D$12:$D$1048576,0)) -> 122940.4728 | X156: =(SUMIF($P$201:$P$215,$L156,X$201:X$215)+SUMIF($P$201:$P$215,$M156,X$201:X$215))*INDEX('Standard Inputs - SB 6362'!L$12:L$1048576,MATCH($N156,'Standard Inputs - SB 6362'!$D$12:$D$1048576,0)) -> 108467.4751 | Y156: =(SUMIF($P$201:$P$215,$L156,Y$201:Y$215)+SUMIF($P$201:$P$215,$M156,Y$201:Y$215))*INDEX('Standard Inputs - SB 6362'!M$12:M$1048576,MATCH($N156,'Standard Inputs - SB 6362'!$D$12:$D$1048576,0)) ->  | Z156: =(SUMIF($P$201:$P$215,$L156,Z$201:Z$215)+SUMIF($P$201:$P$215,$M156,Z$201:Z$215))*INDEX('Standard Inputs - SB 6362'!N$12:N$1048576,MATCH($N156,'Standard Inputs - SB 6362'!$D$12:$D$1048576,0)) ->  | AA156: =(SUMIF($P$201:$P$215,$L156,AA$201:AA$215)+SUMIF($P$201:$P$215,$M156,AA$201:AA$215))*INDEX('Standard Inputs - SB 6362'!O$12:O$1048576,MATCH($N156,'Standard Inputs - SB 6362'!$D$12:$D$1048576,0)) ->  | AB156: =(SUMIF($P$201:$P$215,$L156,AB$201:AB$215)+SUMIF($P$201:$P$215,$M156,AB$201:AB$215))*INDEX('Standard Inputs - SB 6362'!P$12:P$1048576,MATCH($N156,'Standard Inputs - SB 6362'!$D$12:$D$1048576,0)) -> 
M157: CLS Salaries | N157: CLS Benefits | O157: Classified Payroll Tax and Benefits | P157: Classified Insurance and Benefits | R157: =SUMIF($P$201:$P$215,$M157,R$201:R$215)*INDEX('Standard Inputs - SB 6362'!F$12:F$1048576,MATCH($N157,'Standard Inputs - SB 6362'!$D$12:$D$1048576,0)) -> 0 | S157: =SUMIF($P$201:$P$215,$M157,S$201:S$215)*INDEX('Standard Inputs - SB 6362'!G$12:G$1048576,MATCH($N157,'Standard Inputs - SB 6362'!$D$12:$D$1048576,0)) -> 0 | T157: =SUMIF($P$201:$P$215,$M157,T$201:T$215)*INDEX('Standard Inputs - SB 6362'!H$12:H$1048576,MATCH($N157,'Standard Inputs - SB 6362'!$D$12:$D$1048576,0)) ->  | U157: =SUMIF($P$201:$P$215,$M157,U$201:U$215)*INDEX('Standard Inputs - SB 6362'!I$12:I$1048576,MATCH($N157,'Standard Inputs - SB 6362'!$D$12:$D$1048576,0)) -> 0 | V157: =SUMIF($P$201:$P$215,$M157,V$201:V$215)*INDEX('Standard Inputs - SB 6362'!J$12:J$1048576,MATCH($N157,'Standard Inputs - SB 6362'!$D$12:$D$1048576,0)) -> 0 | W157: =SUMIF($P$201:$P$215,$M157,W$201:W$215)*INDEX('Standard Inputs - SB 6362'!K$12:K$1048576,MATCH($N157,'Standard Inputs - SB 6362'!$D$12:$D$1048576,0)) -> 28035.06057 | X157: =SUMIF($P$201:$P$215,$M157,X$201:X$215)*INDEX('Standard Inputs - SB 6362'!L$12:L$1048576,MATCH($N157,'Standard Inputs - SB 6362'!$D$12:$D$1048576,0)) -> 29787.10487 | Y157: =SUMIF($P$201:$P$215,$M157,Y$201:Y$215)*INDEX('Standard Inputs - SB 6362'!M$12:M$1048576,MATCH($N157,'Standard Inputs - SB 6362'!$D$12:$D$1048576,0)) ->  | Z157: =SUMIF($P$201:$P$215,$M157,Z$201:Z$215)*INDEX('Standard Inputs - SB 6362'!N$12:N$1048576,MATCH($N157,'Standard Inputs - SB 6362'!$D$12:$D$1048576,0)) ->  | AA157: =SUMIF($P$201:$P$215,$M157,AA$201:AA$215)*INDEX('Standard Inputs - SB 6362'!O$12:O$1048576,MATCH($N157,'Standard Inputs - SB 6362'!$D$12:$D$1048576,0)) ->  | AB157: =SUMIF($P$201:$P$215,$M157,AB$201:AB$215)*INDEX('Standard Inputs - SB 6362'!P$12:P$1048576,MATCH($N157,'Standard Inputs - SB 6362'!$D$12:$D$1048576,0)) -> 
M158: LAP Salaries | N158: CIS/CAS Benefits | O158: LAP Payroll tax and Benefits | P158: LAP Insurance and Benefits | R158: =SUMIF($P$201:$P$215,$M158,R$201:R$215)*INDEX('Standard Inputs - SB 6362'!F$12:F$1048576,MATCH($N158,'Standard Inputs - SB 6362'!$D$12:$D$1048576,0)) -> 0 | S158: =SUMIF($P$201:$P$215,$M158,S$201:S$215)*INDEX('Standard Inputs - SB 6362'!G$12:G$1048576,MATCH($N158,'Standard Inputs - SB 6362'!$D$12:$D$1048576,0)) -> 0 | T158: =SUMIF($P$201:$P$215,$M158,T$201:T$215)*INDEX('Standard Inputs - SB 6362'!H$12:H$1048576,MATCH($N158,'Standard Inputs - SB 6362'!$D$12:$D$1048576,0)) -> 0 | U158: =SUMIF($P$201:$P$215,$M158,U$201:U$215)*INDEX('Standard Inputs - SB 6362'!I$12:I$1048576,MATCH($N158,'Standard Inputs - SB 6362'!$D$12:$D$1048576,0)) -> 0 | V158: =SUMIF($P$201:$P$215,$M158,V$201:V$215)*INDEX('Standard Inputs - SB 6362'!J$12:J$1048576,MATCH($N158,'Standard Inputs - SB 6362'!$D$12:$D$1048576,0)) -> 0 | W158: =SUMIF($P$201:$P$215,$M158,W$201:W$215)*INDEX('Standard Inputs - SB 6362'!K$12:K$1048576,MATCH($N158,'Standard Inputs - SB 6362'!$D$12:$D$1048576,0)) -> 2302.576211 | X158: =SUMIF($P$201:$P$215,$M158,X$201:X$215)*INDEX('Standard Inputs - SB 6362'!L$12:L$1048576,MATCH($N158,'Standard Inputs - SB 6362'!$D$12:$D$1048576,0)) -> 1808.985021 | Y158: =SUMIF($P$201:$P$215,$M158,Y$201:Y$215)*INDEX('Standard Inputs - SB 6362'!M$12:M$1048576,MATCH($N158,'Standard Inputs - SB 6362'!$D$12:$D$1048576,0)) -> 4592.319173 | Z158: =SUMIF($P$201:$P$215,$M158,Z$201:Z$215)*INDEX('Standard Inputs - SB 6362'!N$12:N$1048576,MATCH($N158,'Standard Inputs - SB 6362'!$D$12:$D$1048576,0)) ->  | AA158: =SUMIF($P$201:$P$215,$M158,AA$201:AA$215)*INDEX('Standard Inputs - SB 6362'!O$12:O$1048576,MATCH($N158,'Standard Inputs - SB 6362'!$D$12:$D$1048576,0)) ->  | AB158: =SUMIF($P$201:$P$215,$M158,AB$201:AB$215)*INDEX('Standard Inputs - SB 6362'!P$12:P$1048576,MATCH($N158,'Standard Inputs - SB 6362'!$D$12:$D$1048576,0)) -> 
M159: TBIP Salaries | N159: CIS/CAS Benefits | O159: TBIP Payroll tax and Benefits | P159: TBIP Insurance and Benefits | R159: =SUMIF($P$201:$P$215,$M159,R$201:R$215)*INDEX('Standard Inputs - SB 6362'!F$12:F$1048576,MATCH($N159,'Standard Inputs - SB 6362'!$D$12:$D$1048576,0)) -> 0 | S159: =SUMIF($P$201:$P$215,$M159,S$201:S$215)*INDEX('Standard Inputs - SB 6362'!G$12:G$1048576,MATCH($N159,'Standard Inputs - SB 6362'!$D$12:$D$1048576,0)) -> 0 | T159: =SUMIF($P$201:$P$215,$M159,T$201:T$215)*INDEX('Standard Inputs - SB 6362'!H$12:H$1048576,MATCH($N159,'Standard Inputs - SB 6362'!$D$12:$D$1048576,0)) -> 0 | U159: =SUMIF($P$201:$P$215,$M159,U$201:U$215)*INDEX('Standard Inputs - SB 6362'!I$12:I$1048576,MATCH($N159,'Standard Inputs - SB 6362'!$D$12:$D$1048576,0)) -> 0 | V159: =SUMIF($P$201:$P$215,$M159,V$201:V$215)*INDEX('Standard Inputs - SB 6362'!J$12:J$1048576,MATCH($N159,'Standard Inputs - SB 6362'!$D$12:$D$1048576,0)) -> 0 | W159: =SUMIF($P$201:$P$215,$M159,W$201:W$215)*INDEX('Standard Inputs - SB 6362'!K$12:K$1048576,MATCH($N159,'Standard Inputs - SB 6362'!$D$12:$D$1048576,0)) -> 0 | X159: =SUMIF($P$201:$P$215,$M159,X$201:X$215)*INDEX('Standard Inputs - SB 6362'!L$12:L$1048576,MATCH($N159,'Standard Inputs - SB 6362'!$D$12:$D$1048576,0)) -> 147.6569446 | Y159: =SUMIF($P$201:$P$215,$M159,Y$201:Y$215)*INDEX('Standard Inputs - SB 6362'!M$12:M$1048576,MATCH($N159,'Standard Inputs - SB 6362'!$D$12:$D$1048576,0)) ->  | Z159: =SUMIF($P$201:$P$215,$M159,Z$201:Z$215)*INDEX('Standard Inputs - SB 6362'!N$12:N$1048576,MATCH($N159,'Standard Inputs - SB 6362'!$D$12:$D$1048576,0)) ->  | AA159: =SUMIF($P$201:$P$215,$M159,AA$201:AA$215)*INDEX('Standard Inputs - SB 6362'!O$12:O$1048576,MATCH($N159,'Standard Inputs - SB 6362'!$D$12:$D$1048576,0)) ->  | AB159: =SUMIF($P$201:$P$215,$M159,AB$201:AB$215)*INDEX('Standard Inputs - SB 6362'!P$12:P$1048576,MATCH($N159,'Standard Inputs - SB 6362'!$D$12:$D$1048576,0)) -> 
M160: HiCap Salaries | N160: CIS/CAS Benefits | O160: HiCap Payroll tax and Benefits | P160: HiCap Insurance and Benefits | R160: =SUMIF($P$201:$P$215,$M160,R$201:R$215)*INDEX('Standard Inputs - SB 6362'!F$12:F$1048576,MATCH($N160,'Standard Inputs - SB 6362'!$D$12:$D$1048576,0)) -> 0 | S160: =SUMIF($P$201:$P$215,$M160,S$201:S$215)*INDEX('Standard Inputs - SB 6362'!G$12:G$1048576,MATCH($N160,'Standard Inputs - SB 6362'!$D$12:$D$1048576,0)) -> 0 | T160: =SUMIF($P$201:$P$215,$M160,T$201:T$215)*INDEX('Standard Inputs - SB 6362'!H$12:H$1048576,MATCH($N160,'Standard Inputs - SB 6362'!$D$12:$D$1048576,0)) -> 0 | U160: =SUMIF($P$201:$P$215,$M160,U$201:U$215)*INDEX('Standard Inputs - SB 6362'!I$12:I$1048576,MATCH($N160,'Standard Inputs - SB 6362'!$D$12:$D$1048576,0)) -> 0 | V160: =SUMIF($P$201:$P$215,$M160,V$201:V$215)*INDEX('Standard Inputs - SB 6362'!J$12:J$1048576,MATCH($N160,'Standard Inputs - SB 6362'!$D$12:$D$1048576,0)) -> 0 | W160: =SUMIF($P$201:$P$215,$M160,W$201:W$215)*INDEX('Standard Inputs - SB 6362'!K$12:K$1048576,MATCH($N160,'Standard Inputs - SB 6362'!$D$12:$D$1048576,0)) -> 456.0303879 | X160: =SUMIF($P$201:$P$215,$M160,X$201:X$215)*INDEX('Standard Inputs - SB 6362'!L$12:L$1048576,MATCH($N160,'Standard Inputs - SB 6362'!$D$12:$D$1048576,0)) -> 400.2973626 | Y160: =SUMIF($P$201:$P$215,$M160,Y$201:Y$215)*INDEX('Standard Inputs - SB 6362'!M$12:M$1048576,MATCH($N160,'Standard Inputs - SB 6362'!$D$12:$D$1048576,0)) ->  | Z160: =SUMIF($P$201:$P$215,$M160,Z$201:Z$215)*INDEX('Standard Inputs - SB 6362'!N$12:N$1048576,MATCH($N160,'Standard Inputs - SB 6362'!$D$12:$D$1048576,0)) ->  | AA160: =SUMIF($P$201:$P$215,$M160,AA$201:AA$215)*INDEX('Standard Inputs - SB 6362'!O$12:O$1048576,MATCH($N160,'Standard Inputs - SB 6362'!$D$12:$D$1048576,0)) ->  | AB160: =SUMIF($P$201:$P$215,$M160,AB$201:AB$215)*INDEX('Standard Inputs - SB 6362'!P$12:P$1048576,MATCH($N160,'Standard Inputs - SB 6362'!$D$12:$D$1048576,0)) -> 
M161: LAP High Pov Salaries | N161: CIS/CAS Benefits | O161: LAP High Poverty Payroll tax and Benefits | P161: LAP Insurance and Benefits | R161: =SUMIF($P$201:$P$215,$M161,R$201:R$215)*INDEX('Standard Inputs - SB 6362'!F$12:F$1048576,MATCH($N161,'Standard Inputs - SB 6362'!$D$12:$D$1048576,0)) -> 0 | S161: =SUMIF($P$201:$P$215,$M161,S$201:S$215)*INDEX('Standard Inputs - SB 6362'!G$12:G$1048576,MATCH($N161,'Standard Inputs - SB 6362'!$D$12:$D$1048576,0)) -> 0 | T161: =SUMIF($P$201:$P$215,$M161,T$201:T$215)*INDEX('Standard Inputs - SB 6362'!H$12:H$1048576,MATCH($N161,'Standard Inputs - SB 6362'!$D$12:$D$1048576,0)) -> 0 | U161: =SUMIF($P$201:$P$215,$M161,U$201:U$215)*INDEX('Standard Inputs - SB 6362'!I$12:I$1048576,MATCH($N161,'Standard Inputs - SB 6362'!$D$12:$D$1048576,0)) -> 0 | V161: =SUMIF($P$201:$P$215,$M161,V$201:V$215)*INDEX('Standard Inputs - SB 6362'!J$12:J$1048576,MATCH($N161,'Standard Inputs - SB 6362'!$D$12:$D$1048576,0)) -> 0 | W161: =SUMIF($P$201:$P$215,$M161,W$201:W$215)*INDEX('Standard Inputs - SB 6362'!K$12:K$1048576,MATCH($N161,'Standard Inputs - SB 6362'!$D$12:$D$1048576,0)) -> 0 | X161: =SUMIF($P$201:$P$215,$M161,X$201:X$215)*INDEX('Standard Inputs - SB 6362'!L$12:L$1048576,MATCH($N161,'Standard Inputs - SB 6362'!$D$12:$D$1048576,0)) -> 0 | Y161: =SUMIF($P$201:$P$215,$M161,Y$201:Y$215)*INDEX('Standard Inputs - SB 6362'!M$12:M$1048576,MATCH($N161,'Standard Inputs - SB 6362'!$D$12:$D$1048576,0)) -> 0 | Z161: =SUMIF($P$201:$P$215,$M161,Z$201:Z$215)*INDEX('Standard Inputs - SB 6362'!N$12:N$1048576,MATCH($N161,'Standard Inputs - SB 6362'!$D$12:$D$1048576,0)) ->  | AA161: =SUMIF($P$201:$P$215,$M161,AA$201:AA$215)*INDEX('Standard Inputs - SB 6362'!O$12:O$1048576,MATCH($N161,'Standard Inputs - SB 6362'!$D$12:$D$1048576,0)) ->  | AB161: =SUMIF($P$201:$P$215,$M161,AB$201:AB$215)*INDEX('Standard Inputs - SB 6362'!P$12:P$1048576,MATCH($N161,'Standard Inputs - SB 6362'!$D$12:$D$1048576,0)) -> 
L162: CIS SpEd Salary | M162: CAS SpEd Salary | N162: CIS/CAS Benefits | O162: Certificated Payroll tax and Benefits SpEd | P162: SpEd Insurance and Benefits | R162: =(SUMIF($P$201:$P$215,$L162,R$201:R$215)+SUMIF($P$201:$P$215,$M162,R$201:R$215))*INDEX('Standard Inputs - SB 6362'!F$12:F$1048576,MATCH($N162,'Standard Inputs - SB 6362'!$D$12:$D$1048576,0)) -> 0 | S162: =(SUMIF($P$201:$P$215,$L162,S$201:S$215)+SUMIF($P$201:$P$215,$M162,S$201:S$215))*INDEX('Standard Inputs - SB 6362'!G$12:G$1048576,MATCH($N162,'Standard Inputs - SB 6362'!$D$12:$D$1048576,0)) -> 0 | T162: =(SUMIF($P$201:$P$215,$L162,T$201:T$215)+SUMIF($P$201:$P$215,$M162,T$201:T$215))*INDEX('Standard Inputs - SB 6362'!H$12:H$1048576,MATCH($N162,'Standard Inputs - SB 6362'!$D$12:$D$1048576,0)) -> 0 | U162: =(SUMIF($P$201:$P$215,$L162,U$201:U$215)+SUMIF($P$201:$P$215,$M162,U$201:U$215))*INDEX('Standard Inputs - SB 6362'!I$12:I$1048576,MATCH($N162,'Standard Inputs - SB 6362'!$D$12:$D$1048576,0)) -> 0 | V162: =(SUMIF($P$201:$P$215,$L162,V$201:V$215)+SUMIF($P$201:$P$215,$M162,V$201:V$215))*INDEX('Standard Inputs - SB 6362'!J$12:J$1048576,MATCH($N162,'Standard Inputs - SB 6362'!$D$12:$D$1048576,0)) -> 0 | W162: =(SUMIF($P$201:$P$215,$L162,W$201:W$215)+SUMIF($P$201:$P$215,$M162,W$201:W$215))*INDEX('Standard Inputs - SB 6362'!K$12:K$1048576,MATCH($N162,'Standard Inputs - SB 6362'!$D$12:$D$1048576,0)) -> 1131.595432 | X162: =(SUMIF($P$201:$P$215,$L162,X$201:X$215)+SUMIF($P$201:$P$215,$M162,X$201:X$215))*INDEX('Standard Inputs - SB 6362'!L$12:L$1048576,MATCH($N162,'Standard Inputs - SB 6362'!$D$12:$D$1048576,0)) -> 957.9846627 | Y162: =(SUMIF($P$201:$P$215,$L162,Y$201:Y$215)+SUMIF($P$201:$P$215,$M162,Y$201:Y$215))*INDEX('Standard Inputs - SB 6362'!M$12:M$1048576,MATCH($N162,'Standard Inputs - SB 6362'!$D$12:$D$1048576,0)) -> 0 | Z162: =(SUMIF($P$201:$P$215,$L162,Z$201:Z$215)+SUMIF($P$201:$P$215,$M162,Z$201:Z$215))*INDEX('Standard Inputs - SB 6362'!N$12:N$1048576,MATCH($N162,'Standard Inputs - SB 6362'!$D$12:$D$1048576,0)) -> 0 | AA162: =(SUMIF($P$201:$P$215,$L162,AA$201:AA$215)+SUMIF($P$201:$P$215,$M162,AA$201:AA$215))*INDEX('Standard Inputs - SB 6362'!O$12:O$1048576,MATCH($N162,'Standard Inputs - SB 6362'!$D$12:$D$1048576,0)) ->  | AB162: =(SUMIF($P$201:$P$215,$L162,AB$201:AB$215)+SUMIF($P$201:$P$215,$M162,AB$201:AB$215))*INDEX('Standard Inputs - SB 6362'!P$12:P$1048576,MATCH($N162,'Standard Inputs - SB 6362'!$D$12:$D$1048576,0)) -> 0
M163: CLS SpEd Salary | N163: CLS Benefits | O163: Classified Payroll tax and Benefits SpEd | P163: SpEd Insurance and Benefits | R163: =(SUMIF($P$201:$P$215,$M163,R$201:R$215))*INDEX('Standard Inputs - SB 6362'!F$12:F$1048576,MATCH($N163,'Standard Inputs - SB 6362'!$D$12:$D$1048576,0)) -> 0 | S163: =(SUMIF($P$201:$P$215,$M163,S$201:S$215))*INDEX('Standard Inputs - SB 6362'!G$12:G$1048576,MATCH($N163,'Standard Inputs - SB 6362'!$D$12:$D$1048576,0)) -> 0 | T163: =(SUMIF($P$201:$P$215,$M163,T$201:T$215))*INDEX('Standard Inputs - SB 6362'!H$12:H$1048576,MATCH($N163,'Standard Inputs - SB 6362'!$D$12:$D$1048576,0)) -> 0 | U163: =(SUMIF($P$201:$P$215,$M163,U$201:U$215))*INDEX('Standard Inputs - SB 6362'!I$12:I$1048576,MATCH($N163,'Standard Inputs - SB 6362'!$D$12:$D$1048576,0)) -> 0 | V163: =(SUMIF($P$201:$P$215,$M163,V$201:V$215))*INDEX('Standard Inputs - SB 6362'!J$12:J$1048576,MATCH($N163,'Standard Inputs - SB 6362'!$D$12:$D$1048576,0)) -> 0 | W163: =(SUMIF($P$201:$P$215,$M163,W$201:W$215))*INDEX('Standard Inputs - SB 6362'!K$12:K$1048576,MATCH($N163,'Standard Inputs - SB 6362'!$D$12:$D$1048576,0)) -> 203.8178829 | X163: =(SUMIF($P$201:$P$215,$M163,X$201:X$215))*INDEX('Standard Inputs - SB 6362'!L$12:L$1048576,MATCH($N163,'Standard Inputs - SB 6362'!$D$12:$D$1048576,0)) -> 207.4546167 | Y163: =(SUMIF($P$201:$P$215,$M163,Y$201:Y$215))*INDEX('Standard Inputs - SB 6362'!M$12:M$1048576,MATCH($N163,'Standard Inputs - SB 6362'!$D$12:$D$1048576,0)) -> 0 | Z163: =(SUMIF($P$201:$P$215,$M163,Z$201:Z$215))*INDEX('Standard Inputs - SB 6362'!N$12:N$1048576,MATCH($N163,'Standard Inputs - SB 6362'!$D$12:$D$1048576,0)) -> 0 | AA163: =(SUMIF($P$201:$P$215,$M163,AA$201:AA$215))*INDEX('Standard Inputs - SB 6362'!O$12:O$1048576,MATCH($N163,'Standard Inputs - SB 6362'!$D$12:$D$1048576,0)) -> 0 | AB163: =(SUMIF($P$201:$P$215,$M163,AB$201:AB$215))*INDEX('Standard Inputs - SB 6362'!P$12:P$1048576,MATCH($N163,'Standard Inputs - SB 6362'!$D$12:$D$1048576,0)) -> 0
O165: INSURANCE CALCULATIONS | R165: SY 2017-18 | S165: SY 2018-19 | T165: SY 2019-20 | U165: SY 2020-21 | V165: SY 2021-22 | W165: SY 2022-23 | X165: SY 2023-24 | Y165: SY 2024-25 | Z165: SY 2025-26 | AA165: SY 2026-27 | AB165: SY 2027-28
H166: SS RN CIS | I166: SS RN CAS | J166: School CIS Staff Units | K166: School CAS Staff Units | L166: Central Admin CAS Staff Units | M166: SEBB Health Insurance | N166: CIS/ CAS SEBB Multiplier | O166: Certificated SEBB | P166: Certificated SEBB | T166: =(SUMIF($P$218:$P$326,$H166,T$218:T$326)+SUMIF($P$218:$P$326,$I166,T$218:T$326)+SUMIF($P$218:$P$326,$J166,T$218:T$326)+SUMIF($P$218:$P$326,$K166,T$218:T$326)+SUMIF($P$218:$P$326,$L166,T$218:T$326))*INDEX('Standard Inputs - SB 6362'!H$12:H$1048576,MATCH('Single School Forecast'!$N166,'Standard Inputs - SB 6362'!$D$12:$D$1048576,0))*INDEX('Standard Inputs - SB 6362'!H$12:H$1048576,MATCH('Single School Forecast'!$M166,'Standard Inputs - SB 6362'!$D$12:$D$1048576,0)) ->  | U166: =(SUMIF($P$218:$P$326,$H166,U$218:U$326)+SUMIF($P$218:$P$326,$I166,U$218:U$326)+SUMIF($P$218:$P$326,$J166,U$218:U$326)+SUMIF($P$218:$P$326,$K166,U$218:U$326)+SUMIF($P$218:$P$326,$L166,U$218:U$326))*INDEX('Standard Inputs - SB 6362'!I$12:I$1048576,MATCH('Single School Forecast'!$N166,'Standard Inputs - SB 6362'!$D$12:$D$1048576,0))*INDEX('Standard Inputs - SB 6362'!I$12:I$1048576,MATCH('Single School Forecast'!$M166,'Standard Inputs - SB 6362'!$D$12:$D$1048576,0)) -> 0 | V166: =(SUMIF($P$218:$P$326,$H166,V$218:V$326)+SUMIF($P$218:$P$326,$I166,V$218:V$326)+SUMIF($P$218:$P$326,$J166,V$218:V$326)+SUMIF($P$218:$P$326,$K166,V$218:V$326)+SUMIF($P$218:$P$326,$L166,V$218:V$326))*INDEX('Standard Inputs - SB 6362'!J$12:J$1048576,MATCH('Single School Forecast'!$N166,'Standard Inputs - SB 6362'!$D$12:$D$1048576,0))*INDEX('Standard Inputs - SB 6362'!J$12:J$1048576,MATCH('Single School Forecast'!$M166,'Standard Inputs - SB 6362'!$D$12:$D$1048576,0)) -> 123396.2725 | W166: =(SUMIF($P$218:$P$326,$H166,W$218:W$326)+SUMIF($P$218:$P$326,$I166,W$218:W$326)+SUMIF($P$218:$P$326,$J166,W$218:W$326)+SUMIF($P$218:$P$326,$K166,W$218:W$326)+SUMIF($P$218:$P$326,$L166,W$218:W$326))*INDEX('Standard Inputs - SB 6362'!K$12:K$1048576,MATCH('Single School Forecast'!$N166,'Standard Inputs - SB 6362'!$D$12:$D$1048576,0))*INDEX('Standard Inputs - SB 6362'!K$12:K$1048576,MATCH('Single School Forecast'!$M166,'Standard Inputs - SB 6362'!$D$12:$D$1048576,0)) -> 94862.65913 | X166: =(SUMIF($P$218:$P$326,$H166,X$218:X$326)+SUMIF($P$218:$P$326,$I166,X$218:X$326)+SUMIF($P$218:$P$326,$J166,X$218:X$326)+SUMIF($P$218:$P$326,$K166,X$218:X$326)+SUMIF($P$218:$P$326,$L166,X$218:X$326))*INDEX('Standard Inputs - SB 6362'!L$12:L$1048576,MATCH('Single School Forecast'!$N166,'Standard Inputs - SB 6362'!$D$12:$D$1048576,0))*INDEX('Standard Inputs - SB 6362'!L$12:L$1048576,MATCH('Single School Forecast'!$M166,'Standard Inputs - SB 6362'!$D$12:$D$1048576,0)) -> 108776.316 | Y166: =(SUMIF($P$218:$P$326,$H166,Y$218:Y$326)+SUMIF($P$218:$P$326,$I166,Y$218:Y$326)+SUMIF($P$218:$P$326,$J166,Y$218:Y$326)+SUMIF($P$218:$P$326,$K166,Y$218:Y$326)+SUMIF($P$218:$P$326,$L166,Y$218:Y$326))*INDEX('Standard Inputs - SB 6362'!M$12:M$1048576,MATCH('Single School Forecast'!$N166,'Standard Inputs - SB 6362'!$D$12:$D$1048576,0))*INDEX('Standard Inputs - SB 6362'!M$12:M$1048576,MATCH('Single School Forecast'!$M166,'Standard Inputs - SB 6362'!$D$12:$D$1048576,0)) ->  | Z166: =(SUMIF($P$218:$P$326,$H166,Z$218:Z$326)+SUMIF($P$218:$P$326,$I166,Z$218:Z$326)+SUMIF($P$218:$P$326,$J166,Z$218:Z$326)+SUMIF($P$218:$P$326,$K166,Z$218:Z$326)+SUMIF($P$218:$P$326,$L166,Z$218:Z$326))*INDEX('Standard Inputs - SB 6362'!N$12:N$1048576,MATCH('Single School Forecast'!$N166,'Standard Inputs - SB 6362'!$D$12:$D$1048576,0))*INDEX('Standard Inputs - SB 6362'!N$12:N$1048576,MATCH('Single School Forecast'!$M166,'Standard Inputs - SB 6362'!$D$12:$D$1048576,0)) ->  | AA166: =(SUMIF($P$218:$P$326,$H166,AA$218:AA$326)+SUMIF($P$218:$P$326,$I166,AA$218:AA$326)+SUMIF($P$218:$P$326,$J166,AA$218:AA$326)+SUMIF($P$218:$P$326,$K166,AA$218:AA$326)+SUMIF($P$218:$P$326,$L166,AA$218:AA$326))*INDEX('Standard Inputs - SB 6362'!O$12:O$1048576,MATCH('Single School Forecast'!$N166,'Standard Inputs - SB 6362'!$D$12:$D$1048576,0))*INDEX('Standard Inputs - SB 6362'!O$12:O$1048576,MATCH('Single School Forecast'!$M166,'Standard Inputs - SB 6362'!$D$12:$D$1048576,0)) ->  | AB166: =(SUMIF($P$218:$P$326,$H166,AB$218:AB$326)+SUMIF($P$218:$P$326,$I166,AB$218:AB$326)+SUMIF($P$218:$P$326,$J166,AB$218:AB$326)+SUMIF($P$218:$P$326,$K166,AB$218:AB$326)+SUMIF($P$218:$P$326,$L166,AB$218:AB$326))*INDEX('Standard Inputs - SB 6362'!P$12:P$1048576,MATCH('Single School Forecast'!$N166,'Standard Inputs - SB 6362'!$D$12:$D$1048576,0))*INDEX('Standard Inputs - SB 6362'!P$12:P$1048576,MATCH('Single School Forecast'!$M166,'Standard Inputs - SB 6362'!$D$12:$D$1048576,0)) -> 
I167: SS RN CIS | J167: SS RN CAS | K167: School CIS Staff Units | L167: School CAS Staff Units | M167: Central Admin CAS Staff Units | N167: Health Insurance | O167: Certificated Insurance | P167: Certificated Insurance and Benefits | R167: =(SUMIF($P$218:$P$326,$I167,R$218:R$326)+SUMIF($P$218:$P$326,$J167,R$218:R$326)+SUMIF($P$218:$P$326,$K167,R$218:R$326)+SUMIF($P$218:$P$326,$L167,R$218:R$326)+SUMIF($P$218:$P$326,$M167,R$218:R$326))*INDEX('Standard Inputs - SB 6362'!F$12:F$1048576,MATCH('Single School Forecast'!$N167,'Standard Inputs - SB 6362'!$D$12:$D$1048576,0)) -> 0 | S167: =(SUMIF($P$218:$P$326,$I167,S$218:S$326)+SUMIF($P$218:$P$326,$J167,S$218:S$326)+SUMIF($P$218:$P$326,$K167,S$218:S$326)+SUMIF($P$218:$P$326,$L167,S$218:S$326)+SUMIF($P$218:$P$326,$M167,S$218:S$326))*INDEX('Standard Inputs - SB 6362'!G$12:G$1048576,MATCH('Single School Forecast'!$N167,'Standard Inputs - SB 6362'!$D$12:$D$1048576,0)) -> 0 | T167: =(SUMIF($P$218:$P$326,$I167,T$218:T$326)+SUMIF($P$218:$P$326,$J167,T$218:T$326)+SUMIF($P$218:$P$326,$K167,T$218:T$326)+SUMIF($P$218:$P$326,$L167,T$218:T$326)+SUMIF($P$218:$P$326,$M167,T$218:T$326))*INDEX('Standard Inputs - SB 6362'!H$12:H$1048576,MATCH('Single School Forecast'!$N167,'Standard Inputs - SB 6362'!$D$12:$D$1048576,0)) ->  | U167: =(SUMIF($P$218:$P$326,$I167,U$218:U$326)+SUMIF($P$218:$P$326,$J167,U$218:U$326)+SUMIF($P$218:$P$326,$K167,U$218:U$326)+SUMIF($P$218:$P$326,$L167,U$218:U$326)+SUMIF($P$218:$P$326,$M167,U$218:U$326)+U289+U290+U291+U292)*INDEX('Standard Inputs - SB 6362'!I$12:I$1048576,MATCH('Single School Forecast'!$N167,'Standard Inputs - SB 6362'!$D$12:$D$1048576,0)) -> 0 | V167: =(SUMIF($P$218:$P$326,$I167,V$218:V$326)+SUMIF($P$218:$P$326,$J167,V$218:V$326)+SUMIF($P$218:$P$326,$K167,V$218:V$326)+SUMIF($P$218:$P$326,$L167,V$218:V$326)+SUMIF($P$218:$P$326,$M167,V$218:V$326)+V289+V290+V291+V292)*INDEX('Standard Inputs - SB 6362'!J$12:J$1048576,MATCH('Single School Forecast'!$N167,'Standard Inputs - SB 6362'!$D$12:$D$1048576,0)) -> 0 | W167: =(SUMIF($P$218:$P$326,$I167,W$218:W$326)+SUMIF($P$218:$P$326,$J167,W$218:W$326)+SUMIF($P$218:$P$326,$K167,W$218:W$326)+SUMIF($P$218:$P$326,$L167,W$218:W$326)+SUMIF($P$218:$P$326,$M167,W$218:W$326)+W289+W290+W291+W292)*INDEX('Standard Inputs - SB 6362'!K$12:K$1048576,MATCH('Single School Forecast'!$N167,'Standard Inputs - SB 6362'!$D$12:$D$1048576,0)) -> 0 | X167: =(SUMIF($P$218:$P$326,$I167,X$218:X$326)+SUMIF($P$218:$P$326,$J167,X$218:X$326)+SUMIF($P$218:$P$326,$K167,X$218:X$326)+SUMIF($P$218:$P$326,$L167,X$218:X$326)+SUMIF($P$218:$P$326,$M167,X$218:X$326)+X289+X290+X291+X292)*INDEX('Standard Inputs - SB 6362'!L$12:L$1048576,MATCH('Single School Forecast'!$N167,'Standard Inputs - SB 6362'!$D$12:$D$1048576,0)) -> 0 | Y167: =(SUMIF($P$218:$P$326,$I167,Y$218:Y$326)+SUMIF($P$218:$P$326,$J167,Y$218:Y$326)+SUMIF($P$218:$P$326,$K167,Y$218:Y$326)+SUMIF($P$218:$P$326,$L167,Y$218:Y$326)+SUMIF($P$218:$P$326,$M167,Y$218:Y$326)+Y289+Y290+Y291+Y292)*INDEX('Standard Inputs - SB 6362'!M$12:M$1048576,MATCH('Single School Forecast'!$N167,'Standard Inputs - SB 6362'!$D$12:$D$1048576,0)) ->  | Z167: =(SUMIF($P$218:$P$326,$I167,Z$218:Z$326)+SUMIF($P$218:$P$326,$J167,Z$218:Z$326)+SUMIF($P$218:$P$326,$K167,Z$218:Z$326)+SUMIF($P$218:$P$326,$L167,Z$218:Z$326)+SUMIF($P$218:$P$326,$M167,Z$218:Z$326)+Z289+Z290+Z291+Z292)*INDEX('Standard Inputs - SB 6362'!N$12:N$1048576,MATCH('Single School Forecast'!$N167,'Standard Inputs - SB 6362'!$D$12:$D$1048576,0)) ->  | AA167: =(SUMIF($P$218:$P$326,$I167,AA$218:AA$326)+SUMIF($P$218:$P$326,$J167,AA$218:AA$326)+SUMIF($P$218:$P$326,$K167,AA$218:AA$326)+SUMIF($P$218:$P$326,$L167,AA$218:AA$326)+SUMIF($P$218:$P$326,$M167,AA$218:AA$326)+AA289+AA290+AA291+AA292)*INDEX('Standard Inputs - SB 6362'!O$12:O$1048576,MATCH('Single School Forecast'!$N167,'Standard Inputs - SB 6362'!$D$12:$D$1048576,0)) ->  | AB167: =(SUMIF($P$218:$P$326,$I167,AB$218:AB$326)+SUMIF($P$218:$P$326,$J167,AB$218:AB$326)+SUMIF($P$218:$P$326,$K167,AB$218:AB$326)+SUMIF($P$218:$P$326,$L167,AB$218:AB$326)+SUMIF($P$218:$P$326,$M167,AB$218:AB$326)+AB289+AB290+AB291+AB292)*INDEX('Standard Inputs - SB 6362'!P$12:P$1048576,MATCH('Single School Forecast'!$N167,'Standard Inputs - SB 6362'!$D$12:$D$1048576,0)) -> 
I168: SS RN CLS | J168: School CLS Staff Units | K168: District CLS Staff Units | L168: Central Admin CLS Staff Units | M168: SEBB Health Insurance | N168: CLS SEBB Multiplier | O168: Classified SEBB | P168: Classified SEBB | T168: =(SUMIF($P$218:$P$326,$I168,T$218:T$326)+SUMIF($P$218:$P$326,$J168,T$218:T$326)+SUMIF($P$218:$P$326,$K168,T$218:T$326)+SUMIF($P$218:$P$326,$L168,T$218:T$326))*INDEX('Standard Inputs - SB 6362'!H$12:H$1048576,MATCH('Single School Forecast'!$N168,'Standard Inputs - SB 6362'!$D$12:$D$1048576,0))*INDEX('Standard Inputs - SB 6362'!H$12:H$1048576,MATCH('Single School Forecast'!$M168,'Standard Inputs - SB 6362'!$D$12:$D$1048576,0)) ->  | U168: =(SUMIF($P$218:$P$326,$I168,U$218:U$326)+SUMIF($P$218:$P$326,$J168,U$218:U$326)+SUMIF($P$218:$P$326,$K168,U$218:U$326)+SUMIF($P$218:$P$326,$L168,U$218:U$326))*INDEX('Standard Inputs - SB 6362'!I$12:I$1048576,MATCH('Single School Forecast'!$N168,'Standard Inputs - SB 6362'!$D$12:$D$1048576,0))*INDEX('Standard Inputs - SB 6362'!I$12:I$1048576,MATCH('Single School Forecast'!$M168,'Standard Inputs - SB 6362'!$D$12:$D$1048576,0)) -> 0 | V168: =(SUMIF($P$218:$P$326,$I168,V$218:V$326)+SUMIF($P$218:$P$326,$J168,V$218:V$326)+SUMIF($P$218:$P$326,$K168,V$218:V$326)+SUMIF($P$218:$P$326,$L168,V$218:V$326))*INDEX('Standard Inputs - SB 6362'!J$12:J$1048576,MATCH('Single School Forecast'!$N168,'Standard Inputs - SB 6362'!$D$12:$D$1048576,0))*INDEX('Standard Inputs - SB 6362'!J$12:J$1048576,MATCH('Single School Forecast'!$M168,'Standard Inputs - SB 6362'!$D$12:$D$1048576,0)) -> 57526.33988 | W168: =(SUMIF($P$218:$P$326,$I168,W$218:W$326)+SUMIF($P$218:$P$326,$J168,W$218:W$326)+SUMIF($P$218:$P$326,$K168,W$218:W$326)+SUMIF($P$218:$P$326,$L168,W$218:W$326))*INDEX('Standard Inputs - SB 6362'!K$12:K$1048576,MATCH('Single School Forecast'!$N168,'Standard Inputs - SB 6362'!$D$12:$D$1048576,0))*INDEX('Standard Inputs - SB 6362'!K$12:K$1048576,MATCH('Single School Forecast'!$M168,'Standard Inputs - SB 6362'!$D$12:$D$1048576,0)) -> 43509.0987 | X168: =(SUMIF($P$218:$P$326,$I168,X$218:X$326)+SUMIF($P$218:$P$326,$J168,X$218:X$326)+SUMIF($P$218:$P$326,$K168,X$218:X$326)+SUMIF($P$218:$P$326,$L168,X$218:X$326))*INDEX('Standard Inputs - SB 6362'!L$12:L$1048576,MATCH('Single School Forecast'!$N168,'Standard Inputs - SB 6362'!$D$12:$D$1048576,0))*INDEX('Standard Inputs - SB 6362'!L$12:L$1048576,MATCH('Single School Forecast'!$M168,'Standard Inputs - SB 6362'!$D$12:$D$1048576,0)) -> 48852.51708 | Y168: =(SUMIF($P$218:$P$326,$I168,Y$218:Y$326)+SUMIF($P$218:$P$326,$J168,Y$218:Y$326)+SUMIF($P$218:$P$326,$K168,Y$218:Y$326)+SUMIF($P$218:$P$326,$L168,Y$218:Y$326))*INDEX('Standard Inputs - SB 6362'!M$12:M$1048576,MATCH('Single School Forecast'!$N168,'Standard Inputs - SB 6362'!$D$12:$D$1048576,0))*INDEX('Standard Inputs - SB 6362'!M$12:M$1048576,MATCH('Single School Forecast'!$M168,'Standard Inputs - SB 6362'!$D$12:$D$1048576,0)) ->  | Z168: =(SUMIF($P$218:$P$326,$I168,Z$218:Z$326)+SUMIF($P$218:$P$326,$J168,Z$218:Z$326)+SUMIF($P$218:$P$326,$K168,Z$218:Z$326)+SUMIF($P$218:$P$326,$L168,Z$218:Z$326))*INDEX('Standard Inputs - SB 6362'!N$12:N$1048576,MATCH('Single School Forecast'!$N168,'Standard Inputs - SB 6362'!$D$12:$D$1048576,0))*INDEX('Standard Inputs - SB 6362'!N$12:N$1048576,MATCH('Single School Forecast'!$M168,'Standard Inputs - SB 6362'!$D$12:$D$1048576,0)) ->  | AA168: =(SUMIF($P$218:$P$326,$I168,AA$218:AA$326)+SUMIF($P$218:$P$326,$J168,AA$218:AA$326)+SUMIF($P$218:$P$326,$K168,AA$218:AA$326)+SUMIF($P$218:$P$326,$L168,AA$218:AA$326))*INDEX('Standard Inputs - SB 6362'!O$12:O$1048576,MATCH('Single School Forecast'!$N168,'Standard Inputs - SB 6362'!$D$12:$D$1048576,0))*INDEX('Standard Inputs - SB 6362'!O$12:O$1048576,MATCH('Single School Forecast'!$M168,'Standard Inputs - SB 6362'!$D$12:$D$1048576,0)) ->  | AB168: =(SUMIF($P$218:$P$326,$I168,AB$218:AB$326)+SUMIF($P$218:$P$326,$J168,AB$218:AB$326)+SUMIF($P$218:$P$326,$K168,AB$218:AB$326)+SUMIF($P$218:$P$326,$L168,AB$218:AB$326))*INDEX('Standard Inputs - SB 6362'!P$12:P$1048576,MATCH('Single School Forecast'!$N168,'Standard Inputs - SB 6362'!$D$12:$D$1048576,0))*INDEX('Standard Inputs - SB 6362'!P$12:P$1048576,MATCH('Single School Forecast'!$M168,'Standard Inputs - SB 6362'!$D$12:$D$1048576,0)) -> 
I169: SS RN CLS | J169: School CLS Staff Units | K169: District CLS Staff Units | L169: Central Admin CLS Staff Units | M169: Health Insurance | N169: CLS Health Factor | O169: Classified Insurance | P169: Classified Insurance and Benefits | R169: =(SUMIF($P$218:$P$326,$I169,R$218:R$326)+SUMIF($P$218:$P$326,$J169,R$218:R$326)+SUMIF($P$218:$P$326,$K169,R$218:R$326)+SUMIF($P$218:$P$326,$L169,R$218:R$326))*INDEX('Standard Inputs - SB 6362'!F$12:F$1048576,MATCH('Single School Forecast'!$M169,'Standard Inputs - SB 6362'!$D$12:$D$1048576,0))*INDEX('Standard Inputs - SB 6362'!F$12:F$1048576,MATCH('Single School Forecast'!$N169,'Standard Inputs - SB 6362'!$D$12:$D$1048576,0)) -> 0 | S169: =(SUMIF($P$218:$P$326,$I169,S$218:S$326)+SUMIF($P$218:$P$326,$J169,S$218:S$326)+SUMIF($P$218:$P$326,$K169,S$218:S$326)+SUMIF($P$218:$P$326,$L169,S$218:S$326))*INDEX('Standard Inputs - SB 6362'!G$12:G$1048576,MATCH('Single School Forecast'!$M169,'Standard Inputs - SB 6362'!$D$12:$D$1048576,0))*INDEX('Standard Inputs - SB 6362'!G$12:G$1048576,MATCH('Single School Forecast'!$N169,'Standard Inputs - SB 6362'!$D$12:$D$1048576,0)) -> 0 | T169: =(SUMIF($P$218:$P$326,$I169,T$218:T$326)+SUMIF($P$218:$P$326,$J169,T$218:T$326)+SUMIF($P$218:$P$326,$K169,T$218:T$326)+SUMIF($P$218:$P$326,$L169,T$218:T$326))*INDEX('Standard Inputs - SB 6362'!H$12:H$1048576,MATCH('Single School Forecast'!$M169,'Standard Inputs - SB 6362'!$D$12:$D$1048576,0))*INDEX('Standard Inputs - SB 6362'!H$12:H$1048576,MATCH('Single School Forecast'!$N169,'Standard Inputs - SB 6362'!$D$12:$D$1048576,0)) ->  | U169: =(SUMIF($P$218:$P$326,$I169,U$218:U$326)+SUMIF($P$218:$P$326,$J169,U$218:U$326)+SUMIF($P$218:$P$326,$K169,U$218:U$326)+SUMIF($P$218:$P$326,$L169,U$218:U$326))*INDEX('Standard Inputs - SB 6362'!I$12:I$1048576,MATCH('Single School Forecast'!$M169,'Standard Inputs - SB 6362'!$D$12:$D$1048576,0))*INDEX('Standard Inputs - SB 6362'!I$12:I$1048576,MATCH('Single School Forecast'!$N169,'Standard Inputs - SB 6362'!$D$12:$D$1048576,0)) -> 0 | V169: =(SUMIF($P$218:$P$326,$I169,V$218:V$326)+SUMIF($P$218:$P$326,$J169,V$218:V$326)+SUMIF($P$218:$P$326,$K169,V$218:V$326)+SUMIF($P$218:$P$326,$L169,V$218:V$326))*INDEX('Standard Inputs - SB 6362'!J$12:J$1048576,MATCH('Single School Forecast'!$M169,'Standard Inputs - SB 6362'!$D$12:$D$1048576,0))*INDEX('Standard Inputs - SB 6362'!J$12:J$1048576,MATCH('Single School Forecast'!$N169,'Standard Inputs - SB 6362'!$D$12:$D$1048576,0)) -> 0 | W169: =(SUMIF($P$218:$P$326,$I169,W$218:W$326)+SUMIF($P$218:$P$326,$J169,W$218:W$326)+SUMIF($P$218:$P$326,$K169,W$218:W$326)+SUMIF($P$218:$P$326,$L169,W$218:W$326))*INDEX('Standard Inputs - SB 6362'!K$12:K$1048576,MATCH('Single School Forecast'!$M169,'Standard Inputs - SB 6362'!$D$12:$D$1048576,0))*INDEX('Standard Inputs - SB 6362'!K$12:K$1048576,MATCH('Single School Forecast'!$N169,'Standard Inputs - SB 6362'!$D$12:$D$1048576,0)) -> 0 | X169: =(SUMIF($P$218:$P$326,$I169,X$218:X$326)+SUMIF($P$218:$P$326,$J169,X$218:X$326)+SUMIF($P$218:$P$326,$K169,X$218:X$326)+SUMIF($P$218:$P$326,$L169,X$218:X$326))*INDEX('Standard Inputs - SB 6362'!L$12:L$1048576,MATCH('Single School Forecast'!$M169,'Standard Inputs - SB 6362'!$D$12:$D$1048576,0))*INDEX('Standard Inputs - SB 6362'!L$12:L$1048576,MATCH('Single School Forecast'!$N169,'Standard Inputs - SB 6362'!$D$12:$D$1048576,0)) -> 0 | Y169: =(SUMIF($P$218:$P$326,$I169,Y$218:Y$326)+SUMIF($P$218:$P$326,$J169,Y$218:Y$326)+SUMIF($P$218:$P$326,$K169,Y$218:Y$326)+SUMIF($P$218:$P$326,$L169,Y$218:Y$326))*INDEX('Standard Inputs - SB 6362'!M$12:M$1048576,MATCH('Single School Forecast'!$M169,'Standard Inputs - SB 6362'!$D$12:$D$1048576,0))*INDEX('Standard Inputs - SB 6362'!M$12:M$1048576,MATCH('Single School Forecast'!$N169,'Standard Inputs - SB 6362'!$D$12:$D$1048576,0)) ->  | Z169: =(SUMIF($P$218:$P$326,$I169,Z$218:Z$326)+SUMIF($P$218:$P$326,$J169,Z$218:Z$326)+SUMIF($P$218:$P$326,$K169,Z$218:Z$326)+SUMIF($P$218:$P$326,$L169,Z$218:Z$326))*INDEX('Standard Inputs - SB 6362'!N$12:N$1048576,MATCH('Single School Forecast'!$M169,'Standard Inputs - SB 6362'!$D$12:$D$1048576,0))*INDEX('Standard Inputs - SB 6362'!N$12:N$1048576,MATCH('Single School Forecast'!$N169,'Standard Inputs - SB 6362'!$D$12:$D$1048576,0)) ->  | AA169: =(SUMIF($P$218:$P$326,$I169,AA$218:AA$326)+SUMIF($P$218:$P$326,$J169,AA$218:AA$326)+SUMIF($P$218:$P$326,$K169,AA$218:AA$326)+SUMIF($P$218:$P$326,$L169,AA$218:AA$326))*INDEX('Standard Inputs - SB 6362'!O$12:O$1048576,MATCH('Single School Forecast'!$M169,'Standard Inputs - SB 6362'!$D$12:$D$1048576,0))*INDEX('Standard Inputs - SB 6362'!O$12:O$1048576,MATCH('Single School Forecast'!$N169,'Standard Inputs - SB 6362'!$D$12:$D$1048576,0)) ->  | AB169: =(SUMIF($P$218:$P$326,$I169,AB$218:AB$326)+SUMIF($P$218:$P$326,$J169,AB$218:AB$326)+SUMIF($P$218:$P$326,$K169,AB$218:AB$326)+SUMIF($P$218:$P$326,$L169,AB$218:AB$326))*INDEX('Standard Inputs - SB 6362'!P$12:P$1048576,MATCH('Single School Forecast'!$M169,'Standard Inputs - SB 6362'!$D$12:$D$1048576,0))*INDEX('Standard Inputs - SB 6362'!P$12:P$1048576,MATCH('Single School Forecast'!$N169,'Standard Inputs - SB 6362'!$D$12:$D$1048576,0)) -> 
L170: LAP Staff Units | M170: SEBB Health Insurance | N170: CIS/ CAS SEBB Multiplier | O170: LAP SEBB | P170: LAP SEBB | T170: =SUMIF($P$218:$P$326,$L170,T$218:T$326)*INDEX('Standard Inputs - SB 6362'!H$12:H$1048576,MATCH($N170,'Standard Inputs - SB 6362'!$D$12:$D$1048576,0))*INDEX('Standard Inputs - SB 6362'!H$12:H$1048576,MATCH($M170,'Standard Inputs - SB 6362'!$D$12:$D$1048576,0)) -> 0 | U170: =SUMIF($P$218:$P$326,$L170,U$218:U$326)*INDEX('Standard Inputs - SB 6362'!I$12:I$1048576,MATCH($N170,'Standard Inputs - SB 6362'!$D$12:$D$1048576,0))*INDEX('Standard Inputs - SB 6362'!I$12:I$1048576,MATCH($M170,'Standard Inputs - SB 6362'!$D$12:$D$1048576,0)) -> 0 | V170: =SUMIF($P$218:$P$326,$L170,V$218:V$326)*INDEX('Standard Inputs - SB 6362'!J$12:J$1048576,MATCH($N170,'Standard Inputs - SB 6362'!$D$12:$D$1048576,0))*INDEX('Standard Inputs - SB 6362'!J$12:J$1048576,MATCH($M170,'Standard Inputs - SB 6362'!$D$12:$D$1048576,0)) -> 2088.037715 | W170: =SUMIF($P$218:$P$326,$L170,W$218:W$326)*INDEX('Standard Inputs - SB 6362'!K$12:K$1048576,MATCH($N170,'Standard Inputs - SB 6362'!$D$12:$D$1048576,0))*INDEX('Standard Inputs - SB 6362'!K$12:K$1048576,MATCH($M170,'Standard Inputs - SB 6362'!$D$12:$D$1048576,0)) -> 1825.325781 | X170: =SUMIF($P$218:$P$326,$L170,X$218:X$326)*INDEX('Standard Inputs - SB 6362'!L$12:L$1048576,MATCH($N170,'Standard Inputs - SB 6362'!$D$12:$D$1048576,0))*INDEX('Standard Inputs - SB 6362'!L$12:L$1048576,MATCH($M170,'Standard Inputs - SB 6362'!$D$12:$D$1048576,0)) -> 1863.628536 | Y170: =SUMIF($P$218:$P$326,$L170,Y$218:Y$326)*INDEX('Standard Inputs - SB 6362'!M$12:M$1048576,MATCH($N170,'Standard Inputs - SB 6362'!$D$12:$D$1048576,0))*INDEX('Standard Inputs - SB 6362'!M$12:M$1048576,MATCH($M170,'Standard Inputs - SB 6362'!$D$12:$D$1048576,0)) -> 4562.23152 | Z170: =SUMIF($P$218:$P$326,$L170,Z$218:Z$326)*INDEX('Standard Inputs - SB 6362'!N$12:N$1048576,MATCH($N170,'Standard Inputs - SB 6362'!$D$12:$D$1048576,0))*INDEX('Standard Inputs - SB 6362'!N$12:N$1048576,MATCH($M170,'Standard Inputs - SB 6362'!$D$12:$D$1048576,0)) ->  | AA170: =SUMIF($P$218:$P$326,$L170,AA$218:AA$326)*INDEX('Standard Inputs - SB 6362'!O$12:O$1048576,MATCH($N170,'Standard Inputs - SB 6362'!$D$12:$D$1048576,0))*INDEX('Standard Inputs - SB 6362'!O$12:O$1048576,MATCH($M170,'Standard Inputs - SB 6362'!$D$12:$D$1048576,0)) ->  | AB170: =SUMIF($P$218:$P$326,$L170,AB$218:AB$326)*INDEX('Standard Inputs - SB 6362'!P$12:P$1048576,MATCH($N170,'Standard Inputs - SB 6362'!$D$12:$D$1048576,0))*INDEX('Standard Inputs - SB 6362'!P$12:P$1048576,MATCH($M170,'Standard Inputs - SB 6362'!$D$12:$D$1048576,0)) -> 
L171: TBIP Staff Units | M171: SEBB Health Insurance | N171: CIS/ CAS SEBB Multiplier | O171: TBIP SEBB | P171: TBIP SEBB | T171: =SUMIF($P$218:$P$326,$L171,T$218:T$326)*INDEX('Standard Inputs - SB 6362'!H$12:H$1048576,MATCH($N171,'Standard Inputs - SB 6362'!$D$12:$D$1048576,0))*INDEX('Standard Inputs - SB 6362'!H$12:H$1048576,MATCH($M171,'Standard Inputs - SB 6362'!$D$12:$D$1048576,0)) -> 0 | U171: =SUMIF($P$218:$P$326,$L171,U$218:U$326)*INDEX('Standard Inputs - SB 6362'!I$12:I$1048576,MATCH($N171,'Standard Inputs - SB 6362'!$D$12:$D$1048576,0))*INDEX('Standard Inputs - SB 6362'!I$12:I$1048576,MATCH($M171,'Standard Inputs - SB 6362'!$D$12:$D$1048576,0)) -> 0 | V171: =SUMIF($P$218:$P$326,$L171,V$218:V$326)*INDEX('Standard Inputs - SB 6362'!J$12:J$1048576,MATCH($N171,'Standard Inputs - SB 6362'!$D$12:$D$1048576,0))*INDEX('Standard Inputs - SB 6362'!J$12:J$1048576,MATCH($M171,'Standard Inputs - SB 6362'!$D$12:$D$1048576,0)) -> 0 | W171: =SUMIF($P$218:$P$326,$L171,W$218:W$326)*INDEX('Standard Inputs - SB 6362'!K$12:K$1048576,MATCH($N171,'Standard Inputs - SB 6362'!$D$12:$D$1048576,0))*INDEX('Standard Inputs - SB 6362'!K$12:K$1048576,MATCH($M171,'Standard Inputs - SB 6362'!$D$12:$D$1048576,0)) -> 0 | X171: =SUMIF($P$218:$P$326,$L171,X$218:X$326)*INDEX('Standard Inputs - SB 6362'!L$12:L$1048576,MATCH($N171,'Standard Inputs - SB 6362'!$D$12:$D$1048576,0))*INDEX('Standard Inputs - SB 6362'!L$12:L$1048576,MATCH($M171,'Standard Inputs - SB 6362'!$D$12:$D$1048576,0)) -> 152.1171775 | Y171: =SUMIF($P$218:$P$326,$L171,Y$218:Y$326)*INDEX('Standard Inputs - SB 6362'!M$12:M$1048576,MATCH($N171,'Standard Inputs - SB 6362'!$D$12:$D$1048576,0))*INDEX('Standard Inputs - SB 6362'!M$12:M$1048576,MATCH($M171,'Standard Inputs - SB 6362'!$D$12:$D$1048576,0)) ->  | Z171: =SUMIF($P$218:$P$326,$L171,Z$218:Z$326)*INDEX('Standard Inputs - SB 6362'!N$12:N$1048576,MATCH($N171,'Standard Inputs - SB 6362'!$D$12:$D$1048576,0))*INDEX('Standard Inputs - SB 6362'!N$12:N$1048576,MATCH($M171,'Standard Inputs - SB 6362'!$D$12:$D$1048576,0)) ->  | AA171: =SUMIF($P$218:$P$326,$L171,AA$218:AA$326)*INDEX('Standard Inputs - SB 6362'!O$12:O$1048576,MATCH($N171,'Standard Inputs - SB 6362'!$D$12:$D$1048576,0))*INDEX('Standard Inputs - SB 6362'!O$12:O$1048576,MATCH($M171,'Standard Inputs - SB 6362'!$D$12:$D$1048576,0)) ->  | AB171: =SUMIF($P$218:$P$326,$L171,AB$218:AB$326)*INDEX('Standard Inputs - SB 6362'!P$12:P$1048576,MATCH($N171,'Standard Inputs - SB 6362'!$D$12:$D$1048576,0))*INDEX('Standard Inputs - SB 6362'!P$12:P$1048576,MATCH($M171,'Standard Inputs - SB 6362'!$D$12:$D$1048576,0)) -> 
L172: HiCap Staff Units | M172: SEBB Health Insurance | N172: CIS/ CAS SEBB Multiplier | O172: HiCap SEBB | P172: HiCap SEBB | T172: =SUMIF($P$218:$P$326,$L172,T$218:T$326)*INDEX('Standard Inputs - SB 6362'!H$12:H$1048576,MATCH($N172,'Standard Inputs - SB 6362'!$D$12:$D$1048576,0))*INDEX('Standard Inputs - SB 6362'!H$12:H$1048576,MATCH($M172,'Standard Inputs - SB 6362'!$D$12:$D$1048576,0)) -> 0 | U172: =SUMIF($P$218:$P$326,$L172,U$218:U$326)*INDEX('Standard Inputs - SB 6362'!I$12:I$1048576,MATCH($N172,'Standard Inputs - SB 6362'!$D$12:$D$1048576,0))*INDEX('Standard Inputs - SB 6362'!I$12:I$1048576,MATCH($M172,'Standard Inputs - SB 6362'!$D$12:$D$1048576,0)) -> 0 | V172: =SUMIF($P$218:$P$326,$L172,V$218:V$326)*INDEX('Standard Inputs - SB 6362'!J$12:J$1048576,MATCH($N172,'Standard Inputs - SB 6362'!$D$12:$D$1048576,0))*INDEX('Standard Inputs - SB 6362'!J$12:J$1048576,MATCH($M172,'Standard Inputs - SB 6362'!$D$12:$D$1048576,0)) -> 340.3914911 | W172: =SUMIF($P$218:$P$326,$L172,W$218:W$326)*INDEX('Standard Inputs - SB 6362'!K$12:K$1048576,MATCH($N172,'Standard Inputs - SB 6362'!$D$12:$D$1048576,0))*INDEX('Standard Inputs - SB 6362'!K$12:K$1048576,MATCH($M172,'Standard Inputs - SB 6362'!$D$12:$D$1048576,0)) -> 361.5098688 | X172: =SUMIF($P$218:$P$326,$L172,X$218:X$326)*INDEX('Standard Inputs - SB 6362'!L$12:L$1048576,MATCH($N172,'Standard Inputs - SB 6362'!$D$12:$D$1048576,0))*INDEX('Standard Inputs - SB 6362'!L$12:L$1048576,MATCH($M172,'Standard Inputs - SB 6362'!$D$12:$D$1048576,0)) -> 412.3890355 | Y172: =SUMIF($P$218:$P$326,$L172,Y$218:Y$326)*INDEX('Standard Inputs - SB 6362'!M$12:M$1048576,MATCH($N172,'Standard Inputs - SB 6362'!$D$12:$D$1048576,0))*INDEX('Standard Inputs - SB 6362'!M$12:M$1048576,MATCH($M172,'Standard Inputs - SB 6362'!$D$12:$D$1048576,0)) ->  | Z172: =SUMIF($P$218:$P$326,$L172,Z$218:Z$326)*INDEX('Standard Inputs - SB 6362'!N$12:N$1048576,MATCH($N172,'Standard Inputs - SB 6362'!$D$12:$D$1048576,0))*INDEX('Standard Inputs - SB 6362'!N$12:N$1048576,MATCH($M172,'Standard Inputs - SB 6362'!$D$12:$D$1048576,0)) ->  | AA172: =SUMIF($P$218:$P$326,$L172,AA$218:AA$326)*INDEX('Standard Inputs - SB 6362'!O$12:O$1048576,MATCH($N172,'Standard Inputs - SB 6362'!$D$12:$D$1048576,0))*INDEX('Standard Inputs - SB 6362'!O$12:O$1048576,MATCH($M172,'Standard Inputs - SB 6362'!$D$12:$D$1048576,0)) ->  | AB172: =SUMIF($P$218:$P$326,$L172,AB$218:AB$326)*INDEX('Standard Inputs - SB 6362'!P$12:P$1048576,MATCH($N172,'Standard Inputs - SB 6362'!$D$12:$D$1048576,0))*INDEX('Standard Inputs - SB 6362'!P$12:P$1048576,MATCH($M172,'Standard Inputs - SB 6362'!$D$12:$D$1048576,0)) -> 
L173: LAP High Pov Staff Units | M173: SEBB Health Insurance | N173: CIS/ CAS SEBB Multiplier | O173: LAP High Poverty SEBB | P173: LAP SEBB | T173: =SUMIF($P$218:$P$326,$L173,T$218:T$326)*INDEX('Standard Inputs - SB 6362'!H$12:H$1048576,MATCH($N173,'Standard Inputs - SB 6362'!$D$12:$D$1048576,0))*INDEX('Standard Inputs - SB 6362'!H$12:H$1048576,MATCH($M173,'Standard Inputs - SB 6362'!$D$12:$D$1048576,0)) -> 0 | U173: =SUMIF($P$218:$P$326,$L173,U$218:U$326)*INDEX('Standard Inputs - SB 6362'!I$12:I$1048576,MATCH($N173,'Standard Inputs - SB 6362'!$D$12:$D$1048576,0))*INDEX('Standard Inputs - SB 6362'!I$12:I$1048576,MATCH($M173,'Standard Inputs - SB 6362'!$D$12:$D$1048576,0)) -> 0 | V173: =SUMIF($P$218:$P$326,$L173,V$218:V$326)*INDEX('Standard Inputs - SB 6362'!J$12:J$1048576,MATCH($N173,'Standard Inputs - SB 6362'!$D$12:$D$1048576,0))*INDEX('Standard Inputs - SB 6362'!J$12:J$1048576,MATCH($M173,'Standard Inputs - SB 6362'!$D$12:$D$1048576,0)) -> 0 | W173: =SUMIF($P$218:$P$326,$L173,W$218:W$326)*INDEX('Standard Inputs - SB 6362'!K$12:K$1048576,MATCH($N173,'Standard Inputs - SB 6362'!$D$12:$D$1048576,0))*INDEX('Standard Inputs - SB 6362'!K$12:K$1048576,MATCH($M173,'Standard Inputs - SB 6362'!$D$12:$D$1048576,0)) -> 0 | X173: =SUMIF($P$218:$P$326,$L173,X$218:X$326)*INDEX('Standard Inputs - SB 6362'!L$12:L$1048576,MATCH($N173,'Standard Inputs - SB 6362'!$D$12:$D$1048576,0))*INDEX('Standard Inputs - SB 6362'!L$12:L$1048576,MATCH($M173,'Standard Inputs - SB 6362'!$D$12:$D$1048576,0)) -> 0 | Y173: =SUMIF($P$218:$P$326,$L173,Y$218:Y$326)*INDEX('Standard Inputs - SB 6362'!M$12:M$1048576,MATCH($N173,'Standard Inputs - SB 6362'!$D$12:$D$1048576,0))*INDEX('Standard Inputs - SB 6362'!M$12:M$1048576,MATCH($M173,'Standard Inputs - SB 6362'!$D$12:$D$1048576,0)) -> 0 | Z173: =SUMIF($P$218:$P$326,$L173,Z$218:Z$326)*INDEX('Standard Inputs - SB 6362'!N$12:N$1048576,MATCH($N173,'Standard Inputs - SB 6362'!$D$12:$D$1048576,0))*INDEX('Standard Inputs - SB 6362'!N$12:N$1048576,MATCH($M173,'Standard Inputs - SB 6362'!$D$12:$D$1048576,0)) ->  | AA173: =SUMIF($P$218:$P$326,$L173,AA$218:AA$326)*INDEX('Standard Inputs - SB 6362'!O$12:O$1048576,MATCH($N173,'Standard Inputs - SB 6362'!$D$12:$D$1048576,0))*INDEX('Standard Inputs - SB 6362'!O$12:O$1048576,MATCH($M173,'Standard Inputs - SB 6362'!$D$12:$D$1048576,0)) ->  | AB173: =SUMIF($P$218:$P$326,$L173,AB$218:AB$326)*INDEX('Standard Inputs - SB 6362'!P$12:P$1048576,MATCH($N173,'Standard Inputs - SB 6362'!$D$12:$D$1048576,0))*INDEX('Standard Inputs - SB 6362'!P$12:P$1048576,MATCH($M173,'Standard Inputs - SB 6362'!$D$12:$D$1048576,0)) -> 
M174: LAP Staff Units | N174: Health Insurance | O174: LAP Insurance | P174: LAP Insurance and Benefits | R174: =SUMIF($P$218:$P$326,$M174,R$218:R$326)*INDEX('Standard Inputs - SB 6362'!F$12:F$1048576,MATCH($N174,'Standard Inputs - SB 6362'!$D$12:$D$1048576,0)) -> 0 | S174: =SUMIF($P$218:$P$326,$M174,S$218:S$326)*INDEX('Standard Inputs - SB 6362'!G$12:G$1048576,MATCH($N174,'Standard Inputs - SB 6362'!$D$12:$D$1048576,0)) -> 0 | T174: =SUMIF($P$218:$P$326,$M174,T$218:T$326)*INDEX('Standard Inputs - SB 6362'!H$12:H$1048576,MATCH($N174,'Standard Inputs - SB 6362'!$D$12:$D$1048576,0)) -> 0 | U174: =SUMIF($P$218:$P$326,$M174,U$218:U$326)*INDEX('Standard Inputs - SB 6362'!I$12:I$1048576,MATCH($N174,'Standard Inputs - SB 6362'!$D$12:$D$1048576,0)) -> 0 | V174: =SUMIF($P$218:$P$326,$M174,V$218:V$326)*INDEX('Standard Inputs - SB 6362'!J$12:J$1048576,MATCH($N174,'Standard Inputs - SB 6362'!$D$12:$D$1048576,0)) -> 0 | W174: =SUMIF($P$218:$P$326,$M174,W$218:W$326)*INDEX('Standard Inputs - SB 6362'!K$12:K$1048576,MATCH($N174,'Standard Inputs - SB 6362'!$D$12:$D$1048576,0)) -> 0 | X174: =SUMIF($P$218:$P$326,$M174,X$218:X$326)*INDEX('Standard Inputs - SB 6362'!L$12:L$1048576,MATCH($N174,'Standard Inputs - SB 6362'!$D$12:$D$1048576,0)) -> 0 | Y174: =SUMIF($P$218:$P$326,$M174,Y$218:Y$326)*INDEX('Standard Inputs - SB 6362'!M$12:M$1048576,MATCH($N174,'Standard Inputs - SB 6362'!$D$12:$D$1048576,0)) -> 0 | Z174: =SUMIF($P$218:$P$326,$M174,Z$218:Z$326)*INDEX('Standard Inputs - SB 6362'!N$12:N$1048576,MATCH($N174,'Standard Inputs - SB 6362'!$D$12:$D$1048576,0)) ->  | AA174: =SUMIF($P$218:$P$326,$M174,AA$218:AA$326)*INDEX('Standard Inputs - SB 6362'!O$12:O$1048576,MATCH($N174,'Standard Inputs - SB 6362'!$D$12:$D$1048576,0)) ->  | AB174: =SUMIF($P$218:$P$326,$M174,AB$218:AB$326)*INDEX('Standard Inputs - SB 6362'!P$12:P$1048576,MATCH($N174,'Standard Inputs - SB 6362'!$D$12:$D$1048576,0)) -> 
M175: TBIP Staff Units | N175: Health Insurance | O175: TBIP Insurance | P175: TBIP Insurance and Benefits | R175: =SUMIF($P$218:$P$326,$M175,R$218:R$326)*INDEX('Standard Inputs - SB 6362'!F$12:F$1048576,MATCH($N175,'Standard Inputs - SB 6362'!$D$12:$D$1048576,0)) -> 0 | S175: =SUMIF($P$218:$P$326,$M175,S$218:S$326)*INDEX('Standard Inputs - SB 6362'!G$12:G$1048576,MATCH($N175,'Standard Inputs - SB 6362'!$D$12:$D$1048576,0)) -> 7667.298656 | T175: =SUMIF($P$218:$P$326,$M175,T$218:T$326)*INDEX('Standard Inputs - SB 6362'!H$12:H$1048576,MATCH($N175,'Standard Inputs - SB 6362'!$D$12:$D$1048576,0)) -> 0 | U175: =SUMIF($P$218:$P$326,$M175,U$218:U$326)*INDEX('Standard Inputs - SB 6362'!I$12:I$1048576,MATCH($N175,'Standard Inputs - SB 6362'!$D$12:$D$1048576,0)) -> 0 | V175: =SUMIF($P$218:$P$326,$M175,V$218:V$326)*INDEX('Standard Inputs - SB 6362'!J$12:J$1048576,MATCH($N175,'Standard Inputs - SB 6362'!$D$12:$D$1048576,0)) -> 0 | W175: =SUMIF($P$218:$P$326,$M175,W$218:W$326)*INDEX('Standard Inputs - SB 6362'!K$12:K$1048576,MATCH($N175,'Standard Inputs - SB 6362'!$D$12:$D$1048576,0)) -> 0 | X175: =SUMIF($P$218:$P$326,$M175,X$218:X$326)*INDEX('Standard Inputs - SB 6362'!L$12:L$1048576,MATCH($N175,'Standard Inputs - SB 6362'!$D$12:$D$1048576,0)) -> 0 | Y175: =SUMIF($P$218:$P$326,$M175,Y$218:Y$326)*INDEX('Standard Inputs - SB 6362'!M$12:M$1048576,MATCH($N175,'Standard Inputs - SB 6362'!$D$12:$D$1048576,0)) ->  | Z175: =SUMIF($P$218:$P$326,$M175,Z$218:Z$326)*INDEX('Standard Inputs - SB 6362'!N$12:N$1048576,MATCH($N175,'Standard Inputs - SB 6362'!$D$12:$D$1048576,0)) ->  | AA175: =SUMIF($P$218:$P$326,$M175,AA$218:AA$326)*INDEX('Standard Inputs - SB 6362'!O$12:O$1048576,MATCH($N175,'Standard Inputs - SB 6362'!$D$12:$D$1048576,0)) ->  | AB175: =SUMIF($P$218:$P$326,$M175,AB$218:AB$326)*INDEX('Standard Inputs - SB 6362'!P$12:P$1048576,MATCH($N175,'Standard Inputs - SB 6362'!$D$12:$D$1048576,0)) -> 
M176: HiCap Staff Units | N176: Health Insurance | O176: HiCap Insurance | P176: HiCap Insurance and Benefits | R176: =SUMIF($P$218:$P$326,$M176,R$218:R$326)*INDEX('Standard Inputs - SB 6362'!F$12:F$1048576,MATCH($N176,'Standard Inputs - SB 6362'!$D$12:$D$1048576,0)) -> 0 | S176: =SUMIF($P$218:$P$326,$M176,S$218:S$326)*INDEX('Standard Inputs - SB 6362'!G$12:G$1048576,MATCH($N176,'Standard Inputs - SB 6362'!$D$12:$D$1048576,0)) -> 0 | T176: =SUMIF($P$218:$P$326,$M176,T$218:T$326)*INDEX('Standard Inputs - SB 6362'!H$12:H$1048576,MATCH($N176,'Standard Inputs - SB 6362'!$D$12:$D$1048576,0)) -> 0 | U176: =SUMIF($P$218:$P$326,$M176,U$218:U$326)*INDEX('Standard Inputs - SB 6362'!I$12:I$1048576,MATCH($N176,'Standard Inputs - SB 6362'!$D$12:$D$1048576,0)) -> 0 | V176: =SUMIF($P$218:$P$326,$M176,V$218:V$326)*INDEX('Standard Inputs - SB 6362'!J$12:J$1048576,MATCH($N176,'Standard Inputs - SB 6362'!$D$12:$D$1048576,0)) -> 0 | W176: =SUMIF($P$218:$P$326,$M176,W$218:W$326)*INDEX('Standard Inputs - SB 6362'!K$12:K$1048576,MATCH($N176,'Standard Inputs - SB 6362'!$D$12:$D$1048576,0)) -> 0 | X176: =SUMIF($P$218:$P$326,$M176,X$218:X$326)*INDEX('Standard Inputs - SB 6362'!L$12:L$1048576,MATCH($N176,'Standard Inputs - SB 6362'!$D$12:$D$1048576,0)) -> 0 | Y176: =SUMIF($P$218:$P$326,$M176,Y$218:Y$326)*INDEX('Standard Inputs - SB 6362'!M$12:M$1048576,MATCH($N176,'Standard Inputs - SB 6362'!$D$12:$D$1048576,0)) ->  | Z176: =SUMIF($P$218:$P$326,$M176,Z$218:Z$326)*INDEX('Standard Inputs - SB 6362'!N$12:N$1048576,MATCH($N176,'Standard Inputs - SB 6362'!$D$12:$D$1048576,0)) ->  | AA176: =SUMIF($P$218:$P$326,$M176,AA$218:AA$326)*INDEX('Standard Inputs - SB 6362'!O$12:O$1048576,MATCH($N176,'Standard Inputs - SB 6362'!$D$12:$D$1048576,0)) ->  | AB176: =SUMIF($P$218:$P$326,$M176,AB$218:AB$326)*INDEX('Standard Inputs - SB 6362'!P$12:P$1048576,MATCH($N176,'Standard Inputs - SB 6362'!$D$12:$D$1048576,0)) -> 
M177: LAP High Pov Staff Units | N177: Health Insurance | O177: LAP High Poverty Insurance | P177: LAP Insurance and Benefits | R177: =SUMIF($P$218:$P$326,$M177,R$218:R$326)*INDEX('Standard Inputs - SB 6362'!F$12:F$1048576,MATCH($N177,'Standard Inputs - SB 6362'!$D$12:$D$1048576,0)) -> 0 | S177: =SUMIF($P$218:$P$326,$M177,S$218:S$326)*INDEX('Standard Inputs - SB 6362'!G$12:G$1048576,MATCH($N177,'Standard Inputs - SB 6362'!$D$12:$D$1048576,0)) -> 0 | T177: =SUMIF($P$218:$P$326,$M177,T$218:T$326)*INDEX('Standard Inputs - SB 6362'!H$12:H$1048576,MATCH($N177,'Standard Inputs - SB 6362'!$D$12:$D$1048576,0)) -> 0 | U177: =SUMIF($P$218:$P$326,$M177,U$218:U$326)*INDEX('Standard Inputs - SB 6362'!I$12:I$1048576,MATCH($N177,'Standard Inputs - SB 6362'!$D$12:$D$1048576,0)) -> 0 | V177: =SUMIF($P$218:$P$326,$M177,V$218:V$326)*INDEX('Standard Inputs - SB 6362'!J$12:J$1048576,MATCH($N177,'Standard Inputs - SB 6362'!$D$12:$D$1048576,0)) -> 0 | W177: =SUMIF($P$218:$P$326,$M177,W$218:W$326)*INDEX('Standard Inputs - SB 6362'!K$12:K$1048576,MATCH($N177,'Standard Inputs - SB 6362'!$D$12:$D$1048576,0)) -> 0 | X177: =SUMIF($P$218:$P$326,$M177,X$218:X$326)*INDEX('Standard Inputs - SB 6362'!L$12:L$1048576,MATCH($N177,'Standard Inputs - SB 6362'!$D$12:$D$1048576,0)) -> 0 | Y177: =SUMIF($P$218:$P$326,$M177,Y$218:Y$326)*INDEX('Standard Inputs - SB 6362'!M$12:M$1048576,MATCH($N177,'Standard Inputs - SB 6362'!$D$12:$D$1048576,0)) -> 0 | Z177: =SUMIF($P$218:$P$326,$M177,Z$218:Z$326)*INDEX('Standard Inputs - SB 6362'!N$12:N$1048576,MATCH($N177,'Standard Inputs - SB 6362'!$D$12:$D$1048576,0)) ->  | AA177: =SUMIF($P$218:$P$326,$M177,AA$218:AA$326)*INDEX('Standard Inputs - SB 6362'!O$12:O$1048576,MATCH($N177,'Standard Inputs - SB 6362'!$D$12:$D$1048576,0)) ->  | AB177: =SUMIF($P$218:$P$326,$M177,AB$218:AB$326)*INDEX('Standard Inputs - SB 6362'!P$12:P$1048576,MATCH($N177,'Standard Inputs - SB 6362'!$D$12:$D$1048576,0)) -> 
K178: CIS K-12 Average SpEd | L178: CAS K-12 Average SpEd | M178: SEBB Health Insurance | N178: CIS/ CAS SEBB Multiplier | O178: Certificated Insurance SpEd SEBB | P178: SpEd Insurance and Benefits | T178: =(SUMIF($P$218:$P$326,$K178,T$218:T$326)+SUMIF($P$218:$P$326,$L178,T$218:T$326))*INDEX('Standard Inputs - SB 6362'!H$12:H$1048576,MATCH('Single School Forecast'!$N178,'Standard Inputs - SB 6362'!$D$12:$D$1048576,0))*INDEX('Standard Inputs - SB 6362'!H$12:H$1048576,MATCH('Single School Forecast'!$M178,'Standard Inputs - SB 6362'!$D$12:$D$1048576,0)) -> 0 | U178: =(SUMIF($P$218:$P$326,$K178,U$218:U$326)+SUMIF($P$218:$P$326,$L178,U$218:U$326))*INDEX('Standard Inputs - SB 6362'!I$12:I$1048576,MATCH('Single School Forecast'!$N178,'Standard Inputs - SB 6362'!$D$12:$D$1048576,0))*INDEX('Standard Inputs - SB 6362'!I$12:I$1048576,MATCH('Single School Forecast'!$M178,'Standard Inputs - SB 6362'!$D$12:$D$1048576,0)) -> 0 | V178: =(SUMIF($P$218:$P$326,$K178,V$218:V$326)+SUMIF($P$218:$P$326,$L178,V$218:V$326))*INDEX('Standard Inputs - SB 6362'!J$12:J$1048576,MATCH('Single School Forecast'!$N178,'Standard Inputs - SB 6362'!$D$12:$D$1048576,0))*INDEX('Standard Inputs - SB 6362'!J$12:J$1048576,MATCH('Single School Forecast'!$M178,'Standard Inputs - SB 6362'!$D$12:$D$1048576,0)) -> 623.3282669 | W178: =(SUMIF($P$218:$P$326,$K178,W$218:W$326)+SUMIF($P$218:$P$326,$L178,W$218:W$326))*INDEX('Standard Inputs - SB 6362'!K$12:K$1048576,MATCH('Single School Forecast'!$N178,'Standard Inputs - SB 6362'!$D$12:$D$1048576,0))*INDEX('Standard Inputs - SB 6362'!K$12:K$1048576,MATCH('Single School Forecast'!$M178,'Standard Inputs - SB 6362'!$D$12:$D$1048576,0)) -> 871.2365652 | X178: =(SUMIF($P$218:$P$326,$K178,X$218:X$326)+SUMIF($P$218:$P$326,$L178,X$218:X$326))*INDEX('Standard Inputs - SB 6362'!L$12:L$1048576,MATCH('Single School Forecast'!$N178,'Standard Inputs - SB 6362'!$D$12:$D$1048576,0))*INDEX('Standard Inputs - SB 6362'!L$12:L$1048576,MATCH('Single School Forecast'!$M178,'Standard Inputs - SB 6362'!$D$12:$D$1048576,0)) -> 959.0373667 | Y178: =(SUMIF($P$218:$P$326,$K178,Y$218:Y$326)+SUMIF($P$218:$P$326,$L178,Y$218:Y$326))*INDEX('Standard Inputs - SB 6362'!M$12:M$1048576,MATCH('Single School Forecast'!$N178,'Standard Inputs - SB 6362'!$D$12:$D$1048576,0))*INDEX('Standard Inputs - SB 6362'!M$12:M$1048576,MATCH('Single School Forecast'!$M178,'Standard Inputs - SB 6362'!$D$12:$D$1048576,0)) -> 0 | Z178: =(SUMIF($P$218:$P$326,$K178,Z$218:Z$326)+SUMIF($P$218:$P$326,$L178,Z$218:Z$326))*INDEX('Standard Inputs - SB 6362'!N$12:N$1048576,MATCH('Single School Forecast'!$N178,'Standard Inputs - SB 6362'!$D$12:$D$1048576,0))*INDEX('Standard Inputs - SB 6362'!N$12:N$1048576,MATCH('Single School Forecast'!$M178,'Standard Inputs - SB 6362'!$D$12:$D$1048576,0)) -> 0 | AA178: =(SUMIF($P$218:$P$326,$K178,AA$218:AA$326)+SUMIF($P$218:$P$326,$L178,AA$218:AA$326))*INDEX('Standard Inputs - SB 6362'!O$12:O$1048576,MATCH('Single School Forecast'!$N178,'Standard Inputs - SB 6362'!$D$12:$D$1048576,0))*INDEX('Standard Inputs - SB 6362'!O$12:O$1048576,MATCH('Single School Forecast'!$M178,'Standard Inputs - SB 6362'!$D$12:$D$1048576,0)) -> 0 | AB178: =(SUMIF($P$218:$P$326,$K178,AB$218:AB$326)+SUMIF($P$218:$P$326,$L178,AB$218:AB$326))*INDEX('Standard Inputs - SB 6362'!P$12:P$1048576,MATCH('Single School Forecast'!$N178,'Standard Inputs - SB 6362'!$D$12:$D$1048576,0))*INDEX('Standard Inputs - SB 6362'!P$12:P$1048576,MATCH('Single School Forecast'!$M178,'Standard Inputs - SB 6362'!$D$12:$D$1048576,0)) -> 0
L179: CLS K-12 Average SpEd | M179: SEBB Health Insurance | N179: CLS SEBB Multiplier | O179: Classified Insurance SpEd SEBB | P179: SpEd Insurance and Benefits | T179: =(SUMIF($P$218:$P$326,$K179,T$218:T$326)+SUMIF($P$218:$P$326,$L179,T$218:T$326))*INDEX('Standard Inputs - SB 6362'!H$12:H$1048576,MATCH('Single School Forecast'!$N179,'Standard Inputs - SB 6362'!$D$12:$D$1048576,0))*INDEX('Standard Inputs - SB 6362'!H$12:H$1048576,MATCH('Single School Forecast'!$M179,'Standard Inputs - SB 6362'!$D$12:$D$1048576,0)) -> 0 | U179: =(SUMIF($P$218:$P$326,$K179,U$218:U$326)+SUMIF($P$218:$P$326,$L179,U$218:U$326))*INDEX('Standard Inputs - SB 6362'!I$12:I$1048576,MATCH('Single School Forecast'!$N179,'Standard Inputs - SB 6362'!$D$12:$D$1048576,0))*INDEX('Standard Inputs - SB 6362'!I$12:I$1048576,MATCH('Single School Forecast'!$M179,'Standard Inputs - SB 6362'!$D$12:$D$1048576,0)) -> 0 | V179: =(SUMIF($P$218:$P$326,$K179,V$218:V$326)+SUMIF($P$218:$P$326,$L179,V$218:V$326))*INDEX('Standard Inputs - SB 6362'!J$12:J$1048576,MATCH('Single School Forecast'!$N179,'Standard Inputs - SB 6362'!$D$12:$D$1048576,0))*INDEX('Standard Inputs - SB 6362'!J$12:J$1048576,MATCH('Single School Forecast'!$M179,'Standard Inputs - SB 6362'!$D$12:$D$1048576,0)) -> 284.046048 | W179: =(SUMIF($P$218:$P$326,$K179,W$218:W$326)+SUMIF($P$218:$P$326,$L179,W$218:W$326))*INDEX('Standard Inputs - SB 6362'!K$12:K$1048576,MATCH('Single School Forecast'!$N179,'Standard Inputs - SB 6362'!$D$12:$D$1048576,0))*INDEX('Standard Inputs - SB 6362'!K$12:K$1048576,MATCH('Single School Forecast'!$M179,'Standard Inputs - SB 6362'!$D$12:$D$1048576,0)) -> 316.3157918 | X179: =(SUMIF($P$218:$P$326,$K179,X$218:X$326)+SUMIF($P$218:$P$326,$L179,X$218:X$326))*INDEX('Standard Inputs - SB 6362'!L$12:L$1048576,MATCH('Single School Forecast'!$N179,'Standard Inputs - SB 6362'!$D$12:$D$1048576,0))*INDEX('Standard Inputs - SB 6362'!L$12:L$1048576,MATCH('Single School Forecast'!$M179,'Standard Inputs - SB 6362'!$D$12:$D$1048576,0)) -> 340.2371679 | Y179: =(SUMIF($P$218:$P$326,$K179,Y$218:Y$326)+SUMIF($P$218:$P$326,$L179,Y$218:Y$326))*INDEX('Standard Inputs - SB 6362'!M$12:M$1048576,MATCH('Single School Forecast'!$N179,'Standard Inputs - SB 6362'!$D$12:$D$1048576,0))*INDEX('Standard Inputs - SB 6362'!M$12:M$1048576,MATCH('Single School Forecast'!$M179,'Standard Inputs - SB 6362'!$D$12:$D$1048576,0)) -> 0 | Z179: =(SUMIF($P$218:$P$326,$K179,Z$218:Z$326)+SUMIF($P$218:$P$326,$L179,Z$218:Z$326))*INDEX('Standard Inputs - SB 6362'!N$12:N$1048576,MATCH('Single School Forecast'!$N179,'Standard Inputs - SB 6362'!$D$12:$D$1048576,0))*INDEX('Standard Inputs - SB 6362'!N$12:N$1048576,MATCH('Single School Forecast'!$M179,'Standard Inputs - SB 6362'!$D$12:$D$1048576,0)) -> 0 | AA179: =(SUMIF($P$218:$P$326,$K179,AA$218:AA$326)+SUMIF($P$218:$P$326,$L179,AA$218:AA$326))*INDEX('Standard Inputs - SB 6362'!O$12:O$1048576,MATCH('Single School Forecast'!$N179,'Standard Inputs - SB 6362'!$D$12:$D$1048576,0))*INDEX('Standard Inputs - SB 6362'!O$12:O$1048576,MATCH('Single School Forecast'!$M179,'Standard Inputs - SB 6362'!$D$12:$D$1048576,0)) -> 0 | AB179: =(SUMIF($P$218:$P$326,$K179,AB$218:AB$326)+SUMIF($P$218:$P$326,$L179,AB$218:AB$326))*INDEX('Standard Inputs - SB 6362'!P$12:P$1048576,MATCH('Single School Forecast'!$N179,'Standard Inputs - SB 6362'!$D$12:$D$1048576,0))*INDEX('Standard Inputs - SB 6362'!P$12:P$1048576,MATCH('Single School Forecast'!$M179,'Standard Inputs - SB 6362'!$D$12:$D$1048576,0)) -> 0
L180: CIS K-12 Average SpEd | M180: CAS K-12 Average SpEd | N180: Health Insurance | O180: Certificated Insurance SpEd | P180: SpEd Insurance and Benefits | R180: =(SUMIF($P$218:$P$326,$L180,R$218:R$326)+SUMIF($P$218:$P$326,$M180,R$218:R$326))*INDEX('Standard Inputs - SB 6362'!F$12:F$1048576,MATCH('Single School Forecast'!$N180,'Standard Inputs - SB 6362'!$D$12:$D$1048576,0)) -> 0 | S180: =(SUMIF($P$218:$P$326,$L180,S$218:S$326)+SUMIF($P$218:$P$326,$M180,S$218:S$326))*INDEX('Standard Inputs - SB 6362'!G$12:G$1048576,MATCH('Single School Forecast'!$N180,'Standard Inputs - SB 6362'!$D$12:$D$1048576,0)) -> 0 | T180: =(SUMIF($P$218:$P$326,$L180,T$218:T$326)+SUMIF($P$218:$P$326,$M180,T$218:T$326))*INDEX('Standard Inputs - SB 6362'!H$12:H$1048576,MATCH('Single School Forecast'!$N180,'Standard Inputs - SB 6362'!$D$12:$D$1048576,0)) -> 0 | U180: =(SUMIF($P$218:$P$326,$L180,U$218:U$326)+SUMIF($P$218:$P$326,$M180,U$218:U$326))*INDEX('Standard Inputs - SB 6362'!I$12:I$1048576,MATCH('Single School Forecast'!$N180,'Standard Inputs - SB 6362'!$D$12:$D$1048576,0)) -> 0 | V180: =(SUMIF($P$218:$P$326,$L180,V$218:V$326)+SUMIF($P$218:$P$326,$M180,V$218:V$326))*INDEX('Standard Inputs - SB 6362'!J$12:J$1048576,MATCH('Single School Forecast'!$N180,'Standard Inputs - SB 6362'!$D$12:$D$1048576,0)) -> 0 | W180: =(SUMIF($P$218:$P$326,$L180,W$218:W$326)+SUMIF($P$218:$P$326,$M180,W$218:W$326))*INDEX('Standard Inputs - SB 6362'!K$12:K$1048576,MATCH('Single School Forecast'!$N180,'Standard Inputs - SB 6362'!$D$12:$D$1048576,0)) -> 0 | X180: =(SUMIF($P$218:$P$326,$L180,X$218:X$326)+SUMIF($P$218:$P$326,$M180,X$218:X$326))*INDEX('Standard Inputs - SB 6362'!L$12:L$1048576,MATCH('Single School Forecast'!$N180,'Standard Inputs - SB 6362'!$D$12:$D$1048576,0)) -> 0 | Y180: =(SUMIF($P$218:$P$326,$L180,Y$218:Y$326)+SUMIF($P$218:$P$326,$M180,Y$218:Y$326))*INDEX('Standard Inputs - SB 6362'!M$12:M$1048576,MATCH('Single School Forecast'!$N180,'Standard Inputs - SB 6362'!$D$12:$D$1048576,0)) -> 0 | Z180: =(SUMIF($P$218:$P$326,$L180,Z$218:Z$326)+SUMIF($P$218:$P$326,$M180,Z$218:Z$326))*INDEX('Standard Inputs - SB 6362'!N$12:N$1048576,MATCH('Single School Forecast'!$N180,'Standard Inputs - SB 6362'!$D$12:$D$1048576,0)) -> 0 | AA180: =(SUMIF($P$218:$P$326,$L180,AA$218:AA$326)+SUMIF($P$218:$P$326,$M180,AA$218:AA$326))*INDEX('Standard Inputs - SB 6362'!O$12:O$1048576,MATCH('Single School Forecast'!$N180,'Standard Inputs - SB 6362'!$D$12:$D$1048576,0)) -> 0 | AB180: =(SUMIF($P$218:$P$326,$L180,AB$218:AB$326)+SUMIF($P$218:$P$326,$M180,AB$218:AB$326))*INDEX('Standard Inputs - SB 6362'!P$12:P$1048576,MATCH('Single School Forecast'!$N180,'Standard Inputs - SB 6362'!$D$12:$D$1048576,0)) -> 0
L181: CLS K-12 Average SpEd | M181: Health Insurance | N181: CLS Health Factor | O181: Classified Insurance SpEd | P181: SpEd Insurance and Benefits | R181: =(SUMIF($P$218:$P$326,$L181,R$218:R$326))*INDEX('Standard Inputs - SB 6362'!F$12:F$1048576,MATCH('Single School Forecast'!$M181,'Standard Inputs - SB 6362'!$D$12:$D$1048576,0))*INDEX('Standard Inputs - SB 6362'!F$12:F$1048576,MATCH('Single School Forecast'!$N181,'Standard Inputs - SB 6362'!$D$12:$D$1048576,0)) -> 0 | S181: =(SUMIF($P$218:$P$326,$L181,S$218:S$326))*INDEX('Standard Inputs - SB 6362'!G$12:G$1048576,MATCH('Single School Forecast'!$M181,'Standard Inputs - SB 6362'!$D$12:$D$1048576,0))*INDEX('Standard Inputs - SB 6362'!G$12:G$1048576,MATCH('Single School Forecast'!$N181,'Standard Inputs - SB 6362'!$D$12:$D$1048576,0)) -> 0 | T181: =(SUMIF($P$218:$P$326,$L181,T$218:T$326))*INDEX('Standard Inputs - SB 6362'!H$12:H$1048576,MATCH('Single School Forecast'!$M181,'Standard Inputs - SB 6362'!$D$12:$D$1048576,0))*INDEX('Standard Inputs - SB 6362'!H$12:H$1048576,MATCH('Single School Forecast'!$N181,'Standard Inputs - SB 6362'!$D$12:$D$1048576,0)) -> 0 | U181: =(SUMIF($P$218:$P$326,$L181,U$218:U$326))*INDEX('Standard Inputs - SB 6362'!I$12:I$1048576,MATCH('Single School Forecast'!$M181,'Standard Inputs - SB 6362'!$D$12:$D$1048576,0))*INDEX('Standard Inputs - SB 6362'!I$12:I$1048576,MATCH('Single School Forecast'!$N181,'Standard Inputs - SB 6362'!$D$12:$D$1048576,0)) -> 0 | V181: =(SUMIF($P$218:$P$326,$L181,V$218:V$326))*INDEX('Standard Inputs - SB 6362'!J$12:J$1048576,MATCH('Single School Forecast'!$M181,'Standard Inputs - SB 6362'!$D$12:$D$1048576,0))*INDEX('Standard Inputs - SB 6362'!J$12:J$1048576,MATCH('Single School Forecast'!$N181,'Standard Inputs - SB 6362'!$D$12:$D$1048576,0)) -> 0 | W181: =(SUMIF($P$218:$P$326,$L181,W$218:W$326))*INDEX('Standard Inputs - SB 6362'!K$12:K$1048576,MATCH('Single School Forecast'!$M181,'Standard Inputs - SB 6362'!$D$12:$D$1048576,0))*INDEX('Standard Inputs - SB 6362'!K$12:K$1048576,MATCH('Single School Forecast'!$N181,'Standard Inputs - SB 6362'!$D$12:$D$1048576,0)) -> 0 | X181: =(SUMIF($P$218:$P$326,$L181,X$218:X$326))*INDEX('Standard Inputs - SB 6362'!L$12:L$1048576,MATCH('Single School Forecast'!$M181,'Standard Inputs - SB 6362'!$D$12:$D$1048576,0))*INDEX('Standard Inputs - SB 6362'!L$12:L$1048576,MATCH('Single School Forecast'!$N181,'Standard Inputs - SB 6362'!$D$12:$D$1048576,0)) -> 0 | Y181: =(SUMIF($P$218:$P$326,$L181,Y$218:Y$326))*INDEX('Standard Inputs - SB 6362'!M$12:M$1048576,MATCH('Single School Forecast'!$M181,'Standard Inputs - SB 6362'!$D$12:$D$1048576,0))*INDEX('Standard Inputs - SB 6362'!M$12:M$1048576,MATCH('Single School Forecast'!$N181,'Standard Inputs - SB 6362'!$D$12:$D$1048576,0)) -> 0 | Z181: =(SUMIF($P$218:$P$326,$L181,Z$218:Z$326))*INDEX('Standard Inputs - SB 6362'!N$12:N$1048576,MATCH('Single School Forecast'!$M181,'Standard Inputs - SB 6362'!$D$12:$D$1048576,0))*INDEX('Standard Inputs - SB 6362'!N$12:N$1048576,MATCH('Single School Forecast'!$N181,'Standard Inputs - SB 6362'!$D$12:$D$1048576,0)) -> 0 | AA181: =(SUMIF($P$218:$P$326,$L181,AA$218:AA$326))*INDEX('Standard Inputs - SB 6362'!O$12:O$1048576,MATCH('Single School Forecast'!$M181,'Standard Inputs - SB 6362'!$D$12:$D$1048576,0))*INDEX('Standard Inputs - SB 6362'!O$12:O$1048576,MATCH('Single School Forecast'!$N181,'Standard Inputs - SB 6362'!$D$12:$D$1048576,0)) -> 0 | AB181: =(SUMIF($P$218:$P$326,$L181,AB$218:AB$326))*INDEX('Standard Inputs - SB 6362'!P$12:P$1048576,MATCH('Single School Forecast'!$M181,'Standard Inputs - SB 6362'!$D$12:$D$1048576,0))*INDEX('Standard Inputs - SB 6362'!P$12:P$1048576,MATCH('Single School Forecast'!$N181,'Standard Inputs - SB 6362'!$D$12:$D$1048576,0)) -> 0
O183: SALARIES INCREASE | R183: SY 2017-18 | S183: SY 2018-19 | T183: SY 2019-20 | U183: SY 2020-21 | V183: SY 2021-22 | W183: SY 2022-23 | X183: SY 2023-24 | Y183: SY 2024-25 | Z183: SY 2025-26 | AA183: SY 2026-27 | AB183: SY 2027-28
K184: SS RN CIS | L184: School CIS Staff Units | M184: CIS Salary | N184: Staff Mix Factor | O184: School Generated CIS Salaries Increase | P184: CIS Salaries | R184: =(SUMIF($P$218:$P$326,$K184,R$218:R$326)+SUMIF($P$218:$P$326,$L184,R$218:R$326))*INDEX(R$118:R$121,MATCH($M184,$O$118:$O$121,0))*INDEX(R$118:R$121,MATCH($N184,$O$118:$O$121,0))-R201 -> 0 | S184: =(SUMIF($P$218:$P$326,$K184,S$218:S$326)+SUMIF($P$218:$P$326,$L184,S$218:S$326))*INDEX(S$118:S$121,MATCH($M184,$O$118:$O$121,0))-S201 -> 0 | T184: =(SUMIF($P$218:$P$326,$K184,T$218:T$326)+SUMIF($P$218:$P$326,$L184,T$218:T$326))*INDEX(T$118:T$121,MATCH($M184,$O$118:$O$121,0))-T201 ->  | U184: =(SUMIF($P$218:$P$326,$K184,U$218:U$326)+SUMIF($P$218:$P$326,$L184,U$218:U$326)+U290+U292)*INDEX(U$118:U$121,MATCH($M184,$O$118:$O$121,0))-U201 -> 0 | V184: 675510.7835 | W184: 27018.457 | X184: =(SUMIF($P$218:$P$326,$K184,X$218:X$326)+SUMIF($P$218:$P$326,$L184,X$218:X$326)+X290+X292)*INDEX(X$118:X$121,MATCH($M184,$O$118:$O$121,0))-X201 -> 20516.184 | AB184: =(SUMIF($P$218:$P$326,$K184,AB$218:AB$326)+SUMIF($P$218:$P$326,$L184,AB$218:AB$326)+AB290+AB292)*INDEX(AB$118:AB$121,MATCH($M184,$O$118:$O$121,0))-AB201 -> 
L185: SS RN CAS | M185: School CAS Staff Units | N185: CAS Salary | O185: School Generated CAS Salaries increase | P185: CAS Salaries | R185: =(SUMIF($P$218:$P$326,$L185,R$218:R$326)+SUMIF($P$218:$P$326,$M185,R$218:R$326))*INDEX(R$118:R$121,MATCH($N185,$O$118:$O$121,0))-R202 -> 0 | S185: 0 | T185: 0 | U185: =(SUMIF($P$218:$P$326,$L185,U$218:U$326)+SUMIF($P$218:$P$326,$M185,U$218:U$326)+U289+U291)*INDEX(U$118:U$121,MATCH($N185,$O$118:$O$121,0))-U202 -> 0 | V185: 53877.28496 | W185: 1763.2524 | X185: =(SUMIF($P$218:$P$326,$L185,X$218:X$326)+SUMIF($P$218:$P$326,$M185,X$218:X$326)+X289+X291)*INDEX(X$118:X$121,MATCH($N185,$O$118:$O$121,0))-X202 -> 1331.5335 | AB185: =(SUMIF($P$218:$P$326,$L185,AB$218:AB$326)+SUMIF($P$218:$P$326,$M185,AB$218:AB$326)+AB289+AB291)*INDEX(AB$118:AB$121,MATCH($N185,$O$118:$O$121,0))-AB202 -> 
L186: SS RN CLS | M186: School CLS Staff Units | N186: CLS Salary | O186: School Generated CLS Salaries Increase | P186: CLS Salaries | R186: 0 | S186: 0 | T186: 0 | U186: 0 | V186: 144672.503 | W186: 5064.009034 | X186: 3737.962293 | AB186: =(SUMIF($P$218:$P$326,$L186,AB$218:AB$326)+SUMIF($P$218:$P$326,$M186,AB$218:AB$326))*INDEX(AB$118:AB$121,MATCH($N186,$O$118:$O$121,0))-AB203 -> 
M187: Facilities, Maint, & Grounds | N187: CLS Salary | O187: District Generated Facilities Salaries Increase | P187: CLS Salaries | R187: =SUMIF($P$218:$P$326,$M187,R$218:R$326)*INDEX(R$118:R$121,MATCH($N187,$O$118:$O$121,0))-R204 -> 0 | S187: 0 | T187: 0 | U187: 0 | V187: 8947.897242 | W187: 493.136 | X187: 372.303176 | AB187: =SUMIF($P$218:$P$326,$M187,AB$218:AB$326)*INDEX(AB$118:AB$121,MATCH($N187,$O$118:$O$121,0))-AB204 -> 
M188: Warehouse, Laborer, & Mechanics | N188: CLS Salary | O188: District Generated Warehouse Salaries Increase | P188: CLS Salaries | R188: 0 | S188: 0 | T188: 0 | U188: 0 | V188: 1638.555921 | W188: 90.304 | X188: 68.176864 | AB188: =SUMIF($P$218:$P$326,$M188,AB$218:AB$326)*INDEX(AB$118:AB$121,MATCH($N188,$O$118:$O$121,0))-AB205 -> 
M189: Technology | N189: CLS Salary | O189: District Generated Technology Salaries Increase | P189: CLS Salaries | R189: 0 | S189: 0 | T189: 0 | U189: 0 | V189: 3099.437103 | W189: 170.816 | X189: 128.961056 | AB189: =SUMIF($P$218:$P$326,$M189,AB$218:AB$326)*INDEX(AB$118:AB$121,MATCH($N189,$O$118:$O$121,0))-AB206 -> 
M190: Central Admin CLS Staff Units | N190: CLS Salary | O190: Central Admin CLS Salaries Increase | P190: CLS Salaries | R190: 0 | S190: 0 | U190: 0 | V190: 12905.86757 | W190: 903.515778 | X190: 687.5827294 | AB190: =SUMIF($P$218:$P$326,$M190,AB$218:AB$326)*INDEX(AB$118:AB$121,MATCH($N190,$O$118:$O$121,0))-AB207 -> 
M191: Central Admin CAS Staff Units | N191: CAS Salary | O191: Central Admin CAS Salaries Increase | P191: CAS Salaries | R191: 0 | S191: 0 | U191: 0 | V191: 9126.04545 | W191: 638.8792006 | X191: 486.3873351 | AB191: =SUMIF($P$218:$P$326,$M191,AB$218:AB$326)*INDEX(AB$118:AB$121,MATCH($N191,$O$118:$O$121,0))-AB208 -> 
L192: LAP Staff Units | M192: CIS Salary | N192: Staff Mix Factor | O192: LAP Salaries Increase | P192: LAP Salaries | R192: =SUMIF($P$218:$P$326,$L192,R$218:R$326)*INDEX(R$118:R$121,MATCH($M192,$O$118:$O$121,0))*INDEX(R$118:R$121,MATCH($N192,$O$118:$O$121,0))-R209 -> 0 | S192: =SUMIF($P$218:$P$326,$L192,S$218:S$326)*INDEX(S$118:S$121,MATCH($M192,$O$118:$O$121,0))-S209 -> 0 | T192: 0 | U192: 0 | V192: 12148.81569 | W192: 551.017502 | X192: 372.476559 | Y192: 996.6635934 | AB192: =SUMIF($P$218:$P$326,$L192,AB$218:AB$326)*INDEX(AB$118:AB$121,MATCH($M192,$O$118:$O$121,0))-AB209 -> 
L193: TBIP Staff Units | M193: CIS Salary | N193: Staff Mix Factor | O193: TBIP Salaries increase | P193: TBIP Salaries | R193: =SUMIF($P$218:$P$326,$L193,R$218:R$326)*INDEX(R$118:R$121,MATCH($M193,$O$118:$O$121,0))*INDEX(R$118:R$121,MATCH($N193,$O$118:$O$121,0))-R210 -> 0 | S193: 0 | T193: 0 | U193: 0 | V193: 0 | W193: 0 | X193: 30.40309899 | AB193: =SUMIF($P$218:$P$326,$L193,AB$218:AB$326)*INDEX(AB$118:AB$121,MATCH($M193,$O$118:$O$121,0))-AB210 -> 
L194: HiCap Staff Units | M194: CIS Salary | N194: Staff Mix Factor | O194: HiCap Salaries Increase | P194: HiCAP Salaries | R194: =SUMIF($P$218:$P$326,$L194,R$218:R$326)*INDEX(R$118:R$121,MATCH($M194,$O$118:$O$121,0))*INDEX(R$118:R$121,MATCH($N194,$O$118:$O$121,0))-R211 -> 0 | S194: 0 | T194: 0 | U194: 0 | V194: 1980.497507 | W194: 109.1302533 | X194: 82.42267488 | AB194: =SUMIF($P$218:$P$326,$L194,AB$218:AB$326)*INDEX(AB$118:AB$121,MATCH($M194,$O$118:$O$121,0))-AB211 -> 
L195: LAP High Pov Staff Units | M195: CIS Salary | N195: Staff Mix Factor | O195: LAP High Poverty Salaries Increase | P195: LAP High Pov Salaries | R195: =SUMIF($P$218:$P$326,$L195,R$218:R$326)*INDEX(R$118:R$121,MATCH($M195,$O$118:$O$121,0))*INDEX(R$118:R$121,MATCH($N195,$O$118:$O$121,0))-R212 -> 0 | S195: 0 | T195: 0 | U195: 0 | V195: 0 | W195: 0 | X195: 0 | Y195: 0 | AB195: =SUMIF($P$218:$P$326,$L195,AB$218:AB$326)*INDEX(AB$118:AB$121,MATCH($M195,$O$118:$O$121,0))-AB212 -> 
L196: CIS K-12 Average SpEd | M196: CIS Salary | N196: Staff Mix Factor | O196: CIS Salary SpEd Increase | P196: CIS SpEd Salary | R196: =SUMIF($P$218:$P$326,$L196,R$218:R$326)*INDEX(R$118:R$121,MATCH($M196,$O$118:$O$121,0))*INDEX(R$118:R$121,MATCH($N196,$O$118:$O$121,0))-R213 -> 0 | S196: 0 | T196: 0 | U196: 0 | V196: 3348.890523 | W196: 246.9138956 | X196: 180.1729965 | Y196: 0 | Z196: 0 | AA196: 0 | AB196: =SUMIF($P$218:$P$326,$L196,AB$218:AB$326)*INDEX(AB$118:AB$121,MATCH($M196,$O$118:$O$121,0))-AB213 -> 0
M197: CAS K-12 Average SpEd | N197: CAS Salary | O197: CAS Salary SpEd Increase | P197: CAS SpEd Salary | R197: =SUMIF($P$218:$P$326,$M197,R$218:R$326)*INDEX(R$118:R$121,MATCH($N197,$O$118:$O$121,0))-R214 -> 0 | S197: 0 | T197: 0 | U197: 0 | V197: 412.37781 | W197: 23.88573852 | X197: 17.08194791 | Y197: 0 | AB197: =SUMIF($P$218:$P$326,$M197,AB$218:AB$326)*INDEX(AB$118:AB$121,MATCH($N197,$O$118:$O$121,0))-AB214 -> 0
M198: CLS K-12 Average SpEd | N198: CLS Salary | O198: CLS Salary SpEd Increase | P198: CLS SpEd Salary | R198: 0 | S198: 0 | T198: 0 | U198: 0 | V198: 845.6463 | W198: 48.868064 | X198: 34.78797066 | Y198: 0 | Z198: 0 | AA198: 0 | AB198: =SUMIF($P$218:$P$326,$M198,AB$218:AB$326)*INDEX(AB$118:AB$121,MATCH($N198,$O$118:$O$121,0))-AB215 -> 0
O200: SALARIES MAINTENANCE | R200: SY 2017-18 | S200: SY 2018-19 | T200: SY 2019-20 | U200: SY 2020-21 | V200: SY 2021-22 | W200: SY 2022-23 | X200: SY 2023-24 | Y200: SY 2024-25 | Z200: SY 2025-26 | AA200: SY 2026-27 | AB200: SY 2027-28 | AC200: <<Note these salary totals pull of the previous years salary, thus staff mix factor for CIS is used in 17-18 and 18-19
K201: SS RN CIS | L201: School CIS Staff Units | M201: CIS Salary | N201: Staff Mix Factor | O201: School Generated CIS Salaries | P201: CIS Salaries | R201: =(SUMIF($P$218:$P$326,$K201,R$218:R$326)+SUMIF($P$218:$P$326,$L201,R$218:R$326))*INDEX(Q$118:Q$121,MATCH($M201,$O$118:$O$121,0))*INDEX(Q$118:Q$121,MATCH($N201,$O$118:$O$121,0)) -> 0 | S201: =(SUMIF($P$218:$P$326,$K201,S$218:S$326)+SUMIF($P$218:$P$326,$L201,S$218:S$326))*INDEX(R$118:R$121,MATCH($M201,$O$118:$O$121,0))*INDEX(R$118:R$121,MATCH($N201,$O$118:$O$121,0)) -> 0 | T201: =(SUMIF($P$218:$P$326,$K201,T$218:T$326)+SUMIF($P$218:$P$326,$L201,T$218:T$326))*INDEX(S$118:S$121,MATCH($M201,$O$118:$O$121,0)) ->  | U201: =(SUMIF($P$218:$P$326,$K201,U$218:U$326)+SUMIF($P$218:$P$326,$L201,U$218:U$326)+U290+U292)*INDEX(T$118:T$121,MATCH($M201,$O$118:$O$121,0)) -> 0 | V201: 0 | W201: 491313.999 | X201: =(SUMIF($P$218:$P$326,$K201,X$218:X$326)+SUMIF($P$218:$P$326,$L201,X$218:X$326)+X290+X292)*INDEX(W$118:W$121,MATCH($M201,$O$118:$O$121,0)) -> 554478.272
L202: SS RN CAS | M202: School CAS Staff Units | N202: CAS Salary | O202: School Generated CAS Salaries | P202: CAS Salaries | R202: =(SUMIF($P$218:$P$326,$L202,R$218:R$326)+SUMIF($P$218:$P$326,$M202,R$218:R$326))*INDEX(Q$118:Q$121,MATCH($N202,$O$118:$O$121,0)) -> 0 | S202: 0 | T202: 0 | U202: =(SUMIF($P$218:$P$326,$L202,U$218:U$326)+SUMIF($P$218:$P$326,$M202,U$218:U$326)+U289+U291)*INDEX(T$118:T$121,MATCH($N202,$O$118:$O$121,0)) -> 0 | V202: 0 | W202: 32059.0491 | X202: 35981.4015
L203: SS RN CLS | M203: School CLS Staff Units | N203: CLS Salary | O203: School Generated CLS Salaries | P203: CLS Salaries | R203: 0 | S203: 0 | T203: 0 | U203: 0 | V203: 0 | W203: 92070.01425 | X203: 101046.9983
M204: Facilities, Maint, & Grounds | N204: CLS Salary | O204: District Generated Facilities Salaries | P204: CLS Salaries | R204: =SUMIF($P$218:$P$326,$M204,R$218:R$326)*INDEX(Q$118:Q$121,MATCH($N204,$O$118:$O$121,0)) -> 0 | S204: 0 | T204: 0 | U204: 0 | V204: 0 | W204: 8965.8289 | X204: 10064.33865
M205: Warehouse, Laborer, & Mechanics | N205: CLS Salary | O205: District Generated Warehouse Salaries | P205: CLS Salaries | R205: 0 | S205: 0 | T205: 0 | U205: 0 | V205: 0 | W205: 1641.8396 | X205: 1843.00079
M206: Technology | N206: CLS Salary | O206: District Generated Technology Salaries | P206: CLS Salaries | R206: 0 | S206: 0 | T206: 0 | U206: 0 | V206: 0 | W206: 3105.6484 | X206: 3486.158122
M207: Central Admin CLS Staff Units | N207: CLS Salary | O207: Central Admin CLS Salaries | P207: CLS Salaries | R207: 0 | S207: 0 | U207: 0 | V207: 0 | W207: 16427.04624 | X207: 18587.1781
M208: Central Admin CAS Staff Units | N208: CAS Salary | O208: Central Admin CAS Salaries | P208: CAS Salaries | R208: 0 | S208: 0 | U208: 0 | V208: 0 | W208: 11615.95451 | X208: 13143.41546
L209: LAP Staff Units | M209: CIS Salary | N209: Staff Mix Factor | O209: LAP Salaries | P209: LAP Salaries | R209: =SUMIF($P$218:$P$326,$L209,R$218:R$326)*INDEX(Q$118:Q$121,MATCH($M209,$O$118:$O$121,0))*INDEX(Q$118:Q$121,MATCH($N209,$O$118:$O$121,0)) -> 0 | S209: 0 | T209: =SUMIF($P$218:$P$326,$L209,T$218:T$326)*INDEX(S$118:S$121,MATCH($M209,$O$118:$O$121,0)) -> 0 | U209: 0 | V209: 0 | W209: 10019.91388 | X209: 10066.69461 | Y209: 25555.47675
L210: TBIP Staff Units | M210: CIS Salary | N210: Staff Mix Factor | O210: TBIP Salaries | P210: TBIP Salaries | R210: 0 | S210: 0 | T210: 0 | U210: 0 | V210: 0 | W210: 0 | X210: 821.6858354
L211: HiCap Staff Units | M211: CIS Salary | N211: Staff Mix Factor | O211: HiCap Salaries | P211: HiCAP Salaries | R211: 0 | S211: 0 | T211: 0 | U211: 0 | V211: 0 | W211: 1984.46644 | X211: 2227.586882
L212: LAP High Pov Staff Units | M212: CIS Salary | N212: Staff Mix Factor | O212: LAP High Poverty Salaries | P212: LAP High Pov Salaries | R212: 0 | S212: 0 | T212: 0 | U212: 0 | V212: 0 | W212: 0 | X212: 0 | Y212: 0
L213: CIS K-12 Average SpEd | M213: CIS Salary | N213: Staff Mix Factor | O213: CIS Salary SpEd | P213: CIS SpEd Salary | R213: 0 | S213: 0 | T213: 0 | U213: 0 | V213: 0 | W213: 4489.977109 | X213: 4869.424634 | Y213: 0 | Z213: 0 | AA213: 0 | AB213: 0
M214: CAS K-12 Average SpEd | N214: CAS Salary | O214: CAS Salary SpEd | P214: CAS SpEd Salary | R214: =SUMIF($P$218:$P$326,$M214,R$218:R$326)*INDEX(Q$118:Q$121,MATCH($N214,$O$118:$O$121,0)) -> 0 | S214: 0 | T214: 0 | U214: 0 | V214: 0 | W214: 434.2849974 | X214: 461.5974184 | Y214: 0 | Z214: 0 | AB214: 0
M215: CLS K-12 Average SpEd | N215: CLS Salary | O215: CLS Salary SpEd | P215: CLS SpEd Salary | R215: 0 | S215: 0 | T215: 0 | U215: 0 | V215: 0 | W215: 888.4824886 | X215: 940.4107736 | Y215: 0 | Z215: 0 | AA215: 0 | AB215: 0
O217: STAFF UNITS | Q217: SY 2016-17 | R217: SY 2017-18 | S217: SY 2018-19 | T217: SY 2019-20 | U217: SY 2020-21 | V217: SY 2021-22 | W217: SY 2022-23 | X217: SY 2023-24 | Y217: SY 2024-25 | Z217: SY 2025-26 | AA217: SY 2026-27 | AB217: SY 2027-28
L218: Total School Generated Staff Units | M218: District CLS Staff Units | N218: Central Admin Percent | O218: Central Administration Total | P218: Central Administration Total | R218: =(SUMIF($P$221:$P$326,$L218,R$221:R$326)+SUMIF($P$221:$P$326,$M218,R$221:R$326))*INDEX('Standard Inputs - SB 6362'!F$12:F$1048576,MATCH($N218,'Standard Inputs - SB 6362'!$D$12:$D$1048576,0)) -> 0 | S218: =(SUMIF($P$221:$P$326,$L218,S$221:S$326)+SUMIF($P$221:$P$326,$M218,S$221:S$326))*INDEX('Standard Inputs - SB 6362'!G$12:G$1048576,MATCH($N218,'Standard Inputs - SB 6362'!$D$12:$D$1048576,0)) -> 0 | T218: =(SUMIF($P$221:$P$326,$L218,T$221:T$326)+SUMIF($P$221:$P$326,$M218,T$221:T$326))*INDEX('Standard Inputs - SB 6362'!H$12:H$1048576,MATCH($N218,'Standard Inputs - SB 6362'!$D$12:$D$1048576,0)) ->  | U218: =(SUMIF($P$221:$P$326,$L218,U$221:U$326)+SUMIF($P$221:$P$326,$M218,U$221:U$326))*INDEX('Standard Inputs - SB 6362'!I$12:I$1048576,MATCH($N218,'Standard Inputs - SB 6362'!$D$12:$D$1048576,0)) -> 0 | V218: =(SUMIF($P$221:$P$326,$L218,V$221:V$326)+SUMIF($P$221:$P$326,$M218,V$221:V$326))*INDEX('Standard Inputs - SB 6362'!J$12:J$1048576,MATCH($N218,'Standard Inputs - SB 6362'!$D$12:$D$1048576,0)) -> 0.3501575062 | W218: =(SUMIF($P$221:$P$326,$L218,W$221:W$326)+SUMIF($P$221:$P$326,$M218,W$221:W$326))*INDEX('Standard Inputs - SB 6362'!K$12:K$1048576,MATCH($N218,'Standard Inputs - SB 6362'!$D$12:$D$1048576,0)) -> 0.4456929 | X218: =(SUMIF($P$221:$P$326,$L218,X$221:X$326)+SUMIF($P$221:$P$326,$M218,X$221:X$326))*INDEX('Standard Inputs - SB 6362'!L$12:L$1048576,MATCH($N218,'Standard Inputs - SB 6362'!$D$12:$D$1048576,0)) -> 0.4780095016 | Y218: =(SUMIF($P$221:$P$326,$L218,Y$221:Y$326)+SUMIF($P$221:$P$326,$M218,Y$221:Y$326))*INDEX('Standard Inputs - SB 6362'!M$12:M$1048576,MATCH($N218,'Standard Inputs - SB 6362'!$D$12:$D$1048576,0)) ->  | Z218: =(SUMIF($P$221:$P$326,$L218,Z$221:Z$326)+SUMIF($P$221:$P$326,$M218,Z$221:Z$326))*INDEX('Standard Inputs - SB 6362'!N$12:N$1048576,MATCH($N218,'Standard Inputs - SB 6362'!$D$12:$D$1048576,0)) ->  | AA218: =(SUMIF($P$221:$P$326,$L218,AA$221:AA$326)+SUMIF($P$221:$P$326,$M218,AA$221:AA$326))*INDEX('Standard Inputs - SB 6362'!O$12:O$1048576,MATCH($N218,'Standard Inputs - SB 6362'!$D$12:$D$1048576,0)) ->  | AB218: =(SUMIF($P$221:$P$326,$L218,AB$221:AB$326)+SUMIF($P$221:$P$326,$M218,AB$221:AB$326))*INDEX('Standard Inputs - SB 6362'!P$12:P$1048576,MATCH($N218,'Standard Inputs - SB 6362'!$D$12:$D$1048576,0)) -> 
... 108 more rows

Sheet Standard Inputs - SB 6362 (hidden)
C2: Value provided in legisation or calculated by OSPI according to legislation
C3: Value assumed and set at the same level as latest year of available data (some available data is a projection, some is known)
C4: Value is a projection by OSPI, based on legislation
C5: Input not applicable
C6: Value Missing from sources
B7: Note: SY 2017-18 and 18-19 values are provided in HB2242, values for SY19-20 thru SY21-22 are set to equal SY18-19 unless otherwise provided by OPSI or the legislature
E9: Current | F9: 17-19 K-12 Bill | G9: 17-19 K-12 Bill | H9: Assumed | I9: As of 4/2020 | J9: Assumed | K9: Assumed | L9: Assumed | M9: Assumed | N9: Assumed | O9: Assumed | P9: Assumed
E10: 2016 | F10: =E10+1 -> 2017 | G10: =F10+1 -> 2018 | H10: 2019 | I10: 2020 | J10: 2021 | K10: 2022 | L10: 2023 | M10: 2024 | N10: 2025 | O10: 2026 | P10: 2027 | R10: JIM CHECKED THIS
B11: Unit Type | C11: Funding Category | D11: Input Name | E11: SY 2016-17 | F11: SY 2017-18 | G11: SY 2018-19 | H11: SY 2019-20 | I11: SY 2020-21 | J11: SY 2021-22 | K11: SY 2022-23 | L11: SY 2023-24 | M11: SY 2024-25 | N11: SY 2025-26 | O11: SY 2026-27 | P11: SY 2027-28 | Q11: Source | T11: Notes
B12: Weeks | C12: Categorical | D12: LAP Instruct Wks/Year | E12: 36 | F12: 36 | G12: 36 | H12: =$G12 -> 36 | I12: 36 | J12: 36 | K12: 36 | L12: 36 | M12: 36 | N12: 36 | O12: 36 | P12: 36 | Q12: John Jenft sheet - http://www.k12.wa.us/SAFS/17budprp.asp | R12: WHERE IS THIS?
B13: Students per class | C13: Categorical | D13: LAP Class Size | E13: 15 | F13: 15 | G13: 15 | H13: 15 | I13: 15 | J13: 15 | K13: 15 | L13: 15 | M13: 15 | N13: 15 | O13: 15 | P13: 15 | Q13: John Jenft sheet - http://www.k12.wa.us/SAFS/17budprp.asp | R13: NO CHANGE
B14: Hours | C14: Categorical | D14: LAP Instruct Hr/Year | E14: 900 | F14: 900 | G14: 900 | H14: 900 | I14: 900 | J14: 900 | K14: 900 | L14: 900 | M14: 900 | N14: 900 | O14: 900 | P14: 900 | Q14: John Jenft sheet - http://www.k12.wa.us/SAFS/17budprp.asp | R14: WHERE IS THIS?
B15: Weeks | C15: Categorical | D15: LAP High Pov Instruct Wks/Year | E15: 36 | F15: 36 | G15: 36 | H15: 36 | I15: 36 | J15: 36 | K15: 36 | L15: 36 | M15: 36 | N15: 36 | O15: 36 | P15: 36 | Q15: John Jenft sheet - http://www.k12.wa.us/SAFS/17budprp.asp | R15: WHERE IS THIS?
B16: Students per class | C16: Categorical | D16: LAP High Pov Class Size | E16: 15 | F16: 15 | G16: 15 | H16: 15 | I16: 15 | J16: 15 | K16: 15 | L16: 15 | M16: 15 | N16: 15 | O16: 15 | P16: 15 | Q16: John Jenft sheet - http://www.k12.wa.us/SAFS/17budprp.asp | R16: WHERE IS THIS?
B17: Hours | C17: Categorical | D17: LAP High Pov Instruct Hr/Year | E17: 900 | F17: 900 | G17: 900 | H17: 900 | I17: 900 | J17: 900 | K17: 900 | L17: 900 | M17: 900 | N17: 900 | O17: 900 | P17: 900 | Q17: John Jenft sheet - http://www.k12.wa.us/SAFS/17budprp.asp | R17: WHERE IS THIS?
B18: Weeks | C18: Categorical | D18: TBIP Instruct Wks/Year | E18: 36 | F18: 36 | G18: 36 | H18: 36 | I18: 36 | J18: 36 | K18: 36 | L18: 36 | M18: 36 | N18: 36 | O18: 36 | P18: 36 | Q18: John Jenft sheet - http://www.k12.wa.us/SAFS/17budprp.asp | R18: WHERE IS THIS?
B19: Students per class | C19: Categorical | D19: TBIP Class Size | E19: 15 | F19: 15 | G19: 15 | H19: 15 | I19: 15 | J19: 15 | K19: 15 | L19: 15 | M19: 15 | N19: 15 | O19: 15 | P19: 15 | Q19: John Jenft sheet - http://www.k12.wa.us/SAFS/17budprp.asp | R19: NO CHANGE
B20: Hours | C20: Categorical | D20: TBIP Instruct Hr/Year | E20: 900 | F20: 900 | G20: 900 | H20: 900 | I20: 900 | J20: 900 | K20: 900 | L20: 900 | M20: 900 | N20: 900 | O20: 900 | P20: 900 | Q20: John Jenft sheet - http://www.k12.wa.us/SAFS/17budprp.asp | R20: WHERE IS THIS?
B21: Weeks | C21: Categorical | D21: HiCap Instruct Wks/Year | E21: 36 | F21: 36 | G21: 36 | H21: 36 | I21: 36 | J21: 36 | K21: 36 | L21: 36 | M21: 36 | N21: 36 | O21: 36 | P21: 36 | Q21: John Jenft sheet - http://www.k12.wa.us/SAFS/17budprp.asp | R21: WHERE IS THIS?
B22: Students per class | C22: Categorical | D22: HiCap Class Size | E22: 15 | F22: 15 | G22: 15 | H22: 15 | I22: 15 | J22: 15 | K22: 15 | L22: 15 | M22: 15 | N22: 15 | O22: 15 | P22: 15 | Q22: John Jenft sheet - http://www.k12.wa.us/SAFS/17budprp.asp | R22: NO CHANGE
B23: Hours | C23: Categorical | D23: HiCap Instruct Hr/Year | E23: 900 | F23: 900 | G23: 900 | H23: 900 | I23: 900 | J23: 900 | K23: 900 | L23: 900 | M23: 900 | N23: 900 | O23: 900 | P23: 900 | Q23: John Jenft sheet - http://www.k12.wa.us/SAFS/17budprp.asp | R23: WHERE IS THIS?
B24: Weeks | C24: Categorical | D24: TBIP Exited Instruct Wks/Year | E24: 36 | F24: 36 | G24: 36 | H24: 36 | I24: 36 | J24: 36 | K24: 36 | L24: 36 | M24: 36 | N24: 36 | O24: 36 | P24: 36 | Q24: John Jenft sheet - http://www.k12.wa.us/SAFS/17budprp.asp | R24: WHERE IS THIS?
B25: Students per class | C25: Categorical | D25: TBIP Exited Class Size | E25: 15 | F25: 15 | G25: 15 | H25: 15 | I25: 15 | J25: 15 | K25: 15 | L25: 15 | M25: 15 | N25: 15 | O25: 15 | P25: 15 | Q25: John Jenft sheet - http://www.k12.wa.us/SAFS/17budprp.asp | R25: WHERE IS THIS?
B26: Hours | C26: Categorical | D26: TBIP Exited Instruct Hr/Year | E26: 900 | F26: 900 | G26: 900 | H26: 900 | I26: 900 | J26: 900 | K26: 900 | L26: 900 | M26: 900 | N26: 900 | O26: 900 | P26: 900 | Q26: John Jenft sheet - http://www.k12.wa.us/SAFS/17budprp.asp | R26: WHERE IS THIS?
B27: Students per class | C27: Special Education | D27: Poverty Class Size 2-3 | E27: 24.1 | F27: 24.1 | G27: 24.1 | H27: 24.1 | I27: 24.1 | J27: 24.1 | K27: 24.1 | L27: 24.1 | M27: 24.1 | N27: 24.1 | O27: 24.1 | P27: 24.1 | Q27: OSPI Apportionment Reports / F-203 | R27: WHERE IS THIS? | S27: Does the value stay the same in 17-18 thru, 20-21
B28: % | C28: General Entitlement | D28: Central Admin Percent | E28: 0.053 | F28: 0.053 | G28: 0.053 | H28: =$G28 -> 0.053 | I28: 0.053 | J28: 0.053 | K28: 0.053 | L28: 0.053 | M28: 0.053 | N28: 0.053 | O28: 0.053 | P28: 0.053 | Q28: OPSI Apportionment reports | R28: WHERE IS THIS? | S28: Do all districts have the same values?
B29: % | C29: Special Education / SS RN | D29: Pupil K-3 CIS | E29: 0.057555 | F29: 0.071169 | G29: 0.07117 | H29: 0.07117 | I29: 0.07117 | J29: 0.071169 | K29: 0.07117 | L29: 0.07345 | M29: 0.07345 | N29: 0.07345 | O29: 0.07345 | P29: 0.07345 | Q29: All values provided by Melissa Jarmon, Apportionment Program Supervisor, OSPI | R29: Need Haid | T29: Pupil K-3 CIS value assumes a 17 student class size in school years 18-19 and 20-21
B30: % | C30: Special Education / SS RN | D30: Pupil 4 CIS | E30: 0.046006 | F30: 0.046006 | G30: 0.04601 | H30: 0.04601 | I30: 0.04601 | J30: 0.046006 | K30: 0.04601 | L30: 0.04828 | M30: 0.04828 | N30: 0.04828 | O30: 0.04828 | P30: 0.04828 | Q30: All values provided by Melissa Jarmon, Apportionment Program Supervisor, OSPI | R30: Need Haid
B31: % | C31: Special Education / SS RN | D31: Pupil 5-6 CIS | E31: 0.046006 | F31: 0.046006 | G31: 0.04601 | H31: 0.04601 | I31: 0.04601 | J31: 0.046006 | K31: 0.04601 | L31: 0.04828 | M31: 0.04828 | N31: 0.04828 | O31: 0.04828 | P31: 0.04828 | Q31: All values provided by Melissa Jarmon, Apportionment Program Supervisor, OSPI | R31: Need Haid | S31: Do the values stay the same in the out years?
B32: % | C32: Special Education / SS RN | D32: Pupil 7-8 CIS | E32: 0.046235 | F32: 0.046235 | G32: 0.04623 | H32: 0.04623 | I32: 0.04623 | J32: 0.046235 | K32: 0.04623 | L32: 0.04844 | M32: 0.04844 | N32: 0.04844 | O32: 0.04844 | P32: 0.04844 | Q32: All values provided by Melissa Jarmon, Apportionment Program Supervisor, OSPI | R32: Need Haid | S32: Do the values stay the same in the out years?
B33: % | C33: Special Education / SS RN | D33: Pupil 9-12 CIS | E33: 0.048579 | F33: 0.048579 | G33: 0.04858 | H33: 0.04858 | I33: 0.04858 | J33: 0.048579 | K33: 0.04858 | L33: 0.05013 | M33: 0.05013 | N33: 0.05013 | O33: 0.05013 | P33: 0.05013 | Q33: All values provided by Melissa Jarmon, Apportionment Program Supervisor, OSPI | R33: Need Haid | S33: Do the values stay the same in the out years?
B34: % | C34: Special Education / SS RN | D34: Pupil K-3 CAS | E34: 0.004151 | F34: 0.004334 | G34: 0.004334 | H34: 0.004334 | I34: 0.004334 | J34: 0.004334 | K34: 0.004334 | L34: 0.004365 | M34: 0.004365 | N34: 0.004365 | O34: 0.004365 | P34: 0.004365 | Q34: All values provided by Melissa Jarmon, Apportionment Program Supervisor, OSPI | R34: Need Haid | S34: Do the values stay the same in the out years? | T34: Pupil K-3 CIS value assumes a 17 student class size in school years 18-19 and 20-21
B35: % | C35: Special Education / SS RN | D35: Pupil 4 CAS | E35: 0.003995 | F35: 0.003995 | G35: 0.00399 | H35: 0.00399 | I35: 0.00399 | J35: 0.00399 | K35: 0.003995 | L35: 0.00402 | M35: 0.00402 | N35: 0.00402 | O35: 0.00402 | P35: 0.00402 | Q35: All values provided by Melissa Jarmon, Apportionment Program Supervisor, OSPI | R35: Need Haid | S35: Do the values stay the same in the out years?
B36: % | C36: Special Education / SS RN | D36: Pupil 5-6 CAS | E36: 0.003995 | F36: 0.003995 | G36: 0.00399 | H36: 0.00399 | I36: 0.00399 | J36: 0.00399 | K36: 0.00395 | L36: 0.00402 | M36: 0.00402 | N36: 0.00402 | O36: 0.00402 | P36: 0.00402 | Q36: All values provided by Melissa Jarmon, Apportionment Program Supervisor, OSPI | R36: Need Haid | S36: Do the values stay the same in the out years?
B37: % | C37: Special Education / SS RN | D37: Pupil 7-8 CAS | E37: 0.003994 | F37: 0.003994 | G37: 0.00399 | H37: 0.00399 | I37: 0.00399 | J37: 0.00399 | K37: 0.003994 | L37: 0.00402 | M37: 0.00402 | N37: 0.00402 | O37: 0.00402 | P37: 0.00402 | Q37: All values provided by Melissa Jarmon, Apportionment Program Supervisor, OSPI | R37: Need Haid | S37: Do the values stay the same in the out years?
B38: % | C38: Special Education / SS RN | D38: Pupil 9-12 CAS | E38: 0.004027 | F38: 0.004027 | G38: 0.00403 | H38: 0.004027 | I38: 0.00403 | J38: 0.00403 | K38: 0.004027 | L38: 0.00404 | M38: 0.00404 | N38: 0.00404 | O38: 0.00404 | P38: 0.00404 | Q38: All values provided by Melissa Jarmon, Apportionment Program Supervisor, OSPI | R38: Need Haid | S38: Do the values stay the same in the out years?
B39: % | C39: Special Education / SS RN | D39: Pupil K-3 CLS | E39: 0.017667 | F39: 0.018204 | G39: 0.018204 | H39: =$G39 -> 0.018204 | I39: 0.018204 | J39: 0.018204 | K39: 0.018205 | L39: 0.018294 | M39: 0.018294 | N39: 0.018294 | O39: 0.018294 | P39: 0.018294 | Q39: All values provided by Melissa Jarmon, Apportionment Program Supervisor, OSPI | R39: Need Haid | S39: Do the values stay the same in the out years? | T39: Pupil K-3 CIS value assumes a 17 student class size in school years 18-19 and 20-21
B40: % | C40: Special Education / SS RN | D40: Pupil 4 CLS | E40: 0.017211 | F40: 0.017211 | G40: 0.01721 | H40: 0.01721 | I40: 0.01721 | J40: 0.01721 | K40: 0.01721 | L40: 0.0173 | M40: 0.0173 | N40: 0.0173 | O40: 0.0173 | P40: 0.0173 | Q40: All values provided by Melissa Jarmon, Apportionment Program Supervisor, OSPI | R40: Need Haid | S40: Do the values stay the same in the out years?
B41: % | C41: Special Education / SS RN | D41: Pupil 5-6 CLS | E41: 0.017211 | F41: 0.017211 | G41: 0.01721 | H41: 0.01721 | I41: 0.01721 | J41: 0.01721 | K41: 0.01721 | L41: 0.0173 | M41: 0.0173 | N41: 0.0173 | O41: 0.0173 | P41: 0.0173 | Q41: All values provided by Melissa Jarmon, Apportionment Program Supervisor, OSPI | R41: Need Haid | S41: Do the values stay the same in the out years?
B42: % | C42: Special Education / SS RN | D42: Pupil 7-8 CLS | E42: 0.017006 | F42: 0.017006 | G42: 0.01701 | H42: 0.01701 | I42: 0.01701 | J42: 0.017006 | K42: 0.01701 | L42: 0.01709 | M42: 0.01709 | N42: 0.01709 | O42: 0.01709 | P42: 0.01709 | Q42: All values provided by Melissa Jarmon, Apportionment Program Supervisor, OSPI | R42: Need Haid | S42: Do the values stay the same in the out years?
B43: % | C43: Special Education / SS RN | D43: Pupil 9-12 CLS | E43: 0.0171 | F43: 0.017 | G43: 0.0171 | H43: 0.0171 | I43: 0.0171 | J43: 0.0171 | K43: 0.0171 | L43: 0.01716 | M43: 0.01716 | N43: 0.01716 | O43: 0.01716 | P43: 0.01716 | Q43: All values provided by Melissa Jarmon, Apportionment Program Supervisor, OSPI | R43: Need Haid | S43: Do the values stay the same in the out years?
B44: % | C44: Special Education / SS RN | D44: Teacher % | E44: 0.917 | F44: 0.917 | G44: 0.917 | H44: 0.917 | I44: 0.917 | J44: =$G44 -> 0.917 | K44: =$G44 -> 0.917 | L44: 0.917 | M44: 0.917 | N44: 0.917 | O44: 0.917 | P44: 0.917 | Q44: All values provided by Melissa Jarmon, Apportionment Program Supervisor, OSPI | R44: Need Haid | S44: Do the values stay the same in the out years? Is this value standard for
B45: $ | C45: Special Education | D45: 2004-05 Fed Funds Integation Rate per Student | E45: 130.47 | F45: 130.47 | G45: 130.47 | H45: 130.47 | I45: 130.47 | J45: =$G45 -> 130.47 | K45: 130.47 | L45: 129.25 | M45: 130.47 | N45: 130.47 | O45: 130.47 | P45: 130.47 | Q45: OSPI Apportionment Reports / F-203 | R45: I see old 04-05 value 129.47 in apportionment rept.
B46: % | C46: Special Education | D46: District Exp. -State Recovery Rate | E46: 0.1 | F46: 0.1 | G46: 0.1 | H46: 0.1 | I46: 0.1 | J46: =$G46 -> 0.1 | K46: 0.1 | L46: 0.1 | M46: 0.1 | N46: 0.1 | O46: 0.1 | P46: 0.1 | Q46: OSPI Apportionment Reports / F-203 | R46: WHERE IS THIS? | S46: Do the values stay the same in the out years? Is this value standard for
B47: Days | C47: General Entitlement | D47: Professional Learning Days | F47: 0 | G47: 1 | H47: 2 | I47: 3 | J47: =I47 -> 3 | K47: 3 | L47: 3 | M47: 3 | N47: 3 | O47: 3 | P47: 3 | Q47: HB 2242 | R47: NO CHANGE
B48: Hours | C48: Categorical | D48: LAP Hours / per Student | E48: 2.3975 | F48: 2.3975 | G48: 2.3975 | H48: =$G48 -> 2.3975 | I48: 2.3975 | J48: 2.3975 | K48: 2.3975 | L48: 2.3975 | M48: 2.3975 | N48: 2.3975 | O48: 2.3975 | P48: 2.3975 | Q48: John Jenft sheet - http://www.k12.wa.us/SAFS/17budprp.asp | R48: NO CHANGE | T48: Note: in the John Jenft sheet LAP hours is expressed as 3.4975 representing the sum of
B49: Hours | C49: Categorical | D49: LAP High Pov Hours / per Student | F49: 1.1 | G49: 1.1 | H49: 1.1 | I49: 1.1 | J49: 1.1 | K49: 1.1 | L49: 1.1 | M49: 1.1 | N49: 1.1 | O49: 1.1 | P49: 1.1 | Q49: John Jenft sheet - http://www.k12.wa.us/SAFS/17budprp.asp | R49: NO CHANGE
B50: Hours | C50: Categorical | D50: TBIP (K-6) Hours / per Student | E50: 4.778 | F50: 4.778 | G50: 4.778 | H50: 4.778 | I50: 4.778 | J50: 4.778 | K50: 4.778 | L50: 4.778 | M50: 4.778 | N50: 4.778 | O50: 4.778 | P50: 4.778 | Q50: John Jenft sheet - http://www.k12.wa.us/SAFS/17budprp.asp | R50: NO CHANGE
B51: Hours | C51: Categorical | D51: TBIP (7-8) Hours / per Student | E51: 4.778 | F51: 6.778 | G51: 6.778 | H51: 6.778 | I51: 6.778 | J51: 6.778 | K51: 6.778 | L51: 6.778 | M51: 6.778 | N51: 6.778 | O51: 6.778 | P51: 6.778 | Q51: John Jenft sheet - http://www.k12.wa.us/SAFS/17budprp.asp | R51: NO CHANGE
B52: Hours | C52: Categorical | D52: TBIP Exited Hours / per Student | E52: 3 | F52: 3 | G52: 3 | H52: 3 | I52: 3 | J52: 3 | K52: 3 | L52: 3 | M52: 3 | N52: 3 | O52: 3 | P52: 3 | Q52: John Jenft sheet - http://www.k12.wa.us/SAFS/17budprp.asp | R52: NO CHANGE
B53: Hours | C53: Categorical | D53: HiCap Hours / per Student | E53: 2.159 | F53: 2.159 | G53: 2.159 | H53: 2.159 | I53: 2.159 | J53: 2.159 | K53: 2.159 | L53: 2.159 | M53: 2.159 | N53: 2.159 | O53: 2.159 | P53: 2.159 | Q53: John Jenft sheet - http://www.k12.wa.us/SAFS/17budprp.asp | R53: NO CHANGE
B54: % | C54: Categorical | D54: HiCap students % | E54: 0.02314 | F54: 0.05 | G54: 0.05 | H54: 0.05 | I54: 0.05 | J54: 0.05 | K54: 0.05 | L54: 0.05 | M54: 0.05 | N54: 0.05 | O54: 0.05 | P54: 0.05 | Q54: John Jenft sheet - http://www.k12.wa.us/SAFS/17budprp.asp | R54: NO CHANGE
B55: % of student enrollment | C55: General Entitlement | D55: Special Education Funded Percent | E55: 0.127 | F55: 0.135 | G55: 0.135 | H55: 0.135 | I55: 0.135 | J55: 0.135 | K55: 0.135 | L55: 0.15 | M55: =+L55 -> 0.15 | N55: =+M55 -> 0.15 | O55: 0.15 | P55: 0.15 | Q55: John Jenft sheet - http://www.k12.wa.us/SAFS/17budprp.asp | R55: NO CHANGE
B56: $ | C56: Special Education | D56: Fed Funds Int Rate Per Student | E56: =130.47*24/145 -> 21.59503448 | F56: =130.47*24/145 -> 21.59503448 | G56: =130.47*24/145 -> 21.59503448 | H56: =$G56 -> 21.59503448 | I56: 24 | J56: =+I56 -> 24 | K56: 24 | L56: 21.39 | M56: 21.39 | N56: 21.39 | O56: 21.39 | P56: 21.39 | Q56: OSPI Apportionment Reports / F-203 | R56: Seems to be 21.43 in apport. rept.
B57: % | C57: Special Education | D57: K-12 SpEd Allocation - Tier 1 | E57: 0.9309 | F57: 0.9309 | G57: 0.9609 | H57: 0.995 | I57: 1.0075 | J57: 1.0075 | K57: 1.0075 | L57: 1.12 | M57: 1.12 | N57: 1.12 | O57: 1.12 | P57: 1.12 | Q57: John Jenft sheet / OSPI Apportionment Reports / F-203
B58: % | C58: Special Education | D58: K-12 SpEd Allocation - Tier 2 | I58: 0.995 | J58: 0.995 | K58: 0.995 | L58: 1.06 | M58: 1.06 | N58: 1.06 | O58: 1.06 | P58: 1.06
B59: % | C59: Special Education | D59: 3-PreK Sped Allocation | E59: 1.15 | F59: 1.15 | G59: 1.15 | H59: =$G59 -> 1.15 | I59: 1.15 | J59: 1.15 | K59: 1.15 | L59: 1.2 | M59: 1.15 | N59: 1.15 | O59: 1.15 | P59: 1.15 | Q59: John Jenft sheet / OSPI Apportionment Reports / F-203 | R59: Not sure what to put here. John Jenft has a note that says "Funding for payments to providers for ESIT program transferred to DCYF beginning 9/1/2020" on the Other Staff… tab
B60: Dollars | C60: General Entitlement | D60: Substitutes Rate | E60: 151.86 | F60: 151.86 | G60: 151.86 | H60: 151.86 | I60: 151.86 | J60: 151.86 | K60: 151.86 | L60: 151.86 | M60: 151.86 | N60: 151.86 | O60: 151.86 | P60: 151.86 | Q60: John Jenft sheet - http://www.k12.wa.us/SAFS/17budprp.asp | R60: NO CHANGE | S60: << does this rate grow by inflation? If so, assume would use the IPD starting in 2018-19
B61: Days | C61: General Entitlement | D61: Substitutes Days | E61: 4 | F61: 4 | G61: 4 | H61: =$G61 -> 4 | I61: 4 | J61: 4 | K61: 4 | L61: 4 | M61: 4 | N61: 4 | O61: 4 | P61: 4 | Q61: John Jenft sheet - http://www.k12.wa.us/SAFS/17budprp.asp | R61: NO CHANGE
B62: Staff units by school type | C62: General Entitlement | D62: Guidance Counselors Elem | E62: 0.493 | F62: 0.493 | G62: 0.493 | H62: 0.493 | I62: 0.493 | J62: 0.493 | K62: 0.66 | L62: 0.827 | M62: 0.993 | N62: =+M62 -> 0.993 | O62: 0.993 | P62: 0.993 | Q62: John Jenft sheet - http://www.k12.wa.us/SAFS/17budprp.asp | R62: NO CHANGE
B63: Staff units by school type | C63: General Entitlement | D63: Guidance Counselors High | E63: 2.539 | F63: 2.539 | G63: 2.539 | H63: 2.539 | I63: 2.539 | J63: 2.539 | K63: 2.706 | L63: 2.882 | M63: 3.039 | N63: 3.039 | O63: 3.039 | P63: 3.039 | Q63: John Jenft sheet - http://www.k12.wa.us/SAFS/17budprp.asp | R63: NO CHANGE
B64: Staff units by school type | C64: General Entitlement | D64: Guidance Counselors Middle | E64: 1.216 | F64: 1.216 | G64: 1.216 | H64: 1.216 | I64: 1.216 | J64: 1.216 | K64: 1.383 | L64: 1.55 | M64: 1.716 | N64: 1.716 | O64: 1.716 | P64: 1.716 | Q64: John Jenft sheet - http://www.k12.wa.us/SAFS/17budprp.asp | R64: NO CHANGE
B65: Staff units by school type | C65: General Entitlement | D65: Guidance Counselors Elem - HP | K65: 0.993 | L65: =+K65 -> 0.993 | M65: 0.993 | N65: 0.993 | O65: 0.993 | P65: 0.993
B66: Staff units by school type | C66: General Entitlement | D66: Guidance Counselors Middle - HP | K66: 1.716 | L66: 1.716 | M66: 1.716 | N66: 1.716 | O66: 1.716 | P66: 1.716
B67: Staff units by school type | C67: General Entitlement | D67: Guidance Counselors High - HP | K67: 3.039 | L67: 3.039 | M67: 3.039 | N67: 3.039 | O67: 3.039 | P67: 3.039
B68: Staff units by school type | C68: General Entitlement | D68: PIC Elem | E68: 0.0825 | F68: 0.0825 | G68: 0.0825 | H68: 0.0825 | I68: 0.0825 | J68: 0.0825 | K68: 0.0825 | L68: 0.0825 | M68: 0.0825 | N68: 0.0825 | O68: 0.0825 | P68: 0.0825 | Q68: John Jenft sheet - http://www.k12.wa.us/SAFS/17budprp.asp | R68: NO CHANGE
B69: Staff units by school type | C69: General Entitlement | D69: PIC High | E69: 0 | F69: 0 | G69: 0 | H69: 0 | I69: 0 | J69: 0 | K69: 0 | L69: 0 | M69: 0 | N69: 0 | O69: 0 | P69: 0 | Q69: John Jenft sheet - http://www.k12.wa.us/SAFS/17budprp.asp | R69: NO CHANGE
B70: Staff units by school type | C70: General Entitlement | D70: PIC Middle | E70: 0 | F70: 0 | G70: 0 | H70: 0 | I70: 0 | J70: 0 | K70: 0 | L70: 0 | M70: 0 | N70: 0 | O70: 0 | P70: 0 | Q70: John Jenft sheet - http://www.k12.wa.us/SAFS/17budprp.asp | R70: NO CHANGE
B71: Staff units by school type | C71: General Entitlement | D71: Principals Elem | E71: 1.253 | F71: 1.253 | G71: 1.253 | H71: 1.253 | I71: 1.253 | J71: 1.253 | K71: =+J71 -> 1.253 | L71: 1.253 | M71: 1.253 | N71: 1.253 | O71: 1.253 | P71: 1.253 | Q71: John Jenft sheet - http://www.k12.wa.us/SAFS/17budprp.asp | R71: NO CHANGE
B72: Staff units by school type | C72: General Entitlement | D72: Office Support Elem | E72: 2.012 | F72: 2.012 | G72: 2.012 | H72: 2.012 | I72: 2.012 | J72: 2.012 | K72: 2.012 | L72: 2.012 | M72: 2.012 | N72: 2.012 | O72: 2.012 | P72: 2.012 | Q72: John Jenft sheet - http://www.k12.wa.us/SAFS/17budprp.asp | R72: NO CHANGE
B73: Staff units by school type | C73: General Entitlement | D73: Custodians Elem | E73: 1.657 | F73: 1.657 | G73: 1.657 | H73: 1.657 | I73: 1.657 | J73: 1.657 | K73: 1.657 | L73: 1.657 | M73: 1.657 | N73: 1.657 | O73: 1.657 | P73: 1.657 | Q73: John Jenft sheet - http://www.k12.wa.us/SAFS/17budprp.asp | R73: NO CHANGE
B74: Staff units by school type | C74: General Entitlement | D74: Principals High | E74: 1.88 | F74: 1.88 | G74: 1.88 | H74: 1.88 | I74: 1.88 | J74: 1.88 | K74: 1.88 | L74: 1.88 | M74: 1.88 | N74: 1.88 | O74: 1.88 | P74: 1.88 | Q74: John Jenft sheet - http://www.k12.wa.us/SAFS/17budprp.asp | R74: NO CHANGE
B75: Staff units by school type | C75: General Entitlement | D75: Principals Middle | E75: 1.353 | F75: 1.353 | G75: 1.353 | H75: 1.353 | I75: 1.353 | J75: 1.353 | K75: 1.353 | L75: 1.353 | M75: 1.353 | N75: 1.353 | O75: 1.353 | P75: 1.353 | Q75: John Jenft sheet - http://www.k12.wa.us/SAFS/17budprp.asp | R75: NO CHANGE
B76: Students | C76: General Entitlement | D76: Proto Enroll District | E76: 1000 | F76: 1000 | G76: 1000 | H76: 1000 | I76: 1000 | J76: 1000 | K76: 1000 | L76: 1000 | M76: 1000 | N76: 1000 | O76: 1000 | P76: 1000 | Q76: OPSI Apportionment reports | R76: WHERE IS THIS?
B77: Number of students by school type | C77: General Entitlement | D77: Proto Enroll Elem | E77: 400 | F77: 400 | G77: 400 | H77: =$G77 -> 400 | I77: 400 | J77: 400 | K77: 400 | L77: 400 | M77: 400 | N77: 400 | O77: 400 | P77: 400 | Q77: John Jenft sheet - http://www.k12.wa.us/SAFS/17budprp.asp | R77: NO CHANGE
B78: Number of students by school type | C78: General Entitlement | D78: Proto Enroll High | E78: 600 | F78: 600 | G78: 600 | H78: 600 | I78: 600 | J78: 600 | K78: 600 | L78: 600 | M78: 600 | N78: 600 | O78: 600 | P78: 600 | Q78: John Jenft sheet - http://www.k12.wa.us/SAFS/17budprp.asp | R78: NO CHANGE
B79: Number of students by school type | C79: General Entitlement | D79: Proto Enroll Middle | E79: 432 | F79: 432 | G79: 432 | H79: 432 | I79: 432 | J79: 432 | K79: 432 | L79: 432 | M79: 432 | N79: 432 | O79: 432 | P79: 432 | Q79: John Jenft sheet - http://www.k12.wa.us/SAFS/17budprp.asp | R79: NO CHANGE
B80: Staff units by school type | C80: General Entitlement | D80: Psychologists Elem | E80: 0.017 | F80: 0.017 | G80: 0.017 | H80: 0.017 | I80: 0.017 | J80: 0.017 | K80: 0.046 | L80: 0.075 | M80: 0.104 | N80: 0.104 | O80: 0.104 | P80: 0.104 | Q80: John Jenft sheet - http://www.k12.wa.us/SAFS/17budprp.asp | R80: NO CHANGE
B81: Staff units by school type | C81: General Entitlement | D81: Psychologists High | E81: 0.007 | F81: 0.007 | G81: 0.007 | H81: 0.007 | I81: 0.007 | J81: 0.007 | K81: 0.021 | L81: 0.035 | M81: 0.049 | N81: 0.049 | O81: 0.049 | P81: 0.049 | Q81: John Jenft sheet - http://www.k12.wa.us/SAFS/17budprp.asp | R81: NO CHANGE
B82: Staff units by school type | C82: General Entitlement | D82: Psychologists Middle | E82: 0.002 | F82: 0.002 | G82: 0.002 | H82: 0.002 | I82: 0.002 | J82: 0.002 | K82: 0.009 | L82: 0.016 | M82: 0.024 | N82: 0.024 | O82: 0.024 | P82: 0.024 | Q82: John Jenft sheet - http://www.k12.wa.us/SAFS/17budprp.asp | R82: NO CHANGE
B83: Staff units by school type | C83: General Entitlement | D83: Office Support Middle | E83: 2.325 | F83: 2.325 | G83: 2.325 | H83: 2.325 | I83: 2.325 | J83: 2.325 | K83: 2.325 | L83: 2.325 | M83: 2.325 | N83: 2.325 | O83: 2.325 | P83: 2.325 | Q83: John Jenft sheet - http://www.k12.wa.us/SAFS/17budprp.asp | R83: NO CHANGE
B84: Staff units by school type | C84: General Entitlement | D84: Custodians Middle | E84: 1.942 | F84: 1.942 | G84: 1.942 | H84: 1.942 | I84: 1.942 | J84: 1.942 | K84: 1.942 | L84: 1.942 | M84: 1.942 | N84: 1.942 | O84: 1.942 | P84: 1.942 | Q84: John Jenft sheet - http://www.k12.wa.us/SAFS/17budprp.asp | R84: NO CHANGE
B85: Staff units by school type | C85: General Entitlement | D85: School Nurses Elem | E85: 0.076 | F85: 0.076 | G85: 0.076 | H85: 0.076 | I85: 0.076 | J85: 0.076 | K85: 0.246 | L85: 0.416 | M85: 0.585 | N85: =+M85 -> 0.585 | O85: 0.585 | P85: 0.585 | Q85: John Jenft sheet - http://www.k12.wa.us/SAFS/17budprp.asp | R85: NO CHANGE
B86: Staff units by school type | C86: General Entitlement | D86: School Nurses High | E86: 0.096 | F86: 0.096 | G86: 0.096 | H86: 0.096 | I86: 0.096 | J86: 0.096 | K86: 0.339 | L86: 0.582 | M86: 0.824 | N86: 0.824 | O86: 0.824 | P86: 0.824 | Q86: John Jenft sheet - http://www.k12.wa.us/SAFS/17budprp.asp | R86: NO CHANGE
B87: Staff units by school type | C87: General Entitlement | D87: School Nurses Middle | E87: 0.06 | F87: 0.06 | G87: 0.06 | H87: 0.06 | I87: 0.06 | J87: 0.06 | K87: 0.336 | L87: 0.612 | M87: 0.888 | N87: 0.888 | O87: 0.888 | P87: 0.888 | Q87: John Jenft sheet - http://www.k12.wa.us/SAFS/17budprp.asp | R87: NO CHANGE
B88: Staff units by school type | C88: General Entitlement | D88: Social Workers Elem | E88: 0.042 | F88: 0.042 | G88: 0.042 | H88: 0.042 | I88: 0.042 | J88: 0.042 | K88: 0.132 | L88: 0.222 | M88: 0.311 | N88: 0.311 | O88: 0.311 | P88: 0.311 | Q88: John Jenft sheet - http://www.k12.wa.us/SAFS/17budprp.asp | R88: NO CHANGE
B89: Staff units by school type | C89: General Entitlement | D89: Social Workers High | E89: 0.015 | F89: 0.015 | G89: 0.015 | H89: 0.015 | I89: 0.015 | J89: 0.015 | K89: 0.052 | L89: 0.089 | M89: 0.127 | N89: 0.127 | O89: 0.127 | P89: 0.127 | Q89: John Jenft sheet - http://www.k12.wa.us/SAFS/17budprp.asp | R89: NO CHANGE
B90: Staff units by school type | C90: General Entitlement | D90: Social Workers Middle | E90: 0.006 | F90: 0.006 | G90: 0.006 | H90: 0.006 | I90: 0.006 | J90: 0.006 | K90: 0.033 | L90: 0.06 | M90: 0.088 | N90: 0.088 | O90: 0.088 | P90: 0.088 | Q90: John Jenft sheet - http://www.k12.wa.us/SAFS/17budprp.asp | R90: NO CHANGE
B91: Staff units by school type | C91: General Entitlement | D91: Student & Staff Safety Elem | E91: 0.079 | F91: 0.079 | G91: 0.079 | H91: 0.079 | I91: 0.079 | J91: 0.079 | K91: 0.079 | L91: 0.079 | M91: 0.079 | N91: 0.079 | O91: 0.079 | P91: 0.079 | Q91: John Jenft sheet - http://www.k12.wa.us/SAFS/17budprp.asp | R91: NO CHANGE
B92: Staff units by school type | C92: General Entitlement | D92: Student & Staff Safety High | E92: 0.141 | F92: 0.141 | G92: 0.141 | H92: 0.141 | I92: 0.141 | J92: 0.141 | K92: 0.141 | L92: 0.141 | M92: 0.141 | N92: 0.141 | O92: 0.141 | P92: 0.141 | Q92: John Jenft sheet - http://www.k12.wa.us/SAFS/17budprp.asp | R92: NO CHANGE
B93: Staff units by school type | C93: General Entitlement | D93: Student & Staff Safety Middle | E93: 0.092 | F93: 0.092 | G93: 0.092 | H93: 0.092 | I93: 0.092 | J93: 0.092 | K93: 0.092 | L93: 0.092 | M93: 0.092 | N93: 0.092 | O93: 0.092 | P93: 0.092 | Q93: John Jenft sheet - http://www.k12.wa.us/SAFS/17budprp.asp | R93: NO CHANGE
B94: Staff units by school type | C94: General Entitlement | D94: Office Support High | E94: 3.269 | F94: 3.269 | G94: 3.269 | H94: 3.269 | I94: 3.269 | J94: 3.269 | K94: 3.269 | L94: 3.269 | M94: 3.269 | N94: 3.269 | O94: 3.269 | P94: 3.269 | Q94: John Jenft sheet - http://www.k12.wa.us/SAFS/17budprp.asp | R94: NO CHANGE
B95: Staff units by school type | C95: General Entitlement | D95: Custodians High | E95: 2.965 | F95: 2.965 | G95: 2.965 | H95: 2.965 | I95: 2.965 | J95: 2.965 | K95: 2.965 | L95: 2.965 | M95: 2.965 | N95: 2.965 | O95: 2.965 | P95: 2.965 | Q95: John Jenft sheet - http://www.k12.wa.us/SAFS/17budprp.asp | R95: NO CHANGE
B96: Staff units by school type | C96: General Entitlement | D96: Teacher Librarian Elem | E96: 0.663 | F96: 0.663 | G96: 0.663 | H96: 0.663 | I96: 0.663 | J96: 0.663 | K96: 0.663 | L96: 0.663 | M96: 0.663 | N96: 0.663 | O96: 0.663 | P96: 0.663 | Q96: John Jenft sheet - http://www.k12.wa.us/SAFS/17budprp.asp | R96: NO CHANGE
B97: Staff units by school type | C97: General Entitlement | D97: Teacher Librarian High | E97: 0.523 | F97: 0.523 | G97: 0.523 | H97: 0.523 | I97: 0.523 | J97: 0.523 | K97: 0.523 | L97: 0.523 | M97: 0.523 | N97: 0.523 | O97: 0.523 | P97: 0.523 | Q97: John Jenft sheet - http://www.k12.wa.us/SAFS/17budprp.asp | R97: NO CHANGE
B98: Staff units by school type | C98: General Entitlement | D98: Non-High Districts CIS units | E98: 0.5 | F98: 0.5 | G98: 0.5 | H98: 0.5 | I98: 0.5 | J98: 0.5 | K98: 0.5 | L98: 0.5 | M98: 0.5 | N98: 0.5 | O98: 0.5 | P98: 0.5 | Q98: Apportionment Reports | R98: WHERE IS THIS?
B99: Staff units by school type | C99: General Entitlement | D99: Non-High Districts CLS bonus units | E99: 0.5 | F99: 0.5 | G99: 0.5 | H99: 0.5 | I99: 0.5 | J99: 0.5 | K99: 0.5 | L99: 0.5 | M99: 0.5 | N99: 0.5 | O99: 0.5 | P99: 0.5 | Q99: Apportionment Reports | R99: WHERE IS THIS?
B100: % | C100: General Entitlement | D100: CIS Ratio Per 43.5 AAFTE | E100: 0.8732 | F100: 0.8732 | G100: 0.8732 | H100: =$G100 -> 0.8732 | I100: 0.8732 | J100: 0.8732 | K100: 0.8732 | L100: =$G100 -> 0.8732 | M100: =$G100 -> 0.8732 | N100: =$G100 -> 0.8732 | O100: =$G100 -> 0.8732 | P100: =$G100 -> 0.8732 | Q100: John Jenft sheet - http://www.k12.wa.us/SAFS/17budprp.asp | R100: NO CHANGE
B101: Staff units by school type | C101: General Entitlement | D101: Teacher Librarian Middle | E101: 0.519 | F101: 0.519 | G101: 0.519 | H101: 0.519 | I101: 0.519 | J101: 0.519 | K101: 0.519 | L101: =+K101 -> 0.519 | M101: 0.519 | N101: 0.519 | O101: 0.519 | P101: 0.519 | Q101: John Jenft sheet - http://www.k12.wa.us/SAFS/17budprp.asp | R101: NO CHANGE
B102: Staff units by school type | C102: General Entitlement | D102: Teaching Assistance Elem | E102: 0.936 | F102: 0.936 | G102: 0.936 | H102: 0.936 | I102: 0.936 | J102: 0.936 | K102: 0.936 | L102: 0.936 | M102: 0.936 | N102: 0.936 | O102: 0.936 | P102: 0.936 | Q102: John Jenft sheet - http://www.k12.wa.us/SAFS/17budprp.asp | R102: NO CHANGE
B103: Staff units by school type | C103: General Entitlement | D103: Teaching Assistance High | E103: 0.652 | F103: 0.652 | G103: 0.652 | H103: 0.652 | I103: 0.652 | J103: 0.652 | K103: 0.652 | L103: 0.652 | M103: 0.652 | N103: 0.652 | O103: 0.652 | P103: 0.652 | Q103: John Jenft sheet - http://www.k12.wa.us/SAFS/17budprp.asp | R103: NO CHANGE
B104: % | C104: Other | D104: IPD Inflation | F104: 0.017 | G104: 0.016 | H104: 0.018 | I104: 0.016 | J104: 0.019 | K104: 0.02 | L104: =K104 -> 0.02 | M104: =$L104 -> 0.02 | N104: =$M104 -> 0.02 | O104: =$M104 -> 0.02 | P104: =$M104 -> 0.02 | Q104: OSPI budget page included this table | R104: CHANGED
B105: % | C105: Categorical | D105: TBIP withholding % | E105: 0.0197 | F105: 0.0255 | G105: 0.0257 | H105: 0.0197 | I105: 0.0189 | J105: 0.0177 | K105: 0.0188 | L105: 0.0175 | M105: =+L105 -> 0.0175 | N105: =+M105 -> 0.0175 | O105: =+N105 -> 0.0175 | P105: =+O105 -> 0.0175 | Q105: John Jenft sheet - http://www.k12.wa.us/SAFS/17budprp.asp | R105: CHANGED | S105: << does this rate grow by inflation or some other metric? If inflation, assume would use the IPD starting in 2018-19
B106: Students per class | C106: General Entitlement | D106: Comp Class Size K-3 | E106: 21 | F106: 17 | G106: 17 | H106: =+'Single School Forecast'!T64 -> 0 | I106: =+'Single School Forecast'!U64 -> 17 | J106: =+'Single School Forecast'!V64 -> 17 | K106: 17 | L106: =+'Single School Forecast'!X64 -> 17 | M106: =+'Single School Forecast'!Y64 -> 17 | N106: =+'Single School Forecast'!Z64 -> 17 | O106: =+'Single School Forecast'!AA64 -> 17 | P106: =+'Single School Forecast'!AB64 -> 17 | Q106: John Jenft sheet - http://www.k12.wa.us/SAFS/17budprp.asp | R106: NO CHANGE
B107: Students per class | C107: General Entitlement | D107: Comp Pov Class Size K-3 | E107: 18.25 | F107: 17 | G107: 17 | H107: =$G107 -> 17 | I107: 17 | J107: 17 | K107: 17 | L107: =$G107 -> 17 | M107: =$G107 -> 17 | N107: =$G107 -> 17 | O107: =$G107 -> 17 | P107: =$G107 -> 17 | Q107: John Jenft sheet - http://www.k12.wa.us/SAFS/17budprp.asp | R107: WHERE IS THIS?
B108: % | C108: General Entitlement | D108: Planning K-3 | E108: 0.155 | F108: 0.155 | G108: 0.155 | H108: 0.155 | I108: 0.155 | J108: 0.155 | K108: 0.155 | L108: =+K108 -> 0.155 | M108: 0.155 | N108: 0.155 | O108: 0.155 | P108: 0.155 | Q108: John Jenft sheet - http://www.k12.wa.us/SAFS/17budprp.asp | R108: NO CHANGE
B109: Students per class | C109: General Entitlement | D109: Class Size 4 | E109: 27 | F109: 27 | G109: 27 | H109: 27 | I109: 27 | J109: 27 | K109: 27 | L109: 27 | M109: 27 | N109: 27 | O109: 27 | P109: 27 | Q109: John Jenft sheet - http://www.k12.wa.us/SAFS/17budprp.asp | R109: NO CHANGE
B110: % | C110: General Entitlement | D110: Planning 4 | E110: 0.155 | F110: 0.155 | G110: 0.155 | H110: 0.155 | I110: 0.155 | J110: 0.155 | K110: 0.155 | L110: 0.155 | M110: 0.155 | N110: 0.155 | O110: 0.155 | P110: 0.155 | Q110: John Jenft sheet - http://www.k12.wa.us/SAFS/17budprp.asp | R110: NO CHANGE
B111: Students per class | C111: General Entitlement | D111: Class Size 5-6 | E111: 27 | F111: 27 | G111: 27 | H111: 27 | I111: 27 | J111: 27 | K111: 27 | L111: 27 | M111: 27 | N111: 27 | O111: 27 | P111: 27 | Q111: John Jenft sheet - http://www.k12.wa.us/SAFS/17budprp.asp | R111: NO CHANGE
B112: % | C112: General Entitlement | D112: Planning 5-6 | E112: 0.155 | F112: 0.155 | G112: 0.155 | H112: 0.155 | I112: 0.155 | J112: 0.155 | K112: =$G112 -> 0.155 | L112: 0.155 | M112: 0.155 | N112: 0.155 | O112: 0.155 | P112: 0.155 | Q112: John Jenft sheet - http://www.k12.wa.us/SAFS/17budprp.asp | R112: NO CHANGE
B113: Students per class | C113: General Entitlement | D113: Class Size 7-8 | E113: 28.53 | F113: 28.53 | G113: 28.53 | H113: 28.53 | I113: 28.53 | J113: 28.53 | K113: 28.53 | L113: 28.53 | M113: 28.53 | N113: 28.53 | O113: 28.53 | P113: 28.53 | Q113: John Jenft sheet - http://www.k12.wa.us/SAFS/17budprp.asp | R113: NO CHANGE
B114: % | C114: General Entitlement | D114: Planning 7-8 | E114: 0.2 | F114: 0.2 | G114: 0.2 | H114: 0.2 | I114: 0.2 | J114: 0.2 | K114: 0.2 | L114: 0.2 | M114: 0.2 | N114: 0.2 | O114: 0.2 | P114: 0.2 | Q114: John Jenft sheet - http://www.k12.wa.us/SAFS/17budprp.asp | R114: NO CHANGE
B115: Students per class | C115: General Entitlement | D115: Class Size 9-12 | E115: 28.74 | F115: 28.74 | G115: 28.74 | H115: 28.74 | I115: 28.74 | J115: 28.74 | K115: 28.74 | L115: 28.74 | M115: 28.74 | N115: 28.74 | O115: 28.74 | P115: 28.74 | Q115: John Jenft sheet - http://www.k12.wa.us/SAFS/17budprp.asp | R115: NO CHANGE
B116: % | C116: General Entitlement | D116: Planning 9-12 | E116: 0.2 | F116: 0.2 | G116: 0.2 | H116: 0.2 | I116: 0.2 | J116: 0.2 | K116: 0.2 | L116: 0.2 | M116: 0.2 | N116: 0.2 | O116: 0.2 | P116: 0.2 | Q116: John Jenft sheet - http://www.k12.wa.us/SAFS/17budprp.asp | R116: NO CHANGE
B117: $ per Qualifying Student | C117: General Entitlement | D117: Total BEA MSOC per student FTE | E117: 1223.36 | F117: 1244.16 | G117: 1267.8 | H117: 1293.16 | I117: 1313.85 | J117: 1340.13 | K117: 1438.84 | L117: 1483.44 | M117: 1483.44 | N117: 1483.44 | O117: 1483.44 | P117: 1483.44 | Q117: John Jenft sheet - http://www.k12.wa.us/SAFS/17budprp.asp | R117: CHANGED | T117: Values in the 18-19 SY and out have the IPD applied to them.
B118: $ per Qualifying Student | C118: General Entitlement | D118: Total 9-12 MSOC per student FTE | E118: 168.05 | F118: 170.91 | G118: 174.16 | H118: 177.64 | I118: 180.48 | J118: 184.09 | K118: 194.21 | L118: 200.23 | M118: =L118 -> 200.23 | N118: =M118 -> 200.23 | O118: =N118 -> 200.23 | P118: =O118 -> 200.23 | Q118: John Jenft sheet - http://www.k12.wa.us/SAFS/17budprp.asp | R118: CHANGED | T118: Values in the 18-19 SY and out have the IPD applied to them.
B119: $ per Qualifying Student | C119: General Entitlement | D119: Total CTE MSOC per student FTE | E119: 1447.4 | F119: 1472.01 | G119: 1499.98 | H119: 1529.98 | I119: 1554.46 | J119: 1585.55 | K119: 1672.76 | L119: 1724.62 | M119: =+L119 -> 1724.62 | N119: 1724.62 | O119: 1724.62 | P119: 1724.62 | Q119: John Jenft sheet - http://www.k12.wa.us/SAFS/17budprp.asp | R119: CHANGED | T119: Values in the 18-19 SY and out have the IPD applied to them.
B120: $ per Qualifying Student | C120: General Entitlement | D120: Total Skills Center MSOC per student FTE | E120: 1286.99 | F120: 1472.01 | G120: 1499.98 | H120: 1529.98 | I120: 1554.46 | J120: 1585.55 | K120: 1672.76 | L120: 1724.62 | M120: 1724.62 | N120: 1724.62 | O120: 1724.62 | P120: 1724.62 | Q120: John Jenft sheet - http://www.k12.wa.us/SAFS/17budprp.asp | R120: CHANGED | T120: Values in the 18-19 SY and out have the IPD applied to them.
B121: $ per SS RN CIS and CAS FTE | C121: General Entitlement | D121: Total Small School MSOC | E121: 11307.6 | F121: 11499.8 | G121: 11683.7968 | H121: 11952.7 | I121: 12143.9 | J121: 12386.8 | K121: 13068.1 | L121: 13473.2 | M121: 13473.2 | N121: 13473.2 | O121: 13473.2 | P121: 13473.2 | Q121: John Jenft sheet - http://www.k12.wa.us/SAFS/17budprp.asp | R121: CHANGED | T121: Values in the 18-19 SY and out have the IPD applied to them.
B122: % | C122: General Entitlement | D122: Districtwide Support Technology | E122: 0.628 | F122: 0.628 | G122: 0.628 | H122: =$G122 -> 0.628 | I122: 0.628 | J122: 0.628 | K122: 0.628 | L122: 0.628 | M122: 0.628 | N122: 0.628 | O122: 0.628 | P122: 0.628 | Q122: OPSI Apportionment reports | R122: WHERE IS THIS? | S122: Do all districts have the same values?
B123: Staff units by school type | C123: General Entitlement | D123: Teaching Assistance Middle | E123: 0.7 | F123: 0.7 | G123: 0.7 | H123: 0.7 | I123: 0.7 | J123: 0.7 | K123: 0.7 | L123: 0.7 | M123: 0.7 | N123: 0.7 | O123: 0.7 | P123: 0.7 | Q123: John Jenft sheet - http://www.k12.wa.us/SAFS/17budprp.asp | R123: NO CHANGE
B124: % | C124: General Entitlement | D124: Districtwide Support Facilities | E124: 1.813 | F124: 1.813 | G124: 1.813 | H124: 1.813 | I124: 1.813 | J124: 1.813 | K124: 1.813 | L124: 1.813 | M124: 1.813 | N124: 1.813 | O124: 1.813 | P124: 1.813 | Q124: OPSI Apportionment reports | R124: WHERE IS THIS? | S124: Do all districts have the same values?
B125: % | C125: General Entitlement | D125: Districtwide Support Warehouse | E125: 0.332 | F125: 0.332 | G125: 0.332 | H125: 0.332 | I125: 0.332 | J125: 0.332 | K125: 0.332 | L125: 0.332 | M125: 0.332 | N125: 0.332 | O125: 0.332 | P125: 0.332 | Q125: OPSI Apportionment reports | R125: WHERE IS THIS? | S125: Do all districts have the same values?
B126: % | C126: General Entitlement | D126: Central Admin CAS% | E126: 0.2547 | F126: 0.2547 | G126: 0.2547 | H126: 0.2547 | I126: 0.2547 | J126: 0.2547 | K126: 0.2547 | L126: 0.2547 | M126: 0.2547 | N126: 0.2547 | O126: 0.2547 | P126: 0.2547 | Q126: OPSI Apportionment reports | R126: WHERE IS THIS? | S126: Do all districts have the same values?
B127: % | C127: General Entitlement | D127: Central Admin CLS% | E127: 0.7453 | F127: 0.7453 | G127: 0.7453 | H127: 0.7453 | I127: 0.7453 | J127: 0.7453 | K127: 0.7453 | L127: 0.7453 | M127: 0.7453 | N127: 0.7453 | O127: 0.7453 | P127: 0.7453 | Q127: OPSI Apportionment reports | R127: WHERE IS THIS? | S127: Do all districts have the same values?
B128: $ | C128: All staff units entitlement | D128: SEBB Health Insurance | H128: =+(994*6)+(1056*2) -> 8076 | I128: =1000*12 -> 12000 | J128: =968*12 -> 11616 | K128: =1026*12 -> 12312 | L128: =1100*12 -> 13200 | M128: 13200 | N128: 13200 | O128: 13200 | P128: 13200 | Q128: 2019 John Jenft | R128: WHERE IS THIS? How does it differ from line 105?
B129: Ratio | C129: CIS/ CAS Staff units | D129: CIS/ CAS SEBB Multiplier | H129: 1.02 | I129: 1.02 | J129: =I129 -> 1.02 | K129: =J129 -> 1.02 | L129: 1.02 | M129: =L129 -> 1.02 | N129: 1.02 | O129: 1.02 | P129: 1.02 | R129: UPDATED FORMULAS ONLY
B130: Ratio | C130: CLS Staff units | D130: CLS SEBB Multiplier | H130: 1.43 | I130: 1.43 | J130: =I130 -> 1.43 | K130: =J130 -> 1.43 | L130: 1.43 | M130: 1.43 | N130: 1.43 | O130: 1.43 | P130: 1.43 | R130: UPDATED FORMULAS ONLY
B131: $ | C131: All staff units entitlement | D131: Health Insurance | E131: 9360 | F131: 9840 | G131: 10127.64 | H131: =973*4 -> 3892 | Q131: SSB 5883, Sec. 504 (3)(b), monthly values multiplied by 12 for totals displayed for the full school year | R131: NEED Haid! New increase $1k, down from $1056. What should that be multiplied by? | S131: Unsure how this works in the out years, is this number standard by district? What happens when school employees become part of state benefits
B132: % | C132: All CLS staff units entitlement | D132: CLS Health Factor | E132: 1.152 | F132: 1.152 | G132: 1.152 | H132: 1 | I132: =+H132 -> 1 | J132: 1 | K132: 1 | L132: 1.43 | M132: 1.43 | N132: 1.43 | O132: 1.43 | P132: 1.43 | Q132: John Jenft sheet - http://www.k12.wa.us/SAFS/17budprp.asp | R132: WHERE IS THIS? | S132: Unsure how this works in the out years, is this number standard by district? What happens when school employees become part of state benefits
B133: % | C133: All Certificated staff units entitlement | D133: CIS/CAS Benefits | E133: 0.2142 | F133: 0.2349 | G133: 0.2365 | H133: 0.238 | I133: 0.2403 | J133: 0.2271 | K133: 0.2298 | L133: 0.1797 | M133: 0.1797 | N133: 0.1797 | O133: 0.1797 | P133: 0.1797 | Q133: John Jenft sheet - http://www.k12.wa.us/SAFS/17budprp.asp
B134: % | C134: All Certificated staff units entitlement | D134: CIS/CAS Benefits Increase | E134: 0.2978 | F134: 0.2285 | G134: 0.2301 | H134: 0.2316 | I134: 0.2339 | J134: 0.2207 | K134: 0.2234 | L134: 0.1733 | M134: 0.1733 | N134: 0.1733 | O134: 0.1733 | P134: 0.1733 | Q134: John Jenft sheet - http://www.k12.wa.us/SAFS/17budprp.asp
B135: % | C135: All CLS staff units entitlement | D135: CLS Benefits | E135: 0.2272 | F135: 0.246 | G135: 0.2467 | H135: 0.2433 | I135: 0.2444 | J135: 0.2275 | K135: 0.2294 | L135: 0.2206 | M135: 0.2206 | N135: 0.2206 | O135: 0.2206 | P135: 0.2206 | Q135: John Jenft sheet - http://www.k12.wa.us/SAFS/17budprp.asp
B136: % | C136: All CLS staff units entitlement | D136: CLS Benefits Increase | E136: 0.1922 | F136: 0.211 | G136: 0.2117 | H136: 0.2083 | I136: 0.2094 | J136: 0.1925 | K136: 0.1944 | L136: 0.1856 | M136: 0.1856 | N136: 0.1856 | O136: 0.1856 | P136: 0.1856 | Q136: John Jenft sheet - http://www.k12.wa.us/SAFS/17budprp.asp
B137: % | C137: General Entitlement | D137: LabSci% 9-12 | E137: 0.0833 | F137: 0.0833 | G137: 0.0833 | H137: =$G137 -> 0.0833 | I137: 0.0833 | J137: =I137 -> 0.0833 | K137: =J137 -> 0.0833 | L137: =K137 -> 0.0833 | M137: 0.0833 | N137: 0.0833 | O137: 0.0833 | P137: 0.0833 | Q137: John Jenft sheet - http://www.k12.wa.us/SAFS/17budprp.asp | R137: UPDATED FORMULAS ONLY
B138: Students | C138: General Entitlement | D138: LabSci Class Size 9-12 | E138: 19.98 | F138: 19.98 | G138: 19.98 | H138: =$G138 -> 19.98 | I138: =H138 -> 19.98 | J138: =I138 -> 19.98 | K138: =J138 -> 19.98 | L138: 19.98 | M138: 19.98 | N138: 19.98 | O138: 19.98 | P138: 19.98 | Q138: John Jenft sheet - http://www.k12.wa.us/SAFS/17budprp.asp | R138: UPDATED FORMULAS ONLY
B139: % | C139: Special Education | D139: Calc K-3 HighPov Enh for SpEd | E139: 0.003316 | F139: 0 | G139: 0 | H139: =$G139 -> 0 | I139: =$G139 -> 0 | J139: =$G139 -> 0 | K139: 0 | L139: =+K139 -> 0 | M139: =+L139 -> 0 | N139: =+M139 -> 0 | O139: =+N139 -> 0 | P139: =+O139 -> 0 | R139: Need Haid

Sheet 5 YR Budget
B2: SUMMARY
B3: Total Enrollment | D3: =+'Enrollment and Demographics'!E19 -> 106.4
B4: Total Revenue | D4: =D55 -> 2549936.773
B5: Total Expenses | D5: =D152+-D165+D172 -> 2525502.121
B6: Net Income | D6: =D4-D5 -> 24434.65167
B7: Revenue Per Pupil | D7: =D4/D3 -> 23965.57117
B8: General Apportionment Per Pupil | D8: =+D22/'Enrollment and Demographics'!E19 -> 11506.69699
B9: Expenses Per Pupil | D9: =IFERROR(IF(D5>0,D5/VLOOKUP("Total Enrollment",X_Enrollment,3,FALSE),0),0) -> 23735.92219
D11: YEAR 3
D12: =+'Enrollment and Demographics'!E2 -> 2023-24 | E12: Description of Assumptions
B13: Pullman Community Montessori Budget Detail
B14: REVENUES
B15: 2000 - LOCAL SUPPORT - NON-TAX
B16: 2200 - Sale Of Goods, Supplies, & Services | D16: =INDEX(Expense_Assump,MATCH('5 YR Budget'!$B16,Assumptions!$C:$C,0),MATCH('5 YR Budget'!D$12,Assumptions!$C$2:$E$2,0))*INDEX(X_Enrollment,MATCH("Total Enrollment",'Enrollment and Demographics'!$C$2:$C$47,0),MATCH(D$12,'Enrollment and Demographics'!$C$2:$E$2,0)) -> 0 | E16: Misc school feels & sales
B17: 2500 - Gifts Grants, and Donations (Local) | D17: =INDEX(Expense_Assump,MATCH('5 YR Budget'!$B17,Assumptions!$C:$C,0),MATCH('5 YR Budget'!D$12,Assumptions!$C$2:$E$2,0)) -> 25000 | E17: Local donations
B18: 2298 - Local lunch sales | D18: =INDEX(Expense_Assump,MATCH('5 YR Budget'!$B18,Assumptions!$C:$C,0),MATCH('5 YR Budget'!D$12,Assumptions!$C$2:$E$2,0))*INDEX(X_Enrollment,MATCH("Total Enrollment",'Enrollment and Demographics'!$C$2:$C$47,0),MATCH(D$12,'Enrollment and Demographics'!$C$2:$E$2,0)) -> 16786.29787
B19: TOTAL 2000 - LOCAL SUPPORT - NON-TAX | D19: =SUM(D16:D18) -> 41786.29787
B21: 3000 - STATE REVENUE - GENERAL PURPOSE
B22: 3100 - Apportionment | D22: 1224312.56
B23: 3121 - Special Education - General Apportionment | D23: 22295.45
B24: TOTAL 3000 - STATE REVENUE - GENERAL PURPOSE | D24: =SUM(D22:D23) -> 1246608.01
B26: 4000 - STATE REVENUE - SPECIAL PURPOSE
B27: 4121 - Special Education - State | D27: 189596.97
B28: 4155 - Learning Assistance | D28: 14337.28
B29: 4165 - Transitional Bilingual | D29: 1326.97
B30: 4174 - Highly Capable | D30: 3220.7
B31: 4198 - School Food Service | D31: =INDEX(Expense_Assump,MATCH('5 YR Budget'!$B31,Assumptions!$C:$C,0),MATCH('5 YR Budget'!D$12,Assumptions!$C$2:$E$2,0))*INDEX(X_Enrollment,MATCH("Total Enrollment",'Enrollment and Demographics'!$C$2:$C$47,0),MATCH(D$12,'Enrollment and Demographics'!$C$2:$E$2,0)) -> 0
B32: 4199 - Transportation - Operations | D32: =INDEX(Expense_Assump,MATCH('5 YR Budget'!$B32,Assumptions!$C:$C,0),MATCH('5 YR Budget'!D$12,Assumptions!$C$2:$E$2,0))*INDEX(X_Enrollment,MATCH("Student Transportation Count",'Enrollment and Demographics'!$C$2:$C$47,0),MATCH('5 YR Budget'!D12,'Enrollment and Demographics'!$C$2:$E$2,0)) -> 64754.54512
B33: 4201 - State - Misc Grants | D33: =INDEX(Expense_Assump,MATCH('5 YR Budget'!$B33,Assumptions!$C:$C,0),MATCH('5 YR Budget'!D$12,Assumptions!$C$2:$E$2,0)) -> 0 | E33: Learn to return+ School Health Workforce + Meals grants + Levy Equalization
B34: Total 4000 - STATE REVENUE - SPECIAL PURPOSE | D34: =SUM(D27:D33) -> 273236.4651
B36: 5000 - FEDERAL REVENUE - RESTRICTED
B37: Title I | D37: 20146
B38: Title II | D38: =INDEX(Expense_Assump,MATCH('5 YR Budget'!$B38,Assumptions!$C:$C,0),MATCH('5 YR Budget'!D$12,Assumptions!$C$2:$E$2,0))*INDEX(X_Enrollment,MATCH('Enrollment and Demographics'!$C$39,'Enrollment and Demographics'!$C$2:$C$47,0),MATCH('5 YR Budget'!D$12,'Enrollment and Demographics'!$C$2:$E$2,0)) -> 2033
B39: Title III & IV | D39: =INDEX(Expense_Assump,MATCH('5 YR Budget'!$B39,Assumptions!$C:$C,0),MATCH('5 YR Budget'!D$12,Assumptions!$C$2:$E$2,0)) -> 10000
B40: IDEA Funding | D40: =INDEX(Expense_Assump,MATCH('5 YR Budget'!$B40,Assumptions!$C:$C,0),MATCH('5 YR Budget'!D$12,Assumptions!$C$2:$E$2,0))*VLOOKUP("Actual Special Education Student Count (SpEd)",X_Enrollment,3,FALSE) -> 18628
B41: 6198 - School Food Services | D41: =INDEX(Expense_Assump,MATCH('5 YR Budget'!$B41,Assumptions!$C:$C,0),MATCH('5 YR Budget'!D$12,Assumptions!$C$2:$E$2,0))*INDEX(X_Enrollment,MATCH("Total Enrollment",'Enrollment and Demographics'!$C$2:$C$47,0),MATCH(D$12,'Enrollment and Demographics'!$C$2:$E$2,0)) -> 38304 | E41: Based on 22-23 historical data
B42: CSP | D42: =INDEX(Expense_Assump,MATCH('5 YR Budget'!$B42,Assumptions!$C:$C,0),MATCH('5 YR Budget'!D$12,Assumptions!$C$2:$E$2,0)) -> 381299
B43: Federal - Misc Grants | D43: =INDEX(Expense_Assump,MATCH('5 YR Budget'!$B43,Assumptions!$C:$C,0),MATCH('5 YR Budget'!D$12,Assumptions!$C$2:$E$2,0)) -> 97896 | E43: E-rate, REAP & school health workfoce
B44: ESSER | D44: =MAX(INDEX(Expense_Assump,MATCH('5 YR Budget'!$B44,Assumptions!$C:$C,0),MATCH('5 YR Budget'!D$12,Assumptions!$C$2:$E$2,0))) -> 0
B45: TOTAL 5000 - FEDERAL REVENUE - RESTRICTED | D45: =SUM(D37:D44) -> 568306
B47: 8000 - OTHER ENTITIES
B48: 8200 - Private Foundations | D48: =INDEX(Expense_Assump,MATCH('5 YR Budget'!$B48,Assumptions!$C:$C,0),MATCH('5 YR Budget'!D$12,Assumptions!$C$2:$E$2,0)) -> 420000 | E48: WA Charters 23-24
B49: TOTAL 8000 - OTHER ENTITIES | D49: =SUM(D48:D48) -> 420000
B51: 9000 - OTHER FINANCING SOURCES
B52: Other Financing Sources | D52: =INDEX(Expense_Assump,MATCH('5 YR Budget'!$B52,Assumptions!$C:$C,0),MATCH('5 YR Budget'!D$12,Assumptions!$C$2:$E$2,0)) -> 0
B53: TOTAL 9000 - OTHER FINANCING SOURCES | D53: =+D52 -> 0
B55: TOTAL REVENUE | D55: =SUM(D19,D24,D34,D45,D49,D53) -> 2549936.773
B57: EXPENSES
B58: ADMINISTRATIVE STAFF PERSONNEL COSTS
B59: Executive Management | D59: =SUMIF('Position Control (Staffing)'!$M:$M,'5 YR Budget'!$B59,'Position Control (Staffing)'!$K:$K) -> 87700 | E59: Head of School
B60: Instructional Management | D60: =SUMIF('Position Control (Staffing)'!$M:$M,'5 YR Budget'!$B60,'Position Control (Staffing)'!$K:$K) -> 56810 | E60: Montessori Coach
B61: Deans, Directors & Coordinators | D61: =SUMIF('Position Control (Staffing)'!$M:$M,'5 YR Budget'!$B61,'Position Control (Staffing)'!$K:$K) -> 0
B62: CFO / Director of Finance | D62: =SUMIF('Position Control (Staffing)'!$M:$M,'5 YR Budget'!$B62,'Position Control (Staffing)'!$K:$K) -> 0
B63: Operation / Business Manager | D63: =SUMIF('Position Control (Staffing)'!$M:$M,'5 YR Budget'!$B63,'Position Control (Staffing)'!$K:$K) -> 0
B64: Administrative Staff | D64: =SUMIF('Position Control (Staffing)'!$M:$M,'5 YR Budget'!$B64,'Position Control (Staffing)'!$K:$K) -> 110205.6 | E64: Office Manager + Office Assistant
B65: Other - Administrative | D65: =SUMIF('Position Control (Staffing)'!$M:$M,'5 YR Budget'!$B65,'Position Control (Staffing)'!$K:$K) -> 0
B66: TOTAL ADMINISTRATIVE STAFF PERSONNEL COSTS | D66: =SUM(D59:D65) -> 254715.6
B68: INSTRUCTIONAL PERSONNEL COSTS
B69: Teachers - Regular | D69: =SUMIF('Position Control (Staffing)'!$M:$M,'5 YR Budget'!$B69,'Position Control (Staffing)'!$K:$K) -> 236831.1772
B70: Teachers - SPED | D70: =SUMIF('Position Control (Staffing)'!$M:$M,'5 YR Budget'!$B70,'Position Control (Staffing)'!$K:$K) -> 152147.525
B71: Teaching Assistants | D71: =SUMIF('Position Control (Staffing)'!$M:$M,'5 YR Budget'!$B71,'Position Control (Staffing)'!$K:$K) -> 178215.028
B72: Specialty Teachers | D72: =SUMIF('Position Control (Staffing)'!$M:$M,'5 YR Budget'!$B72,'Position Control (Staffing)'!$K:$K) -> 29718 | E72: Language & PE
B73: Substitute Teachers | D73: =SUMIF('Position Control (Staffing)'!$M:$M,'5 YR Budget'!$B73,'Position Control (Staffing)'!$K:$K) -> 11700
B74: Therapists & Counselors | D74: =SUMIF('Position Control (Staffing)'!$M:$M,'5 YR Budget'!$B74,'Position Control (Staffing)'!$K:$K) -> 56107 | E74: Social Worker, Counselor
B75: Other - Instructional | D75: =SUMIF('Position Control (Staffing)'!$M:$M,'5 YR Budget'!$B75,'Position Control (Staffing)'!$K:$K) -> 0
B76: TOTAL INSTRUCTIONAL PERSONNEL COSTS | D76: =SUM(D69:D75) -> 664718.7302
B78: NON-INSTRUCTIONAL PERSONNEL COSTS
B79: Nurse | D79: =SUMIF('Position Control (Staffing)'!$M:$M,'5 YR Budget'!$B79,'Position Control (Staffing)'!$K:$K) -> 0
B80: Librarian | D80: =SUMIF('Position Control (Staffing)'!$M:$M,'5 YR Budget'!$B80,'Position Control (Staffing)'!$K:$K) -> 0
B81: Custodian | D81: =SUMIF('Position Control (Staffing)'!$M:$M,'5 YR Budget'!$B81,'Position Control (Staffing)'!$K:$K) -> 0
B82: Security | D82: =SUMIF('Position Control (Staffing)'!$M:$M,'5 YR Budget'!$B82,'Position Control (Staffing)'!$K:$K) -> 0
B83: Other - Non-Instructional | D83: =SUMIF('Position Control (Staffing)'!$M:$M,'5 YR Budget'!$B83,'Position Control (Staffing)'!$K:$K) -> 145605.6 | E83: Bus Driver, Lunch server & Nurse
B84: TOTAL NON-INSTRUCTIONAL PERSONNEL COSTS | D84: =SUM(D79:D83) -> 145605.6
B86: TOTAL PERSONNEL SALARY COSTS | D86: =D66+D76+D84 -> 1065039.93
B88: =Assumptions!C42 -> PAYROLL TAXES AND BENEFITS
B89: =Assumptions!C43 -> Social Security | D89: =INDEX(Expense_Assump,MATCH('5 YR Budget'!$B89,Assumptions!$C:$C,0),MATCH('5 YR Budget'!D$12,Assumptions!$C$2:$E$2,0))*SUMIF('Position Control (Staffing)'!$P:$P, "Yes",'Position Control (Staffing)'!K:K) -> 33427.72794
B90: =Assumptions!C44 -> Medicare | D90: =INDEX(Expense_Assump,MATCH('5 YR Budget'!$B90,Assumptions!$C:$C,0),MATCH('5 YR Budget'!D$12,Assumptions!$C$2:$E$2,0))*D$86 -> 15443.07899
B91: =Assumptions!C45 -> State Unemployment | D91: =INDEX(Expense_Assump,MATCH('5 YR Budget'!$B91,Assumptions!$C:$C,0),MATCH('5 YR Budget'!D$12,Assumptions!$C$2:$E$2,0))*D$86 -> 9585.359372
B92: =Assumptions!C46 -> Paid Family Medical Leave (State) | D92: =INDEX(Expense_Assump,MATCH('5 YR Budget'!$B92,Assumptions!$C:$C,0),MATCH('5 YR Budget'!D$12,Assumptions!$C$2:$E$2,0))*D$86 -> 0
B93: =Assumptions!C47 -> Worker's Compensation Insurance | D93: =INDEX(Expense_Assump,MATCH('5 YR Budget'!$B93,Assumptions!$C:$C,0),MATCH('5 YR Budget'!D$12,Assumptions!$C$2:$E$2,0))*D$86 -> 8626.823435
B94: =Assumptions!C48 -> Federal Unemployment | D94: =INDEX(Expense_Assump,MATCH('5 YR Budget'!$B94,Assumptions!$C:$C,0),MATCH('5 YR Budget'!D$12,Assumptions!$C$2:$E$2,0))*D$86 -> 0
B95: =Assumptions!C49 -> SEBB | D95: =+Assumptions!U48 -> 277200
B96: =Assumptions!C50 -> SERS (Classified Retirement) | D96: =+SUMIF('Position Control (Staffing)'!$O:$O,"Class",'Position Control (Staffing)'!K:K)*INDEX(Expense_Assump,MATCH('5 YR Budget'!$B96,Assumptions!$C:$C,0),MATCH('5 YR Budget'!D$12,Assumptions!$C$2:$E$2,0)) -> 57479.01496
B97: =Assumptions!C51 -> TRS (Certificated Retirement) | D97: =+SUMIF('Position Control (Staffing)'!$O:$O,"Cert",'Position Control (Staffing)'!K:K)*INDEX(Expense_Assump,MATCH('5 YR Budget'!$B97,Assumptions!$C:$C,0),MATCH('5 YR Budget'!D$12,Assumptions!$C$2:$E$2,0)) -> 51163.31951
B98: =Assumptions!C52 -> TOTAL PAYROLL TAXES AND BENEFITS | D98: =SUM(D89:D97) -> 452925.3242
B100: =Assumptions!C54 -> TOTAL PERSONNEL, TAX & BENEFIT EXPENSES | D100: =D86+D98 -> 1517965.254
B102: =Assumptions!C56 -> CONTRACTED SERVICES
B103: =Assumptions!C57 -> Accounting / Audit | D103: =INDEX(Expense_Assump,MATCH('5 YR Budget'!$B103,Assumptions!$C:$C,0),MATCH('5 YR Budget'!D$12,Assumptions!$C$2:$E$2,0)) -> 37610.715 | E103: =+Assumptions!G57 -> SAO & CPA audits
B104: =Assumptions!C58 -> Legal | D104: =INDEX(Expense_Assump,MATCH('5 YR Budget'!$B104,Assumptions!$C:$C,0),MATCH('5 YR Budget'!D$12,Assumptions!$C$2:$E$2,0)) -> 15000 | E104: =+Assumptions!G58 -> Flat yearly "in case" amount
B105: =Assumptions!C59 -> Oversight Fee (3%) | D105: =SUM(D22,D23,D27,D28,D29,D30,D32)*INDEX(Expense_Assump,MATCH('5 YR Budget'!$B105,Assumptions!$C:$C,0),MATCH('5 YR Budget'!D$12,Assumptions!$C$2:$E$2,0)) -> 45595.33425 | E105: =+Assumptions!G59 -> Calculates as a % of total revenue for lines 3100, 3121, 4121, 4155, 4165, 4174 & 4199
B106: =Assumptions!C60 -> Substitute Teachers | D106: =INDEX(Expense_Assump,MATCH('5 YR Budget'!$B106,Assumptions!$C:$C,0),MATCH('5 YR Budget'!D$12,Assumptions!$C$2:$E$2,0)) -> 0 | E106: Subs handled in-house
B107: =Assumptions!C61 -> Student Health | D107: =INDEX(Expense_Assump,MATCH('5 YR Budget'!$B107,Assumptions!$C:$C,0),MATCH('5 YR Budget'!D$12,Assumptions!$C$2:$E$2,0)) -> 0 | E107: Nurse hired in-house
B108: =Assumptions!C62 -> Back Office | D108: =INDEX(Expense_Assump,MATCH('5 YR Budget'!$B108,Assumptions!$C:$C,0),MATCH('5 YR Budget'!D$12,Assumptions!$C$2:$E$2,0)) -> 120000 | E108: JGP
B109: =Assumptions!C63 -> Special Ed | D109: =INDEX(Expense_Assump,MATCH('5 YR Budget'!$B109,Assumptions!$C:$C,0),MATCH('5 YR Budget'!D$12,Assumptions!$C$2:$E$2,0)) -> 103500 | E109: Presence Learning, TMC contracts; other misc SPED costs
B110: =Assumptions!C64 -> Program Support / PD | D110: =INDEX(Expense_Assump,MATCH('5 YR Budget'!$B110,Assumptions!$C:$C,0),MATCH('5 YR Budget'!D$12,Assumptions!$C$2:$E$2,0)) -> 8000 | E110: NCMPS, Nautilus, TSS
B111: Afterschool | D111: =INDEX(Expense_Assump,MATCH('5 YR Budget'!$B111,Assumptions!$C:$C,0),MATCH('5 YR Budget'!D$12,Assumptions!$C$2:$E$2,0)) -> 18000 | E111: YMCA
B112: Misc | D112: =INDEX(Expense_Assump,MATCH('5 YR Budget'!$B112,Assumptions!$C:$C,0),MATCH('5 YR Budget'!D$12,Assumptions!$C$2:$E$2,0)) -> 5200 | E112: OSPI bus driver training (FY 24 only)
B113: =Assumptions!C67 -> Tech support | D113: =INDEX(Expense_Assump,MATCH('5 YR Budget'!$B113,Assumptions!$C:$C,0),MATCH('5 YR Budget'!D$12,Assumptions!$C$2:$E$2,0)) -> 10000 | E113: Galexis
B114: =Assumptions!C68 -> TOTAL CONTRACTED SERVICES | D114: =SUM(D103:D113) -> 362906.0493
B116: =Assumptions!C70 -> SCHOOL OPERATIONS
B117: =Assumptions!C71 -> Board Expenses | D117: =INDEX(Expense_Assump,MATCH('5 YR Budget'!$B117,Assumptions!$C:$C,0),MATCH('5 YR Budget'!D$12,Assumptions!$C$2:$E$2,0)) -> 10000 | E117: =+Assumptions!G71 -> Yearly Board OnTrack + supplies
B118: =Assumptions!C72 -> Classroom / Teaching Supplies & Materials | D118: 20000
B119: =Assumptions!C73 -> Special Ed Supplies & Materials | D119: 3550 | E119: =+Assumptions!G73 -> Estimate per SPED student ($250)
B120: =Assumptions!C74 -> Textbooks / Workbooks | D120: 0 | E120: Based on historical actuals and 23-24 plans
B121: =Assumptions!C75 -> Equipment / Furniture | D121: 30369.26 | E121: Office, common, kitchen and classroom furniture
B122: =Assumptions!C76 -> Internet / Phone | D122: =INDEX(Expense_Assump,MATCH('5 YR Budget'!$B122,Assumptions!$C:$C,0),MATCH('5 YR Budget'!D$12,Assumptions!$C$2:$E$2,0)) -> 7833.6 | E122: =+Assumptions!G76 -> Internet / phone costs
B123: =Assumptions!C77 -> Technology Hardware | D123: =INDEX(Expense_Assump,MATCH('5 YR Budget'!$B123,Assumptions!$C:$C,0),MATCH('5 YR Budget'!D$12,Assumptions!$C$2:$E$2,0)) -> 4174.99698 | E123: Student and staff tech hardware
B124: =Assumptions!C78 -> Technology Software | D124: =INDEX(Expense_Assump,MATCH('5 YR Budget'!$B124,Assumptions!$C:$C,0),MATCH('5 YR Budget'!D$12,Assumptions!$C$2:$E$2,0)) -> 33621.016 | E124: Student and staff tech software
B125: =Assumptions!C79 -> Student Testing & Assessment | D125: =INDEX(Expense_Assump,MATCH('5 YR Budget'!$B125,Assumptions!$C:$C,0),MATCH('5 YR Budget'!D$12,Assumptions!$C$2:$E$2,0)) -> 4515
B126: =Assumptions!C80 -> Field Trips | D126: 1500 | E126: =+Assumptions!G80 -> $75 per student
B127: =Assumptions!C81 -> Transportation (student) | D127: =INDEX(Expense_Assump,MATCH('5 YR Budget'!$B127,Assumptions!$C:$C,0),MATCH('5 YR Budget'!D$12,Assumptions!$C$2:$E$2,0)) -> 18500 | E127: Bus fuel & maintenance
B128: =Assumptions!C82 -> Student Services - other | D128: =INDEX(Expense_Assump,MATCH('5 YR Budget'!$B128,Assumptions!$C:$C,0),MATCH('5 YR Budget'!D$12,Assumptions!$C$2:$E$2,0))*INDEX(X_Enrollment,MATCH("Total Enrollment",'Enrollment and Demographics'!$C$2:$C$47,0),MATCH(D$12,'Enrollment and Demographics'!$C$2:$E$2,0)) -> 2713.2 | E128: =+Assumptions!G82 -> $26 per student for clubs, dances, other school events
B129: =Assumptions!C83 -> Office Expense | D129: =INDEX(Expense_Assump,MATCH('5 YR Budget'!$B129,Assumptions!$C:$C,0),MATCH('5 YR Budget'!D$12,Assumptions!$C$2:$E$2,0)) -> 10200 | E129: =+Assumptions!G83 -> Flat amount for pens, hole punchers, etc
B130: =Assumptions!C84 -> Staff Development | D130: 9000 | E130: =+Assumptions!G84 -> $510 Per employee
B131: =Assumptions!C85 -> Staff Recruitment | D131: 1000 | E131: =+Assumptions!G85 -> Flat amount for fingerprints and background checks
B132: =Assumptions!C86 -> Student Recruitment / Marketing | D132: =INDEX(Expense_Assump,MATCH('5 YR Budget'!$B132,Assumptions!$C:$C,0),MATCH('5 YR Budget'!D$12,Assumptions!$C$2:$E$2,0)) -> 8160 | E132: =+Assumptions!G86 -> 0
B133: =Assumptions!C87 -> School Meals / Lunch | D133: =INDEX(Expense_Assump,MATCH('5 YR Budget'!$B133,Assumptions!$C:$C,0),MATCH('5 YR Budget'!D$12,Assumptions!$C$2:$E$2,0))*INDEX(X_Enrollment,MATCH("Total Enrollment",'Enrollment and Demographics'!$C$2:$C$47,0),MATCH(D$12,'Enrollment and Demographics'!$C$2:$E$2,0)) -> 68500 | E133: Based on PY participation rates & expected meals served
B134: =Assumptions!C88 -> Travel (Staff) | D134: 2300 | E134: =+Assumptions!G88 -> Flat amount
B135: =Assumptions!C89 -> Fundraising | D135: =INDEX(Expense_Assump,MATCH('5 YR Budget'!$B135,Assumptions!$C:$C,0),MATCH('5 YR Budget'!D$12,Assumptions!$C$2:$E$2,0)) -> 612 | E135: =+Assumptions!G89 -> Database renewal costs, gift processing fees, printing of collateral, event costs
B136: =Assumptions!C90 -> Dues & Memberships | D136: =INDEX(Expense_Assump,MATCH('5 YR Budget'!$B136,Assumptions!$C:$C,0),MATCH('5 YR Budget'!D$12,Assumptions!$C$2:$E$2,0)) -> 2032 | E136: =+Assumptions!G90 -> WA Charters ($5 per student), various fees ($1.5k)
B137: =Assumptions!C91 -> Printer | D137: =INDEX(Expense_Assump,MATCH('5 YR Budget'!$B137,Assumptions!$C:$C,0),MATCH('5 YR Budget'!D$12,Assumptions!$C$2:$E$2,0)) -> 3570 | E137: =+Assumptions!G91 -> Printer rental costs ($78/mo) + supplies (paper & staples)
B138: =Assumptions!C92 -> TOTAL SCHOOL OPERATIONS | D138: =SUM(D117:D137) -> 242151.073
B140: =Assumptions!C94 -> FACILITY OPERATION & MAINTENANCE
B141: =Assumptions!C95 -> Insurance | D141: =INDEX(Expense_Assump,MATCH('5 YR Budget'!$B141,Assumptions!$C:$C,0),MATCH('5 YR Budget'!D$12,Assumptions!$C$2:$E$2,0)) -> 25092 | E141: Property, general liability, etc
B142: =Assumptions!C96 -> Janitorial Services | D142: =INDEX(Expense_Assump,MATCH('5 YR Budget'!$B142,Assumptions!$C:$C,0),MATCH('5 YR Budget'!D$12,Assumptions!$C$2:$E$2,0)) -> 30600 | E142: =+Assumptions!G96 -> Supplies only; services provided by Gladish
B143: =Assumptions!C97 -> Building and Land Rent / Lease | D143: =INDEX(Expense_Assump,MATCH('5 YR Budget'!$B143,Assumptions!$C:$C,0),MATCH('5 YR Budget'!D$12,Assumptions!$C$2:$E$2,0)) -> 227104.248 | E143: Based on Gladish rent agreement
B144: =Assumptions!C99 -> Repairs & Maintenance | D144: =INDEX(Expense_Assump,MATCH('5 YR Budget'!$B144,Assumptions!$C:$C,0),MATCH('5 YR Budget'!D$12,Assumptions!$C$2:$E$2,0)) -> 0 | E144: =+Assumptions!G99 -> Covered by landlord; flat amount for incidentals
B145: =Assumptions!C100 -> Security Services | D145: =INDEX(Expense_Assump,MATCH('5 YR Budget'!$B145,Assumptions!$C:$C,0),MATCH('5 YR Budget'!D$12,Assumptions!$C$2:$E$2,0)) -> 0
B146: =Assumptions!C101 -> Utilities | D146: =INDEX(Expense_Assump,MATCH('5 YR Budget'!$B146,Assumptions!$C:$C,0),MATCH('5 YR Budget'!D$12,Assumptions!$C$2:$E$2,0)) -> 0 | E146: =+Assumptions!G101 -> Covered by landlord
B147: =Assumptions!C102 -> Financing Costs (Loan Payments - Interest) | D147: =INDEX(Expense_Assump,MATCH('5 YR Budget'!$B147,Assumptions!$C:$C,0),MATCH('5 YR Budget'!D$12,Assumptions!$C$2:$E$2,0)) -> 58556.23668 | E147: =+Assumptions!G102 -> 21-22: Includes paying back the $63k bridge loan + fees; onward is regular loan payments
B148: =Assumptions!C103 -> TOTAL FACILITY OPERATION & MAINTENANCE | D148: =SUM(D141:D147) -> 341352.4847
B150: =Assumptions!C105 -> RESERVES / CONTIGENCY | D150: 0 | E150: =+Assumptions!G105 -> Attrition - 3% of State funding; Y1 removed (revenue already updated to actual)
B152: Total Expenses | D152: =SUM(D100+D114+D138+D148+D150) -> 2464374.861
B153: Operating Net Income | D153: =D55-D152 -> 85561.91167 | E153: =+D150/8500 -> 0
B155: =+Assumptions!C106 -> DEPRECIATION / AMORTIZATION | D155: =INDEX(Expense_Assump,MATCH('5 YR Budget'!$B155,Assumptions!$C:$C,0),MATCH('5 YR Budget'!D$12,Assumptions!$C$2:$E$2,0)) -> 94883
B157: Final Net Income (FASB) | D157: =D153-D155 -> -9321.08833
B159: Cash-Basis Adjustments
B160: Liabilities
B161: Deferred Revenue - Revenue Recognized | D161: 0 | E161: Grant revenue recognized but funds not received
B162: Deferred Revenue / AR -Cash Received | D162: -304000 | E162: Actual grant revenue funds received - if recognized in a prior year (WA Charters grants)
B163: Due to OSPI | D163: 0 | E163: 21-22 overpayment of State revenues
B164: PY budget items paid in 22-23 | D164: -240000
B165: Bridge Loan Due | D165: -61127.26 | E165: Bridge loan amount due
B166: Deferred Rent | D166: =+Assumptions!E98 -> 64497.09
B167: Loan disbursement (WA Charters) | D167: 300000 | E167: Loan payments - Principal (only affects the balance sheet)
B168: Depreciation - Add back | D168: =D155 -> 94883 | E168: Depreciation is not a cash expense and gets "added back" for cash effect calculations
B169: Total Liability Adjustments | D169: =SUM(D161:D168) -> -145747.17
B171: Assets
B172: Kitchen Renovations | D172: 0 | E172: Covered by OSPI grant
B173: Construction costs | D173: 0 | E173: Covered by WCSD grant
B174: Prepaids - Contractors | E174: Contractor costs that are paid upfront for a full year of service are recorded as prepaid assets and expensed monthly
B175: Equipment/Furniture | D175: 0 | E175: Large furniture and equipment purchases are recorded as assets and depreciated over time
B176: Total Asset Adjustments | D176: =SUM(D172:D175) -> 0
B178: Cash-Basis Net Inflows / (Outflows) | D178: =+D169-D176 -> -145747.17
B179: Cash Basis Net Margin | D179: =D157+D178 -> -155068.2583
B180: Beginning Cash | D180: 365659
B181: Ending Cash | D181: =+D191 -> 210590.7417
B183: Total Approved Expenditures (per SDAM) | D183: =+D152+D176 -> 2464374.861
B186: Rent + Utilities + Repairs | D186: =(D143+D142+D144)/D3 -> 2422.032406
D187: =D148/D5 -> 0.1351622245
B188: Rent Costs per pupil | D188: =D143/D3 -> 2134.438421
D189: =+D11 -> YEAR 3
D190: =+D12 -> 2023-24
B191: Ending Cash | D191: =D180+D157+D178 -> 210590.7417
B192: Net Excess/(Deficit) to 60 days cash | D192: =(-D5/365*60)+D191 -> -204560.292
B193: Amount over 30 days | D193: =(-D5/365*30)+D191 -> 3015.224849
B194: Actual Days Cash | D194: =D191/ (D152/365) -> 31.19071774
B195: Actual 60 Days Cash Amount | D195: =(D5/365*60) -> 415151.0336
B197: Fixed Charges Coverage Ratio (FCCR)
B198: Lease | D198: =D143 -> 227104.248
B199: Debt Payments | D199: =D147 -> 58556.23668
B200: Total Fixed Charges | D200: =SUM(D198:D199) -> 285660.4847
B201: FCCR | D201: =(D157+D200)/D200 -> 0.9673700465
B203: Ratios
B204: Personnel | D204: =D$100/D$4 -> 0.5952952522
B205: Contracted Services | D205: =D$114/D$4 -> 0.1423196265
B206: Supplies | D206: =D$138/D$4 -> 0.0949635597
B207: Facilities | D207: =D$148/D$4 -> 0.1338670387
B208: Loans | D208: =D$147/D$4 -> 0.02296379946
D209: =SUM(D204:D208) -> 0.9894092766
B210: Per student
B211: Personnel | D211: =D$100/D$3 -> 14266.59074
B212: Contracted Services | D212: =D$114/D$3 -> 3410.77114
B213: Supplies | D213: =D$138/D$3 -> 2275.855949
B214: Facilities | D214: =D$148/D$3 -> 3208.200044
B215: Loans | D215: =D$147/D$3 -> 550.3405703
B216: Rent | D216: =D143/D3 -> 2134.438421

Sheet Assumptions
C1: Blue = type in amounts; Orange = feeder tab | G1: Inflation Assumption | H1: 0.02
E2: ='5 YR Budget'!D12 -> 2023-24 | G2: Notes / Description
C3: REVENUES
C4: LOCAL SUPPORT - NON-TAX
C5: 2200 - Sale Of Goods, Supplies, & Services | E5: 0
C6: 2500 - Gifts Grants, and Donations (Local) | E6: 25000
C7: 2298 - Local lunch sales | E7: 157.7659574
C9: STATEVE REVENUE
C10: 4198 - School Food Service | E10: 0 | G10: Other State
C11: 4199 - Transportation - Operations | E11: 1014.325581 | G11: [Enter Grant] | H11: 0
C12: 4201 - State - Misc Grants | E12: =+SUM(H11:H13) -> 0 | G12: [Enter Grant] | H12: 0
G13: [Enter Grant] | H13: 0
C14: FEDERAL REVENUE
C15: Title I | E15: =20146/'Enrollment and Demographics'!E37 -> 380.1132075 | G15: Per pupil based on 21-22 allocation per overall enrollment
C16: Title II | E16: =2033/'Enrollment and Demographics'!E37 -> 38.35849057 | G16: Per pupil based on 21-22 allocation per overall enrollment
C17: Title III & IV | E17: 10000
C18: IDEA Funding | E18: =18628/'Enrollment and Demographics'!E43 -> 1167.16792 | G18: Per pupil based on 21-22 allocation per SPED student
C19: CSP | E19: 381299
C20: 6198 - School Food Services | E20: 360 | G20: Other Federal 23-24
C21: Federal - Misc Grants | E21: =+SUM(H21:H23) -> 97896 | G21: Internet (E-rate) | H21: =120*12 -> 1440
C22: ESSER | E22: 0 | G22: Rural Schools | H22: 26600
G23: School Health Services Staff | H23: 69856
C24: 8000 - OTHER ENTITIES
C25: 8200 - Private Foundations | E25: =+SUM(E26:E31) -> 420000
C26: WA Charters Growth Grant 2 | E26: 355000
C27: WA Charters COVID Grant | E27: 0
C28: WA Charters Growth Grant 1 | E28: 0
C29: Local Funder (Schweicher) | E29: 0
C30: WA Charters Additional Grants | E30: 50000
C31: Leaders Training (WA Charters) | E31: =3750*4 -> 15000
C33: 9000 - OTHER FINANCING SOURCES
C34: Other Financing Sources | E34: 0
C41: EXPENSES
C42: PAYROLL TAXES AND BENEFITS
C43: Social Security | E43: 0.062
C44: Medicare | E44: 0.0145 | U44: 23-24 SEBB
C45: State Unemployment | E45: 0.009 | U45: =ROUNDUP('Position Control (Staffing)'!F51,0) -> 21
C46: Paid Family Medical Leave (State)
C47: Worker's Compensation Insurance | E47: 0.0081 | U47: =+E49 -> 1100
C48: Federal Unemployment | U48: =+U45*U47*12 -> 277200
C49: SEBB | E49: 1100 | U49: =+U48/'5 YR Budget'!D86 -> 0.2602719317
C50: SERS (Classified Retirement) | E50: 0.1093 | G50: http://leg.wa.gov/osa/pensionfunding/Pages/Contribution-Rates.aspx
C51: TRS (Certificated Retirement) | E51: 0.097
C52: ="TOTAL "&C42 -> TOTAL PAYROLL TAXES AND BENEFITS
C54: TOTAL PERSONNEL, TAX & BENEFIT EXPENSES
C56: CONTRACTED SERVICES
C57: Accounting / Audit | E57: 37610.715 | G57: SAO & CPA audits
C58: Legal | E58: 15000 | G58: Flat yearly "in case" amount
C59: Oversight Fee (3%) | E59: 0.03 | G59: Calculates as a % of total revenue for lines 3100, 3121, 4121, 4155, 4165, 4174 & 4199
C60: Substitute Teachers | E60: =+SUMIF('Contractors & Consultants'!$C:$C,Assumptions!$C60,'Contractors & Consultants'!B:B) -> 0
C61: Student Health | E61: =+SUMIF('Contractors & Consultants'!$C:$C,Assumptions!$C61,'Contractors & Consultants'!B:B) -> 0
C62: Back Office | E62: =+SUMIF('Contractors & Consultants'!$C:$C,Assumptions!$C62,'Contractors & Consultants'!B:B) -> 120000 | G62: JGP
C63: Special Ed | E63: =+SUMIF('Contractors & Consultants'!$C:$C,Assumptions!$C63,'Contractors & Consultants'!B:B) -> 103500 | G63: SPED contractors
C64: Program Support / PD | E64: =+SUMIF('Contractors & Consultants'!$C:$C,Assumptions!$C64,'Contractors & Consultants'!B:B) -> 8000 | G64: Credentialing costs
C65: Afterschool | E65: =+SUMIF('Contractors & Consultants'!$C:$C,Assumptions!$C65,'Contractors & Consultants'!B:B) -> 18000 | G65: YMCA
C66: Misc | E66: =+SUMIF('Contractors & Consultants'!$C:$C,Assumptions!$C66,'Contractors & Consultants'!B:B) -> 5200
C67: Tech support | E67: =+SUMIF('Contractors & Consultants'!$C:$C,Assumptions!$C67,'Contractors & Consultants'!B:B) -> 10000
C68: ="TOTAL "&C56 -> TOTAL CONTRACTED SERVICES
C70: SCHOOL OPERATIONS
C71: Board Expenses | E71: 10000 | G71: Yearly Board OnTrack + supplies
C72: Classroom / Teaching Supplies & Materials | E72: =+'Supplies & Furniture (PCM)'!C17 -> 23500 | G72: Classroom and teaching supplies and materials
C73: Special Ed Supplies & Materials | E73: 250 | G73: Estimate per SPED student ($250)
C74: Textbooks / Workbooks | E74: =50*SUM('Enrollment and Demographics'!E9:E10) -> 655 | G74: Flat amount
C75: Equipment / Furniture | E75: =+'Supplies & Furniture (PCM)'!C23 -> 18750 | G75: Classroom and building equipment and furniture
C76: Internet / Phone | E76: 7833.6 | G76: Internet / phone costs
C77: Technology Hardware | E77: =+Technology!D20 -> 4174.99698 | G77: Student and staff tech ahrdware
C78: Technology Software | E78: =+Technology!D36 -> 33621.016 | G78: Operational and instructional software purchases and subscriptions
C79: Student Testing & Assessment | E79: =+Testing!C26 -> 4515 | G79: Student testing costs
C80: Field Trips | E80: 75 | G80: $75 per student
C81: Transportation (student) | E81: =Transpo!B30 -> 18500 | G81: Bus repairs and gasoline
C82: Student Services - other | E82: 25.5 | G82: $26 per student for clubs, dances, other school events
C83: Office Expense | E83: 10200 | G83: Flat amount for pens, hole punchers, etc
C84: Staff Development | E84: 510 | G84: $510 Per employee
C85: Staff Recruitment | E85: 3570 | G85: Flat amount for fingerprints and background checks
C86: Student Recruitment / Marketing | E86: 8160
C87: School Meals / Lunch | E87: =68500/'Enrollment and Demographics'!E19 -> 643.7969925 | G87: Per pupil amount calculated in "Student Food" tab
C88: Travel (Staff) | E88: 6000 | G88: Flat amount
C89: Fundraising | E89: 612 | G89: Database renewal costs, gift processing fees, printing of collateral, event costs
C90: Dues & Memberships | E90: =(5*'Enrollment and Demographics'!E19)+1500 -> 2032 | G90: WA Charters ($5 per student), various fees ($1.5k)
C91: Printer | E91: 3570 | G91: Printer rental costs ($78/mo) + supplies (paper & staples)
C92: ="TOTAL "&C70 -> TOTAL SCHOOL OPERATIONS
C94: FACILITY OPERATION & MAINTENANCE
C95: Insurance | E95: 25092 | G95: Cyber: $2.5k; Transpo/Vehicle: $6.3; General & Facility: $12.5k; D&O: $3.3k
C96: Janitorial Services | E96: 30600 | G96: Supplies only; services provided by Gladish
C97: Building and Land Rent / Lease | E97: =+'New Rent Detail'!X93+6000 -> 227104.248 | G97: Amounts calculated in the "New Rent Detail" tab
C98: Building and Land Rent / Lease - Deferral | E98: 64497.09
C99: Repairs & Maintenance | E99: =Financing!C24 -> 0 | G99: Covered by landlord; flat amount for incidentals
C100: Security Services | E100: 0 | G100: Estimate for security system ($150/month) + various fees
C101: Utilities | E101: 0 | G101: Covered by landlord
C102: Financing Costs (Loan Payments - Interest) | E102: =+Financing!C35 -> 58556.23668 | G102: 21-22: Includes paying back the $63k bridge loan + fees; onward is regular loan payments
C103: ="TOTAL "&C94 -> TOTAL FACILITY OPERATION & MAINTENANCE
C105: RESERVES / CONTIGENCY | E105: =0.03*('5 YR Budget'!D42+'5 YR Budget'!D41+'5 YR Budget'!D34+'5 YR Budget'!D24+'5 YR Budget'!D19) -> 59437.01319 | G105: Attrition - 3% of State funding; Y1 removed (revenue already updated to actual)
C106: DEPRECIATION / AMORTIZATION | E106: 94883 | G106: Full renovation budget amortized over five year lease term

Sheet Enrollment and Demographics
W1: AAFTE
C2: Enrollment | D2: 2022-23 | E2: 2023-24 | W2: Sep | X2: Oct | Y2: Nov | Z2: Dec | AA2: Jan | AB2: Feb | AC2: Mar | AD2: Apr | AE2: May | AF2: Jun | AG2: AAFTE
C3: Kindergarten | D3: 31 | E3: 18 | W3: 22 | X3: 21 | Y3: 22 | Z3: =Y3 -> 22 | AA3: =Z3 -> 22 | AB3: 22 | AC3: 22 | AD3: 22 | AE3: 22 | AF3: 22 | AG3: =AVERAGE(W3:AF3) -> 21.9
C4: 1st Grade | D4: 21 | E4: 30.5 | W4: 13 | X4: 14 | Y4: 13 | Z4: =Y4 -> 13 | AA4: 13 | AB4: 13 | AC4: 13 | AD4: 13 | AE4: 13 | AF4: 13 | AG4: =AVERAGE(W4:AF4) -> 13.1
C5: 2nd Grade | D5: 13 | E5: 20.7 | G5: DO NOT TOUCH ---> | H5: 1 | I5: 2 | J5: =I5+1 -> 3 | K5: =J5+1 -> 4 | L5: 5 | M5: 6 | N5: 7 | O5: 8 | P5: 9 | Q5: 10 | R5: 11 | S5: 12 | T5: 13 | W5: 13 | X5: 13 | Y5: 12 | Z5: 12 | AA5: 12 | AB5: 12 | AC5: 12 | AD5: 12 | AE5: 12 | AF5: 12 | AG5: 12.2
C6: 3rd Grade | D6: 9 | E6: 9.7 | G6: DO NOT TOUCH ---> | H6: =H5+1 -> 2 | I6: =LEFT(X_YearOne,4) -> 2021 | J6: =I6+1 -> 2022 | K6: =J6+1 -> 2023 | L6: 2024 | M6: 2025 | N6: 2026 | O6: 2027 | P6: 2028 | Q6: 2029 | R6: 2030 | S6: 2031 | T6: 2032 | W6: 6 | X6: 6 | Y6: 4 | Z6: 4 | AA6: 4 | AB6: 4 | AC6: 4 | AD6: 4 | AE6: 4 | AF6: 4 | AG6: 4.4
C7: 4th Grade | D7: 6 | E7: 8.7 | G7: DO NOT TOUCH ---> | H7: =H6+1 -> 3 | I7: =I6+1 -> 2022 | J7: 2023 | K7: 2024 | L7: 2025 | M7: 2026 | N7: 2027 | O7: 2028 | P7: 2029 | Q7: 2030 | R7: 2031 | S7: 2032 | T7: 2033 | W7: 16 | X7: 16 | Y7: 16 | Z7: 16 | AA7: 16 | AB7: 16 | AC7: 16 | AD7: 16 | AE7: 16 | AF7: 16 | AG7: 16
C8: 5th Grade | D8: 12 | E8: 5.7 | W8: 9 | X8: 9 | Y8: 9 | Z8: 9 | AA8: 9 | AB8: 9 | AC8: 9 | AD8: 9 | AE8: 9 | AF8: 9 | AG8: 9
C9: 6th Grade | D9: 5 | E9: 6.9 | W9: =SUM(W3:W8) -> 79 | X9: =SUM(X3:X8) -> 79 | Y9: =SUM(Y3:Y8) -> 76 | Z9: =SUM(Z3:Z8) -> 76 | AA9: 76 | AB9: 76 | AC9: 76 | AD9: 76 | AE9: 76 | AF9: 76 | AG9: 76.6
C10: 7th Grade | D10: 0 | E10: 6.2
C11: 8th Grade | D11: 0 | E11: 0
C12: 9th Grade | D12: 0 | E12: 0
C13: 10th Grade | D13: 0 | E13: 0
C14: 11th Grade | D14: 0 | E14: 0
C15: 12th Grade | D15: 0 | E15: 0
C16: Total Elementary Enrollment | D16: =SUM(D3:D8) -> 92 | E16: 93.3
C17: Total Middle School Enrollment | D17: =SUM(D9:D11) -> 5 | E17: 13.1
C18: Total High School Enrollment | D18: =SUM(D12:D15) -> 0 | E18: 0
C19: Total Enrollment | D19: =SUM(D16:D18) -> 97 | E19: =SUM(E16:E18) -> 106.4
C20: Change in Net Enrollment from Prior Year | D20: =D19 -> 97 | E20: =E19-D19 -> 9.4
C21: Student Population: Percentages fill in all gray cells
C22: % Student Qualifying for Free Lunch | D22: 0.22 | E22: =53/E19 -> 0.4981203008
C23: % Student Qualifying for Reduced Lunch
C24: TBIP K-6 % | D24: 0.05 | E24: 0.008849557522
C25: TBIP 7-12 % | D25: 0 | E25: 0
C26: TBIP Exited % | D26: 0 | E26: 0
C27: Highly Capable Program? | D27: Yes | E27: Yes
C28: Special Education Students Tier 1 % | D28: 0.135 | E28: 0.15
C29: Special Education Students Tier 2 % | D29: 0 | E29: 0
C30: Average Daily Membership % | D30: 0.95 | E30: 0.95
C31: Average Daily Attendance % | D31: 0.95 | E31: 0.95
C32: English Language Learner % | D32: 0.055 | E32: 0.055
C33: Transportation Ridership % | D33: 0.6 | E33: 0.6
C34: K-3 Ratio Student to Teacher Ratio | D34: 17 | E34: =D34 -> 17
C35: Student Population: Counts fill in all gray cells
C36: Free and Reduced Price Lunch Student % | D36: =IF(D22+D23>100%,"ERROR",D22+D23) -> 0.22 | E36: 0.4981203008
C37: Student Count Qualifying for Free Lunch | D37: =D19*D22 -> 21.34 | E37: 53
C38: Student Count Qualifying for Reduced Lunch | D38: =D19*D23 -> 0 | E38: 0
C39: Student Count Qualifying for Free or Reduced Lunch | D39: =D19*D36 -> 21.34 | E39: 53
C40: TBIP (K-6) FTE | D40: =+D24*SUM(D3:D9) -> 4.85 | E40: 0.8867256637
C41: TBIP(7-12) FTE | D41: =+D25*SUM(D10:D15) -> 0 | E41: 0
C42: TBIP Exited FTE | D42: =+D26*D19 -> 0 | E42: 0
C43: Actual Special Education Student Count (SPED) | D43: =D19*(D28+D29) -> 13.095 | E43: =E19*(E28+E29) -> 15.96
C44: Student Transportation Count | D44: =D19*D33 -> 58.2 | E44: 63.84
C45: Average Daily Membership (ADM) | D45: =D19*D30 -> 92.15 | E45: 101.08
C46: Average Daily Attendance (ADA) | D46: =D19*D31 -> 92.15 | E46: 101.08
C47: English Language Learner Count (ELL) | D47: =D19*D32 -> 5.335 | E47: 5.852
D50: ='Position Control (Staffing)'!#REF! -> 

Sheet Master Charter List - SB 6362 (hidden)
C2: = User input
B3: Note: As light green cells are filled in, ligth green fill color will disappear, to model a new school add name to replace "School 1" etc. and the name will update in the drop down menu on the tab "Current Foreast"
B4: Note: If a school name changes in column E, it will need to be updated in column E on the tab "Variable Inputs Tab"
B6: CMO or Independent | C6: OSPI District Code | D6: School | E6: OSPI Name | F6: District
C7: 14005 | D7: Aberdeen School District | E7: Aberdeen School District | F7: Aberdeen School District
C8: 21226 | D8: Adna School District | E8: Adna School District | F8: Adna School District
C9: 22017 | D9: Almira School District | E9: Almira School District | F9: Almira School District
C10: 29103 | D10: Anacortes School District | E10: Anacortes School District | F10: Anacortes School District
C11: 31016 | D11: Arlington School District | E11: Arlington School District | F11: Arlington School District
C12: 02420 | D12: Asotin-Anatone School District | E12: Asotin-Anatone School District | F12: Asotin-Anatone School District
C13: 17408 | D13: Auburn School District | E13: Auburn School District | F13: Auburn School District
C14: 18303 | D14: Bainbridge Island School District | E14: Bainbridge Island School District | F14: Bainbridge Island School District
C15: 06119 | D15: Battle Ground School District | E15: Battle Ground School District | F15: Battle Ground School District
C16: 17405 | D16: Bellevue School District | E16: Bellevue School District | F16: Bellevue School District
C17: 37501 | D17: Bellingham School District | E17: Bellingham School District | F17: Bellingham School District
C18: 01122 | D18: Benge School District | E18: Benge School District | F18: Benge School District
C19: 27403 | D19: Bethel School District | E19: Bethel School District | F19: Bethel School District
C20: 20203 | D20: Bickleton School District | E20: Bickleton School District | F20: Bickleton School District
C21: 37503 | D21: Blaine School District | E21: Blaine School District | F21: Blaine School District
C22: 21234 | D22: Boistfort School District | E22: Boistfort School District | F22: Boistfort School District
C23: 18100 | D23: Bremerton School District | E23: Bremerton School District | F23: Bremerton School District
C24: 24111 | D24: Brewster School District | E24: Brewster School District | F24: Brewster School District
C25: 09075 | D25: Bridgeport School District | E25: Bridgeport School District | F25: Bridgeport School District
C26: 16046 | D26: Brinnon School District | E26: Brinnon School District | F26: Brinnon School District
C27: 29100 | D27: Burlington-Edison School District | E27: Burlington-Edison School District | F27: Burlington-Edison School District
C28: 06117 | D28: Camas School District | E28: Camas School District | F28: Camas School District
C29: 05401 | D29: Cape Flattery School District | E29: Cape Flattery School District | F29: Cape Flattery School District
C30: 27019 | D30: Carbonado School District | E30: Carbonado School District | F30: Carbonado School District
C31: 04228 | D31: Cascade School District | E31: Cascade School District | F31: Cascade School District
C32: 04222 | D32: CASHMERE SCHOOL DISTRICT | E32: CASHMERE SCHOOL DISTRICT | F32: CASHMERE SCHOOL DISTRICT
C33: 08401 | D33: Castle Rock School District | E33: Castle Rock School District | F33: Castle Rock School District
C34: 20215 | D34: Centerville School District | E34: Centerville School District | F34: Centerville School District
C35: 18401 | D35: Central Kitsap School District | E35: Central Kitsap School District | F35: Central Kitsap School District
C36: 32356 | D36: Central Valley School District | E36: Central Valley School District | F36: Central Valley School District
C37: 21401 | D37: Centralia School District | E37: Centralia School District | F37: Centralia School District
C38: 21302 | D38: Chehalis School District | E38: Chehalis School District | F38: Chehalis School District
C39: 32360 | D39: Cheney School District | E39: Cheney School District | F39: Cheney School District
C40: 33036 | D40: Chewelah School District | E40: Chewelah School District | F40: Chewelah School District
C41: 16049 | D41: Chimacum School District | E41: Chimacum School District | F41: Chimacum School District
C42: 02250 | D42: Clarkston School District | E42: Clarkston School District | F42: Clarkston School District
C43: 19404 | D43: Cle Elum-Roslyn School District | E43: Cle Elum-Roslyn School District | F43: Cle Elum-Roslyn School District
C44: 27400 | D44: Clover Park School District | E44: Clover Park School District | F44: Clover Park School District
C45: 38300 | D45: Colfax School District | E45: Colfax School District | F45: Colfax School District
C46: 36250 | D46: College Place School District | E46: College Place School District | F46: College Place School District
C47: 38306 | D47: Colton School District | E47: Colton School District | F47: Colton School District
C48: 33206 | D48: Columbia (Stevens) School District | E48: Columbia (Stevens) School District | F48: Columbia (Stevens) School District
C49: 36400 | D49: Columbia (Walla Walla) School District | E49: Columbia (Walla Walla) School District | F49: Columbia (Walla Walla) School District
C50: 33115 | D50: Colville School District | E50: Colville School District | F50: Colville School District
C51: 29011 | D51: Concrete School District | E51: Concrete School District | F51: Concrete School District
C52: 29317 | D52: Conway School District | E52: Conway School District | F52: Conway School District
C53: 14099 | D53: Cosmopolis School District | E53: Cosmopolis School District | F53: Cosmopolis School District
C54: 13151 | D54: Coulee-Hartline School District | E54: Coulee-Hartline School District | F54: Coulee-Hartline School District
C55: 15204 | D55: Coupeville School District | E55: Coupeville School District | F55: Coupeville School District
C56: 05313 | D56: Crescent School District | E56: Crescent School District | F56: Crescent School District
C57: 22073 | D57: Creston School District | E57: Creston School District | F57: Creston School District
C58: 10050 | D58: Curlew School District | E58: Curlew School District | F58: Curlew School District
C59: 26059 | D59: Cusick School District | E59: Cusick School District | F59: Cusick School District
C60: 19007 | D60: Damman School District | E60: Damman School District | F60: Damman School District
C61: 31330 | D61: Darrington School District | E61: Darrington School District | F61: Darrington School District
C62: 22207 | D62: Davenport School District | E62: Davenport School District | F62: Davenport School District
C63: 07002 | D63: Dayton School District | E63: Dayton School District | F63: Dayton School District
C64: 32414 | D64: Deer Park School District | E64: Deer Park School District | F64: Deer Park School District
C65: 27343 | D65: Dieringer School District | E65: Dieringer School District | F65: Dieringer School District
C66: 36101 | D66: Dixie School District | E66: Dixie School District | F66: Dixie School District
C67: 32361 | D67: East Valley School District (Spokane) | E67: East Valley School District (Spokane) | F67: East Valley School District (Spokane)
C68: 39090 | D68: East Valley School District (Yakima) | E68: East Valley School District (Yakima) | F68: East Valley School District (Yakima)
C69: 09206 | D69: Eastmont School District | E69: Eastmont School District | F69: Eastmont School District
C70: 19028 | D70: Easton School District | E70: Easton School District | F70: Easton School District
C71: 27404 | D71: Eatonville School District | E71: Eatonville School District | F71: Eatonville School District
C72: 31015 | D72: Edmonds School District | E72: Edmonds School District | F72: Edmonds School District
C73: 19401 | D73: Ellensburg School District | E73: Ellensburg School District | F73: Ellensburg School District
C74: 14068 | D74: Elma School District | E74: Elma School District | F74: Elma School District
C75: 38308 | D75: Endicott School District | E75: Endicott School District | F75: Endicott School District
C76: 04127 | D76: Entiat School District | E76: Entiat School District | F76: Entiat School District
C77: 17216 | D77: Enumclaw School District | E77: Enumclaw School District | F77: Enumclaw School District
C78: 13165 | D78: Ephrata School District | E78: Ephrata School District | F78: Ephrata School District
C79: 21036 | D79: Evaline School District | E79: Evaline School District | F79: Evaline School District
C80: 31002 | D80: Everett School District | E80: Everett School District | F80: Everett School District
C81: 06114 | D81: Evergreen School District (Clark) | E81: Evergreen School District (Clark) | F81: Evergreen School District (Clark)
C82: 33205 | D82: Evergreen School District (Stevens) | E82: Evergreen School District (Stevens) | F82: Evergreen School District (Stevens)
C83: 17210 | D83: Federal Way School District | E83: Federal Way School District | F83: Federal Way School District
C84: 37502 | D84: Ferndale School District | E84: Ferndale School District | F84: Ferndale School District
C85: 27417 | D85: Fife School District | E85: Fife School District | F85: Fife School District
C86: 03053 | D86: Finley School District | E86: Finley School District | F86: Finley School District
C87: 27402 | D87: Franklin Pierce School District | E87: Franklin Pierce School District | F87: Franklin Pierce School District
C88: 32358 | D88: Freeman School District | E88: Freeman School District | F88: Freeman School District
C89: 38302 | D89: Garfield School District | E89: Garfield School District | F89: Garfield School District
C90: 20401 | D90: Glenwood School District | E90: Glenwood School District | F90: Glenwood School District
C91: 20404 | D91: Goldendale School District | E91: Goldendale School District | F91: Goldendale School District
C92: 13301 | D92: Grand Coulee Dam School District | E92: Grand Coulee Dam School District | F92: Grand Coulee Dam School District
C93: 39200 | D93: Grandview School District | E93: Grandview School District | F93: Grandview School District
C94: 39204 | D94: Granger School District | E94: Granger School District | F94: Granger School District
C95: 31332 | D95: Granite Falls School District | E95: Granite Falls School District | F95: Granite Falls School District
C96: 23054 | D96: Grapeview School District | E96: Grapeview School District | F96: Grapeview School District
C97: 32312 | D97: Great Northern School District | E97: Great Northern School District | F97: Great Northern School District
C98: 06103 | D98: Green Mountain School District | E98: Green Mountain School District | F98: Green Mountain School District
C99: 34324 | D99: Griffin School District | E99: Griffin School District | F99: Griffin School District
C100: 22204 | D100: Harrington School District | E100: Harrington School District | F100: Harrington School District
C101: 39203 | D101: Highland School District | E101: Highland School District | F101: Highland School District
C102: 17401 | D102: Highline School District | E102: Highline School District | F102: Highline School District
C103: 06098 | D103: Hockinson School District | E103: Hockinson School District | F103: Hockinson School District
C104: 23404 | D104: Hood Canal School District | E104: Hood Canal School District | F104: Hood Canal School District
C105: 14028 | D105: Hoquiam School District | E105: Hoquiam School District | F105: Hoquiam School District
C106: 10070 | D106: Inchelium School District | E106: Inchelium School District | F106: Inchelium School District
C107: 31063 | D107: Index School District | E107: Index School District | F107: Index School District
C108: 17411 | D108: Issaquah School District | E108: Issaquah School District | F108: Issaquah School District
C109: 11056 | D109: Kahlotus School District | E109: Kahlotus School District | F109: Kahlotus School District
C110: 08402 | D110: Kalama School District | E110: Kalama School District | F110: Kalama School District
C111: 10003 | D111: Keller School District | E111: Keller School District | F111: Keller School District
C112: 08458 | D112: Kelso School District | E112: Kelso School District | F112: Kelso School District
C113: 03017 | D113: Kennewick School District | E113: Kennewick School District | F113: Kennewick School District
C114: 17415 | D114: Kent School District | E114: Kent School District | F114: Kent School District
C115: 33212 | D115: Kettle Falls School District | E115: Kettle Falls School District | F115: Kettle Falls School District
C116: 03052 | D116: Kiona-Benton City School District | E116: Kiona-Benton City School District | F116: Kiona-Benton City School District
C117: 19403 | D117: Kittitas School District | E117: Kittitas School District | F117: Kittitas School District
C118: 20402 | D118: Klickitat School District | E118: Klickitat School District | F118: Klickitat School District
C119: 06101 | D119: La Center School District | E119: La Center School District | F119: La Center School District
C120: 29311 | D120: La Conner School District | E120: La Conner School District | F120: La Conner School District
C121: 38126 | D121: LaCrosse School District | E121: LaCrosse School District | F121: LaCrosse School District
C122: 04129 | D122: Lake Chelan School District | E122: Lake Chelan School District | F122: Lake Chelan School District
C123: 14097 | D123: Lake Quinault School District | E123: Lake Quinault School District | F123: Lake Quinault School District
C124: 31004 | D124: Lake Stevens School District | E124: Lake Stevens School District | F124: Lake Stevens School District
C125: 17414 | D125: Lake Washington School District | E125: Lake Washington School District | F125: Lake Washington School District
C126: 31306 | D126: Lakewood School District | E126: Lakewood School District | F126: Lakewood School District
C127: 38264 | D127: Lamont School District | E127: Lamont School District | F127: Lamont School District
C128: 32362 | D128: Liberty School District | E128: Liberty School District | F128: Liberty School District
C129: 01158 | D129: Lind School District | E129: Lind School District | F129: Lind School District
C130: 08122 | D130: Longview School District | E130: Longview School District | F130: Longview School District
C131: 33183 | D131: Loon Lake School District | E131: Loon Lake School District | F131: Loon Lake School District
C132: 28144 | D132: Lopez School District | E132: Lopez School District | F132: Lopez School District
C133: 37903 | D133: Lummi Tribal Agency | E133: Lummi Tribal Agency | F133: Lummi Tribal Agency
C134: 20406 | D134: Lyle School District | E134: Lyle School District | F134: Lyle School District
C135: 37504 | D135: Lynden School District | E135: Lynden School District | F135: Lynden School District
C136: 39120 | D136: Mabton School District | E136: Mabton School District | F136: Mabton School District
C137: 09207 | D137: Mansfield School District | E137: Mansfield School District | F137: Mansfield School District
C138: 04019 | D138: Manson School District | E138: Manson School District | F138: Manson School District
C139: 23311 | D139: Mary M Knight School District | E139: Mary M Knight School District | F139: Mary M Knight School District
C140: 33207 | D140: Mary Walker School District | E140: Mary Walker School District | F140: Mary Walker School District
C141: 31025 | D141: Marysville School District | E141: Marysville School District | F141: Marysville School District
C142: 14065 | D142: McCleary School District | E142: McCleary School District | F142: McCleary School District
C143: 32354 | D143: Mead School District | E143: Mead School District | F143: Mead School District
C144: 32326 | D144: Medical Lake School District | E144: Medical Lake School District | F144: Medical Lake School District
C145: 17400 | D145: Mercer Island School District | E145: Mercer Island School District | F145: Mercer Island School District
C146: 37505 | D146: Meridian School District | E146: Meridian School District | F146: Meridian School District
C147: 24350 | D147: Methow Valley School District | E147: Methow Valley School District | F147: Methow Valley School District
C148: 30031 | D148: Mill A School District | E148: Mill A School District | F148: Mill A School District
C149: 31103 | D149: Monroe School District | E149: Monroe School District | F149: Monroe School District
C150: 14066 | D150: Montesano School District | E150: Montesano School District | F150: Montesano School District
C151: 21214 | D151: Morton School District | E151: Morton School District | F151: Morton School District
C152: 13161 | D152: Moses Lake School District | E152: Moses Lake School District | F152: Moses Lake School District
C153: 21206 | D153: Mossyrock School District | E153: Mossyrock School District | F153: Mossyrock School District
C154: 39209 | D154: Mount Adams School District | E154: Mount Adams School District | F154: Mount Adams School District
C155: 37507 | D155: Mount Baker School District | E155: Mount Baker School District | F155: Mount Baker School District
C156: 30029 | D156: Mount Pleasant School District | E156: Mount Pleasant School District | F156: Mount Pleasant School District
C157: 29320 | D157: Mount Vernon School District | E157: Mount Vernon School District | F157: Mount Vernon School District
C158: 17903 | D158: Muckleshoot Indian Tribe | E158: Muckleshoot Indian Tribe | F158: Muckleshoot Indian Tribe
C159: 31006 | D159: Mukilteo School District | E159: Mukilteo School District | F159: Mukilteo School District
C160: 39003 | D160: Naches Valley School District | E160: Naches Valley School District | F160: Naches Valley School District
C161: 21014 | D161: Napavine School District | E161: Napavine School District | F161: Napavine School District
C162: 25155 | D162: Naselle-Grays River Valley School District | E162: Naselle-Grays River Valley School District | F162: Naselle-Grays River Valley School District
C163: 24014 | D163: Nespelem School District | E163: Nespelem School District | F163: Nespelem School District
C164: 26056 | D164: Newport School District | E164: Newport School District | F164: Newport School District
C165: 32325 | D165: Nine Mile Falls School District | E165: Nine Mile Falls School District | F165: Nine Mile Falls School District
C166: 37506 | D166: Nooksack Valley School District | E166: Nooksack Valley School District | F166: Nooksack Valley School District
C167: 14064 | D167: North Beach School District | E167: North Beach School District | F167: North Beach School District
C168: 11051 | D168: North Franklin School District | E168: North Franklin School District | F168: North Franklin School District
C169: 18400 | D169: North Kitsap School District | E169: North Kitsap School District | F169: North Kitsap School District
C170: 23403 | D170: North Mason School District | E170: North Mason School District | F170: North Mason School District
C171: 25200 | D171: North River School District | E171: North River School District | F171: North River School District
C172: 34003 | D172: North Thurston Public Schools | E172: North Thurston Public Schools | F172: North Thurston Public Schools
C173: 33211 | D173: Northport School District | E173: Northport School District | F173: Northport School District
C174: 17417 | D174: Northshore School District | E174: Northshore School District | F174: Northshore School District
C175: 15201 | D175: Oak Harbor School District | E175: Oak Harbor School District | F175: Oak Harbor School District
C176: 38324 | D176: Oakesdale School District | E176: Oakesdale School District | F176: Oakesdale School District
C177: 14400 | D177: Oakville School District | E177: Oakville School District | F177: Oakville School District
C178: 25101 | D178: Ocean Beach School District | E178: Ocean Beach School District | F178: Ocean Beach School District
C179: 14172 | D179: Ocosta School District | E179: Ocosta School District | F179: Ocosta School District
C180: 22105 | D180: Odessa School District | E180: Odessa School District | F180: Odessa School District
C181: 24105 | D181: Okanogan School District | E181: Okanogan School District | F181: Okanogan School District
C182: 34111 | D182: Olympia School District | E182: Olympia School District | F182: Olympia School District
C183: 24019 | D183: Omak School District | E183: Omak School District | F183: Omak School District
C184: 21300 | D184: Onalaska School District | E184: Onalaska School District | F184: Onalaska School District
C185: 33030 | D185: Onion Creek School District | E185: Onion Creek School District | F185: Onion Creek School District
C186: 28137 | D186: Orcas Island School District | E186: Orcas Island School District | F186: Orcas Island School District
C187: 32123 | D187: Orchard Prairie School District | E187: Orchard Prairie School District | F187: Orchard Prairie School District
C188: 10065 | D188: Orient School District | E188: Orient School District | F188: Orient School District
C189: 09013 | D189: Orondo School District | E189: Orondo School District | F189: Orondo School District
C190: 24410 | D190: Oroville School District | E190: Oroville School District | F190: Oroville School District
C191: 27344 | D191: Orting School District | E191: Orting School District | F191: Orting School District
C192: 01147 | D192: Othello School District | E192: Othello School District | F192: Othello School District
C193: 09102 | D193: Palisades School District | E193: Palisades School District | F193: Palisades School District
C194: 38301 | D194: Palouse School District | E194: Palouse School District | F194: Palouse School District
C195: 11001 | D195: Pasco School District | E195: Pasco School District | F195: Pasco School District
C196: 24122 | D196: Pateros School District | E196: Pateros School District | F196: Pateros School District
C197: 03050 | D197: Paterson School District | E197: Paterson School District | F197: Paterson School District
C198: 21301 | D198: Pe Ell School District | E198: Pe Ell School District | F198: Pe Ell School District
C199: 27401 | D199: Peninsula School District | E199: Peninsula School District | F199: Peninsula School District
C200: 23402 | D200: Pioneer School District | E200: Pioneer School District | F200: Pioneer School District
C201: 12110 | D201: Pomeroy School District | E201: Pomeroy School District | F201: Pomeroy School District
C202: 05121 | D202: Port Angeles School District | E202: Port Angeles School District | F202: Port Angeles School District
... 125 more rows

Sheet Variable Inputs - SB 6362 (hidden)
C1: 1 | D1: =+C1+1 -> 2 | E1: =+D1+1 -> 3 | F1: 4 | G1: 5 | H1: 6 | I1: 7 | J1: 8 | K1: 9 | L1: 10 | M1: 11 | N1: 12 | O1: 13 | P1: 14 | Q1: 15 | R1: 16
E2: Value provided in legisation or calculated by OSPI according to legislation
E3: Value assumed and set at the same level as latest year of available data (some available data is a projection, some is known)
E4: Value is a projection by OSPI, based on legislation
E5: Input not applicable
E6: Value Missing from sources
D7: Note: All formulas carry down to row 6,000 and should update as information is added to this spreadsheet
D8: Note: Willow CIS in 91-20 regionalziation = 1.04, CAS and CLS = 1.00, CIS salary = CIS salary at 1.00 and multiplies it by 1.04 in 19-20 and 20-21
G9: Current | H9: 17-19 K-12 Bill | I9: 17-19 K-12 Bill | J9: Assumed | K9: As of 4/2020 | L9: 2021 John Jenft | M9: 2022 John Jenft | N9: JohnJenft | O9: Assumed | P9: Assumed | Q9: Assumed | R9: Assumed
G10: 2016 | H10: =G10+1 -> 2017 | I10: =H10+1 -> 2018 | J10: 2019 | K10: 2020 | L10: 2021 | M10: 2022 | N10: 2023 | O10: 2024 | P10: 2025 | Q10: 2026 | R10: 2027
C11: =E11&" - "&F11 -> OSPI District Name - Category | D11: OSPILegacyCode | E11: OSPI District Name | F11: Category | G11: SY 2016-17 | H11: SY 2017-18 | I11: SY 2018-19 | J11: SY 2019-20 | K11: SY 2020-21 | L11: SY 2021-22 | M11: SY 2022-23 | N11: SY 2023-24 | O11: SY 2024-25 | P11: SY 2025-26 | Q11: SY 2026-27 | R11: SY 2027-28
B12: 0 | C12: 0 - 0 | D12: 0 | E12: 0 | F12: 0 | G12: 0 | H12: 0 | I12: 0 | J12: 0 | K12: 0 | L12: 0 | M12: 0 | N12: 0 | O12: 0 | P12: 0 | Q12: =+P12 -> 0
C13: Aberdeen School District - % LAP from Cedars | D13: 14005 | E13: Aberdeen School District | F13: % LAP from Cedars | G13: 0.671 | H13: 0.6604790419 | I13: 0.6776859504 | J13: 0.6793 | K13: 0.7192 | L13: 0.7194 | M13: 0.7254 | N13: 0.6818
C14: Adna School District - % LAP from Cedars | D14: 21226 | E14: Adna School District | F14: % LAP from Cedars | G14: 0.303 | H14: 0.2832550861 | I14: 0.2890625 | J14: 0.2676 | K14: 0.2844 | L14: 0.278 | M14: 0.2676 | N14: 0.2202
C15: Almira School District - % LAP from Cedars | D15: 22017 | E15: Almira School District | F15: % LAP from Cedars | G15: 0.3458 | H15: 0.3796296296 | I15: 0.375 | J15: 0.3796 | K15: 0.3277 | L15: 0.3644 | M15: 0.3796 | N15: 0.4236
C16: Anacortes School District - % LAP from Cedars | D16: 29103 | E16: Anacortes School District | F16: % LAP from Cedars | G16: 0.3138 | H16: 0.2779390421 | I16: 0.2760624773 | J16: 0.265 | K16: 0.2518 | L16: 0.2631 | M16: 0.2897 | N16: 0.3188
C17: Arlington School District - % LAP from Cedars | D17: 31016 | E17: Arlington School District | F17: % LAP from Cedars | G17: 0.3496 | H17: 0.3297989031 | I17: 0.3195244957 | J17: 0.3292 | K17: 0.3415 | L17: 0.3478 | M17: 0.3292 | N17: 0.3799
C18: Asotin-Anatone School District - % LAP from Cedars | D18: 2420 | E18: Asotin-Anatone School District | F18: % LAP from Cedars | G18: 0.3209 | H18: 0.3125948407 | I18: 0.288961039 | J18: 0.3124 | K18: 0.3685 | L18: 0.317 | M18: 0.3124 | N18: 0.3514
C19: Auburn School District - % LAP from Cedars | D19: 17408 | E19: Auburn School District | F19: % LAP from Cedars | G19: 0.5576 | H19: 0.5433921951 | I19: 0.5241186821 | J19: 0.5498 | K19: 0.5611 | L19: 0.55 | M19: 0.5683 | N19: 0.5684
C20: Bainbridge Island School District - % LAP from Cedars | D20: 18303 | E20: Bainbridge Island School District | F20: % LAP from Cedars | G20: 0.0788 | H20: 0.07746295815 | I20: 0.07080329557 | J20: 0.063 | K20: 0.0742 | L20: 0.0718 | M20: 0.0697 | N20: 0.0883
C21: Battle Ground School District - % LAP from Cedars | D21: 6119 | E21: Battle Ground School District | F21: % LAP from Cedars | G21: 0.3653 | H21: 0.3468086702 | I21: 0.3208882927 | J21: 0.3196 | K21: 0.3205 | L21: 0.3194 | M21: 0.3439 | N21: 0.373
C22: Bellevue School District - % LAP from Cedars | D22: 17405 | E22: Bellevue School District | F22: % LAP from Cedars | G22: 0.1931 | H22: 0.1854389511 | I22: 0.1729246612 | J22: 0.1741 | K22: 0.1654 | L22: 0.1591 | M22: 0.1741 | N22: 0.209
C23: Bellingham School District - % LAP from Cedars | D23: 37501 | E23: Bellingham School District | F23: % LAP from Cedars | G23: 0.3819 | H23: 0.3723849372 | I23: 0.3484421682 | J23: 0.34 | K23: 0.3378 | L23: 0.3807 | M23: 0.3807 | N23: 0.3807
C24: Benge School District - % LAP from Cedars | D24: 1122 | E24: Benge School District | F24: % LAP from Cedars | G24: 0 | H24: 0 | I24: 0.07142857143 | J24: 0.2143 | K24: 0.1053 | L24: 0.0556 | M24: 0.2143 | N24: 0
C25: Bethel School District - % LAP from Cedars | D25: 27403 | E25: Bethel School District | F25: % LAP from Cedars | G25: 0.4687 | H25: 0.5289644611 | I25: 0.4804394702 | J25: 0.4957 | K25: 0.5096 | L25: 0.4871 | M25: 0.4957 | N25: 0.4975
C26: Bickleton School District - % LAP from Cedars | D26: 20203 | E26: Bickleton School District | F26: % LAP from Cedars | G26: 0.0814 | H26: 0.1157894737 | I26: 0.2357723577 | J26: 0.4425 | K26: 0.3952 | L26: 0.1795 | M26: 0.4737 | N26: 0.3077
C27: Blaine School District - % LAP from Cedars | D27: 37503 | E27: Blaine School District | F27: % LAP from Cedars | G27: 0.4665 | H27: 0.4563150747 | I27: 0.4673864148 | J27: 0.4664 | K27: 0.4742 | L27: 0.4418 | M27: 0.4664 | N27: 0.4617
C28: Boistfort School District - % LAP from Cedars | D28: 21234 | E28: Boistfort School District | F28: % LAP from Cedars | G28: 0.6154 | H28: 0.6210526316 | I28: 0.4831460674 | J28: 0.5258 | K28: 0.5263 | L28: 0.4944 | M28: 0.5258 | N28: 0.4026
C29: Bremerton School District - % LAP from Cedars | D29: 18100 | E29: Bremerton School District | F29: % LAP from Cedars | G29: 0.6416 | H29: 0.6119698771 | I29: 0.612207528 | J29: 0.6296 | K29: 0.6446 | L29: 0.6296 | M29: 0.6471 | N29: 0.6296
